Workbook

Sheet Index
B1: Data | D1: Trend Plots | F1: Species Plots
B3: Tracking | D3: ACAD-trend | F3: ACAD-Species-Most IMP | H3: ACAD-Species-Most IMP
B4: Species | D4: BRIG-trend | F4: BRIG-Species-Most IMP | H4: BRIG-Species-Most IMP
B5: 5-yr plot data | D5: DOSO-trend | F5: DOSO-Species-Most IMP | H5: DOSO-Species-Most IMP
D6: GRGU-trend | F6: GRGU-Species-Most IMP | H6: GRGU-Species-Most IMP
D7: JARI-trend | F7: JARI-Species-Most IMP | H7: JARI-Species-Most IMP
D8: LYBR-trend | F8: LYBR-Species-Most IMP | H8: LYBR-Species-Most IMP
D9: MOOS-trend | F9: MOOS-Species-Most IMP | H9: MOOS-Species-Most IMP
D10: SHEN-trend | F10: SHEN-Species-Most IMP | H10: SHEN-Species-Most IMP
F12: 5-yr plot Most IMP | H12: 5-yr plot Most IMP

Sheet Tracking
A2: Site | B2: Year | C2: 90 | D2: 10
C3: Worst days | D3: Best days | F3: Year3 | G3: Year4 | H3: Year5
A4: ACAD1 | B4: 2000-2004 | C4: 22.89219797 | D4: 8.775565896 | F4: 2002 | G4: 2003 | H4: 2004
A5: ACAD1 | B5: 2008-2012 | C5: =P36 -> 17.64695305 | D5: =Q36 -> 7.3306055 | F5: 2010 | G5: 2011 | H5: 2012
A6: BRIG1 | B6: 2000-2004 | C6: 29.00657052 | D6: 14.33402199 | F6: 2002 | G6: 2003 | H6: 2004
A7: BRIG1 | B7: 2008-2012 | C7: =AF36 -> 22.7887983 | D7: =AG36 -> 12.36020176 | F7: 2010 | G7: 2011 | H7: 2012
A8: DOSO1 | B8: 2000-2004 | C8: 29.04575791 | D8: 12.27800258 | F8: 2002 | G8: 2003 | H8: 2004
A9: DOSO1 | B9: 2008-2012 | C9: =AV36 -> 22.71384733 | D9: =AW36 -> 9.24500404 | F9: 2010 | G9: 2011 | H9: 2012
A10: GRGU1 | B10: 2000-2004 | C10: 22.82029194 | D10: 7.663096272 | F10: 2002 | G10: 2003 | H10: 2004
A11: GRGU1 | B11: 2008-2012 | C11: =BL36 -> 16.14334318 | D11: =BM36 -> 6.155682597 | G11: 2011 | H11: 2012
A12: LYBR1 | B12: 2000-2004 | C12: 24.44674372 | D12: 6.366616622 | F12: 2002 | G12: 2003 | H12: 2004
A13: LYBR1 | B13: 2008-2012 | C13: =CB36 -> 18.24797083 | D13: =CC36 -> 4.77141407 | F13: 2010 | G13: 2011 | H13: 2012
A14: MOOS1 | B14: 2000-2004 | C14: 21.72229558 | D14: 9.156090087 | F14: 2002 | G14: 2003 | H14: 2004
A15: MOOS1 | B15: 2008-2012 | C15: =CR36 -> 16.4191128 | D15: =CS36 -> 6.986647953 | F15: 2010 | G15: 2011 | H15: 2012
A16: SHEN1 | B16: 2000-2004 | C16: 29.30761584 | D16: 10.92740139 | F16: 2002 | G16: 2003 | H16: 2004
A17: SHEN1 | B17: 2008-2012 | C17: =DH36 -> 21.86091238 | D17: =DI36 -> 8.734746615 | F17: 2010 | G17: 2011 | H17: 2012
B21: ACAD1 | H21: =C58 -> 10.38734098 | R21: BRIG1 | X21: =C59 -> 10.68198747 | AH21: DOSO1 | AN21: =C60 -> 8.916760581 | AX21: GRGU1 | BD21: =C61 -> 9.775481534 | BN21: LYBR_RHTS | BT21: =C62 -> 10.24306624 | CD21: MOOS1 | CJ21: =C63 -> 9.976087341 | CT21: SHEN1 | CZ21: =C64 -> 9.520419573 | DJ21: JARI1 | DP21: =C65 -> 9.466839827
A22: Index | B22: 90 | C22: 10 | H22: difference to | R22: 90 | S22: 10 | X22: difference to | AH22: 90 | AI22: 10 | AN22: difference to | AX22: 90 | AY22: 10 | BD22: difference to | BN22: 90 | BO22: 10 | BT22: difference to | CD22: 90 | CE22: 10 | CJ22: difference to | CT22: 90 | CU22: 10 | CZ22: difference to | DJ22: 90 | DK22: 10 | DP22: difference to
A23: Year | B23: Haze Index, Annual - 20% Most Impaired Days | C23: Haze Index, Annual - 20% Clearest Days | D23: Haze Index, 5-Year Baseline - 20% Most Impaired Days | E23: Haze Index, 5-Year Baseline - 20% Clearest Days | F23: No Degradation | G23: Natural Conditions - 20% Clearest Days | H23: Natural Conditions - 20% Most Impaired Days | I23: Uniform Rate of Progress | J23: Base Case - 20% Clearest Days | K23: Base Case - 20% Most Impaired Days | L23: Reasonable Progress Goal (RPG) - 20% Clearest Days | M23: RPG - 20% Most Impaired Days | N23: Straight line path to RPG - 20% Clearest Days | O23: Straight line path to RPG - 20% Most Impaired Days | P23: Haze Index, 5-Year Rolling - 20% Most Impaired Days | Q23: Haze Index, 5-Year Rolling - 20% Clearest Days | R23: Haze Index, Annual - 20% Most Impaired Days | S23: Haze Index, Annual - 20% Clearest Days | T23: Haze Index, 5-Year Baseline - 20% Most Impaired Days | U23: Haze Index, 5-Year Baseline - 20% Clearest Days | V23: No Degradation | W23: Natural Conditions - 20% Clearest Days | X23: Natural Conditions - 20% Most Impaired Days | Y23: Uniform Rate of Progress | Z23: Base Case - 20% Clearest Days | AA23: Base Case - 20% Most Impaired Days | AB23: Reasonable Progress Goal (RPG) - 20% Clearest Days | AC23: RPG - 20% Most Impaired Days | AD23: Straight line path to RPG - 20% Clearest Days | AE23: Straight line path to RPG - 20% Most Impaired Days | AF23: Haze Index, 5-Year Rolling - 20% Most Impaired Days | AG23: Haze Index, 5-Year Rolling - 20% Clearest Days | AH23: Haze Index, Annual - 20% Most Impaired Days | AI23: Haze Index, Annual - 20% Clearest Days | AJ23: Haze Index, 5-Year Baseline - 20% Most Impaired Days | AK23: Haze Index, 5-Year Baseline - 20% Clearest Days | AL23: No Degradation | AM23: Natural Conditions - 20% Clearest Days | AN23: Natural Conditions - 20% Most Impaired Days | AO23: Uniform Rate of Progress | AP23: Base Case - 20% Clearest Days | AQ23: Base Case - 20% Most Impaired Days | AR23: Reasonable Progress Goal (RPG) - 20% Clearest Days | AS23: RPG - 20% Most Impaired Days | AT23: Straight line path to RPG - 20% Clearest Days | AU23: Straight line path to RPG - 20% Most Impaired Days | AV23: Haze Index, 5-Year Rolling - 20% Most Impaired Days | AW23: Haze Index, 5-Year Rolling - 20% Clearest Days | AX23: Haze Index, Annual - 20% Most Impaired Days | AY23: Haze Index, Annual - 20% Clearest Days | AZ23: Haze Index, 5-Year Baseline - 20% Most Impaired Days | BA23: Haze Index, 5-Year Baseline - 20% Clearest Days | BB23: No Degradation | BC23: Natural Conditions - 20% Clearest Days | BD23: Natural Conditions - 20% Most Impaired Days | BE23: Uniform Rate of Progress | BF23: Base Case - 20% Clearest Days | BG23: Base Case - 20% Most Impaired Days | BH23: Reasonable Progress Goal (RPG) - 20% Clearest Days | BI23: RPG - 20% Most Impaired Days | BJ23: Straight line path to RPG - 20% Clearest Days | BK23: Straight line path to RPG - 20% Most Impaired Days | BL23: Haze Index, 5-Year Rolling - 20% Most Impaired Days | BM23: Haze Index, 5-Year Rolling - 20% Clearest Days | BN23: Haze Index, Annual - 20% Most Impaired Days | BO23: Haze Index, Annual - 20% Clearest Days | BP23: Haze Index, 5-Year Baseline - 20% Most Impaired Days | BQ23: Haze Index, 5-Year Baseline - 20% Clearest Days | BR23: No Degradation | BS23: Natural Conditions - 20% Clearest Days | BT23: Natural Conditions - 20% Most Impaired Days | BU23: Uniform Rate of Progress | BV23: Base Case - 20% Clearest Days | BW23: Base Case - 20% Most Impaired Days | BX23: Reasonable Progress Goal (RPG) - 20% Clearest Days | BY23: RPG - 20% Most Impaired Days | BZ23: Straight line path to RPG - 20% Clearest Days | CA23: Straight line path to RPG - 20% Most Impaired Days | CB23: Haze Index, 5-Year Rolling - 20% Most Impaired Days | CC23: Haze Index, 5-Year Rolling - 20% Clearest Days | CD23: Haze Index, Annual - 20% Most Impaired Days | CE23: Haze Index, Annual - 20% Clearest Days | CF23: Haze Index, 5-Year Baseline - 20% Most Impaired Days | CG23: Haze Index, 5-Year Baseline - 20% Clearest Days | CH23: No Degradation | CI23: Natural Conditions - 20% Clearest Days | CJ23: Natural Conditions - 20% Most Impaired Days | CK23: Uniform Rate of Progress | CL23: Base Case - 20% Clearest Days | CM23: Base Case - 20% Most Impaired Days | CN23: Reasonable Progress Goal (RPG) - 20% Clearest Days | CO23: RPG - 20% Most Impaired Days | CP23: Straight line path to RPG - 20% Clearest Days | CQ23: Straight line path to RPG - 20% Most Impaired Days | CR23: Haze Index, 5-Year Rolling - 20% Most Impaired Days | CS23: Haze Index, 5-Year Rolling - 20% Clearest Days | CT23: Haze Index, Annual - 20% Most Impaired Days | CU23: Haze Index, Annual - 20% Clearest Days | CV23: Haze Index, 5-Year Baseline - 20% Most Impaired Days | CW23: Haze Index, 5-Year Baseline - 20% Clearest Days | CX23: No Degradation | CY23: Natural Conditions - 20% Clearest Days | CZ23: Natural Conditions - 20% Most Impaired Days | DA23: Uniform Rate of Progress | DB23: Base Case - 20% Clearest Days | DC23: Base Case - 20% Most Impaired Days | DD23: Reasonable Progress Goal (RPG) - 20% Clearest Days | DE23: RPG - 20% Most Impaired Days | DF23: Straight line path to RPG - 20% Clearest Days | DG23: Straight line path to RPG - 20% Most Impaired Days | DH23: Haze Index, 5-Year Rolling - 20% Most Impaired Days | DI23: Haze Index, 5-Year Rolling - 20% Clearest Days | DJ23: Haze Index, Annual - 20% Most Impaired Days | DK23: Haze Index, Annual - 20% Clearest Days | DL23: Haze Index, 5-Year Baseline - 20% Most Impaired Days | DM23: Haze Index, 5-Year Baseline - 20% Clearest Days | DN23: No Degradation | DO23: Natural Conditions - 20% Clearest Days | DP23: Natural Conditions - 20% Most Impaired Days | DQ23: Uniform Rate of Progress | DR23: Base Case - 20% Clearest Days | DS23: Base Case - 20% Most Impaired Days | DT23: Reasonable Progress Goal (RPG) - 20% Clearest Days | DU23: RPG - 20% Most Impaired Days | DV23: Straight line path to RPG - 20% Clearest Days | DW23: Straight line path to RPG - 20% Most Impaired Days | DX23: Haze Index, 5-Year Rolling - 20% Most Impaired Days | DY23: Haze Index, 5-Year Rolling - 20% Clearest Days
A24: 2000 | B24: 20.7527681 | C24: 8.9009695 | D24: =AVERAGE(B24:B28) -> 22.01423293 | E24: =AVERAGE(C24:C28) -> 8.775566233 | F24: =E28 -> 8.775566233 | G24: =B58 -> 4.660356803 | H24: =H21-G53 -> 5.726984177 | R24: 27.36636333 | S24: 14.2636855 | T24: =AVERAGE(R24:R28) -> 27.43023193 | U24: =AVERAGE(S24:S28) -> 14.32975021 | V24: =U28 -> 14.32975021 | W24: =B59 -> 5.517226693 | X24: =X21-W53 -> 5.164760777 | AH24: 27.7167895 | AI24: 12.96049632 | AJ24: =AVERAGE(AH24:AH28) -> 28.28801629 | AK24: =AVERAGE(AI24:AI28) -> 12.27800291 | AL24: =AK28 -> 12.27800291 | AM24: =B60 -> 3.637152897 | AN24: =AN21-AM53 -> 5.279607684 | AZ24: =AVERAGE(AX24:AX28) -> 21.88012276 | BA24: =AVERAGE(AY24:AY28) -> 7.647414679 | BB24: =BA28 -> 7.647414679 | BC24: =B61 -> 3.73061037 | BD24: =BD21-BC53 -> 6.044871164 | BN24: 23.10141381 | BO24: 6.49258 | BP24: =AVERAGE(BN24:BN28) -> 23.56595564 | BQ24: =AVERAGE(BO24:BO28) -> 6.36661668 | BR24: =BQ28 -> 6.36661668 | BS24: =B62 -> 2.794466192 | BT24: =BT21-BS53 -> 7.448600048 | CD24: 19.47935286 | CE24: 8.9378485 | CF24: =AVERAGE(CD24:CD28) -> 20.6524014 | CG24: =AVERAGE(CE24:CE28) -> 9.156089819 | CH24: =CG28 -> 9.156089819 | CI24: =B63 -> 5.017960776 | CJ24: =CJ21-CI53 -> 4.958126565 | CT24: 27.229265 | CU24: 11.07940368 | CV24: =AVERAGE(CT24:CT28) -> 28.3224964 | CW24: =AVERAGE(CU24:CU28) -> 10.96321325 | CX24: =CW28 -> 10.96321325 | CY24: =B64 -> 3.146327357 | CZ24: =CZ21-CY53 -> 6.374092216 | DL24: =AVERAGE(DJ24:DJ28) -> 28.08129889 | DM24: =AVERAGE(DK24:DK28) -> 14.20983492 | DN24: =DM28 -> 14.20983492 | DO24: =B65 -> 4.389314256 | DP24: =DP21-DO53 -> 5.077525571
A25: 2001 | B25: 22.3742984 | C25: 8.874270833 | D25: =D24 -> 22.01423293 | E25: =E24 -> 8.775566233 | R25: 27.07211773 | S25: 13.80449667 | T25: =T24 -> 27.43023193 | U25: =U24 -> 14.32975021 | AH25: 27.5326313 | AI25: 13.30276739 | AJ25: =AJ24 -> 28.28801629 | AK25: =AK24 -> 12.27800291 | AX25: 22.46526522 | AY25: 8.261430455 | AZ25: =AZ24 -> 21.88012276 | BA25: =BA24 -> 7.647414679 | BN25: 25.4804045 | BO25: 6.4714185 | BP25: =BP24 -> 23.56595564 | BQ25: =BQ24 -> 6.36661668 | CD25: 21.30104545 | CE25: 9.307401429 | CF25: =CF24 -> 20.6524014 | CG25: =CG24 -> 9.156089819 | CT25: 27.61789227 | CU25: 13.21069429 | CV25: =CV24 -> 28.3224964 | CW25: =CW24 -> 10.96321325 | DJ25: 28.35697609 | DK25: 14.54239909 | DL25: =DL24 -> 28.08129889 | DM25: =DM24 -> 14.20983492
A26: 2002 | B26: 22.9097568 | C26: 8.770072917 | D26: =D25 -> 22.01423293 | E26: =E25 -> 8.775566233 | R26: 26.53276864 | S26: 14.83233 | T26: =T25 -> 27.43023193 | U26: =U25 -> 14.32975021 | AH26: 27.95815522 | AI26: 11.91363727 | AJ26: =AJ25 -> 28.28801629 | AK26: =AK25 -> 12.27800291 | AX26: 23.42895375 | AY26: 7.77047 | AZ26: =AZ25 -> 21.88012276 | BA26: =BA25 -> 7.647414679 | BN26: 23.46484391 | BO26: 6.427855909 | BP26: =BP25 -> 23.56595564 | BQ26: =BQ25 -> 6.36661668 | CD26: 22.12338625 | CE26: 9.11646875 | CF26: =CF25 -> 20.6524014 | CG26: =CG25 -> 9.156089819 | CT26: 29.89047083 | CU26: 11.4926087 | CV26: =CV25 -> 28.3224964 | CW26: =CW25 -> 10.96321325 | DJ26: 28.91434625 | DK26: 15.64709217 | DL26: =DL25 -> 28.08129889 | DM26: =DM25 -> 14.20983492
A27: 2003 | B27: 22.69669375 | C27: 8.769720833 | D27: 22.01423293 | E27: 8.775566233 | R27: 28.49253917 | S27: 14.38665304 | T27: 27.43023193 | U27: 14.32975021 | AH27: 29.32585783 | AI27: 11.54182565 | AJ27: 28.28801629 | AK27: 12.27800291 | AX27: 20.65197667 | AY27: 6.944663478 | AZ27: 21.88012276 | BA27: 7.647414679 | BN27: 23.36971417 | BO27: 5.831362174 | BP27: 23.56595564 | BQ27: 6.36661668 | CD27: 20.95643125 | CE27: 9.484773333 | CF27: 20.6524014 | CG27: 9.156089819 | CT27: 27.87465087 | CU27: 9.47942 | CV27: 28.3224964 | CW27: 10.96321325 | DJ27: 27.60884083 | DK27: 12.84678217 | DL27: 28.08129889 | DM27: 14.20983492
A28: 2004 | B28: 21.3376476 | C28: 8.562797083 | D28: 22.01423293 | E28: 8.775566233 | F28: =F24 -> 8.775566233 | I28: =D28 -> 22.01423293 | N28: =E28 -> 8.775566233 | O28: =D28 -> 22.01423293 | P28: =AVERAGE(B24:B28) -> 22.01423293 | Q28: =AVERAGE(C24:C28) -> 8.775566233 | R28: 27.6873708 | S28: 14.36158583 | T28: 27.43023193 | U28: 14.32975021 | V28: =V24 -> 14.32975021 | Y28: =T28 -> 27.43023193 | AD28: =U28 -> 14.32975021 | AE28: =T28 -> 27.43023193 | AF28: =AVERAGE(R24:R28) -> 27.43023193 | AG28: =AVERAGE(S24:S28) -> 14.32975021 | AH28: 28.9066476 | AI28: 11.67128792 | AJ28: 28.28801629 | AK28: 12.27800291 | AL28: =AL24 -> 12.27800291 | AO28: =AJ28 -> 28.28801629 | AT28: =AK28 -> 12.27800291 | AU28: =AJ28 -> 28.28801629 | AV28: =AVERAGE(AH24:AH28) -> 28.28801629 | AW28: =AVERAGE(AI24:AI28) -> 12.27800291 | AX28: 20.97429542 | AY28: 7.613094783 | AZ28: 21.88012276 | BA28: 7.647414679 | BB28: =BB24 -> 7.647414679 | BE28: =AZ28 -> 21.88012276 | BJ28: =BA28 -> 7.647414679 | BK28: =AZ28 -> 21.88012276 | BL28: =AVERAGE(AX24:AX28) -> 21.88012276 | BM28: =AVERAGE(AY24:AY28) -> 7.647414679 | BN28: 22.41340182 | BO28: 6.609866818 | BP28: 23.56595564 | BQ28: 6.36661668 | BR28: =BR24 -> 6.36661668 | BU28: =BP28 -> 23.56595564 | BZ28: =BQ28 -> 6.36661668 | CA28: =BP28 -> 23.56595564 | CB28: =AVERAGE(BN24:BN28) -> 23.56595564 | CC28: =AVERAGE(BO24:BO28) -> 6.36661668 | CD28: 19.4017912 | CE28: 8.933957083 | CF28: 20.6524014 | CG28: 9.156089819 | CH28: =CH24 -> 9.156089819 | CK28: =CF28 -> 20.6524014 | CP28: =CG28 -> 9.156089819 | CQ28: =CF28 -> 20.6524014 | CR28: =AVERAGE(CD24:CD28) -> 20.6524014 | CS28: =AVERAGE(CE24:CE28) -> 9.156089819 | CT28: 29.00020304 | CU28: 9.553939565 | CV28: 28.3224964 | CW28: 10.96321325 | CX28: =CX24 -> 10.96321325 | DA28: =CV28 -> 28.3224964 | DF28: =CW28 -> 10.96321325 | DG28: =CV28 -> 28.3224964 | DH28: =AVERAGE(CT24:CT28) -> 28.3224964 | DI28: =AVERAGE(CU24:CU28) -> 10.96321325 | DJ28: 27.4450324 | DK28: 13.80306625 | DL28: 28.08129889 | DM28: 14.20983492 | DN28: =DN24 -> 14.20983492 | DQ28: =DL28 -> 28.08129889 | DV28: =DM28 -> 14.20983492 | DW28: =DL28 -> 28.08129889 | DX28: =AVERAGE(DJ24:DJ28) -> 28.08129889 | DY28: =AVERAGE(DK24:DK28) -> 14.20983492
A29: 2005 | B29: 21.8503724 | C29: 7.656128333 | F29: =F24 -> 8.775566233 | I29: =I28-(I28-I53)/60 -> 21.8204514 | N29: =N28-(N28-N52)/24 -> 8.67366764 | O29: =O28-(O28-O52)/24 -> 21.65322322 | P29: 22.23375379 | Q29: 8.526598 | R29: 28.80912333 | S29: 14.60920292 | V29: =V24 -> 14.32975021 | Y29: =Y28-(Y28-Y53)/60 -> 27.15109453 | AD29: =AD28-(AD28-AD52)/24 -> 14.16892728 | AE29: =AE28-(AE28-AE52)/24 -> 27.0360556 | AF29: =AVERAGE(R25:R29) -> 27.71878393 | AG29: =AVERAGE(S25:S29) -> 14.39885369 | AH29: 30.45488167 | AI29: 11.91247261 | AL29: =AL24 -> 12.27800291 | AO29: =AO28-(AO28-AO53)/60 -> 27.96516203 | AT29: =AT28-(AT28-AT52)/24 -> 12.06933612 | AU29: =AU28-(AU28-AU52)/24 -> 27.73809894 | AV29: =AVERAGE(AH25:AH29) -> 28.83563472 | AW29: =AVERAGE(AI25:AI29) -> 12.06839817 | AX29: 20.50660435 | AY29: 6.686348636 | BB29: =BB24 -> 7.647414679 | BE29: =BE28-(BE28-BE53)/60 -> 21.67837874 | BJ29: =BJ28-(BJ28-BJ52)/24 -> 7.539605734 | BK29: =BK28-(BK28-BK52)/24 -> 21.46845098 | BL29: =AVERAGE(AX25:AX29) -> 21.60541908 | BM29: =AVERAGE(AY25:AY29) -> 7.45520147 | BN29: 25.91868714 | BO29: 5.446195 | BR29: =BR24 -> 6.36661668 | BU29: =BU28-(BU28-BU53)/60 -> 23.34390748 | BZ29: =BZ28-(BZ28-BZ52)/24 -> 6.262174319 | CA29: =CA28-(CA28-CA52)/24 -> 23.15404082 | CB29: =AVERAGE(BN25:BN29) -> 24.12941031 | CC29: =AVERAGE(BO25:BO29) -> 6.15733968 | CD29: 20.92053083 | CE29: 7.985110417 | CH29: =CH24 -> 9.156089819 | CK29: =CK28-(CK28-CK53)/60 -> 20.47446283 | CP29: =CP28-(CP28-CP52)/24 -> 9.043336077 | CQ29: =CQ28-(CQ28-CQ52)/24 -> 20.33855134 | CR29: =AVERAGE(CD25:CD29) -> 20.940637 | CS29: =AVERAGE(CE25:CE29) -> 8.965542202 | CT29: 30.51065458 | CU29: 10.48201913 | CX29: =CX24 -> 10.96321325 | DA29: =DA28-(DA28-DA53)/60 -> 28.00912846 | DF29: =DF28-(DF28-DF52)/24 -> 10.79099603 | DG29: =DG28-(DG28-DG52)/24 -> 27.73614239 | DH29: =AVERAGE(CT25:CT29) -> 28.97877432 | DI29: =AVERAGE(CU25:CU29) -> 10.84373634 | DJ29: 30.3234204 | DK29: 14.91938042 | DN29: =DN24 -> 14.20983492 | DQ29: =DQ28-(DQ28-DQ53)/60 -> 27.77105791 | DV29: =DV28-(DV28-DV52)/24 -> 14.00775847 | DW29: =DW28-(DW28-DW52)/24 -> 27.54916144 | DX29: =AVERAGE(DJ25:DJ29) -> 28.52972319 | DY29: =AVERAGE(DK25:DK29) -> 14.35174402
A30: 2006 | B30: 22.68771167 | C30: 8.2539025 | F30: =F24 -> 8.775566233 | I30: =I29-(I28-I53)/60 -> 21.62666986 | N30: =N29-(N28-N52)/24 -> 8.571769047 | O30: =O29-(O28-O52)/24 -> 21.29221352 | P30: 22.29643644 | Q30: 8.402524333 | R30: 26.88325952 | S30: 15.3497845 | V30: =V24 -> 14.32975021 | Y30: =Y29-(Y28-Y53)/60 -> 26.87195712 | AD30: =AD29-(AD28-AD52)/24 -> 14.00810436 | AE30: =AE29-(AE28-AE52)/24 -> 26.64187927 | AF30: 27.68101229 | AG30: 14.70791126 | AH30: 28.91221208 | AI30: 10.57144348 | AL30: =AL24 -> 12.27800291 | AO30: =AO29-(AO28-AO53)/60 -> 27.64230777 | AT30: =AT29-(AT28-AT52)/24 -> 11.86066933 | AU30: =AU29-(AU28-AU52)/24 -> 27.1881816 | AV30: 29.11155088 | AW30: 11.52213339 | AX30: 19.73550083 | AY30: 6.427488333 | BB30: =BB24 -> 7.647414679 | BE30: =BE29-(BE28-BE53)/60 -> 21.47663472 | BJ30: =BJ29-(BJ28-BJ52)/24 -> 7.431796789 | BK30: =BK29-(BK28-BK52)/24 -> 21.0567792 | BL30: 21.0594662 | BM30: 7.088413046 | BN30: 21.1869813 | BO30: 5.243543182 | BR30: =BR24 -> 6.36661668 | BU30: =BU29-(BU28-BU53)/60 -> 23.12185933 | BZ30: =BZ29-(BZ28-BZ52)/24 -> 6.157731957 | CA30: =CA29-(CA28-CA52)/24 -> 22.742126 | CB30: 23.27072567 | CC30: 5.911764617 | CD30: 20.71933208 | CE30: 8.60434625 | CH30: =CH24 -> 9.156089819 | CK30: =CK29-(CK28-CK53)/60 -> 20.29652427 | CP30: =CP29-(CP28-CP52)/24 -> 8.930582334 | CQ30: =CQ29-(CQ28-CQ52)/24 -> 20.02470129 | CR30: 20.82429432 | CS30: 8.824931167 | CT30: 27.75384773 | CU30: 10.59241095 | CX30: =CX24 -> 10.96321325 | DA30: =DA29-(DA28-DA53)/60 -> 27.69576051 | DF30: =DF29-(DF28-DF52)/24 -> 10.61877881 | DG30: =DG29-(DG28-DG52)/24 -> 27.14978837 | DH30: 29.00596541 | DI30: 10.32007967 | DJ30: 28.212376 | DK30: 14.7535225 | DN30: =DN24 -> 14.20983492 | DQ30: =DQ29-(DQ28-DQ53)/60 -> 27.46081692 | DV30: =DV29-(DV28-DV52)/24 -> 13.80568201 | DW30: =DW29-(DW28-DW52)/24 -> 27.01702398 | DX30: 28.50080318 | DY30: 14.3939687
A31: 2007 | B31: 20.835775 | C31: 8.275860833 | F31: =F24 -> 8.775566233 | I31: =I30-(I28-I53)/60 -> 21.43288833 | N31: =N30-(N28-N52)/24 -> 8.469870454 | O31: =O30-(O28-O52)/24 -> 20.93120381 | P31: 21.88164008 | Q31: 8.303681917 | R31: 26.10378348 | S31: 12.73726955 | V31: =V24 -> 14.32975021 | Y31: =Y30-(Y28-Y53)/60 -> 26.59281971 | AD31: =AD30-(AD28-AD52)/24 -> 13.84728143 | AE31: =AE30-(AE28-AE52)/24 -> 26.24770294 | AF31: 27.59521526 | AG31: 14.28889917 | AH31: 28.1489772 | AI31: 10.2022375 | AL31: =AL24 -> 12.27800291 | AO31: =AO30-(AO28-AO53)/60 -> 27.3194535 | AT31: =AT30-(AT28-AT52)/24 -> 11.65200255 | AU31: =AU30-(AU28-AU52)/24 -> 26.63826425 | AV31: 29.14971528 | AW31: 11.17985343 | AX31: 21.06284087 | AY31: 6.862025 | BB31: =BB24 -> 7.647414679 | BE31: =BE30-(BE28-BE53)/60 -> 21.2748907 | BJ31: =BJ30-(BJ28-BJ52)/24 -> 7.323987844 | BK31: =BK30-(BK28-BK52)/24 -> 20.64510742 | BL31: 20.58624363 | BM31: 6.906724046 | BN31: 25.25619762 | BO31: 5.744722381 | BR31: =BR24 -> 6.36661668 | BU31: =BU30-(BU28-BU53)/60 -> 22.89981117 | BZ31: =BZ30-(BZ28-BZ52)/24 -> 6.053289595 | CA31: =CA30-(CA28-CA52)/24 -> 22.33021119 | CB31: 23.62899641 | CC31: 5.775137911 | CD31: 18.50287348 | CE31: 7.793849545 | CH31: =CH24 -> 9.156089819 | CK31: =CK30-(CK28-CK53)/60 -> 20.1185857 | CP31: =CP30-(CP28-CP52)/24 -> 8.817828592 | CQ31: =CQ30-(CQ28-CQ52)/24 -> 19.71085123 | CR31: 20.10019177 | CS31: 8.560407326 | CT31: 28.17133667 | CU31: 11.12992478 | CX31: =CX24 -> 10.96321325 | DA31: =DA30-(DA28-DA53)/60 -> 27.38239256 | DF31: =DF30-(DF28-DF52)/24 -> 10.44656159 | DG31: =DG30-(DG28-DG52)/24 -> 26.56343435 | DH31: 28.66213858 | DI31: 10.24754289 | DJ31: 27.49365917 | DK31: 13.77608783 | DN31: =DN24 -> 14.20983492 | DQ31: =DQ30-(DQ28-DQ53)/60 -> 27.15057594 | DV31: =DV30-(DV28-DV52)/24 -> 13.60360556 | DW31: =DW30-(DW28-DW52)/24 -> 26.48488653 | DX31: 28.21666576 | DY31: 14.01976783
A32: 2008 | B32: 19.349384 | C32: 7.763495833 | F32: =F24 -> 8.775566233 | I32: =I31-(I28-I53)/60 -> 21.2391068 | N32: =N31-(N28-N52)/24 -> 8.367971861 | O32: =O31-(O28-O52)/24 -> 20.57019411 | P32: 21.21217813 | Q32: 8.102436917 | V32: =V24 -> 14.32975021 | Y32: =Y31-(Y28-Y53)/60 -> 26.3136823 | AD32: =AD31-(AD28-AD52)/24 -> 13.68645851 | AE32: =AE31-(AE28-AE52)/24 -> 25.85352661 | AF32: 27.37088428 | AG32: 14.2644607 | AH32: 24.3691208 | AI32: 9.43561125 | AL32: =AL24 -> 12.27800291 | AO32: =AO31-(AO28-AO53)/60 -> 26.99659924 | AT32: =AT31-(AT28-AT52)/24 -> 11.44333576 | AU32: =AU31-(AU28-AU52)/24 -> 26.08834691 | AV32: 28.15836787 | AW32: 10.75861055 | AX32: 16.09566318 | AY32: 6.26001 | BB32: =BB24 -> 7.647414679 | BE32: =BE31-(BE28-BE53)/60 -> 21.07314668 | BJ32: =BJ31-(BJ28-BJ52)/24 -> 7.216178899 | BK32: =BK31-(BK28-BK52)/24 -> 20.23343564 | BL32: 19.67498093 | BM32: 6.76979335 | BR32: =BR24 -> 6.36661668 | BU32: =BU31-(BU28-BU53)/60 -> 22.67776301 | BZ32: =BZ31-(BZ28-BZ52)/24 -> 5.948847234 | CA32: =CA31-(CA28-CA52)/24 -> 21.91829637 | CB32: 23.69381697 | CC32: 5.761081845 | CD32: 17.5068908 | CE32: 7.823734583 | CH32: =CH24 -> 9.156089819 | CK32: =CK31-(CK28-CK53)/60 -> 19.94064713 | CP32: =CP31-(CP28-CP52)/24 -> 8.705074849 | CQ32: =CQ31-(CQ28-CQ52)/24 -> 19.39700117 | CR32: 19.41028368 | CS32: 8.228199576 | CT32: 24.5880556 | CU32: 8.158955 | CX32: =CX24 -> 10.96321325 | DA32: =DA31-(DA28-DA53)/60 -> 27.06902462 | DF32: =DF31-(DF28-DF52)/24 -> 10.27434437 | DG32: =DG31-(DG28-DG52)/24 -> 25.97708034 | DH32: 28.00481952 | DI32: 9.983449886 | DJ32: 24.01345083 | DK32: 13.14618167 | DN32: =DN24 -> 14.20983492 | DQ32: =DQ31-(DQ28-DQ53)/60 -> 26.84033495 | DV32: =DV31-(DV28-DV52)/24 -> 13.4015291 | DW32: =DW31-(DW28-DW52)/24 -> 25.95274908 | DX32: 27.49758776 | DY32: 14.07964773
A33: 2009 | B33: 18.1685528 | C33: 6.920979167 | F33: =F24 -> 8.775566233 | I33: =I32-(I28-I53)/60 -> 21.04532527 | N33: =N32-(N28-N52)/24 -> 8.266073268 | O33: =O32-(O28-O52)/24 -> 20.2091844 | P33: 20.57835917 | Q33: 7.774073333 | R33: 23.029386 | S33: 12.78062583 | V33: =V24 -> 14.32975021 | Y33: =Y32-(Y28-Y53)/60 -> 26.03454489 | AD33: =AD32-(AD28-AD52)/24 -> 13.52563558 | AE33: =AE32-(AE28-AE52)/24 -> 25.45935028 | AF33: 26.20638808 | AG33: 13.8692207 | AH33: 21.8890125 | AI33: 8.702354167 | AL33: =AL24 -> 12.27800291 | AO33: =AO32-(AO28-AO53)/60 -> 26.67374498 | AT33: =AT32-(AT28-AT52)/24 -> 11.23466897 | AU33: =AU32-(AU28-AU52)/24 -> 25.53842956 | AV33: 26.75484085 | AW33: 10.1648238 | BB33: =BB24 -> 7.647414679 | BE33: =BE32-(BE28-BE53)/60 -> 20.87140266 | BJ33: =BJ32-(BJ28-BJ52)/24 -> 7.108369954 | BK33: =BK32-(BK28-BK52)/24 -> 19.82176385 | BL33: 19.35015231 | BM33: 6.558967992 | BN33: 17.8544919 | BO33: 4.109623 | BR33: =BR24 -> 6.36661668 | BU33: =BU32-(BU28-BU53)/60 -> 22.45571486 | BZ33: =BZ32-(BZ28-BZ52)/24 -> 5.844404872 | CA33: =CA32-(CA28-CA52)/24 -> 21.50638155 | CB33: 22.55408949 | CC33: 5.136020891 | CD33: 17.013814 | CE33: 6.834975417 | CH33: =CH24 -> 9.156089819 | CK33: =CK32-(CK28-CK53)/60 -> 19.76270856 | CP33: =CP32-(CP28-CP52)/24 -> 8.592321107 | CQ33: =CQ32-(CQ28-CQ52)/24 -> 19.08315111 | CR33: 18.93268824 | CS33: 7.808403242 | CT33: 21.19806667 | CU33: 8.233323478 | CX33: =CX24 -> 10.96321325 | DA33: =DA32-(DA28-DA53)/60 -> 26.75565667 | DF33: =DF32-(DF28-DF52)/24 -> 10.10212715 | DG33: =DG32-(DG28-DG52)/24 -> 25.39072632 | DH33: 26.44439225 | DI33: 9.719326669 | DJ33: 22.07473792 | DK33: 11.55307391 | DN33: =DN24 -> 14.20983492 | DQ33: =DQ32-(DQ28-DQ53)/60 -> 26.53009397 | DV33: =DV32-(DV28-DV52)/24 -> 13.19945265 | DW33: =DW32-(DW28-DW52)/24 -> 25.42061162 | DX33: 26.42352886 | DY33: 13.62964926
A34: 2010 | B34: 17.51925167 | C34: 6.706666667 | F34: =F24 -> 8.775566233 | I34: =I33-(I28-I53)/60 -> 20.85154373 | N34: =N33-(N28-N52)/24 -> 8.164174675 | O34: =O33-(O28-O52)/24 -> 19.8481747 | P34: 19.71213503 | Q34: 7.584181 | R34: 24.5091392 | S34: 11.81662208 | V34: =V24 -> 14.32975021 | Y34: =Y33-(Y28-Y53)/60 -> 25.75540749 | AD34: =AD33-(AD28-AD52)/24 -> 13.36481266 | AE34: =AE33-(AE28-AE52)/24 -> 25.06517395 | AF34: 25.13139205 | AG34: 13.17107549 | AH34: 22.67980958 | AI34: 9.743389565 | AL34: =AL24 -> 12.27800291 | AO34: =AO33-(AO28-AO53)/60 -> 26.35089072 | AT34: =AT33-(AT28-AT52)/24 -> 11.02600218 | AU34: =AU33-(AU28-AU52)/24 -> 24.98851222 | AV34: 25.19982643 | AW34: 9.731007192 | BB34: =BB24 -> 7.647414679 | BE34: =BE33-(BE28-BE53)/60 -> 20.66965864 | BJ34: =BJ33-(BJ28-BJ52)/24 -> 7.000561009 | BK34: =BK33-(BK28-BK52)/24 -> 19.41009207 | BL34: 18.96466829 | BM34: 6.516507778 | BN34: 19.08975348 | BO34: 4.083329091 | BR34: =BR24 -> 6.36661668 | BU34: =BU33-(BU28-BU53)/60 -> 22.2336667 | BZ34: =BZ33-(BZ28-BZ52)/24 -> 5.73996251 | CA34: =CA33-(CA28-CA52)/24 -> 21.09446673 | CB34: 20.84685608 | CC34: 4.795304413 | CD34: 16.45277875 | CE34: 5.979026522 | CH34: =CH24 -> 9.156089819 | CK34: =CK33-(CK28-CK53)/60 -> 19.58477 | CP34: =CP33-(CP28-CP52)/24 -> 8.479567364 | CQ34: =CQ33-(CQ28-CQ52)/24 -> 18.76930105 | CR34: 18.03913782 | CS34: 7.407186463 | CT34: 22.12166174 | CU34: 9.786919091 | CX34: =CX24 -> 10.96321325 | DA34: =DA33-(DA28-DA53)/60 -> 26.44228872 | DF34: =DF33-(DF28-DF52)/24 -> 9.929909935 | DG34: =DG33-(DG28-DG52)/24 -> 24.8043723 | DH34: 24.76659368 | DI34: 9.580306661 | DJ34: 22.8838575 | DK34: 13.5118475 | DN34: =DN24 -> 14.20983492 | DQ34: =DQ33-(DQ28-DQ53)/60 -> 26.21985299 | DV34: =DV33-(DV28-DV52)/24 -> 12.99737619 | DW34: =DW33-(DW28-DW52)/24 -> 24.88847417 | DX34: 24.93561628 | DY34: 13.34814268
A35: 2011 | B35: 17.3876628 | C35: 7.50934125 | F35: =F24 -> 8.775566233 | I35: =I34-(I28-I53)/60 -> 20.6577622 | N35: =N34-(N28-N52)/24 -> 8.062276082 | O35: =O34-(O28-O52)/24 -> 19.48716499 | P35: 18.65212525 | Q35: 7.43526875 | R35: 22.66475217 | S35: 12.91688304 | V35: =V24 -> 14.32975021 | Y35: =Y34-(Y28-Y53)/60 -> 25.47627008 | AD35: =AD34-(AD28-AD52)/24 -> 13.20398973 | AE35: =AE34-(AE28-AE52)/24 -> 24.67099762 | AF35: 24.07676521 | AG35: 12.56285013 | AH35: 23.75251792 | AI35: 8.750023913 | AL35: =AL24 -> 12.27800291 | AO35: =AO34-(AO28-AO53)/60 -> 26.02803646 | AT35: =AT34-(AT28-AT52)/24 -> 10.81733539 | AU35: =AU34-(AU28-AU52)/24 -> 24.43859487 | AV35: 24.1678876 | AW35: 9.366723279 | AX35: 17.47569636 | AY35: 6.392631429 | BB35: =BB24 -> 7.647414679 | BE35: =BE34-(BE28-BE53)/60 -> 20.46791462 | BJ35: =BJ34-(BJ28-BJ52)/24 -> 6.892752064 | BK35: =BK34-(BK28-BK52)/24 -> 18.99842029 | BL35: 18.21140014 | BM35: 6.50488881 | BN35: 18.26713476 | BO35: 5.399928 | BR35: =BR24 -> 6.36661668 | BU35: =BU34-(BU28-BU53)/60 -> 22.01161854 | BZ35: =BZ34-(BZ28-BZ52)/24 -> 5.635520149 | CA35: =CA34-(CA28-CA52)/24 -> 20.68255191 | CB35: 20.11689444 | CC35: 4.834400618 | CD35: 16.38360087 | CE35: 6.974114545 | CH35: =CH24 -> 9.156089819 | CK35: =CK34-(CK28-CK53)/60 -> 19.40683143 | CP35: =CP34-(CP28-CP52)/24 -> 8.366813622 | CQ35: =CQ34-(CQ28-CQ52)/24 -> 18.45545099 | CR35: 17.17199158 | CS35: 7.081140123 | CT35: 22.10165333 | CU35: 7.869442174 | CX35: =CX24 -> 10.96321325 | DA35: =DA34-(DA28-DA53)/60 -> 26.12892077 | DF35: =DF34-(DF28-DF52)/24 -> 9.757692716 | DG35: =DG34-(DG28-DG52)/24 -> 24.21801829 | DH35: 23.6361548 | DI35: 9.035712905 | DJ35: 22.93442208 | DK35: 11.57434739 | DN35: =DN24 -> 14.20983492 | DQ35: =DQ34-(DQ28-DQ53)/60 -> 25.909612 | DV35: =DV34-(DV28-DV52)/24 -> 12.79529974 | DW35: =DW34-(DW28-DW52)/24 -> 24.35633672 | DX35: 23.8800255 | DY35: 12.71230766
A36: 2012 | B36: 15.809914 | C36: 7.752544583 | F36: =F24 -> 8.775566233 | I36: =I35-(I28-I53)/60 -> 20.46398067 | N36: =N35-(N28-N52)/24 -> 7.960377489 | O36: =O35-(O28-O52)/24 -> 19.12615529 | P36: 17.64695305 | Q36: 7.3306055 | R36: 20.95191583 | S36: 11.92667609 | V36: =V24 -> 14.32975021 | Y36: =Y35-(Y28-Y53)/60 -> 25.19713267 | AD36: =AD35-(AD28-AD52)/24 -> 13.04316681 | AE36: =AE35-(AE28-AE52)/24 -> 24.27682129 | AF36: 22.7887983 | AG36: 12.36020176 | AH36: 20.87877583 | AI36: 9.593641304 | AL36: =AL24 -> 12.27800291 | AO36: =AO35-(AO28-AO53)/60 -> 25.7051822 | AT36: =AT35-(AT28-AT52)/24 -> 10.60866861 | AU36: =AU35-(AU28-AU52)/24 -> 23.88867753 | AV36: 22.71384733 | AW36: 9.24500404 | AX36: 14.85867 | AY36: 5.814406364 | BB36: =BB24 -> 7.647414679 | BE36: =BE35-(BE28-BE53)/60 -> 20.2661706 | BJ36: =BJ35-(BJ28-BJ52)/24 -> 6.784943119 | BK36: =BK35-(BK28-BK52)/24 -> 18.58674851 | BL36: 16.14334318 | BM36: 6.155682597 | BN36: 17.78050318 | BO36: 5.49277619 | BR36: =BR24 -> 6.36661668 | BU36: =BU35-(BU28-BU53)/60 -> 21.78957039 | BZ36: =BZ35-(BZ28-BZ52)/24 -> 5.531077787 | CA36: =CA35-(CA28-CA52)/24 -> 20.27063709 | CB36: 18.24797083 | CC36: 4.77141407 | CD36: 14.73847958 | CE36: 7.321388696 | CH36: =CH24 -> 9.156089819 | CK36: =CK35-(CK28-CK53)/60 -> 19.22889286 | CP36: =CP35-(CP28-CP52)/24 -> 8.254059879 | CQ36: =CQ35-(CQ28-CQ52)/24 -> 18.14160093 | CR36: 16.4191128 | CS36: 6.986647953 | CT36: 19.29512455 | CU36: 9.625093333 | CX36: =CX24 -> 10.96321325 | DA36: =DA35-(DA28-DA53)/60 -> 25.81555283 | DF36: =DF35-(DF28-DF52)/24 -> 9.585475497 | DG36: =DG35-(DG28-DG52)/24 -> 23.63166427 | DH36: 21.86091238 | DI36: 8.734746615 | DJ36: 19.84035091 | DK36: 12.12228143 | DN36: =DN24 -> 14.20983492 | DQ36: =DQ35-(DQ28-DQ53)/60 -> 25.59937102 | DV36: =DV35-(DV28-DV52)/24 -> 12.59322328 | DW36: =DW35-(DW28-DW52)/24 -> 23.82419926 | DX36: 22.34936385 | DY36: 12.38154638
A37: =A36+1 -> 2013 | B37: 15.31218208 | C37: 6.253866957 | F37: =F24 -> 8.775566233 | I37: =I36-(I28-I53)/60 -> 20.27019914 | N37: =N36-(N28-N52)/24 -> 7.858478896 | O37: =O36-(O28-O52)/24 -> 18.76514558 | P37: 16.83951267 | Q37: 7.028679725 | R37: 20.11802565 | S37: 11.80141864 | V37: =V24 -> 14.32975021 | Y37: =Y36-(Y28-Y53)/60 -> 24.91799526 | AD37: =AD36-(AD28-AD52)/24 -> 12.88234388 | AE37: =AE36-(AE28-AE52)/24 -> 23.88264496 | AF37: 22.25464377 | AG37: 12.24844514 | AH37: 18.82701208 | AI37: 8.342917826 | AL37: =AL24 -> 12.27800291 | AO37: =AO36-(AO28-AO53)/60 -> 25.38232793 | AT37: =AT36-(AT28-AT52)/24 -> 10.40000182 | AU37: =AU36-(AU28-AU52)/24 -> 23.33876018 | AV37: 21.60542558 | AW37: 9.026465355 | AX37: 13.8735287 | AY37: 5.411648182 | BB37: =BB24 -> 7.647414679 | BE37: =BE36-(BE28-BE53)/60 -> 20.06442658 | BJ37: =BJ36-(BJ28-BJ52)/24 -> 6.677134174 | BK37: =BK36-(BK28-BK52)/24 -> 18.17507673 | BL37: 15.40263169 | BM37: 5.872895325 | BN37: 17.32128167 | BO37: 5.352656957 | BR37: =BR24 -> 6.36661668 | BU37: =BU36-(BU28-BU53)/60 -> 21.56752223 | BZ37: =BZ36-(BZ28-BZ52)/24 -> 5.426635425 | CA37: =CA36-(CA28-CA52)/24 -> 19.85872228 | CB37: 18.062633 | CC37: 4.887662648 | CD37: 14.42345818 | CE37: 6.545156364 | CH37: =CH24 -> 9.156089819 | CK37: =CK36-(CK28-CK53)/60 -> 19.05095429 | CP37: =CP36-(CP28-CP52)/24 -> 8.141306137 | CQ37: =CQ36-(CQ28-CQ52)/24 -> 17.82775088 | CR37: 15.80242628 | CS37: 6.730932309 | CT37: 18.88401043 | CU37: 7.501552727 | CX37: =CX24 -> 10.96321325 | DA37: =DA36-(DA28-DA53)/60 -> 25.50218488 | DF37: =DF36-(DF28-DF52)/24 -> 9.413258279 | DG37: =DG36-(DG28-DG52)/24 -> 23.04531025 | DH37: 20.72010334 | DI37: 8.603266161 | DJ37: 18.59356458 | DK37: 9.855184167 | DN37: =DN24 -> 14.20983492 | DQ37: =DQ36-(DQ28-DQ53)/60 -> 25.28913003 | DV37: =DV36-(DV28-DV52)/24 -> 12.39114683 | DW37: =DW36-(DW28-DW52)/24 -> 23.29206181 | DX37: 21.2653866 | DY37: 11.72334688
A38: =A37+1 -> 2014 | B38: 15.36467792 | C38: 7.032901739 | F38: =F24 -> 8.775566233 | I38: =I37-(I28-I53)/60 -> 20.0764176 | N38: =N37-(N28-N52)/24 -> 7.756580303 | O38: =O37-(O28-O52)/24 -> 18.40413588 | P38: 16.27873769 | Q38: 7.051064239 | R38: 21.08857652 | S38: 11.663865 | V38: =V24 -> 14.32975021 | Y38: =Y37-(Y28-Y53)/60 -> 24.63885786 | AD38: =AD37-(AD28-AD52)/24 -> 12.72152096 | AE38: =AE37-(AE28-AE52)/24 -> 23.48846863 | AF38: 21.86648188 | AG38: 12.02509297 | AH38: 19.41274375 | AI38: 8.516818696 | AL38: =AL24 -> 12.27800291 | AO38: =AO37-(AO28-AO53)/60 -> 25.05947367 | AT38: =AT37-(AT28-AT52)/24 -> 10.19133503 | AU38: =AU37-(AU28-AU52)/24 -> 22.78884284 | AV38: 21.11017183 | AW38: 8.989358261 | AX38: 15.18558478 | AY38: 5.75410913 | BB38: =BB24 -> 7.647414679 | BE38: =BE37-(BE28-BE53)/60 -> 19.86268256 | BJ38: =BJ37-(BJ28-BJ52)/24 -> 6.569325229 | BK38: =BK37-(BK28-BK52)/24 -> 17.76340494 | BL38: 15.34836996 | BM38: 5.843198776 | BN38: 16.61486833 | BO38: 5.004226667 | BR38: =BR24 -> 6.36661668 | BU38: =BU37-(BU28-BU53)/60 -> 21.34547407 | BZ38: =BZ37-(BZ28-BZ52)/24 -> 5.322193063 | CA38: =CA37-(CA28-CA52)/24 -> 19.44680746 | CB38: 17.81470828 | CC38: 5.066583381 | CD38: 14.15397682 | CE38: 6.900479048 | CH38: =CH24 -> 9.156089819 | CK38: =CK37-(CK28-CK53)/60 -> 18.87301573 | CP38: =CP37-(CP28-CP52)/24 -> 8.028552394 | CQ38: =CQ37-(CQ28-CQ52)/24 -> 17.51390082 | CR38: 15.23045884 | CS38: 6.744033035 | CT38: 18.58134083 | CU38: 8.017650435 | CX38: =CX24 -> 10.96321325 | DA38: =DA37-(DA28-DA53)/60 -> 25.18881693 | DF38: =DF37-(DF28-DF52)/24 -> 9.24104106 | DG38: =DG37-(DG28-DG52)/24 -> 22.45895624 | DH38: 20.19675818 | DI38: 8.560131552 | DJ38: 19.14256792 | DK38: 10.8146687 | DN38: =DN24 -> 14.20983492 | DQ38: =DQ37-(DQ28-DQ53)/60 -> 24.97888905 | DV38: =DV37-(DV28-DV52)/24 -> 12.18907037 | DW38: =DW37-(DW28-DW52)/24 -> 22.75992435 | DX38: 20.6789526 | DY38: 11.57566584
A39: 2015 | B39: 16.0725775 | C39: 6.049556522 | F39: =F24 -> 8.775566233 | I39: =I38-(I28-I53)/60 -> 19.88263607 | N39: =N38-(N28-N52)/24 -> 7.65468171 | O39: =O38-(O28-O52)/24 -> 18.04312617 | P39: 15.98940286 | Q39: 6.91964221 | R39: 20.8380025 | S39: 11.4413487 | V39: =V24 -> 14.32975021 | Y39: =Y38-(Y28-Y53)/60 -> 24.35972045 | AD39: =AD38-(AD28-AD52)/24 -> 12.56069803 | AE39: =AE38-(AE28-AE52)/24 -> 23.0942923 | AF39: 21.13225454 | AG39: 11.95003829 | AH39: 18.81964042 | AI39: 5.883614348 | AL39: =AL24 -> 12.27800291 | AO39: =AO38-(AO28-AO53)/60 -> 24.73661941 | AT39: =AT38-(AT28-AT52)/24 -> 9.982668243 | AU39: =AU38-(AU28-AU52)/24 -> 22.23892549 | AV39: 20.338138 | AW39: 8.217403217 | AX39: 14.43662 | AY39: 4.916600952 | BB39: =BB24 -> 7.647414679 | BE39: =BE38-(BE28-BE53)/60 -> 19.66093854 | BJ39: =BJ38-(BJ28-BJ52)/24 -> 6.461516284 | BK39: =BK38-(BK28-BK52)/24 -> 17.35173316 | BL39: 15.16601997 | BM39: 5.657879211 | BN39: 15.35650227 | BO39: 5.202523182 | BR39: =BR24 -> 6.36661668 | BU39: =BU38-(BU28-BU53)/60 -> 21.12342592 | BZ39: =BZ38-(BZ28-BZ52)/24 -> 5.217750702 | CA39: =CA38-(CA28-CA52)/24 -> 19.03489264 | CB39: 17.06805804 | CC39: 5.290422199 | CD39: 14.525515 | CE39: 6.638016667 | CH39: =CH24 -> 9.156089819 | CK39: =CK38-(CK28-CK53)/60 -> 18.69507716 | CP39: =CP38-(CP28-CP52)/24 -> 7.915798652 | CQ39: =CQ38-(CQ28-CQ52)/24 -> 17.20005076 | CR39: 14.84500609 | CS39: 6.875831064 | CT39: 18.64900167 | CU39: 6.498550435 | CX39: =CX24 -> 10.96321325 | DA39: =DA38-(DA28-DA53)/60 -> 24.87544898 | DF39: =DF38-(DF28-DF52)/24 -> 9.068823842 | DG39: =DG38-(DG28-DG52)/24 -> 21.87260222 | DH39: 19.50222616 | DI39: 7.902457821 | DJ39: 18.47091833 | DK39: 9.763485217 | DN39: =DN24 -> 14.20983492 | DQ39: =DQ38-(DQ28-DQ53)/60 -> 24.66864806 | DV39: =DV38-(DV28-DV52)/24 -> 11.98699392 | DW39: =DW38-(DW28-DW52)/24 -> 22.2277869 | DX39: 19.79636477 | DY39: 10.82599338
A40: 2016 | B40: 13.72397083 | C40: 6.084567917 | F40: =F24 -> 8.775566233 | I40: =I39-(I28-I53)/60 -> 19.68885454 | N40: =N39-(N28-N52)/24 -> 7.552783117 | O40: =O39-(O28-O52)/24 -> 17.68211646 | P40: 15.25666447 | Q40: 6.634687543 | R40: 19.18383875 | S40: 11.11993304 | V40: =V24 -> 14.32975021 | Y40: =Y39-(Y28-Y53)/60 -> 24.08058304 | AD40: =AD39-(AD28-AD52)/24 -> 12.3998751 | AE40: =AE39-(AE28-AE52)/24 -> 22.70011597 | AF40: 20.43607185 | AG40: 11.59064829 | AH40: 16.75680042 | AI40: 6.995272917 | AL40: =AL24 -> 12.27800291 | AO40: =AO39-(AO28-AO53)/60 -> 24.41376515 | AT40: =AT39-(AT28-AT52)/24 -> 9.774001455 | AU40: =AU39-(AU28-AU52)/24 -> 21.68900814 | AV40: 18.9389945 | AW40: 7.866453018 | AX40: 11.23315792 | AY40: 4.689127826 | BB40: =BB24 -> 7.647414679 | BE40: =BE39-(BE28-BE53)/60 -> 19.45919452 | BJ40: =BJ39-(BJ28-BJ52)/24 -> 6.353707339 | BK40: =BK39-(BK28-BK52)/24 -> 16.94006138 | BL40: 13.91751228 | BM40: 5.317178491 | BN40: 13.41589182 | BO40: 4.877691429 | BR40: =BR24 -> 6.36661668 | BU40: =BU39-(BU28-BU53)/60 -> 20.90137776 | BZ40: =BZ39-(BZ28-BZ52)/24 -> 5.11330834 | CA40: =CA39-(CA28-CA52)/24 -> 18.62297782 | CB40: 16.09780945 | CC40: 5.185974885 | CD40: 12.56302304 | CE40: 6.089303636 | CH40: =CH24 -> 9.156089819 | CK40: =CK39-(CK28-CK53)/60 -> 18.51713859 | CP40: =CP39-(CP28-CP52)/24 -> 7.80304491 | CQ40: =CQ39-(CQ28-CQ52)/24 -> 16.8862007 | CR40: 14.08089053 | CS40: 6.698868882 | CT40: 16.59485565 | CU40: 7.316840909 | CX40: =CX24 -> 10.96321325 | DA40: =DA39-(DA28-DA53)/60 -> 24.56208104 | DF40: =DF39-(DF28-DF52)/24 -> 8.896606623 | DG40: =DG39-(DG28-DG52)/24 -> 21.2862482 | DH40: 18.40086663 | DI40: 7.791937568 | DJ40: 17.28075875 | DK40: 9.56802125 | DN40: =DN24 -> 14.20983492 | DQ40: =DQ39-(DQ28-DQ53)/60 -> 24.35840708 | DV40: =DV39-(DV28-DV52)/24 -> 11.78491746 | DW40: =DW39-(DW28-DW52)/24 -> 21.69564945 | DX40: 18.6656321 | DY40: 10.42472815
A41: 2017 | B41: 13.96605292 | C41: 7.182486957 | F41: =F24 -> 8.775566233 | I41: =I40-(I28-I53)/60 -> 19.49507301 | N41: =N40-(N28-N52)/24 -> 7.450884524 | O41: =O40-(O28-O52)/24 -> 17.32110676 | P41: =AVERAGE(B37:B41) -> 14.88789225 | Q41: =AVERAGE(C37:C41) -> 6.520676018 | R41: 18.08728522 | S41: 11.35985455 | V41: =V24 -> 14.32975021 | Y41: =Y40-(Y28-Y53)/60 -> 23.80144563 | AD41: =AD40-(AD28-AD52)/24 -> 12.23905218 | AE41: =AE40-(AE28-AE52)/24 -> 22.30593964 | AF41: =AVERAGE(R37:R41) -> 19.86314573 | AG41: =AVERAGE(S37:S41) -> 11.47728398 | AH41: 16.15093958 | AI41: 6.46637087 | AL41: =AL24 -> 12.27800291 | AO41: =AO40-(AO28-AO53)/60 -> 24.09091089 | AT41: =AT40-(AT28-AT52)/24 -> 9.565334667 | AU41: =AU40-(AU28-AU52)/24 -> 21.1390908 | AV41: =AVERAGE(AH37:AH41) -> 17.99342725 | AW41: =AVERAGE(AI37:AI41) -> 7.240998931 | AX41: 11.81334739 | AY41: 5.221343182 | BB41: =BB24 -> 7.647414679 | BE41: =BE40-(BE28-BE53)/60 -> 19.2574505 | BJ41: =BJ40-(BJ28-BJ52)/24 -> 6.245898394 | BK41: =BK40-(BK28-BK52)/24 -> 16.5283896 | BL41: =AVERAGE(AX37:AX41) -> 13.30844776 | BM41: =AVERAGE(AY37:AY41) -> 5.198565855 | BN41: 13.94762208 | BO41: 5.43004 | BR41: =BR24 -> 6.36661668 | BU41: =BU40-(BU28-BU53)/60 -> 20.6793296 | BZ41: =BZ40-(BZ28-BZ52)/24 -> 5.008865978 | CA41: =CA40-(CA28-CA52)/24 -> 18.211063 | CB41: =AVERAGE(BN37:BN41) -> 15.33123323 | CC41: =AVERAGE(BO37:BO41) -> 5.173427647 | CD41: 12.12865292 | CE41: 6.768826522 | CH41: =CH24 -> 9.156089819 | CK41: =CK40-(CK28-CK53)/60 -> 18.33920002 | CP41: =CP40-(CP28-CP52)/24 -> 7.690291167 | CQ41: =CQ40-(CQ28-CQ52)/24 -> 16.57235064 | CR41: =AVERAGE(CD37:CD41) -> 13.55892519 | CS41: =AVERAGE(CE37:CE41) -> 6.588356447 | CT41: 16.13652583 | CU41: 6.353071304 | CX41: =CX24 -> 10.96321325 | DA41: =DA40-(DA28-DA53)/60 -> 24.24871309 | DF41: =DF40-(DF28-DF52)/24 -> 8.724389404 | DG41: =DG40-(DG28-DG52)/24 -> 20.69989419 | DH41: =AVERAGE(CT37:CT41) -> 17.76914688 | DI41: =AVERAGE(CU37:CU41) -> 7.137533162 | DJ41: 17.26327625 | DK41: 8.37777 | DN41: =DN24 -> 14.20983492 | DQ41: =DQ40-(DQ28-DQ53)/60 -> 24.0481661 | DV41: =DV40-(DV28-DV52)/24 -> 11.58284101 | DW41: =DW40-(DW28-DW52)/24 -> 21.16351199 | DX41: =AVERAGE(DJ37:DJ41) -> 18.15021717 | DY41: =AVERAGE(DK37:DK41) -> 9.675825866
A42: 2018 | B42: 13.57671696 | C42: 6.526589091 | F42: =F24 -> 8.775566233 | I42: =I41-(I28-I53)/60 -> 19.30129147 | N42: =N41-(N28-N52)/24 -> 7.348985931 | O42: =O41-(O28-O52)/24 -> 16.96009705 | P42: =AVERAGE(B38:B42) -> 14.54079922 | Q42: =AVERAGE(C38:C42) -> 6.575220445 | R42: 17.36729 | S42: 10.69702263 | V42: =V24 -> 14.32975021 | Y42: =Y41-(Y28-Y53)/60 -> 23.52230822 | AD42: =AD41-(AD28-AD52)/24 -> 12.07822925 | AE42: =AE41-(AE28-AE52)/24 -> 21.91176331 | AF42: =AVERAGE(R38:R42) -> 19.3129986 | AG42: =AVERAGE(S38:S42) -> 11.25640478 | AH42: 17.10233958 | AI42: 5.5163 | AL42: =AL24 -> 12.27800291 | AO42: =AO41-(AO28-AO53)/60 -> 23.76805662 | AT42: =AT41-(AT28-AT52)/24 -> 9.356667879 | AU42: =AU41-(AU28-AU52)/24 -> 20.58917345 | AV42: =AVERAGE(AH38:AH42) -> 17.64849275 | AW42: =AVERAGE(AI38:AI42) -> 6.675675366 | AX42: 12.70120217 | AY42: 4.365012174 | BB42: =BB24 -> 7.647414679 | BE42: =BE41-(BE28-BE53)/60 -> 19.05570648 | BJ42: =BJ41-(BJ28-BJ52)/24 -> 6.13808945 | BK42: =BK41-(BK28-BK52)/24 -> 16.11671782 | BL42: =AVERAGE(AX38:AX42) -> 13.07398245 | BM42: =AVERAGE(AY38:AY42) -> 4.989238653 | BN42: 14.31025417 | BO42: 4.622517391 | BR42: =BR24 -> 6.36661668 | BU42: =BU41-(BU28-BU53)/60 -> 20.45728145 | BZ42: =BZ41-(BZ28-BZ52)/24 -> 4.904423617 | CA42: =CA41-(CA28-CA52)/24 -> 17.79914818 | CB42: =AVERAGE(BN38:BN42) -> 14.72902773 | CC42: =AVERAGE(BO38:BO42) -> 5.027399734 | CD42: 13.23465333 | CE42: 6.573346957 | CH42: =CH24 -> 9.156089819 | CK42: =CK41-(CK28-CK53)/60 -> 18.16126145 | CP42: =CP41-(CP28-CP52)/24 -> 7.577537425 | CQ42: =CQ41-(CQ28-CQ52)/24 -> 16.25850058 | CR42: =AVERAGE(CD38:CD42) -> 13.32116422 | CS42: =AVERAGE(CE38:CE42) -> 6.593994566 | CT42: 15.3729413 | CU42: 6.086503636 | CX42: =CX24 -> 10.96321325 | DA42: =DA41-(DA28-DA53)/60 -> 23.93534514 | DF42: =DF41-(DF28-DF52)/24 -> 8.552172186 | DG42: =DG41-(DG28-DG52)/24 -> 20.11354017 | DH42: =AVERAGE(CT38:CT42) -> 17.06693306 | DI42: =AVERAGE(CU38:CU42) -> 6.854523344 | DJ42: 17.281165 | DK42: 8.822535217 | DN42: =DN24 -> 14.20983492 | DQ42: =DQ41-(DQ28-DQ53)/60 -> 23.73792511 | DV42: =DV41-(DV28-DV52)/24 -> 11.38076455 | DW42: =DW41-(DW28-DW52)/24 -> 20.63137454 | DX42: =AVERAGE(DJ38:DJ42) -> 17.88773725 | DY42: =AVERAGE(DK38:DK42) -> 9.469296076
A43: 2019 | B43: 13.85028818 | C43: 5.94664 | F43: =F24 -> 8.775566233 | I43: =I42-(I28-I53)/60 -> 19.10750994 | N43: =N42-(N28-N52)/24 -> 7.247087338 | O43: =O42-(O28-O52)/24 -> 16.59908735 | P43: =AVERAGE(B39:B43) -> 14.23792128 | Q43: =AVERAGE(C39:C43) -> 6.357968097 | R43: 17.1862755 | S43: 9.444072632 | V43: =V24 -> 14.32975021 | Y43: =Y42-(Y28-Y53)/60 -> 23.24317082 | AD43: =AD42-(AD28-AD52)/24 -> 11.91740633 | AE43: =AE42-(AE28-AE52)/24 -> 21.51758697 | AF43: =AVERAGE(R39:R43) -> 18.53253839 | AG43: =AVERAGE(S39:S43) -> 10.81244631 | AH43: 16.34009045 | AI43: 6.037753333 | AL43: =AL24 -> 12.27800291 | AO43: =AO42-(AO28-AO53)/60 -> 23.44520236 | AT43: =AT42-(AT28-AT52)/24 -> 9.148001091 | AU43: =AU42-(AU28-AU52)/24 -> 20.03925611 | AV43: =AVERAGE(AH39:AH43) -> 17.03396209 | AW43: =AVERAGE(AI39:AI43) -> 6.179862293 | AX43: 11.4660213 | AY43: 4.299470909 | BB43: =BB24 -> 7.647414679 | BE43: =BE42-(BE28-BE53)/60 -> 18.85396246 | BJ43: =BJ42-(BJ28-BJ52)/24 -> 6.030280505 | BK43: =BK42-(BK28-BK52)/24 -> 15.70504604 | BL43: =AVERAGE(AX39:AX43) -> 12.33006976 | BM43: =AVERAGE(AY39:AY43) -> 4.698311009 | BN43: 13.28066636 | BO43: 4.246740952 | BR43: =BR24 -> 6.36661668 | BU43: =BU42-(BU28-BU53)/60 -> 20.23523329 | BZ43: =BZ42-(BZ28-BZ52)/24 -> 4.799981255 | CA43: =CA42-(CA28-CA52)/24 -> 17.38723337 | CB43: =AVERAGE(BN39:BN43) -> 14.06218734 | CC43: =AVERAGE(BO39:BO43) -> 4.875902591 | CD43: 12.49223857 | CE43: 6.30583381 | CH43: =CH24 -> 9.156089819 | CK43: =CK42-(CK28-CK53)/60 -> 17.98332289 | CP43: =CP42-(CP28-CP52)/24 -> 7.464783682 | CQ43: =CQ42-(CQ28-CQ52)/24 -> 15.94465053 | CR43: =AVERAGE(CD39:CD43) -> 12.98881657 | CS43: =AVERAGE(CE39:CE43) -> 6.475065518 | CT43: 15.16197 | CU43: 6.437226522 | CX43: =CX24 -> 10.96321325 | DA43: =DA42-(DA28-DA53)/60 -> 23.6219772 | DF43: =DF42-(DF28-DF52)/24 -> 8.379954967 | DG43: =DG42-(DG28-DG52)/24 -> 19.52718615 | DH43: =AVERAGE(CT39:CT43) -> 16.38305889 | DI43: =AVERAGE(CU39:CU43) -> 6.538438561 | DJ43: 16.11079391 | DK43: 8.411580909 | DN43: =DN24 -> 14.20983492 | DQ43: =DQ42-(DQ28-DQ53)/60 -> 23.42768413 | DV43: =DV42-(DV28-DV52)/24 -> 11.1786881 | DW43: =DW42-(DW28-DW52)/24 -> 20.09923708 | DX43: =AVERAGE(DJ39:DJ43) -> 17.28138245 | DY43: =AVERAGE(DK39:DK43) -> 8.988678519
A44: 2020 | B44: 13.5195912 | C44: 6.797044583 | F44: =F24 -> 8.775566233 | I44: =I43-(I28-I53)/60 -> 18.91372841 | N44: =N43-(N28-N52)/24 -> 7.145188744 | O44: =O43-(O28-O52)/24 -> 16.23807764 | P44: =AVERAGE(B40:B44) -> 13.72732402 | Q44: =AVERAGE(C40:C44) -> 6.507465709 | V44: =V24 -> 14.32975021 | Y44: =Y43-(Y28-Y53)/60 -> 22.96403341 | AD44: =AD43-(AD28-AD52)/24 -> 11.7565834 | AE44: =AE43-(AE28-AE52)/24 -> 21.12341064 | AF44: =AVERAGE(R40:R44) -> 17.95617237 | AG44: =AVERAGE(S40:S44) -> 10.65522071 | AH44: 13.7679876 | AI44: 5.815075833 | AL44: =AL24 -> 12.27800291 | AO44: =AO43-(AO28-AO53)/60 -> 23.1223481 | AT44: =AT43-(AT28-AT52)/24 -> 8.939334303 | AU44: =AU43-(AU28-AU52)/24 -> 19.48933876 | AV44: =AVERAGE(AH40:AH44) -> 16.02363153 | AW44: =AVERAGE(AI40:AI44) -> 6.166154591 | AX44: 11.04322417 | AY44: 4.924611739 | BB44: =BB24 -> 7.647414679 | BE44: =BE43-(BE28-BE53)/60 -> 18.65221844 | BJ44: =BJ43-(BJ28-BJ52)/24 -> 5.92247156 | BK44: =BK43-(BK28-BK52)/24 -> 15.29337425 | BL44: =AVERAGE(AX40:AX44) -> 11.65139059 | BM44: =AVERAGE(AY40:AY44) -> 4.699913166 | BN44: 12.46400042 | BO44: 4.81652087 | BR44: =BR24 -> 6.36661668 | BU44: =BU43-(BU28-BU53)/60 -> 20.01318513 | BZ44: =BZ43-(BZ28-BZ52)/24 -> 4.695538893 | CA44: =CA43-(CA28-CA52)/24 -> 16.97531855 | CB44: =AVERAGE(BN40:BN44) -> 13.48368697 | CC44: =AVERAGE(BO40:BO44) -> 4.798702128 | CH44: =CH24 -> 9.156089819 | CK44: =CK43-(CK28-CK53)/60 -> 17.80538432 | CP44: =CP43-(CP28-CP52)/24 -> 7.35202994 | CQ44: =CQ43-(CQ28-CQ52)/24 -> 15.63080047 | CR44: =AVERAGE(CD40:CD44) -> 12.60464197 | CS44: =AVERAGE(CE40:CE44) -> 6.434327731 | CT44: 13.2715316 | CU44: 5.35498375 | CX44: =CX24 -> 10.96321325 | DA44: =DA43-(DA28-DA53)/60 -> 23.30860925 | DF44: =DF43-(DF28-DF52)/24 -> 8.207737749 | DG44: =DG43-(DG28-DG52)/24 -> 18.94083213 | DH44: =AVERAGE(CT40:CT44) -> 15.30756488 | DI44: =AVERAGE(CU40:CU44) -> 6.309725224 | DJ44: 15.07550833 | DK44: 7.414356522 | DN44: =DN24 -> 14.20983492 | DQ44: =DQ43-(DQ28-DQ53)/60 -> 23.11744314 | DV44: =DV43-(DV28-DV52)/24 -> 10.97661164 | DW44: =DW43-(DW28-DW52)/24 -> 19.56709963 | DX44: =AVERAGE(DJ40:DJ44) -> 16.60230045 | DY44: =AVERAGE(DK40:DK44) -> 8.51885278
A45: 2021 | B45: 14.00644458 | C45: 6.261728261 | F45: =F24 -> 8.775566233 | I45: =I44-(I28-I53)/60 -> 18.71994688 | N45: =N44-(N28-N52)/24 -> 7.043290151 | O45: =O44-(O28-O52)/24 -> 15.87706794 | P45: =AVERAGE(B41:B45) -> 13.78381877 | Q45: =AVERAGE(C41:C45) -> 6.542897778 | R45: 16.96767522 | S45: 10.1058 | V45: =V24 -> 14.32975021 | Y45: =Y44-(Y28-Y53)/60 -> 22.684896 | AD45: =AD44-(AD28-AD52)/24 -> 11.59576048 | AE45: =AE44-(AE28-AE52)/24 -> 20.72923431 | AF45: =AVERAGE(R41:R45) -> 17.40213148 | AG45: =AVERAGE(S41:S45) -> 10.40168745 | AH45: 15.49225208 | AI45: 6.66812087 | AL45: =AL24 -> 12.27800291 | AO45: =AO44-(AO28-AO53)/60 -> 22.79949384 | AT45: =AT44-(AT28-AT52)/24 -> 8.730667515 | AU45: =AU44-(AU28-AU52)/24 -> 18.93942142 | AV45: =AVERAGE(AH41:AH45) -> 15.77072186 | AW45: =AVERAGE(AI41:AI45) -> 6.100724181 | AX45: 12.49002217 | AY45: 4.544662174 | BB45: =BB24 -> 7.647414679 | BE45: =BE44-(BE28-BE53)/60 -> 18.45047441 | BJ45: =BJ44-(BJ28-BJ52)/24 -> 5.814662615 | BK45: =BK44-(BK28-BK52)/24 -> 14.88170247 | BL45: =AVERAGE(AX41:AX45) -> 11.90276344 | BM45: =AVERAGE(AY41:AY45) -> 4.671020036 | BN45: 13.30482565 | BO45: 3.965802273 | BR45: =BR24 -> 6.36661668 | BU45: =BU44-(BU28-BU53)/60 -> 19.79113698 | BZ45: =BZ44-(BZ28-BZ52)/24 -> 4.591096532 | CA45: =CA44-(CA28-CA52)/24 -> 16.56340373 | CB45: =AVERAGE(BN41:BN45) -> 13.46147374 | CC45: =AVERAGE(BO41:BO45) -> 4.616324297 | CD45: 12.83046833 | CE45: 5.902976522 | CH45: =CH24 -> 9.156089819 | CK45: =CK44-(CK28-CK53)/60 -> 17.62744575 | CP45: =CP44-(CP28-CP52)/24 -> 7.239276197 | CQ45: =CQ44-(CQ28-CQ52)/24 -> 15.31695041 | CR45: =AVERAGE(CD41:CD45) -> 12.67150329 | CS45: =AVERAGE(CE41:CE45) -> 6.387745952 | CT45: 13.78105348 | CU45: 7.243582273 | CX45: =CX24 -> 10.96321325 | DA45: =DA44-(DA28-DA53)/60 -> 22.9952413 | DF45: =DF44-(DF28-DF52)/24 -> 8.03552053 | DG45: =DG44-(DG28-DG52)/24 -> 18.35447812 | DH45: =AVERAGE(CT41:CT45) -> 14.74480444 | DI45: =AVERAGE(CU41:CU45) -> 6.295073497 | DJ45: 16.62933042 | DK45: 9.337476957 | DN45: =DN24 -> 14.20983492 | DQ45: =DQ44-(DQ28-DQ53)/60 -> 22.80720216 | DV45: =DV44-(DV28-DV52)/24 -> 10.77453519 | DW45: =DW44-(DW28-DW52)/24 -> 19.03496218 | DX45: =AVERAGE(DJ41:DJ45) -> 16.47201478 | DY45: =AVERAGE(DK41:DK45) -> 8.472743921
A46: 2022 | F46: =F24 -> 8.775566233 | I46: =I45-(I28-I53)/60 -> 18.52616534 | N46: =N45-(N28-N52)/24 -> 6.941391558 | O46: =O45-(O28-O52)/24 -> 15.51605823 | V46: =V24 -> 14.32975021 | Y46: =Y45-(Y28-Y53)/60 -> 22.40575859 | AD46: =AD45-(AD28-AD52)/24 -> 11.43493755 | AE46: =AE45-(AE28-AE52)/24 -> 20.33505798 | AL46: =AL24 -> 12.27800291 | AO46: =AO45-(AO28-AO53)/60 -> 22.47663958 | AT46: =AT45-(AT28-AT52)/24 -> 8.522000727 | AU46: =AU45-(AU28-AU52)/24 -> 18.38950407 | BB46: =BB24 -> 7.647414679 | BE46: =BE45-(BE28-BE53)/60 -> 18.24873039 | BJ46: =BJ45-(BJ28-BJ52)/24 -> 5.70685367 | BK46: =BK45-(BK28-BK52)/24 -> 14.47003069 | BR46: =BR24 -> 6.36661668 | BU46: =BU45-(BU28-BU53)/60 -> 19.56908882 | BZ46: =BZ45-(BZ28-BZ52)/24 -> 4.48665417 | CA46: =CA45-(CA28-CA52)/24 -> 16.15148891 | CH46: =CH24 -> 9.156089819 | CK46: =CK45-(CK28-CK53)/60 -> 17.44950718 | CP46: =CP45-(CP28-CP52)/24 -> 7.126522455 | CQ46: =CQ45-(CQ28-CQ52)/24 -> 15.00310035 | CX46: =CX24 -> 10.96321325 | DA46: =DA45-(DA28-DA53)/60 -> 22.68187335 | DF46: =DF45-(DF28-DF52)/24 -> 7.863303312 | DG46: =DG45-(DG28-DG52)/24 -> 17.7681241 | DN46: =DN24 -> 14.20983492 | DQ46: =DQ45-(DQ28-DQ53)/60 -> 22.49696117 | DV46: =DV45-(DV28-DV52)/24 -> 10.57245873 | DW46: =DW45-(DW28-DW52)/24 -> 18.50282472
A47: 2023 | F47: =F24 -> 8.775566233 | I47: =I46-(I28-I53)/60 -> 18.33238381 | N47: =N46-(N28-N52)/24 -> 6.839492965 | O47: =O46-(O28-O52)/24 -> 15.15504853 | V47: =V24 -> 14.32975021 | Y47: =Y46-(Y28-Y53)/60 -> 22.12662119 | AD47: =AD46-(AD28-AD52)/24 -> 11.27411463 | AE47: =AE46-(AE28-AE52)/24 -> 19.94088165 | AL47: =AL24 -> 12.27800291 | AO47: =AO46-(AO28-AO53)/60 -> 22.15378532 | AT47: =AT46-(AT28-AT52)/24 -> 8.31333394 | AU47: =AU46-(AU28-AU52)/24 -> 17.83958673 | BB47: =BB24 -> 7.647414679 | BE47: =BE46-(BE28-BE53)/60 -> 18.04698637 | BJ47: =BJ46-(BJ28-BJ52)/24 -> 5.599044725 | BK47: =BK46-(BK28-BK52)/24 -> 14.05835891 | BR47: =BR24 -> 6.36661668 | BU47: =BU46-(BU28-BU53)/60 -> 19.34704066 | BZ47: =BZ46-(BZ28-BZ52)/24 -> 4.382211808 | CA47: =CA46-(CA28-CA52)/24 -> 15.73957409 | CH47: =CH24 -> 9.156089819 | CK47: =CK46-(CK28-CK53)/60 -> 17.27156862 | CP47: =CP46-(CP28-CP52)/24 -> 7.013768712 | CQ47: =CQ46-(CQ28-CQ52)/24 -> 14.68925029 | CX47: =CX24 -> 10.96321325 | DA47: =DA46-(DA28-DA53)/60 -> 22.36850541 | DF47: =DF46-(DF28-DF52)/24 -> 7.691086093 | DG47: =DG46-(DG28-DG52)/24 -> 17.18177008 | DN47: =DN24 -> 14.20983492 | DQ47: =DQ46-(DQ28-DQ53)/60 -> 22.18672019 | DV47: =DV46-(DV28-DV52)/24 -> 10.37038228 | DW47: =DW46-(DW28-DW52)/24 -> 17.97068727
A48: 2024 | F48: =F24 -> 8.775566233 | I48: =I47-(I28-I53)/60 -> 18.13860228 | N48: =N47-(N28-N52)/24 -> 6.737594372 | O48: =O47-(O28-O52)/24 -> 14.79403882 | V48: =V24 -> 14.32975021 | Y48: =Y47-(Y28-Y53)/60 -> 21.84748378 | AD48: =AD47-(AD28-AD52)/24 -> 11.1132917 | AE48: =AE47-(AE28-AE52)/24 -> 19.54670532 | AL48: =AL24 -> 12.27800291 | AO48: =AO47-(AO28-AO53)/60 -> 21.83093105 | AT48: =AT47-(AT28-AT52)/24 -> 8.104667152 | AU48: =AU47-(AU28-AU52)/24 -> 17.28966938 | BB48: =BB24 -> 7.647414679 | BE48: =BE47-(BE28-BE53)/60 -> 17.84524235 | BJ48: =BJ47-(BJ28-BJ52)/24 -> 5.49123578 | BK48: =BK47-(BK28-BK52)/24 -> 13.64668713 | BR48: =BR24 -> 6.36661668 | BU48: =BU47-(BU28-BU53)/60 -> 19.12499251 | BZ48: =BZ47-(BZ28-BZ52)/24 -> 4.277769447 | CA48: =CA47-(CA28-CA52)/24 -> 15.32765927 | CH48: =CH24 -> 9.156089819 | CK48: =CK47-(CK28-CK53)/60 -> 17.09363005 | CP48: =CP47-(CP28-CP52)/24 -> 6.90101497 | CQ48: =CQ47-(CQ28-CQ52)/24 -> 14.37540023 | CX48: =CX24 -> 10.96321325 | DA48: =DA47-(DA28-DA53)/60 -> 22.05513746 | DF48: =DF47-(DF28-DF52)/24 -> 7.518868874 | DG48: =DG47-(DG28-DG52)/24 -> 16.59541607 | DN48: =DN24 -> 14.20983492 | DQ48: =DQ47-(DQ28-DQ53)/60 -> 21.8764792 | DV48: =DV47-(DV28-DV52)/24 -> 10.16830582 | DW48: =DW47-(DW28-DW52)/24 -> 17.43854982
A49: 2025 | F49: =F24 -> 8.775566233 | I49: =I48-(I28-I53)/60 -> 17.94482075 | N49: =N48-(N28-N52)/24 -> 6.635695779 | O49: =O48-(O28-O52)/24 -> 14.43302912 | V49: =V24 -> 14.32975021 | Y49: =Y48-(Y28-Y53)/60 -> 21.56834637 | AD49: =AD48-(AD28-AD52)/24 -> 10.95246878 | AE49: =AE48-(AE28-AE52)/24 -> 19.15252899 | AL49: =AL24 -> 12.27800291 | AO49: =AO48-(AO28-AO53)/60 -> 21.50807679 | AT49: =AT48-(AT28-AT52)/24 -> 7.896000364 | AU49: =AU48-(AU28-AU52)/24 -> 16.73975204 | BB49: =BB24 -> 7.647414679 | BE49: =BE48-(BE28-BE53)/60 -> 17.64349833 | BJ49: =BJ48-(BJ28-BJ52)/24 -> 5.383426835 | BK49: =BK48-(BK28-BK52)/24 -> 13.23501535 | BR49: =BR24 -> 6.36661668 | BU49: =BU48-(BU28-BU53)/60 -> 18.90294435 | BZ49: =BZ48-(BZ28-BZ52)/24 -> 4.173327085 | CA49: =CA48-(CA28-CA52)/24 -> 14.91574446 | CH49: =CH24 -> 9.156089819 | CK49: =CK48-(CK28-CK53)/60 -> 16.91569148 | CP49: =CP48-(CP28-CP52)/24 -> 6.788261227 | CQ49: =CQ48-(CQ28-CQ52)/24 -> 14.06155018 | CX49: =CX24 -> 10.96321325 | DA49: =DA48-(DA28-DA53)/60 -> 21.74176951 | DF49: =DF48-(DF28-DF52)/24 -> 7.346651656 | DG49: =DG48-(DG28-DG52)/24 -> 16.00906205 | DN49: =DN24 -> 14.20983492 | DQ49: =DQ48-(DQ28-DQ53)/60 -> 21.56623822 | DV49: =DV48-(DV28-DV52)/24 -> 9.966229365 | DW49: =DW48-(DW28-DW52)/24 -> 16.90641236
A50: 2026 | F50: =F24 -> 8.775566233 | I50: =I49-(I28-I53)/60 -> 17.75103921 | N50: =N49-(N28-N52)/24 -> 6.533797186 | O50: =O49-(O28-O52)/24 -> 14.07201941 | V50: =V24 -> 14.32975021 | Y50: =Y49-(Y28-Y53)/60 -> 21.28920896 | AD50: =AD49-(AD28-AD52)/24 -> 10.79164585 | AE50: =AE49-(AE28-AE52)/24 -> 18.75835266 | AL50: =AL24 -> 12.27800291 | AO50: =AO49-(AO28-AO53)/60 -> 21.18522253 | AT50: =AT49-(AT28-AT52)/24 -> 7.687333576 | AU50: =AU49-(AU28-AU52)/24 -> 16.18983469 | BB50: =BB24 -> 7.647414679 | BE50: =BE49-(BE28-BE53)/60 -> 17.44175431 | BJ50: =BJ49-(BJ28-BJ52)/24 -> 5.27561789 | BK50: =BK49-(BK28-BK52)/24 -> 12.82334356 | BR50: =BR24 -> 6.36661668 | BU50: =BU49-(BU28-BU53)/60 -> 18.68089619 | BZ50: =BZ49-(BZ28-BZ52)/24 -> 4.068884723 | CA50: =CA49-(CA28-CA52)/24 -> 14.50382964 | CH50: =CH24 -> 9.156089819 | CK50: =CK49-(CK28-CK53)/60 -> 16.73775291 | CP50: =CP49-(CP28-CP52)/24 -> 6.675507485 | CQ50: =CQ49-(CQ28-CQ52)/24 -> 13.74770012 | CX50: =CX24 -> 10.96321325 | DA50: =DA49-(DA28-DA53)/60 -> 21.42840157 | DF50: =DF49-(DF28-DF52)/24 -> 7.174434437 | DG50: =DG49-(DG28-DG52)/24 -> 15.42270803 | DN50: =DN24 -> 14.20983492 | DQ50: =DQ49-(DQ28-DQ53)/60 -> 21.25599724 | DV50: =DV49-(DV28-DV52)/24 -> 9.76415291 | DW50: =DW49-(DW28-DW52)/24 -> 16.37427491
A51: 2027 | F51: =F24 -> 8.775566233 | I51: =I50-(I28-I53)/60 -> 17.55725768 | N51: =N50-(N28-N52)/24 -> 6.431898593 | O51: =O50-(O28-O52)/24 -> 13.71100971 | V51: =V24 -> 14.32975021 | Y51: =Y50-(Y28-Y53)/60 -> 21.01007156 | AD51: =AD50-(AD28-AD52)/24 -> 10.63082293 | AE51: =AE50-(AE28-AE52)/24 -> 18.36417633 | AL51: =AL24 -> 12.27800291 | AO51: =AO50-(AO28-AO53)/60 -> 20.86236827 | AT51: =AT50-(AT28-AT52)/24 -> 7.478666788 | AU51: =AU50-(AU28-AU52)/24 -> 15.63991735 | BB51: =BB24 -> 7.647414679 | BE51: =BE50-(BE28-BE53)/60 -> 17.24001029 | BJ51: =BJ50-(BJ28-BJ52)/24 -> 5.167808945 | BK51: =BK50-(BK28-BK52)/24 -> 12.41167178 | BR51: =BR24 -> 6.36661668 | BU51: =BU50-(BU28-BU53)/60 -> 18.45884804 | BZ51: =BZ50-(BZ28-BZ52)/24 -> 3.964442362 | CA51: =CA50-(CA28-CA52)/24 -> 14.09191482 | CH51: =CH24 -> 9.156089819 | CK51: =CK50-(CK28-CK53)/60 -> 16.55981435 | CP51: =CP50-(CP28-CP52)/24 -> 6.562753742 | CQ51: =CQ50-(CQ28-CQ52)/24 -> 13.43385006 | CX51: =CX24 -> 10.96321325 | DA51: =DA50-(DA28-DA53)/60 -> 21.11503362 | DF51: =DF50-(DF28-DF52)/24 -> 7.002217219 | DG51: =DG50-(DG28-DG52)/24 -> 14.83635402 | DN51: =DN24 -> 14.20983492 | DQ51: =DQ50-(DQ28-DQ53)/60 -> 20.94575625 | DV51: =DV50-(DV28-DV52)/24 -> 9.562076455 | DW51: =DW50-(DW28-DW52)/24 -> 15.84213745
A52: 2028 | F52: =F24 -> 8.775566233 | I52: =I51-(I28-I53)/60 -> 17.36347615 | J52: 6.333 | K52: 13.44 | L52: 6.33 | M52: 13.35 | N52: =L52 -> 6.33 | O52: =M52 -> 13.35 | V52: =V24 -> 14.32975021 | Y52: =Y51-(Y28-Y53)/60 -> 20.73093415 | Z52: 10.55 | AA52: 18.16 | AB52: 10.47 | AC52: 17.97 | AD52: =AB52 -> 10.47 | AE52: =AC52 -> 17.97 | AL52: =AL24 -> 12.27800291 | AO52: =AO51-(AO28-AO53)/60 -> 20.53951401 | AP52: 7.33 | AQ52: 15.3 | AR52: 7.27 | AS52: 15.09 | AT52: =AR52 -> 7.27 | AU52: =AS52 -> 15.09 | BB52: =BB24 -> 7.647414679 | BE52: =BE51-(BE28-BE53)/60 -> 17.03826627 | BF52: 5.11 | BG52: 12.13 | BH52: 5.06 | BI52: 12 | BJ52: =BH52 -> 5.06 | BK52: =BI52 -> 12 | BR52: =BR24 -> 6.36661668 | BU52: =BU51-(BU28-BU53)/60 -> 18.23679988 | BV52: 3.9 | BW52: 13.89 | BX52: 3.86 | BY52: 13.68 | BZ52: =BX52 -> 3.86 | CA52: =BY52 -> 13.68 | CH52: =CH24 -> 9.156089819 | CK52: =CK51-(CK28-CK53)/60 -> 16.38187578 | CL52: 6.46 | CM52: 13.2 | CN52: 6.45 | CO52: 13.12 | CP52: =CN52 -> 6.45 | CQ52: =CO52 -> 13.12 | CX52: =CX24 -> 10.96321325 | DA52: =DA51-(DA28-DA53)/60 -> 20.80166567 | DB52: 7 | DC52: 14.54 | DD52: 6.83 | DE52: 14.25 | DF52: =DD52 -> 6.83 | DG52: =DE52 -> 14.25 | DN52: =DN24 -> 14.20983492 | DQ52: =DQ51-(DQ28-DQ53)/60 -> 20.63551527 | DR52: 9.45 | DS52: 15.48 | DT52: 9.36 | DU52: 15.31 | DV52: =DT52 -> 9.36 | DW52: =DU52 -> 15.31
A53: 2064 | F53: =F24 -> 8.775566233 | G53: =G24 -> 4.660356803 | H53: =H24 -> 5.726984177 | I53: =H21 -> 10.38734098 | V53: =V24 -> 14.32975021 | W53: =W24 -> 5.517226693 | X53: =X24 -> 5.164760777 | Y53: =X21 -> 10.68198747 | AL53: =AL24 -> 12.27800291 | AM53: =AM24 -> 3.637152897 | AN53: =AN24 -> 5.279607684 | AO53: =AN21 -> 8.916760581 | BB53: =BB24 -> 7.647414679 | BC53: =BC24 -> 3.73061037 | BD53: =BD24 -> 6.044871164 | BE53: =BD21 -> 9.775481534 | BR53: =BR24 -> 6.36661668 | BS53: =BS24 -> 2.794466192 | BT53: =BT24 -> 7.448600048 | BU53: =BT21 -> 10.24306624 | CH53: =CH24 -> 9.156089819 | CI53: =CI24 -> 5.017960776 | CJ53: =CJ24 -> 4.958126565 | CK53: =CJ21 -> 9.976087341 | CX53: =CX24 -> 10.96321325 | CY53: =CY24 -> 3.146327357 | CZ53: =CZ24 -> 6.374092216 | DA53: =CZ21 -> 9.520419573 | DN53: =DN24 -> 14.20983492 | DO53: =DO24 -> 4.389314256 | DP53: =DP24 -> 5.077525571 | DQ53: =DP21 -> 9.466839827
C55: 2018-04-18
B56: nc2_12_2019_2p | C56: endpoint 2064 DEC 2019
B57: NAT 10 | C57: NAT 90
A58: ACAD1 | B58: 4.660356803 | C58: 10.38734098
A59: BRIG1 | B59: 5.517226693 | C59: 10.68198747
A60: DOSO1 | B60: 3.637152897 | C60: 8.916760581
A61: GRGU1 | B61: 3.73061037 | C61: 9.775481534
A62: LYBR_RHTS | B62: 2.794466192 | C62: 10.24306624
A63: MOOS1 | B63: 5.017960776 | C63: 9.976087341
A64: SHEN1 | B64: 3.146327357 | C64: 9.520419573
A65: JARI1 | B65: 4.389314256 | C65: 9.466839827

Sheet ACAD-trend
A1: Index

Sheet BRIG-trend
A1: Index

Sheet DOSO-trend
A1: Index

Sheet GRGU-trend
A1: Index

Sheet JARI-trend
A1: Index

Sheet LYBR-trend
A1: Index

Sheet MOOS-trend
A1: Index

Sheet SHEN-trend
A1: Index

Sheet Species
A1: Index | I1: 10 | W1: 90 | AK1: 10 | AU1: 90 | BE1: 10 | BO1: 90 | BY1: 10 | DV1: 90
A2: Site | B2: Year | C2: No Degradation | D2: Uniform Rate of Progress | E2: Straight line path to RPG - 20% Clearest Days | F2: Straight line path to RPG - 20% Most Impaired Days | G2: Natural Conditions - 20% Clearest Days | H2: Natural Conditions - 20% Most Impaired Days | I2: Haze Index - Annual | J2: Haze Index - 5-Year | K2: Base Case - 20% Clearest | L2: Reasonable Progress Goal - 20% Clearest | M2: Total Extinction (Mm-1) | N2: Total PM Extinction (Mm-1) | O2: Sulfate Extinction (Mm-1) | P2: Nitrate Extinction (Mm-1) | Q2: Organic Carbon Mass Extinction (Mm-1) | R2: Light Absorbing Carbon Extinction (Mm-1) | S2: Soil Extinction (Mm-1) | T2: Coarse Mass Extinction (Mm-1) | U2: Sea Salt Extinction (Mm-1) | V2: Rayleigh Extinction (Mm-1) | W2: Haze Index - Annual | X2: Haze Index - 5-Year | Y2: Base Case - 20% Most Impaired | Z2: Reasonable Progress Goal - 20% Most Impaired | AA2: Total Extinction (Mm-1) | AB2: Total PM Extinction (Mm-1) | AC2: Sulfate Extinction (Mm-1) | AD2: Nitrate Extinction (Mm-1) | AE2: Organic Carbon Mass Extinction (Mm-1) | AF2: Light Absorbing Carbon Extinction (Mm-1) | AG2: Soil Extinction (Mm-1) | AH2: Coarse Mass Extinction (Mm-1) | AI2: Sea Salt Extinction (Mm-1) | AJ2: Rayleigh Extinction (Mm-1) | AK2: Haze Index - Annual | AL2: Total Extinction | AM2: Sulfate Extinction | AN2: Nitrate Extinction | AO2: Organic Carbon Mass Extinction | AP2: Light Absorbing Carbon Extinction | AQ2: Soil Extinction | AR2: Coarse Mass Extinction | AS2: Sea Salt Extinction | AT2: Rayleigh Extinction | AU2: Haze Index - Annual | AV2: Total Extinction | AW2: Sulfate Extinction | AX2: Nitrate Extinction | AY2: Organic Carbon Mass Extinction | AZ2: Light Absorbing Carbon Extinction | BA2: Soil Extinction | BB2: Coarse Mass Extinction | BC2: Sea Salt Extinction | BD2: Rayleigh Extinction | BE2: Haze Index - Annual | BF2: Total Extinction Fraction | BG2: Sulfate Extinction Fraction | BH2: Nitrate Extinction Fraction | BI2: Organic Carbon Mass Extinction Fraction | BJ2: Light Absorbing Carbon Extinction Fraction | BK2: Soil Extinction Fraction | BL2: Coarse Mass Extinction Fraction | BM2: Sea Salt Extinction Fraction | BN2: Rayleigh Extinction Fraction | BO2: Haze Index - Annual | BP2: Total Extinction Fraction | BQ2: Sulfate Extinction Fraction | BR2: Nitrate Extinction Fraction | BS2: Organic Carbon Mass Extinction Fraction | BT2: Light Absorbing Carbon Extinction Fraction | BU2: Soil Extinction Fraction | BV2: Coarse Mass Extinction Fraction | BW2: Sea Salt Extinction Fraction | BX2: Rayleigh Extinction Fraction | BY2: Total Mass (MT) | BZ2: Fine Mass (MF) | CA2: Reconstructed total mass RCTM | CB2: Reconstructed fine mass RCFM | CC2: ammSO4 | CD2: ammNO3 | CE2: OMC | CF2: EC | CG2: SOIL | CH2: CM_calculated | CI2: SeaSalt | CJ2: AL | CK2: AS | CL2: BR | CM2: CA | CN2: EC1 | CO2: EC2 | CP2: EC3 | CQ2: OC1 | CR2: OC2 | CS2: OC3 | CT2: OC4 | CU2: OP | CV2: OC | CW2: CHL | CX2: CL | CY2: CR | CZ2: CU | DA2: FE | DB2: PB | DC2: MG | DD2: MN | DE2: NI | DF2: NO3 | DG2: N2 | DH2: P | DI2: K | DJ2: RB | DK2: SE | DL2: SI | DM2: NA | DN2: SR | DO2: SO4 | DP2: S | DQ2: TI | DR2: V | DS2: ZN | DT2: ZR | DU2: Standard Visual Range (SVR) | DV2: Total Mass (MT) | DW2: Fine Mass (MF) | DX2: Reconstructed total mass RCTM | DY2: Reconstructed fine mass RCFM | DZ2: ammSO4 | EA2: ammNO3 | EB2: OMC | EC2: EC | ED2: SOIL | EE2: CM_calculated | EF2: SeaSalt | EG2: AL | EH2: AS | EI2: BR | EJ2: CA | EK2: EC1 | EL2: EC2 | EM2: EC3 | EN2: OC1 | EO2: OC2 | EP2: OC3 | EQ2: OC4 | ER2: OP | ES2: OC | ET2: CHL | EU2: CL | EV2: CR | EW2: CU | EX2: FE | EY2: PB | EZ2: MG | FA2: MN | FB2: NI | FC2: NO3 | FD2: N2 | FE2: P | FF2: K | FG2: RB | FH2: SE | FI2: SI | FJ2: NA | FK2: SR | FL2: SO4 | FM2: S | FN2: TI | FO2: V | FP2: ZN | FQ2: ZR | FR2: Standard Visual Range (SVR)
A3: ACAD1 | B3: 2000 | G3: =Tracking!G24 -> 4.660356803 | H3: =Tracking!H21 -> 10.38734098 | I3: =Tracking!C24 -> 8.9009695 | M3: 24.574649 | N3: 12.574649 | O3: 7.243905 | P3: 0.989023 | Q3: 2.207256 | R3: 1.0977 | S3: 0.098159 | T3: 0.671004 | U3: 0.2676025 | V3: 12 | W3: =Tracking!B24 -> 20.7527681 | AA3: 83.81758905 | AB3: 71.81758905 | AC3: 48.49790333 | AD3: 8.43356 | AE3: 7.296746667 | AF3: 4.152047619 | AG3: 0.28869 | AH3: 1.902785714 | AI3: 1.245855238 | AJ3: 12 | AK3: =I3 -> 8.9009695 | AL3: =M3/M3 -> 1 | AM3: =O3/M3 -> 0.2947714533 | AN3: =P3/M3 -> 0.04024566129 | AO3: =Q3/M3 -> 0.08981841409 | AP3: =R3/M3 -> 0.04466798285 | AQ3: =S3/M3 -> 0.003994319512 | AR3: =T3/M3 -> 0.02730472366 | AS3: =U3/M3 -> 0.01088937221 | AT3: =V3/M3 -> 0.4883080934 | AU3: =W3 -> 20.7527681 | AV3: =AA3/AA3 -> 1 | AW3: =AC3/AA3 -> 0.5786124832 | AX3: =AD3/AA3 -> 0.1006180218 | AY3: =AE3/AA3 -> 0.08705507698 | AZ3: =AF3/AA3 -> 0.04953671021 | BA3: =AG3/AA3 -> 0.003444265139 | BB3: =AH3/AA3 -> 0.02270150855 | BC3: =AI3/AA3 -> 0.01486388779 | BD3: =AJ3/AA3 -> 0.1431680407 | BE3: =I3 -> 8.9009695 | BF3: =BE3 -> 8.9009695 | BG3: =BE3*AM3 -> 2.623751715 | BH3: =BE3*AN3 -> 0.3582254037 | BI3: =BE3*AO3 -> 0.7994709644 | BJ3: =BE3*AP3 -> 0.3975883529 | BK3: =BE3*AQ3 -> 0.03555331615 | BL3: =BE3*AR3 -> 0.2430385125 | BM3: =BE3*AS3 -> 0.09692596995 | BN3: =BE3*AT3 -> 4.346415446 | BO3: =W3 -> 20.7527681 | BP3: =BO3 -> 20.7527681 | BQ3: =BO3*AW3 -> 12.00781068 | BR3: =BO3*AX3 -> 2.088102472 | BS3: =BO3*AY3 -> 1.806633824 | BT3: =BO3*AZ3 -> 1.028023859 | BU3: =BO3*BA3 -> 0.07147803569 | BV3: =BO3*BB3 -> 0.4711191423 | BW3: =BO3*BC3 -> 0.3084668162 | BX3: =BO3*BD3 -> 2.971133147 | BY3: 2.92549 | BZ3: 1.81222 | CB3: 1.908938 | CC3: 0.814926 | CD3: 0.103007 | CE3: 0.745461 | CF3: 0.10977 | CG3: 0.098159 | CH3: 1.11834 | CI3: 0.0376165 | CJ3: 0.003314 | CK3: 0.000143 | CL3: 0.0006585 | CM3: 0.005862 | CN3: 0.12911 | CO3: 0.057675 | CP3: 0.004955 | CQ3: 0.02397 | CR3: 0.065505 | CS3: 0.146855 | CT3: 0.095695 | CU3: 0.08212 | CV3: 0.414145 | CW3: 0.018865 | CX3: 0.0092985 | CY3: 0.0005765 | CZ3: 5.7e-05 | DA3: 0.005472 | DB3: 0.000667 | DC3: 0.0029755 | DD3: 0.000253 | DE3: 9.8e-05 | DF3: 0.07985 | DG3: 0.01685 | DH3: 0.00087 | DI3: 0.018384 | DJ3: 4.9e-05 | DK3: 4.7e-05 | DL3: 0.023462 | DM3: 0.03715 | DN3: 4.2e-05 | DO3: 0.55531 | DP3: 0.1975575 | DQ3: 0.001889 | DR3: 0.002542 | DS3: 0.0020795 | DT3: 1.25e-05 | DU3: 177.1161195 | DV3: 12.2846 | DW3: 9.113290476 | DY3: 8.742166667 | DZ3: 4.706210476 | EA3: 0.8648219048 | EB3: 2.263877143 | EC3: 0.4152047619 | ED3: 0.28869 | EE3: 3.171309524 | EF3: 0.2033609524 | EG3: 0.00665952381 | EH3: 0.0005295238095 | EI3: 0.002834285714 | EJ3: 0.0281147619 | EK3: 0.4663857143 | EL3: 0.0676 | EM3: 0.007138095238 | EN3: 0.101547619 | EO3: 0.272 | EP3: 0.3536761905 | EQ3: 0.4045666667 | ER3: 0.1259190476 | ES3: 1.257709524 | ET3: -0.07337619048 | EU3: 0.05562571429 | EV3: 0.0009066666667 | EW3: 0.000740952381 | EX3: 0.02710857143 | EY3: 0.001572857143 | EZ3: 0 | FA3: 0.001525238095 | FB3: 0.0007057142857 | FC3: 0.6704047619 | FD3: 0.02763809524 | FE3: 0 | FF3: 0.03645904762 | FG3: 2.571428571e-05 | FH3: 0.0006671428571 | FI3: 0.05886142857 | FJ3: 0.2851666667 | FK3: 0.000269047619 | FL3: 3.563661905 | FM3: 1.140899524 | FN3: 0.005044285714 | FO3: 0.003154761905 | FP3: 0.005948095238 | FQ3: 2.285714286e-05 | FR3: 53.00745762
A4: ACAD1 | B4: 2001 | G4: =G3 -> 4.660356803 | H4: =H3 -> 10.38734098 | I4: =Tracking!C25 -> 8.874270833 | M4: 24.47483042 | N4: 12.47483042 | O4: 7.56561375 | P4: 1.366339583 | Q4: 1.816815 | R4: 0.8588333333 | S4: 0.1345641667 | T4: 0.610835 | U4: 0.1218291667 | V4: 12 | W4: =Tracking!B25 -> 22.3742984 | AA4: 107.4153252 | AB4: 95.4153252 | AC4: 73.2714108 | AD4: 6.3114772 | AE4: 9.8357468 | AF4: 4.04052 | AG4: 0.571934 | AH4: 1.360592 | AI4: 0.0236448 | AJ4: 12 | AK4: =I4 -> 8.874270833 | AL4: =M4/M4 -> 1 | AM4: =O4/M4 -> 0.3091181275 | AN4: =P4/M4 -> 0.05582631463 | AO4: =Q4/M4 -> 0.07423197502 | AP4: =R4/M4 -> 0.03509047126 | AQ4: =S4/M4 -> 0.005498063291 | AR4: =T4/M4 -> 0.02495768059 | AS4: =U4/M4 -> 0.004977732822 | AT4: =V4/M4 -> 0.4902996178 | AU4: =W4 -> 22.3742984 | AV4: =AA4/AA4 -> 1 | AW4: =AC4/AA4 -> 0.6821318156 | AX4: =AD4/AA4 -> 0.05875769764 | AY4: =AE4/AA4 -> 0.09156744423 | AZ4: =AF4/AA4 -> 0.03761586154 | BA4: =AG4/AA4 -> 0.00532451025 | BB4: =AH4/AA4 -> 0.01266664694 | BC4: =AI4/AA4 -> 0.0002201250143 | BD4: =AJ4/AA4 -> 0.1117159025 | BE4: =I4 -> 8.874270833 | BF4: =BE4 -> 8.874270833 | BG4: =BE4*AM4 -> 2.743197983 | BH4: =BE4*AN4 -> 0.4954178356 | BI4: =BE4*AO4 -> 0.6587546508 | BJ4: =BE4*AP4 -> 0.3114023456 | BK4: =BE4*AQ4 -> 0.0487913027 | BL4: =BE4*AR4 -> 0.2214812169 | BM4: =BE4*AS4 -> 0.04417374919 | BN4: =BE4*AT4 -> 4.351051598 | BO4: =W4 -> 22.3742984 | BP4: =BO4 -> 22.3742984 | BQ4: =BO4*AW4 -> 15.26222079 | BR4: =BO4*AX4 -> 1.31466226 | BS4: =BO4*AY4 -> 2.048757321 | BT4: =BO4*AZ4 -> 0.8416285107 | BU4: =BO4*BA4 -> 0.1191321812 | BV4: =BO4*BB4 -> 0.2834073383 | BW4: =BO4*BC4 -> 0.004925142756 | BX4: =BO4*BD4 -> 2.499564939 | BY4: 2.770945833 | BZ4: 1.762341667 | CA4: 2.729950417 | CB4: 1.8458975 | CC4: 0.8408704167 | CD4: 0.1414745833 | CE4: 0.6225 | CF4: 0.08588333333 | CG4: 0.1345641667 | CH4: 1.018058333 | CI4: 0.02060333333 | CJ4: 0.01053 | CK4: 3.375e-05 | CL4: 0.0008366666667 | CM4: 0.006495833333 | CN4: 0.1169416667 | CO4: 0.04375 | CP4: 0.0019625 | CQ4: 0.02765416667 | CR4: 0.05153333333 | CS4: 0.1017708333 | CT4: 0.08810416667 | CU4: 0.07677083333 | CV4: 0.3458333333 | CW4: -0.0002625 | CX4: 0.006289166667 | CY4: 0.0009729166667 | CZ4: 0.0001275 | DA4: 0.006789166667 | DB4: 0.0006941666667 | DC4: 0.004602916667 | DD4: 0.0007679166667 | DE4: 0.0003304166667 | DF4: 0.1096708333 | DG4: 0.01588333333 | DH4: 0 | DI4: 0.01522041667 | DJ4: 0.0001416666667 | DK4: 9.958333333e-05 | DL4: 0.03033291667 | DM4: 0.04675875 | DN4: 7.208333333e-05 | DO4: 0.5362875 | DP4: 0.2038475 | DQ4: 0.0021925 | DR4: 0.001825416667 | DS4: 0.001436666667 | DT4: 3.375e-05 | DU4: 177.2700929 | DV4: 14.58585417 | DW4: 12.264956 | DX4: 12.12302455 | DY4: 11.1797584 | DZ4: 6.6897816 | EA4: 0.6597156 | EB4: 2.850768 | EC4: 0.404052 | ED4: 0.571934 | EE4: 2.2676532 | EF4: 0.0035072 | EG4: 0.0146844 | EH4: 0.0003076 | EI4: 0.00269 | EJ4: 0.0287712 | EK4: 0.471896 | EL4: 0.060932 | EM4: 0.001308 | EN4: 0.088608 | EO4: 0.341948 | EP4: 0.520708 | EQ4: 0.502412 | ER4: 0.130084 | ES4: 1.58376 | ET4: -0.28562 | EU4: 0 | EV4: 0.0006652 | EW4: 0.0007756 | EX4: 0.0344148 | EY4: 0.0025352 | EZ4: 0.0027124 | FA4: 0.001064 | FB4: 0.001228 | FC4: 0.511408 | FD4: 0.020676 | FE4: 0 | FF4: 0.042842 | FG4: 0.000168 | FH4: 0.0010688 | FI4: 0.1530632 | FJ4: 0.1781432 | FK4: 0.0003116 | FL4: 5.196232 | FM4: 1.6217652 | FN4: 0.0116344 | FO4: 0.0033876 | FP4: 0.0059584 | FQ4: 6.8e-06 | FR4: 47.6275628
A5: ACAD1 | B5: 2002 | G5: =G3 -> 4.660356803 | H5: =H3 -> 10.38734098 | I5: =Tracking!C26 -> 8.770072917 | M5: 24.16455833 | N5: 12.16455833 | O5: 6.292114167 | P5: 1.01396 | Q5: 2.458999167 | R5: 0.8562916667 | S5: 0.09693166667 | T5: 0.8157470833 | U5: 0.63051625 | V5: 12 | W5: =Tracking!B26 -> 22.9097568 | AA5: 109.5196492 | AB5: 97.5196492 | AC5: 74.4633276 | AD5: 7.47574 | AE5: 9.32963 | AF5: 3.72312 | AG5: 0.7488816 | AH5: 1.468094 | AI5: 0.310858 | AJ5: 12 | AK5: 8.770072917 | AL5: 1 | AM5: 0.2603860613 | AN5: 0.04196062622 | AO5: 0.1017605674 | AP5: 0.03543585009 | AQ5: 0.00401131547 | AR5: 0.03375799682 | AS5: 0.02609260394 | AT5: 0.4965950478 | AU5: 22.9097568 | AV5: =AA5/AA5 -> 1 | AW5: =AC5/AA5 -> 0.6799083831 | AX5: =AD5/AA5 -> 0.06825934939 | AY5: =AE5/AA5 -> 0.08518681413 | AZ5: =AF5/AA5 -> 0.03399499567 | BA5: =AG5/AA5 -> 0.006837874349 | BB5: =AH5/AA5 -> 0.01340484571 | BC5: =AI5/AA5 -> 0.002838376513 | BD5: =AJ5/AA5 -> 0.1095693794 | BE5: 8.770072917 | BF5: =BE5 -> 8.770072917 | BG5: 2.283604744 | BH5: 0.3679977516 | BI5: 0.892447596 | BJ5: 0.3107749892 | BK5: 0.03517952916 | BL5: 0.2960600936 | BM5: 0.2288340391 | BN5: 4.355174779 | BO5: 22.9097568 | BP5: =BO5 -> 22.9097568 | BQ5: 15.5765357 | BR5: 1.563805094 | BS5: 1.951609194 | BT5: 0.7788170831 | BU5: 0.1566540384 | BV5: 0.3071017552 | BW5: 0.06502651562 | BX5: 2.510207836 | BY5: 3.054236364 | BZ5: 1.792983333 | CA5: 3.147568182 | CB5: 1.938049583 | CC5: 0.7221883333 | CD5: 0.1095904167 | CE5: 0.8266875 | CF5: 0.08562916667 | CG5: 0.09693166667 | CH5: 1.359578333 | CI5: 0.09702041667 | CJ5: 0.004364583333 | CK5: 5.333333333e-05 | CL5: 0.0009708333333 | CM5: 0.0057975 | CN5: 0.1296166667 | CO5: 0.0424875 | CP5: 0.001604166667 | CQ5: 0.0039875 | CR5: 0.06545416667 | CS5: 0.1859333333 | CT5: 0.1158166667 | CU5: 0.08807916667 | CV5: 0.4592708333 | CW5: 0.05477083333 | CX5: 0.017245 | CY5: 1.166666667e-05 | CZ5: 0.0001541666667 | DA5: 0.005339166667 | DB5: 0.000605 | DC5: 0.0063 | DD5: 0.0002545833333 | DE5: 0.0002491666667 | DF5: 0.08495416667 | DG5: 0.005975 | DH5: 0.0003879166667 | DI5: 0.01382 | DJ5: 0.0001054166667 | DK5: 5.625e-05 | DL5: 0.02352958333 | DM5: 0.06963291667 | DN5: 0.0001225 | DO5: 0.4756375 | DP5: 0.1750758333 | DQ5: 0.00057875 | DR5: 0.0004779166667 | DS5: 0.001971666667 | DT5: 7.916666667e-06 | DU5: 178.7360271 | DV5: 14.32715652 | DW5: 11.772048 | DX5: 13.82024217 | DY5: 11.4218772 | DZ5: 6.7573532 | EA5: 0.7596396 | EB5: 2.7393624 | EC5: 0.372312 | ED5: 0.7488816 | EE5: 2.4468232 | EF5: 0.0443268 | EG5: 0.0482444 | EH5: 0.0003356 | EI5: 0.0029792 | EJ5: 0.0320332 | EK5: 0.440304 | EL5: 0.050472 | EM5: 0.001652 | EN5: 0.10494 | EO5: 0.334332 | EP5: 0.479108 | EQ5: 0.483372 | ER5: 0.120116 | ES5: 1.521868 | ET5: -0.186256 | EU5: 0 | EV5: 0.000102 | EW5: 0.0008676 | EX5: 0.0423392 | EY5: 0.00209 | EZ5: 0.0085208 | FA5: 0.0009972 | FB5: 0.00094 | FC5: 0.588868 | FD5: 0.017268 | FE5: 0 | FF5: 0.052766 | FG5: 0.0002144 | FH5: 0.0009264 | FI5: 0.1883292 | FJ5: 0.1821376 | FK5: 0.0006632 | FL5: 5.026112 | FM5: 1.6381464 | FN5: 0.0043356 | FO5: 0.0025008 | FP5: 0.0058596 | FQ5: 8.68e-05 | FR5: 44.5614656
A6: ACAD1 | B6: 2003 | G6: =G3 -> 4.660356803 | H6: =H3 -> 10.38734098 | I6: =Tracking!C27 -> 8.769720833 | M6: 24.17272417 | N6: 12.17272417 | O6: 6.841635833 | P6: 1.07007125 | Q6: 2.093679167 | R6: 0.7825 | S6: 0.10046125 | T6: 0.614145 | U6: 0.670235 | V6: 12 | W6: =Tracking!B27 -> 22.69669375 | AA6: 116.5190117 | AB6: 104.5190117 | AC6: 82.88316417 | AD6: 5.138217083 | AE6: 10.37106667 | AF6: 4.286583333 | AG6: 0.4281720833 | AH6: 1.3471625 | AI6: 0.064645 | AJ6: 12 | AK6: 8.769720833 | AL6: 1 | AM6: 0.2830312292 | AN6: 0.04426771441 | AO6: 0.08661328993 | AP6: 0.03237119634 | AQ6: 0.004155975525 | AR6: 0.02540652827 | AS6: 0.02772691218 | AT6: 0.4964272921 | AU6: 22.69669375 | AV6: 1 | AW6: 0.7113273875 | AX6: 0.04409767136 | AY6: 0.08900750631 | AZ6: 0.03678870317 | BA6: 0.003674697178 | BB6: 0.01156173985 | BC6: 0.0005548021655 | BD6: 0.1029874853 | BE6: 8.769720833 | BF6: 8.769720833 | BG6: 2.482104867 | BH6: 0.3882154973 | BI6: 0.7595743732 | BJ6: 0.2838863549 | BK6: 0.03644674514 | BL6: 0.2228081603 | BM6: 0.2431572793 | BN6: 4.353528765 | BO6: 22.69669375 | BP6: 22.69669375 | BQ6: 16.14477987 | BR6: 1.000871342 | BS6: 2.020176112 | BT6: 0.8349819292 | BU6: 0.08340347647 | BV6: 0.2624132685 | BW6: 0.01259217484 | BX6: 2.337475414 | BY6: 2.740566667 | BZ6: 1.735666667 | CA6: 2.849359167 | CB6: 1.907352083 | CC6: 0.8002004167 | CD6: 0.1174058333 | CE6: 0.7133175 | CF6: 0.07825 | CG6: 0.10046125 | CH6: 1.023575 | CI6: 0.09771791667 | CJ6: 0.00318 | CK6: 5.166666667e-05 | CL6: 0.0009183333333 | CM6: 0.006571666667 | CN6: 0.1058458333 | CO6: 0.04242083333 | CP6: 0.003995833333 | CQ6: 0.02971666667 | CR6: 0.0593875 | CS6: 0.1366 | CT6: 0.09542083333 | CU6: 0.07414166667 | CV6: 0.3952666667 | CW6: 0.06542083333 | CX6: 0.02974291667 | CY6: 2.583333333e-05 | CZ6: 0.0001645833333 | DA6: 0.006267916667 | DB6: 0.0005058333333 | DC6: 0.0089975 | DD6: 0.0001945833333 | DE6: 0.0002241666667 | DF6: 0.0910125 | DG6: 0.0159625 | DH6: 0.0001129166667 | DI6: 0.01323125 | DJ6: 5.458333333e-05 | DK6: 6.25e-05 | DL6: 0.02484083333 | DM6: 0.07658666667 | DN6: 8.041666667e-05 | DO6: 0.5230791667 | DP6: 0.1939879167 | DQ6: 0.0007404166667 | DR6: 0.0006075 | DS6: 0.00175875 | DT6: 1.791666667e-05 | DU6: 178.8318471 | DV6: 13.89485833 | DW6: 11.6508875 | DX6: 13.24832875 | DY6: 11.68053167 | DZ6: 7.301940417 | EA6: 0.5576725 | EB6: 2.9537925 | EC6: 0.4286583333 | ED6: 0.4281720833 | EE6: 2.245270833 | EF6: 0.01029375 | EG6: 0.02966583333 | EH6: 0.0002966666667 | EI6: 0.002698333333 | EJ6: 0.02117083333 | EK6: 0.4140708333 | EL6: 0.09478333333 | EM6: 0.01079583333 | EN6: 0.1086041667 | EO6: 0.3579291667 | EP6: 0.5483208333 | EQ6: 0.53515 | ER6: 0.09099166667 | ES6: 1.640995833 | ET6: -0.16035 | EU6: 1.583333333e-05 | EV6: 5.583333333e-05 | EW6: 0.0007070833333 | EX6: 0.02584833333 | EY6: 0.002004166667 | EZ6: 0.01247666667 | FA6: 0.00076125 | FB6: 0.00079 | FC6: 0.4323041667 | FD6: 0.01874583333 | FE6: 0 | FF6: 0.04263458333 | FG6: 0.0001095833333 | FH6: 0.0008770833333 | FI6: 0.1020291667 | FJ6: 0.31449375 | FK6: 0.0002716666667 | FL6: 5.036133333 | FM6: 1.7701675 | FN6: 0.00230625 | FO6: 0.00211625 | FP6: 0.005347916667 | FQ6: 7.083333333e-06 | FR6: 47.31726458
A7: ACAD1 | B7: 2004 | C7: =J7 -> 8.775566233 | D7: =Tracking!I28 -> 22.01423293 | E7: =Tracking!N28 -> 8.775566233 | F7: =Tracking!O28 -> 22.01423293 | G7: =G3 -> 4.660356803 | H7: =H3 -> 10.38734098 | I7: =Tracking!C28 -> 8.562797083 | J7: =Tracking!Q28 -> 8.775566233 | M7: 23.65805875 | N7: 11.65805875 | O7: 5.857960417 | P7: 0.946735 | Q7: 2.60462125 | R7: 0.7522916667 | S7: 0.1234754167 | T7: 0.86631125 | U7: 0.5066645833 | V7: 12 | W7: =Tracking!B28 -> 21.3376476 | X7: =Tracking!P28 -> 22.01423293 | AA7: 94.8568512 | AB7: 82.8568512 | AC7: 62.9697088 | AD7: 6.6607272 | AE7: 7.255522 | AF7: 3.2798 | AG7: 0.3847504 | AH7: 1.2953148 | AI7: 1.011026 | AJ7: 12 | AK7: 8.562797083 | AL7: 1 | AM7: 0.2476095135 | AN7: 0.04001744226 | AO7: 0.110094462 | AP7: 0.03179853743 | AQ7: 0.005219169416 | AR7: 0.03661801922 | AS7: 0.02141615205 | AT7: 0.5072267394 | AU7: 21.3376476 | AV7: 1 | AW7: 0.6638393327 | AX7: 0.07021872554 | AY7: 0.07648917193 | AZ7: 0.03457631113 | BA7: 0.004056116086 | BB7: 0.01365546909 | BC7: 0.0106584394 | BD7: 0.1265064131 | BE7: 8.562797083 | BF7: 8.562797083 | BG7: 2.12023002 | BH7: 0.3426612379 | BI7: 0.9427165381 | BJ7: 0.2722844236 | BK7: 0.04469068865 | BL7: 0.3135526682 | BM7: 0.1833821643 | BN7: 4.343279645 | BO7: 21.3376476 | BP7: 21.3376476 | BQ7: 14.16476974 | BR7: 1.49830242 | BS7: 1.632098996 | BT7: 0.7377771422 | BU7: 0.08654797566 | BV7: 0.2913755874 | BW7: 0.2274260238 | BX7: 2.699349261 | BY7: 3.065847826 | BZ7: 1.668033333 | CA7: 3.271973043 | CB7: 1.922655 | CC7: 0.66928 | CD7: 0.1019854167 | CE7: 0.877095 | CF7: 0.07522916667 | CG7: 0.1234754167 | CH7: 1.443852083 | CI7: 0.07558958333 | CJ7: 0.01181125 | CK7: 0.0001045833333 | CL7: 0.00099875 | CM7: 0.0056325 | CN7: 0.1166041667 | CO7: 0.047625 | CP7: 0.001783333333 | CQ7: 0.0251375 | CR7: 0.07814166667 | CS7: 0.1781375 | CT7: 0.115075 | CU7: 0.09078333333 | CV7: 0.487275 | CW7: 0.04403333333 | CX7: 0.003330416667 | CY7: 4.208333333e-05 | CZ7: 0.000195 | DA7: 0.00705375 | DB7: 0.00080125 | DC7: 0.03640125 | DD7: 0.0002920833333 | DE7: 0.0002379166667 | DF7: 0.07905833333 | DG7: 0.008566666667 | DH7: 0 | DI7: 0.01412291667 | DJ7: 6.916666667e-05 | DK7: 9.416666667e-05 | DL7: 0.02634166667 | DM7: 0.03839416667 | DN7: 9.583333333e-05 | DO7: 0.4552166667 | DP7: 0.1622495833 | DQ7: 0.00071 | DR7: 0.00051625 | DS7: 0.001875416667 | DT7: 2.666666667e-05 | DU7: 182.7188408 | DV7: 11.79527083 | DW7: 9.509992 | DX7: 12.06519304 | DY7: 9.52496 | DZ7: 5.7396016 | EA7: 0.6793676 | EB7: 2.2416984 | EC7: 0.32798 | ED7: 0.3847504 | EE7: 2.158858 | EF7: 0.1515632 | EG7: 0.0191944 | EH7: 0.0002424 | EI7: 0.0025888 | EJ7: 0.01988 | EK7: 0.405348 | EL7: 0.065428 | EM7: 0.001968 | EN7: 0.055948 | EO7: 0.242892 | EP7: 0.383152 | EQ7: 0.418632 | ER7: 0.144764 | ES7: 1.245388 | ET7: 0.088225 | EU7: 0.0003528 | EV7: 5.84e-05 | EW7: 0.000746 | EX7: 0.022374 | EY7: 0.0020868 | EZ7: 0.0336088 | FA7: 0.0006416 | FB7: 0.0010248 | FC7: 0.5340916667 | FD7: 0.01645 | FE7: 0 | FF7: 0.0334796 | FG7: 0.000134 | FH7: 0.0008504 | FI7: 0.0969672 | FJ7: 0.0705248 | FK7: 0.0002768 | FL7: 4.2955 | FM7: 1.3914184 | FN7: 0.0020968 | FO7: 0.002056 | FP7: 0.0055316 | FQ7: 2.4e-05 | FR7: 52.1477524
A8: ACAD1 | B8: 2005 | C8: =C7 -> 8.775566233 | D8: =Tracking!I29 -> 21.8204514 | E8: =Tracking!N29 -> 8.67366764 | F8: =Tracking!O29 -> 21.65322322 | G8: =G7 -> 4.660356803 | H8: =H7 -> 10.38734098 | I8: =Tracking!C29 -> 7.656128333 | J8: =Tracking!Q29 -> 8.526598 | M8: 21.89770083 | N8: 9.897700833 | O8: 4.744686667 | P8: 0.9704429167 | Q8: 1.803772917 | R8: 0.7750416667 | S8: 0.07316666667 | T8: 0.7139770833 | U8: 0.81661375 | V8: 12 | W8: =Tracking!B29 -> 21.8503724 | X8: =Tracking!P29 -> 22.23375379 | AA8: 99.557938 | AB8: 87.557938 | AC8: 70.5598196 | AD8: 4.3466868 | AE8: 7.0236652 | AF8: 3.72496 | AG8: 0.2171656 | AH8: 1.2204956 | AI8: 0.4651444 | AJ8: 12 | AK8: 7.656128333 | AL8: 1 | AM8: 0.2166751068 | AN8: 0.04431711457 | AO8: 0.082372708 | AP8: 0.03539374625 | AQ8: 0.003341294468 | AR8: 0.03260511634 | AS8: 0.0372922142 | AT8: 0.5480027374 | AU8: 21.8503724 | AV8: 1 | AW8: 0.7087312274 | AX8: 0.0436598717 | AY8: 0.0705485202 | AZ8: 0.03741499749 | BA8: 0.002181298693 | BB8: 0.01225914904 | BC8: 0.004672097568 | BD8: 0.1205328298 | BE8: 7.656128333 | BF8: 7.656128333 | BG8: 1.658892424 | BH8: 0.3392975165 | BI8: 0.6306560236 | BJ8: 0.2709790635 | BK8: 0.02558137925 | BL8: 0.2496289551 | BM8: 0.2855139778 | BN8: 4.195579285 | BO8: 21.8503724 | BP8: 21.8503724 | BQ8: 15.48604125 | BR8: 0.9539844556 | BS8: 1.541511439 | BT8: 0.8175316284 | BU8: 0.04766218875 | BV8: 0.2678669718 | BW8: 0.1020870717 | BX8: 2.633687218 | BY8: 2.660675 | BZ8: 1.364917391 | CA8: 2.673479565 | CB8: 1.514219167 | CC8: 0.5330595833 | CD8: 0.099465 | CE8: 0.612195 | CF8: 0.07750416667 | CG8: 0.07316666667 | CH8: 1.189962083 | CI8: 0.1188291667 | CJ8: 0.005972173913 | CK8: 7.043478261e-05 | CL8: 0.0007604347826 | CM8: 0.005298695652 | CN8: 0.1444708333 | CO8: 0.04013333333 | CP8: 0.002116666667 | CQ8: -0.01834583333 | CR8: 0.07784166667 | CS8: 0.1395208333 | CT8: 0.08554583333 | CU8: 0.1002458333 | CV8: 0.3848083333 | CW8: 0.06712916667 | CX8: 0.01430173913 | CY8: 2.826086957e-05 | CZ8: 0.0001769565217 | DA8: 0.004711304348 | DB8: 0.0007239130435 | DC8: 0.003346521739 | DD8: 0.0002104347826 | DE8: 0.0002456521739 | DF8: 0.07710416667 | DG8: 0.0054625 | DH8: 0 | DI8: 0.0113073913 | DJ8: 3.565217391e-05 | DK8: 7.260869565e-05 | DL8: 0.01329434783 | DM8: 0.03879086957 | DN8: 0.0001830434783 | DO8: 0.3426708333 | DP8: 0.1290421739 | DQ8: 0.000477826087 | DR8: 0.00042 | DS8: 0.005281304348 | DT8: 1.739130435e-06 | DU8: 205.9946796 | DV8: 11.49464 | DW8: 9.4135375 | DX8: 11.47958565 | DY8: 9.629182 | DZ8: 6.3718388 | EA8: 0.4357468 | EB8: 2.1641472 | EC8: 0.372496 | ED8: 0.2171656 | EE8: 2.0341592 | EF8: 0.0677848 | EG8: 0.009082083333 | EH8: 0.0002683333333 | EI8: 0.002125416667 | EJ8: 0.01467791667 | EK8: 0.703916 | EL8: 0.103652 | EM8: 0.00232 | EN8: 0.053408 | EO8: 0.33876 | EP8: 0.222784 | EQ8: 0.22172 | ER8: 0.424312 | ES8: 1.260984 | ET8: 0.0399 | EU8: 0 | EV8: 5.5e-05 | EW8: 0.0006025 | EX8: 0.0167475 | EY8: 0.001903333333 | EZ8: 0.005405833333 | FA8: 0.0005454166667 | FB8: 0.0009383333333 | FC8: 0.3458166667 | FD8: 0.0161125 | FE8: 0 | FF8: 0.0305775 | FG8: 0.0001408333333 | FH8: 0.0008025 | FI8: 0.05294 | FJ8: 0.06833083333 | FK8: 0.0002329166667 | FL8: 4.370408333 | FM8: 1.523914167 | FN8: 0.001435833333 | FO8: 0.002061666667 | FP8: 0.005512916667 | FQ8: 6.291666667e-05 | FR8: 49.0730936
A9: ACAD1 | B9: 2006 | C9: =C7 -> 8.775566233 | D9: =Tracking!I30 -> 21.62666986 | E9: =Tracking!N30 -> 8.571769047 | F9: =Tracking!O30 -> 21.29221352 | G9: =G7 -> 4.660356803 | H9: =H7 -> 10.38734098 | I9: =Tracking!C30 -> 8.2539025 | J9: =Tracking!Q30 -> 8.402524333 | M9: 23.1310375 | N9: 11.1310375 | O9: 5.79111875 | P9: 0.9134054167 | Q9: 2.007841667 | R9: 0.9063333333 | S9: 0.0757825 | T9: 0.81871 | U9: 0.61784625 | V9: 12 | W9: =Tracking!B30 -> 22.68771167 | X9: =Tracking!P30 -> 22.29643644 | AA9: 104.0500762 | AB9: 92.05007625 | AC9: 70.29789167 | AD9: 7.574417917 | AE9: 7.083925 | AF9: 3.533 | AG9: 0.309185 | AH9: 2.2396325 | AI9: 1.012025 | AJ9: 12 | AK9: 8.2539025 | AL9: 1 | AM9: 0.2503613921 | AN9: 0.03948830296 | AO9: 0.08680292298 | AP9: 0.03918256297 | AQ9: 0.003276225721 | AR9: 0.03539443486 | AS9: 0.02671070202 | AT9: 0.5187834744 | AU9: 22.68771167 | AV9: 1 | AW9: 0.6756159553 | AX9: 0.07279589011 | AY9: 0.06808188187 | AZ9: 0.03395480453 | BA9: 0.002971501907 | BB9: 0.02152456376 | BC9: 0.009726326366 | BD9: 0.1153290842 | BE9: 8.2539025 | BF9: 8.2539025 | BG9: 2.06645852 | BH9: 0.3259326026 | BI9: 0.716462863 | BJ9: 0.3234090544 | BK9: 0.02704164767 | BL9: 0.2921422144 | BM9: 0.2204675302 | BN9: 4.281988216 | BO9: 22.68771167 | BP9: 22.68771167 | BQ9: 15.32817999 | BR9: 1.651572165 | BS9: 1.544622106 | BT9: 0.7703568148 | BU9: 0.06741657848 | BV9: 0.4883430962 | BW9: 0.2206680882 | BX9: 2.616553008 | BY9: 2.974145833 | BZ9: 1.609629167 | CA9: 2.97215 | CB9: 1.695160417 | CC9: 0.6553545833 | CD9: 0.09876541667 | CE9: 0.6813825 | CF9: 0.09063333333 | CG9: 0.0757825 | CH9: 1.364516667 | CI9: 0.09324041667 | CJ9: 0.0047825 | CK9: 2.5e-05 | CL9: 0.0008775 | CM9: 0.005579583333 | CN9: 0.1592833333 | CO9: 0.04262083333 | CP9: 0.00105 | CQ9: -0.02186666667 | CR9: 0.08219166667 | CS9: 0.1454416667 | CT9: 0.0879125 | CU9: 0.1079458333 | CV9: 0.401625 | CW9: 0.05215 | CX9: 0.01099333333 | CY9: 3.458333333e-05 | CZ9: 0.0002275 | DA9: 0.005395416667 | DB9: 0.0005545833333 | DC9: 0.001818333333 | DD9: 0.00022875 | DE9: 0.0002016666667 | DF9: 0.0765625 | DG9: -0.002191666667 | DH9: 0.0005679166667 | DI9: 0.01220583333 | DJ9: 5.541666667e-05 | DK9: 5.791666667e-05 | DL9: 0.01636541667 | DM9: 0.03396416667 | DN9: 0.0001154166667 | DO9: 0.3791125 | DP9: 0.15887375 | DQ9: 0.0005029166667 | DR9: 0.0003933333333 | DS9: 0.00150125 | DT9: 1.166666667e-05 | DU9: 191.602845 | DV9: 13.93291667 | DW9: 10.20019583 | DX9: 13.42082542 | DY9: 10.41155333 | DZ9: 6.61568375 | EA9: 0.8059170833 | EB9: 2.174025 | EC9: 0.3533 | ED9: 0.309185 | EE9: 3.732720833 | EF9: 0.1534425 | EG9: 0.01395041667 | EH9: 0.0002491666667 | EI9: 0.002566666667 | EJ9: 0.02285375 | EK9: 0.6751041667 | EL9: 0.05063333333 | EM9: 0.001275 | EN9: 0.06568333333 | EO9: 0.3227333333 | EP9: 0.2342416667 | EQ9: 0.2484125 | ER9: 0.366875 | ES9: 1.237945833 | ET9: 0.08524583333 | EU9: 0 | EV9: 9.375e-05 | EW9: 0.0008308333333 | EX9: 0.02230416667 | EY9: 0.002089166667 | EZ9: 0.01686416667 | FA9: 0.0006666666667 | FB9: 0.0009841666667 | FC9: 0.6247416667 | FD9: 0.007495833333 | FE9: 0 | FF9: 0.03772125 | FG9: 8.041666667e-05 | FH9: 0.0008233333333 | FI9: 0.07303833333 | FJ9: 0.2172379167 | FK9: 0.0004058333333 | FL9: 4.240816667 | FM9: 1.603802083 | FN9: 0.001751666667 | FO9: 0.001732916667 | FP9: 0.005769166667 | FQ9: 1.25e-05 | FR9: 44.37962917
A10: ACAD1 | B10: 2007 | C10: =C7 -> 8.775566233 | D10: =Tracking!I31 -> 21.43288833 | E10: =Tracking!N31 -> 8.469870454 | F10: =Tracking!O31 -> 20.93120381 | G10: =G7 -> 4.660356803 | H10: =H7 -> 10.38734098 | I10: =Tracking!C31 -> 8.275860833 | J10: =Tracking!Q31 -> 8.303681917 | M10: 22.99749375 | N10: 10.99749375 | O10: 5.909357917 | P10: 0.71297625 | Q10: 2.337691667 | R10: 0.7633333333 | S10: 0.1028425 | T10: 0.7959025 | U10: 0.37539125 | V10: 12 | W10: =Tracking!B31 -> 20.835775 | X10: =Tracking!P31 -> 21.88164008 | AA10: 89.4165925 | AB10: 77.4165925 | AC10: 57.93730708 | AD10: 5.02959625 | AE10: 7.927144167 | AF10: 3.261958333 | AG10: 0.3165795833 | AH10: 1.8316875 | AI10: 1.112320417 | AJ10: 12 | AK10: 8.275860833 | AL10: 1 | AM10: 0.256956605 | AN10: 0.03100234564 | AO10: 0.1016498446 | AP10: 0.03319202265 | AQ10: 0.004471900335 | AR10: 0.03460822769 | AS10: 0.01632313739 | AT10: 0.5217959892 | AU10: 20.835775 | AV10: 1 | AW10: 0.6479480538 | AX10: 0.05624902615 | AY10: 0.08865406235 | AZ10: 0.03648045896 | BA10: 0.003540501539 | BB10: 0.02048487254 | BC10: 0.01243975403 | BD10: 0.13420328 | BE10: 8.275860833 | BF10: 8.275860833 | BG10: 2.126537103 | BH10: 0.256571098 | BI10: 0.8412399679 | BJ10: 0.2746925602 | BK10: 0.03700882483 | BL10: 0.2864128761 | BM10: 0.1350880134 | BN10: 4.31831099 | BO10: 20.835775 | BP10: 20.835775 | BQ10: 13.50049986 | BR10: 1.171992053 | BS10: 1.847176096 | BT10: 0.7600986349 | BU10: 0.07376909345 | BV10: 0.4268181951 | BW10: 0.259191916 | BX10: 2.796229346 | BY10: 3.211008333 | BZ10: 1.88165 | CA10: 3.150822917 | CB10: 1.7643575 | CC10: 0.6632345833 | CD10: 0.07568458333 | CE10: 0.7885875 | CF10: 0.07633333333 | CG10: 0.1028425 | CH10: 1.326504167 | CI10: 0.05767416667 | CJ10: 0.006089583333 | CK10: 3.208333333e-05 | CL10: 0.0008525 | CM10: 0.005781666667 | CN10: 0.169025 | CO10: 0.03846666667 | CP10: 0.0002041666667 | CQ10: 0.007245833333 | CR10: 0.09851666667 | CS10: 0.1716125 | CT10: 0.09914583333 | CU10: 0.1238208333 | CV10: 0.5003416667 | CW10: 0.0327125 | CX10: 5.041666667e-05 | CY10: 3.708333333e-05 | CZ10: 0.0002533333333 | DA10: 0.00788 | DB10: 0.0007008333333 | DC10: 0.00179 | DD10: 0.0003229166667 | DE10: 0.0001383333333 | DF10: 0.05877083333 | DG10: 0.001195833333 | DH10: 0 | DI10: 0.013105 | DJ10: 6.958333333e-05 | DK10: 4.666666667e-05 | DL10: 0.0235525 | DM10: 0.034055 | DN10: 0.0001095833333 | DO10: 0.4357958333 | DP10: 0.16112 | DQ10: 0.0007041666667 | DR10: 0.0002725 | DS10: 0.00208375 | DT10: 2.291666667e-05 | DU10: 188.61128 | DV10: 12.49345833 | DW10: 9.437483333 | DX10: 12.22204391 | DY10: 9.063966667 | DZ10: 5.33023375 | EA10: 0.52544 | EB10: 2.391705 | EC10: 0.3261958333 | ED10: 0.3165795833 | EE10: 3.0528125 | EF10: 0.1738129167 | EG10: 0.00837875 | EH10: 0.0002595833333 | EI10: 0.002741666667 | EJ10: 0.0195 | EK10: 0.7215208333 | EL10: 0.058825 | EM10: 0.001295833333 | EN10: 0.08786666667 | EO10: 0.3775625 | EP10: 0.265275 | EQ10: 0.2330833333 | ER10: 0.4439916667 | ES10: 1.407779167 | ET10: 0.1018521739 | EU10: 0 | EV10: 6.916666667e-05 | EW10: 0.0007991666667 | EX10: 0.02224458333 | EY10: 0.00158875 | EZ10: 0.01196958333 | FA10: 0.0006066666667 | FB10: 0.00066125 | FC10: 0.4123086957 | FD10: 0.01010869565 | FE10: 0 | FF10: 0.03319541667 | FG10: 0.00012 | FH10: 0.0006775 | FI10: 0.08339708333 | FJ10: 0.1322870833 | FK10: 0.0003541666667 | FL10: 3.755517391 | FM10: 1.293747917 | FN10: 0.001616666667 | FO10: 0.001465833333 | FP10: 0.004812916667 | FQ10: 7.833333333e-05 | FR10: 54.25956458
A11: ACAD1 | B11: 2008 | C11: =C7 -> 8.775566233 | D11: =Tracking!I32 -> 21.2391068 | E11: =Tracking!N32 -> 8.367971861 | F11: =Tracking!O32 -> 20.57019411 | G11: =G7 -> 4.660356803 | H11: =H7 -> 10.38734098 | I11: =Tracking!C32 -> 7.763495833 | J11: =Tracking!Q32 -> 8.102436917 | M11: 21.9423475 | N11: 9.9423475 | O11: 4.909374167 | P11: 0.66035625 | Q11: 1.976407917 | R11: 0.571625 | S11: 0.08982041667 | T11: 0.9105441667 | U11: 0.82422 | V11: 12 | W11: =Tracking!B32 -> 19.349384 | X11: =Tracking!P32 -> 21.21217813 | AA11: 72.8988908 | AB11: 60.8988908 | AC11: 45.5627832 | AD11: 3.538826 | AE11: 6.7848748 | AF11: 2.26888 | AG11: 0.30394 | AH11: 1.9067808 | AI11: 0.5328072 | AJ11: 12 | AK11: 7.763495833 | AL11: 1 | AM11: 0.2237396963 | AN11: 0.03009505934 | AO11: 0.09007276531 | AP11: 0.02605122355 | AQ11: 0.004093473438 | AR11: 0.04149711724 | AS11: 0.03756298181 | AT11: 0.546887702 | AU11: 19.349384 | AV11: 1 | AW11: 0.6250133946 | AX11: 0.04854430515 | AY11: 0.09307240104 | AZ11: 0.031123656 | BA11: 0.004169336415 | BB11: 0.02615651321 | BC11: 0.007308851948 | BD11: 0.1646115581 | BE11: 7.763495833 | BF11: 7.763495833 | BG11: 1.7370022 | BH11: 0.2336428678 | BI11: 0.6992795382 | BJ11: 0.2022485655 | BK11: 0.03177966398 | BL11: 0.3221626968 | BM11: 0.2916200528 | BN11: 4.245760396 | BO11: 19.349384 | BP11: 19.349384 | BQ11: 12.09362418 | BR11: 0.9393024013 | BS11: 1.800893628 | BT11: 0.6022235714 | BU11: 0.08067409131 | BV11: 0.5061124181 | BW11: 0.1414217829 | BX11: 3.185132249 | BY11: 3.004191304 | BZ11: 1.543908333 | CA11: 3.039621304 | CB11: 1.59123625 | CC11: 0.571595 | CD11: 0.07257875 | CE11: 0.6711375 | CF11: 0.0571625 | CG11: 0.08982041667 | CH11: 1.51757375 | CI11: 0.1289408333 | CJ11: 0.00556125 | CK11: 6.5e-05 | CL11: 0.0009804166667 | CM11: 0.006742083333 | CN11: 0.1417333333 | CO11: 0.02595416667 | CP11: 4.166666667e-05 | CQ11: 0.003891666667 | CR11: 0.0835375 | CS11: 0.1203416667 | CT11: 0.07977083333 | CU11: 0.1087833333 | CV11: 0.396325 | CW11: 0.07570833333 | CX11: 0.02390166667 | CY11: 2e-05 | CZ11: 0.0001833333333 | DA11: 0.006015 | DB11: 0.00051875 | DC11: 0.0027525 | DD11: 0.0002116666667 | DE11: 0.0001420833333 | DF11: 0.0564875 | DG11: 0.0033125 | DH11: 0.00061125 | DI11: 0.01324708333 | DJ11: 8.083333333e-05 | DK11: 5.916666667e-05 | DL11: 0.02022208333 | DM11: 0.05302333333 | DN11: 0.0001145833333 | DO11: 0.3757083333 | DP11: 0.139115 | DQ11: 0.0005258333333 | DR11: 0.00023375 | DS11: 0.00158625 | DT11: 4.458333333e-05 | DU11: 200.9023658 | DV11: 10.828788 | DW11: 7.641588 | DX11: 10.4531616 | DY11: 7.527346 | DZ11: 4.4478188 | EA11: 0.3623408 | EB11: 2.1072816 | EC11: 0.226888 | ED11: 0.30394 | EE11: 3.177968 | EF11: 0.0790768 | EG11: 0.0123472 | EH11: 0.0002344 | EI11: 0.0020256 | EJ11: 0.016134 | EK11: 0.593976 | EL11: 0.043524 | EM11: 0.000188 | EN11: 0.039512 | EO11: 0.330224 | EP11: 0.23094 | EQ11: 0.207996 | ER11: 0.405136 | ES11: 1.213808 | ET11: 0.048796 | EU11: 0 | EV11: 0.000114 | EW11: 0.0006424 | EX11: 0.018052 | EY11: 0.001226 | EZ11: 0.01321 | FA11: 0.000444 | FB11: 0.0005256 | FC11: 0.28178 | FD11: -0.005744 | FE11: 0 | FF11: 0.0288992 | FG11: 0.000108 | FH11: 0.000512 | FI11: 0.0813764 | FJ11: 0.1330096 | FK11: 0.0002896 | FL11: 2.976312 | FM11: 1.0814032 | FN11: 0.001462 | FO11: 0.0014232 | FP11: 0.0031992 | FQ11: 3.88e-05 | FR11: 60.948528
A12: ACAD1 | B12: 2009 | C12: =C7 -> 8.775566233 | D12: =Tracking!I33 -> 21.04532527 | E12: =Tracking!N33 -> 8.266073268 | F12: =Tracking!O33 -> 20.2091844 | G12: =G7 -> 4.660356803 | H12: =H7 -> 10.38734098 | I12: =Tracking!C33 -> 6.920979167 | J12: =Tracking!Q33 -> 7.774073333 | M12: 20.11905208 | N12: 8.119052083 | O12: 3.92619375 | P12: 0.5181254167 | Q12: 1.538698333 | R12: 0.461625 | S12: 0.09038875 | T12: 0.9874025 | U12: 0.5966191667 | V12: 12 | W12: =Tracking!B33 -> 18.1685528 | X12: =Tracking!P33 -> 20.57835917 | AA12: 69.34068 | AB12: 57.34068 | AC12: 43.8824396 | AD12: 3.4504152 | AE12: 5.539232 | AF12: 2.2404 | AG12: 0.339778 | AH12: 1.424632 | AI12: 0.4637836 | AJ12: 12 | AK12: 6.920979167 | AL12: 1 | AM12: 0.1951480484 | AN12: 0.02575297358 | AO12: 0.0764796635 | AP12: 0.02294466946 | AQ12: 0.004492694269 | AR12: 0.04907798319 | AS12: 0.02965443721 | AT12: 0.5964495718 | AU12: 18.1685528 | AV12: 1 | AW12: 0.6328527439 | AX12: 0.04976033116 | AY12: 0.07988430457 | AZ12: 0.03231003792 | BA12: 0.004900125006 | BB12: 0.0205453999 | BC12: 0.006688477817 | BD12: 0.1730585855 | BE12: 6.920979167 | BF12: 6.920979167 | BG12: 1.350615577 | BH12: 0.1782357936 | BI12: 0.5293141578 | BJ12: 0.1587995794 | BK12: 0.03109384344 | BL12: 0.3396676992 | BM12: 0.2052377421 | BN12: 4.12801506 | BO12: 18.1685528 | BP12: 18.1685528 | BQ12: 11.49801849 | BR12: 0.9040732041 | BS12: 1.451382205 | BT12: 0.5870266299 | BU12: 0.0890281799 | BV12: 0.3732801829 | BW12: 0.1215199624 | BX12: 3.144224049 | BY12: 2.994604167 | BZ12: 1.342729167 | CA12: 2.934041667 | CB12: 1.246749583 | CC12: 0.4408541667 | CD12: 0.05443291667 | CE12: 0.529035 | CF12: 0.0461625 | CG12: 0.09038875 | CH12: 1.645670833 | CI12: 0.08587791667 | CJ12: 0.005745416667 | CK12: 5.25e-05 | CL12: 0.0006279166667 | CM12: 0.005090416667 | CN12: 0.1064666667 | CO12: 0.02210416667 | CP12: 4.166666667e-05 | CQ12: -0.01184583333 | CR12: 0.08137083333 | CS12: 0.1206458333 | CT12: 0.07895833333 | CU12: 0.07994583333 | CV12: 0.349075 | CW12: 0.04874166667 | CX12: 0.006300416667 | CY12: 6.416666667e-05 | CZ12: 0.0001516666667 | DA12: 0.00459 | DB12: 0.0008808333333 | DC12: 0.002706666667 | DD12: 0.0001929166667 | DE12: 0.0001104166667 | DF12: 0.04235833333 | DG12: 0.004241666667 | DH12: 0.000275 | DI12: 0.01093666667 | DJ12: 6e-05 | DK12: 5.583333333e-05 | DL12: 0.02292041667 | DM12: 0.0420175 | DN12: 9.208333333e-05 | DO12: 0.2705875 | DP12: 0.10729625 | DQ12: 0.0004841666667 | DR12: 0.0003275 | DS12: 0.002793333333 | DT12: 0.0001075 | DU12: 219.9392817 | DV12: 9.645679167 | DW12: 7.131152 | DX12: 9.174072083 | DY12: 6.8899396 | DZ12: 4.1703536 | EA12: 0.3553332 | EB12: 1.7297928 | EC12: 0.22404 | ED12: 0.339778 | EE12: 2.3743868 | EF12: 0.0706448 | EG12: 0.0189996 | EH12: 0.0002792 | EI12: 0.0020184 | EJ12: 0.0143848 | EK12: 0.521044 | EL12: 0.047008 | EM12: 3.6e-05 | EN12: 0.03494 | EO12: 0.285448 | EP12: 0.170356 | EQ12: 0.179284 | ER12: 0.339092 | ES12: 1.00912 | ET12: 0.042812 | EU12: 0 | EV12: 7.88e-05 | EW12: 0.0005952 | EX12: 0.0160344 | EY12: 0.0012116 | EZ12: 0.007162 | FA12: 0.0003792 | FB12: 0.0004772 | FC12: 0.276464 | FD12: 0.012984 | FE12: 0 | FF12: 0.0252556 | FG12: 0.000104 | FH12: 0.0004152 | FI12: 0.093556 | FJ12: 0.1376472 | FK12: 0.00025 | FL12: 2.78896 | FM12: 1.014314 | FN12: 0.0013224 | FO12: 0.001166 | FP12: 0.0035456 | FQ12: 0.0001968 | FR12: 70.9402576
A13: ACAD1 | B13: 2010 | C13: =C7 -> 8.775566233 | D13: =Tracking!I34 -> 20.85154373 | E13: =Tracking!N34 -> 8.164174675 | F13: =Tracking!O34 -> 19.8481747 | G13: =G7 -> 4.660356803 | H13: =H7 -> 10.38734098 | I13: =Tracking!C34 -> 6.706666667 | J13: =Tracking!Q34 -> 7.584181 | M13: 19.72776083 | N13: 7.727760833 | O13: 3.847215 | P13: 0.6465683333 | Q13: 1.69224375 | R13: 0.500375 | S13: 0.07457416667 | T13: 0.5350275 | U13: 0.4317579167 | V13: 12 | W13: =Tracking!B34 -> 17.51925167 | X13: =Tracking!P34 -> 19.71213503 | AA13: 65.66092792 | AB13: 53.66092792 | AC13: 37.07543875 | AD13: 3.53193375 | AE13: 7.898030417 | AF13: 2.485208333 | AG13: 0.3995745833 | AH13: 1.785202917 | AI13: 0.4855404167 | AJ13: 12 | AK13: 6.706666667 | AL13: 1 | AM13: 0.19501529 | AN13: 0.03277454237 | AO13: 0.08577981882 | AP13: 0.02536400376 | AQ13: 0.003780163765 | AR13: 0.02712053864 | AS13: 0.02188580449 | AT13: 0.6082798804 | AU13: 17.51925167 | AV13: 1 | AW13: 0.5646499361 | AX13: 0.05379049401 | AY13: 0.1202850868 | AZ13: 0.0378491199 | BA13: 0.00608542395 | BB13: 0.02718820725 | BC13: 0.007394662733 | BD13: 0.1827570883 | BE13: 6.706666667 | BF13: 6.706666667 | BG13: 1.307902545 | BH13: 0.2198079308 | BI13: 0.5752966516 | BJ13: 0.1701079186 | BK13: 0.02535229832 | BL13: 0.1818884125 | BM13: 0.1467807955 | BN13: 4.079530398 | BO13: 17.51925167 | BP13: 17.51925167 | BQ13: 9.892244333 | BR13: 0.9423692019 | BS13: 2.107304708 | BT13: 0.6630882569 | BU13: 0.1066120737 | BV13: 0.4763170452 | BW13: 0.1295489574 | BX13: 3.201767423 | BY13: 2.214033333 | BZ13: 1.322320833 | CA13: 2.135461667 | CB13: 1.287914583 | CC13: 0.4477304167 | CD13: 0.07008541667 | CE13: 0.5789025 | CF13: 0.0500375 | CG13: 0.07457416667 | CH13: 0.8917125 | CI13: 0.066585 | CJ13: 0.006165833333 | CK13: 4e-05 | CL13: 0.00069125 | CM13: 0.00514875 | CN13: 0.1066125 | CO13: 0.02117916667 | CP13: 0 | CQ13: -0.005204166667 | CR13: 0.060675 | CS13: 0.1119791667 | CT13: 0.07640833333 | CU13: 0.07775416667 | CV13: 0.3216125 | CW13: 0.04240416667 | CX13: 0.009604166667 | CY13: 4.791666667e-05 | CZ13: 0.00018 | DA13: 0.004442083333 | DB13: 0.0005195833333 | DC13: 0.002017916667 | DD13: 0.0002008333333 | DE13: 8.625e-05 | DF13: 0.05432916667 | DG13: 0.01360416667 | DH13: 0 | DI13: 0.01207416667 | DJ13: 6.166666667e-05 | DK13: 4.291666667e-05 | DL13: 0.01619166667 | DM13: 0.04901208333 | DN13: 7.791666667e-05 | DO13: 0.2864166667 | DP13: 0.1085408333 | DQ13: 0.0004970833333 | DR13: 0.0001525 | DS13: 0.001437083333 | DT13: 4.833333333e-05 | DU13: 225.7089417 | DV13: 9.844095238 | DW13: 7.262466667 | DX13: 9.260281 | DY13: 6.911499167 | DZ13: 3.48123375 | EA13: 0.3505520833 | EB13: 2.3636325 | EC13: 0.2485208333 | ED13: 0.3995745833 | EE13: 2.975338333 | EF13: 0.067985 | EG13: 0.03017583333 | EH13: 0.0002091666667 | EI13: 0.00197875 | EJ13: 0.02099375 | EK13: 0.5403 | EL13: 0.05169166667 | EM13: 0.0001833333333 | EN13: 0.03622083333 | EO13: 0.3596708333 | EP13: 0.3100333333 | EQ13: 0.26355 | ER13: 0.3436541667 | ES13: 1.313129167 | ET13: 0.03582173913 | EU13: 0 | EV13: 9.75e-05 | EW13: 0.0008629166667 | EX13: 0.02159625 | EY13: 0.001293333333 | EZ13: 0.01229875 | FA13: 0.0006225 | FB13: 0.0004179166667 | FC13: 0.2776478261 | FD13: 0.01351304348 | FE13: 0 | FF13: 0.03717791667 | FG13: 0.0001125 | FH13: 0.0004558333333 | FI13: 0.09729041667 | FJ13: 0.1752470833 | FK13: 0.0004554166667 | FL13: 2.329978261 | FM13: 0.8439354167 | FN13: 0.001897083333 | FO13: 0.001085 | FP13: 0.00391375 | FQ13: 0.0001083333333 | FR13: 78.6130925
A14: ACAD1 | B14: 2011 | C14: =C7 -> 8.775566233 | D14: =Tracking!I35 -> 20.6577622 | E14: =Tracking!N35 -> 8.062276082 | F14: =Tracking!O35 -> 19.48716499 | G14: =G7 -> 4.660356803 | H14: =H7 -> 10.38734098 | I14: =Tracking!C35 -> 7.50934125 | J14: =Tracking!Q35 -> 7.43526875 | M14: 21.32576042 | N14: 9.325760417 | O14: 4.643699167 | P14: 0.5931091667 | Q14: 1.8658025 | R14: 0.542 | S14: 0.04950041667 | T14: 0.8808575 | U14: 0.7507904167 | V14: 12 | W14: =Tracking!B35 -> 17.3876628 | X14: =Tracking!P35 -> 18.65212525 | AA14: 58.8264784 | AB14: 46.8264784 | AC14: 31.1686212 | AD14: 3.1597112 | AE14: 7.0249628 | AF14: 2.461352 | AG14: 0.1557144 | AH14: 2.0423956 | AI14: 0.8137236 | AJ14: 12 | AK14: 7.50934125 | AL14: 1 | AM14: 0.2177506957 | AN14: 0.02781186486 | AO14: 0.08749054962 | AP14: 0.02541527193 | AQ14: 0.002321155996 | AR14: 0.04130485773 | AS14: 0.03520579815 | AT14: 0.5626997474 | AU14: 17.3876628 | AV14: 1 | AW14: 0.529839998 | AX14: 0.05371239765 | AY14: 0.1194183808 | AZ14: 0.0418408864 | BA14: 0.002647012098 | BB14: 0.03471898464 | BC14: 0.01383260773 | BD14: 0.2039897734 | BE14: 7.50934125 | BF14: 7.50934125 | BG14: 1.635164281 | BH14: 0.208848784 | BI14: 0.6569963933 | BJ14: 0.1908519498 | BK14: 0.01743035247 | BL14: 0.310172272 | BM14: 0.2643723523 | BN14: 4.225504425 | BO14: 17.3876628 | BP14: 17.3876628 | BQ14: 9.212679224 | BR14: 0.9339330585 | BS14: 2.076406538 | BT14: 0.727515224 | BU14: 0.04602535379 | BV14: 0.6036819977 | BW14: 0.2405167189 | BX14: 3.546905395 | BY14: 2.9261 | BZ14: 1.500566667 | CA14: 2.92255087 | CB14: 1.456180833 | CC14: 0.5376375 | CD14: 0.06523083333 | CE14: 0.637335 | CF14: 0.0542 | CG14: 0.04950041667 | CH14: 1.468095833 | CI14: 0.1122766667 | CJ14: 0.004903333333 | CK14: 6.875e-05 | CL14: 0.0005691666667 | CM14: 0.00408375 | CN14: 0.1079958333 | CO14: 0.02613333333 | CP14: 0.0001291666667 | CQ14: -0.007604166667 | CR14: 0.06332916667 | CS14: 0.1289458333 | CT14: 0.08934583333 | CU14: 0.08005833333 | CV14: 0.354075 | CW14: 0.066025 | CX14: 0.01757875 | CY14: 3.75e-05 | CZ14: 0.0001904166667 | DA14: 0.005146666667 | DB14: 0.0003833333333 | DC14: 0.00751 | DD14: 0.0002333333333 | DE14: 0.0001025 | DF14: 0.05056666667 | DG14: 0.005070833333 | DH14: 0.0001508333333 | DI14: 0.01168041667 | DJ14: 7.666666667e-05 | DK14: -5.416666667e-06 | DL14: 0.007504166667 | DM14: 0.03912 | DN14: 0.0001041666667 | DO14: 0.3500916667 | DP14: 0.13033625 | DQ14: 0.000445 | DR14: 0.00039875 | DS14: 0.001263333333 | DT14: 0.0001425 | DU14: 205.7063258 | DV14: 10.558316 | DW14: 6.989233333 | DX14: 9.601668182 | DY14: 6.2102684 | DZ14: 3.2044804 | EA14: 0.3198528 | EB14: 2.1668472 | EC14: 0.2461352 | ED14: 0.1557144 | EE14: 3.4039924 | EF14: 0.1172376 | EG14: 0.01402541667 | EH14: 0.0001754166667 | EI14: 0.002174166667 | EJ14: 0.0133 | EK14: 0.5602608696 | EL14: 0.04749130435 | EM14: 0.0001043478261 | EN14: 0.0367173913 | EO14: 0.2880043478 | EP14: 0.3102695652 | EQ14: 0.2502826087 | ER14: 0.3525347826 | ES14: 1.237808696 | ET14: 0.06652 | EU14: 0.00133375 | EV14: 0.0001291666667 | EW14: 0.000495 | EX14: 0.01677333333 | EY14: 0.00145 | EZ14: 0.01312 | FA14: 0.00058125 | FB14: 0.0005354166667 | FC14: 0.247948 | FD14: 0.00676 | FE14: 0.002437916667 | FF14: 0.03047041667 | FG14: 3.75e-06 | FH14: 0.00034 | FI14: 0.02541458333 | FJ14: 0.07487458333 | FK14: 0.0002091666667 | FL14: 2.144996 | FM14: 0.7781220833 | FN14: 0.00115125 | FO14: 0.001577083333 | FP14: 0.004340416667 | FQ14: 0.0001533333333 | FR14: 73.8574736
A15: ACAD1 | B15: 2012 | C15: =C7 -> 8.775566233 | D15: =Tracking!I36 -> 20.46398067 | E15: =Tracking!N36 -> 7.960377489 | F15: =Tracking!O36 -> 19.12615529 | G15: =G7 -> 4.660356803 | H15: =H7 -> 10.38734098 | I15: =Tracking!C36 -> 7.752544583 | J15: =Tracking!Q36 -> 7.3306055 | M15: 21.89446833 | N15: 9.894468333 | O15: 4.91376375 | P15: 0.67653875 | Q15: 2.03221625 | R15: 0.61175 | S15: 0.09508791667 | T15: 1.020439167 | U15: 0.5446741667 | V15: 12 | W15: =Tracking!B36 -> 15.809914 | X15: =Tracking!P36 -> 17.64695305 | AA15: 49.8065996 | AB15: 37.8065996 | AC15: 22.4020032 | AD15: 4.3238712 | AE15: 5.7955572 | AF15: 2.00932 | AG15: 0.2204048 | AH15: 1.7396908 | AI15: 1.3157536 | AJ15: 12 | AK15: 7.752544583 | AL15: 1 | AM15: 0.2244294621 | AN15: 0.03089998532 | AO15: 0.0928187074 | AP15: 0.02794084746 | AQ15: 0.004343010993 | AR15: 0.04660716813 | AS15: 0.0248772502 | AT15: 0.5480836446 | AU15: 15.809914 | AV15: 1 | AW15: 0.4497798159 | AX15: 0.08681321822 | AY15: 0.1163612302 | AZ15: 0.0403424449 | BA15: 0.004425212758 | BB15: 0.03492892135 | BC15: 0.02641725415 | BD15: 0.2409319266 | BE15: 7.752544583 | BF15: 7.752544583 | BG15: 1.73989941 | BH15: 0.2395535138 | BI15: 0.7195811673 | BJ15: 0.2166126657 | BK15: 0.03366938635 | BL15: 0.3613241488 | BM15: 0.1928619913 | BN15: 4.24904289 | BO15: 15.809914 | BP15: 15.809914 | BQ15: 7.110980209 | BR15: 1.372509514 | BS15: 1.839661042 | BT15: 0.6378105844 | BU15: 0.06996223314 | BV15: 0.5522232426 | BW15: 0.4176545162 | BX15: 3.80911304 | BY15: 3.300845833 | BZ15: 1.715447826 | CA15: 3.186943043 | CB15: 1.563457917 | CC15: 0.5642104167 | CD15: 0.07184166667 | CE15: 0.69087 | CF15: 0.061175 | CG15: 0.09508791667 | CH15: 1.700731667 | CI15: 0.0802725 | CJ15: 0.009742173913 | CK15: 5e-05 | CL15: 0.0007382608696 | CM15: 0.005833043478 | CN15: 0.1193083333 | CO15: 0.0286875 | CP15: 8.333333333e-05 | CQ15: -0.01191666667 | CR15: 0.0688 | CS15: 0.1478416667 | CT15: 0.0921875 | CU15: 0.08690416667 | CV15: 0.3838166667 | CW15: 0.04459583333 | CX15: 0.009445217391 | CY15: 5.913043478e-05 | CZ15: 0.0001408695652 | DA15: 0.007324347826 | DB15: 0.0005869565217 | DC15: 0.007332608696 | DD15: 0.0002291304348 | DE15: 0.0001747826087 | DF15: 0.05569166667 | DG15: 0.0020625 | DH15: 0.0003686956522 | DI15: 0.01337782609 | DJ15: -2.608695652e-06 | DK15: 2.52173913e-05 | DL15: 0.01629434783 | DM15: 0.03805217391 | DN15: 0.0001647826087 | DO15: 0.3794333333 | DP15: 0.13707 | DQ15: 0.0005626086957 | DR15: 0.0003543478261 | DS15: 0.001533913043 | DT15: 0.0003791304348 | DU15: 201.1975608 | DV15: 8.858629167 | DW15: 5.883244 | DX15: 8.073535833 | DY15: 5.2770312 | DZ15: 2.3638824 | EA15: 0.452744 | EB15: 1.84122 | EC15: 0.200932 | ED15: 0.2204048 | EE15: 2.8994848 | EF15: 0.1978488 | EG15: 0.0181172 | EH15: 0.000202 | EI15: 0.0019996 | EJ15: 0.0164484 | EK15: 0.413592 | EL15: 0.046924 | EM15: 3.2e-05 | EN15: 0.013292 | EO15: 0.248232 | EP15: 0.2924 | EQ15: 0.20936 | ER15: 0.259616 | ES15: 1.0229 | ET15: 0.109916 | EU15: 0.0057696 | EV15: 0.00012 | EW15: 0.0007444 | EX15: 0.0191116 | EY15: 0.0010476 | EZ15: 0.0156584 | FA15: 0.0006204 | FB15: 0.0003396 | FC15: 0.350964 | FD15: 0.006312 | FE15: 0.0023072 | FF15: 0.0314592 | FG15: -3.08e-05 | FH15: 0.0003148 | FI15: 0.0418716 | FJ15: 0.1065524 | FK15: 0.0002448 | FL15: 1.590356 | FM15: 0.5730624 | FN15: 0.0016628 | FO15: 0.0008256 | FP15: 0.0043256 | FQ15: 0.0002156 | FR15: 86.2290388
A16: ACAD1 | B16: 2013 | C16: =C7 -> 8.775566233 | D16: =Tracking!I37 -> 20.27019914 | E16: =Tracking!N37 -> 7.858478896 | F16: =Tracking!O37 -> 18.76514558 | G16: =G7 -> 4.660356803 | H16: =H7 -> 10.38734098 | I16: =Tracking!C37 -> 6.253866957 | J16: =Tracking!Q37 -> 7.028679725 | M16: 18.84223261 | N16: 6.842232609 | O16: 3.597425652 | P16: 0.5339043478 | Q16: 1.233097391 | R16: 0.3073478261 | S16: 0.04214130435 | T16: 0.5955078261 | U16: 0.5328078261 | V16: 12 | W16: =Tracking!B37 -> 15.31218208 | X16: =Tracking!P37 -> 16.83951267 | AA16: 47.44872875 | AB16: 35.44872875 | AC16: 21.80185458 | AD16: 3.747862917 | AE16: 4.79244125 | AF16: 1.900041667 | AG16: 0.1791183333 | AH16: 1.8804625 | AI16: 1.146947917 | AJ16: 12 | AK16: 6.253866957 | AL16: 1 | AM16: 0.1909235347 | AN16: 0.0283355141 | AO16: 0.065443274 | AP16: 0.01631164589 | AQ16: 0.002236534556 | AR16: 0.03160495035 | AS16: 0.02827731921 | AT16: 0.6368672041 | AU16: 15.31218208 | AV16: 1 | AW16: 0.4594823751 | AX16: 0.07898763603 | AY16: 0.1010025216 | AZ16: 0.04004410058 | BA16: 0.003774986982 | BB16: 0.0396314622 | BC16: 0.02417236345 | BD16: 0.2529045628 | BE16: 6.253866957 | BF16: 6.253866957 | BG16: 1.194010385 | BH16: 0.1772065353 | BI16: 0.4092735288 | BJ16: 0.1020108632 | BK16: 0.01398698956 | BL16: 0.1976531547 | BM16: 0.1768425922 | BN16: 3.982882763 | BO16: 15.31218208 | BP16: 15.31218208 | BQ16: 7.035677792 | BR16: 1.209473065 | BS16: 1.546569001 | BT16: 0.6131625595 | BU16: 0.05780328803 | BV16: 0.6068441655 | BW16: 0.3701316306 | BX16: 3.872520715 | BY16: 2.120169565 | BZ16: 1.159965217 | CA16: 2.023272174 | CB16: 1.068176087 | CC16: 0.4276791304 | CD16: 0.05837565217 | CE16: 0.4271947826 | CF16: 0.03073478261 | CG16: 0.04214130435 | CH16: 0.9925130435 | CI16: 0.08204782609 | CJ16: 0.004745652174 | CK16: 7.652173913e-05 | CL16: 0.0005013043478 | CM16: 0.003592173913 | CN16: 0.0700826087 | CO16: 0.01543478261 | CP16: 0 | CQ16: 0.001747826087 | CR16: 0.03953043478 | CS16: 0.08604347826 | CT16: 0.05522608696 | CU16: 0.0547826087 | CV16: 0.2373304348 | CW16: 0.04646086957 | CX16: 0.01553826087 | CY16: 4.260869565e-05 | CZ16: 9.391304348e-05 | DA16: 0.003473478261 | DB16: 0.0003591304348 | DC16: 0.005215217391 | DD16: 0.0001743478261 | DE16: 7.347826087e-05 | DF16: 0.04525217391 | DG16: 0.006813043478 | DH16: 0.0003513043478 | DI16: 0.009659130435 | DJ16: 5.347826087e-05 | DK16: 2.956521739e-05 | DL16: 0.006685652174 | DM16: 0.03189347826 | DN16: 1.391304348e-05 | DO16: 0.3062521739 | DP16: 0.10368 | DQ16: 0.0003547826087 | DR16: 5.565217391e-05 | DS16: 0.001292608696 | DT16: 0.0001230434783 | DU16: 237.0738287 | DV16: 8.567558333 | DW16: 5.478654167 | DX16: 7.786424583 | DY16: 4.818261667 | DZ16: 2.333547083 | EA16: 0.3978895833 | EB16: 1.5429675 | EC16: 0.1900041667 | ED16: 0.1791183333 | EE16: 3.134104167 | EF16: 0.174735 | EG16: 0.01682875 | EH16: 0.0001566666667 | EI16: 0.002014583333 | EJ16: 0.01462375 | EK16: 0.3964125 | EL16: 0.04594166667 | EM16: 0.0001583333333 | EN16: 0.0222375 | EO16: 0.2036666667 | EP16: 0.2069875 | EQ16: 0.1718041667 | ER16: 0.2525083333 | ES16: 0.8572041667 | ET16: 0.09746666667 | EU16: 0.006813333333 | EV16: 0.00011125 | EW16: 0.0005691666667 | EX16: 0.01716416667 | EY16: 0.001213333333 | EZ16: 0.01401666667 | FA16: 0.0005845833333 | FB16: 0.0002258333333 | FC16: 0.3084416667 | FD16: 0.006270833333 | FE16: 0.001119166667 | FF16: 0.03188 | FG16: -1.083333333e-05 | FH16: 0.0003175 | FI16: 0.02986125 | FJ16: 0.09644416667 | FK16: 0.0003416666667 | FL16: 1.6088 | FM16: 0.5657083333 | FN16: 0.00122 | FO16: 0.0003304166667 | FP16: 0.004158333333 | FQ16: 0.0003075 | FR16: 90.89513208
A17: ACAD1 | B17: 2014 | C17: =C7 -> 8.775566233 | D17: =Tracking!I38 -> 20.0764176 | E17: =Tracking!N38 -> 7.756580303 | F17: =Tracking!O38 -> 18.40413588 | G17: =G7 -> 4.660356803 | H17: =H7 -> 10.38734098 | I17: =Tracking!C38 -> 7.032901739 | J17: =Tracking!Q38 -> 7.051064239 | M17: 20.46904609 | N17: 8.469046087 | O17: 4.311913478 | P17: 0.6779104348 | Q17: 1.571459565 | R17: 0.367 | S17: 0.04662869565 | T17: 0.8942530435 | U17: 0.5998813043 | V17: 12 | W17: =Tracking!B38 -> 15.36467792 | X17: =Tracking!P38 -> 16.27873769 | AA17: 47.98144625 | AB17: 35.98144625 | AC17: 19.36921375 | AD17: 5.4096325 | AE17: 5.387782917 | AF17: 1.885333333 | AG17: 0.1777366667 | AH17: 2.183435 | AI17: 1.568312917 | AJ17: 12 | AK17: 7.032901739 | AL17: 1 | AM17: 0.2106553212 | AN17: 0.03311880934 | AO17: 0.07677248654 | AP17: 0.01792951164 | AQ17: 0.002278010194 | AR17: 0.04368806635 | AS17: 0.0293067543 | AT17: 0.5862510617 | AU17: 15.36467792 | AV17: 1 | AW17: 0.403681324 | AX17: 0.1127442568 | AY17: 0.1122888812 | AZ17: 0.03929296594 | BA17: 0.003704279061 | BB17: 0.04550581882 | BC17: 0.03268582002 | BD17: 0.2500966715 | BE17: 7.032901739 | BF17: 7.032901739 | BG17: 1.481518175 | BH17: 0.2329213318 | BI17: 0.5399333541 | BJ17: 0.1260964936 | BK17: 0.01602102186 | BL17: 0.3072538778 | BM17: 0.2061115233 | BN17: 4.123046111 | BO17: 15.36467792 | BP17: 15.36467792 | BQ17: 6.202433524 | BR17: 1.732279193 | BS17: 1.725282493 | BT17: 0.6037237661 | BU17: 0.05691505469 | BV17: 0.6991822496 | BW17: 0.5022070971 | BX17: 3.842654805 | BY17: 2.815452174 | BZ17: 1.325030435 | CA17: 2.730976087 | CB17: 1.27767087 | CC17: 0.4902621739 | CD17: 0.07354043478 | CE17: 0.5393269565 | CF17: 0.0367 | CG17: 0.04662869565 | CH17: 1.490421739 | CI17: 0.09121086957 | CJ17: 0.005714347826 | CK17: 9.434782609e-05 | CL17: 0.0007773913043 | CM17: 0.003657826087 | CN17: 0.09012608696 | CO17: 0.01892173913 | CP17: 0.0002913043478 | CQ17: -0.003226086957 | CR17: 0.05721304348 | CS17: 0.1059565217 | CT17: 0.06670434783 | CU17: 0.07263913043 | CV17: 0.2992869565 | CW17: 0.05139565217 | CX17: 0.006505652174 | CY17: 2.47826087e-05 | CZ17: 0.0001395652174 | DA17: 0.003750869565 | DB17: 0.0006791304348 | DC17: 0.005165652174 | DD17: 0.0001265217391 | DE17: 6.826086957e-05 | DF17: 0.05647391304 | DG17: 0.01626956522 | DH17: 0.000107826087 | DI17: 0.01131304348 | DJ17: -1.695652174e-05 | DK17: 5.217391304e-05 | DL17: 0.007378695652 | DM17: 0.02819782609 | DN17: 6.086956522e-05 | DO17: 0.3296043478 | DP17: 0.1188517391 | DQ17: 0.0003013043478 | DR17: 9.739130435e-05 | DS17: 0.001576086957 | DT17: 0.0002330434783 | DU17: 219.4005517 | DV17: 9.506666667 | DW17: 5.867608333 | DX17: 8.391516667 | DY17: 4.942061667 | DZ17: 2.066751667 | EA17: 0.57450625 | EB17: 1.7048925 | EC17: 0.1885333333 | ED17: 0.1777366667 | EE17: 3.639058333 | EF17: 0.2296404167 | EG17: 0.01830208333 | EH17: 0.0002220833333 | EI17: 0.002605 | EJ17: 0.01493041667 | EK17: 0.39295 | EL17: 0.04295833333 | EM17: 0.0003125 | EN17: 0.04147083333 | EO17: 0.2164833333 | EP17: 0.2519625 | EQ17: 0.1895583333 | ER17: 0.2476875 | ES17: 0.9471625 | ET17: 0.1278833333 | EU17: 0.0071825 | EV17: 0.00011125 | EW17: 0.0007008333333 | EX17: 0.01738375 | EY17: 0.001103333333 | EZ17: 0.02467208333 | FA17: 0.0006470833333 | FB17: 0.00028 | FC17: 0.4453541667 | FD17: 0.0165125 | FE17: 0.0004458333333 | FF17: 0.03771333333 | FG17: -1.541666667e-05 | FH17: 0.0002579166667 | FI17: 0.02757375 | FJ17: 0.1216941667 | FK17: 0.0003775 | FL17: 1.3648 | FM17: 0.5010308333 | FN17: 0.00124125 | FO17: 0.00044125 | FP17: 0.004263333333 | FQ17: 0.0002283333333 | FR17: 90.91811542
A18: ACAD1 | B18: 2015 | C18: =C7 -> 8.775566233 | D18: =Tracking!I39 -> 19.88263607 | E18: =Tracking!N39 -> 7.65468171 | F18: =Tracking!O39 -> 18.04312617 | G18: =G7 -> 4.660356803 | H18: =H7 -> 10.38734098 | I18: =Tracking!C39 -> 6.049556522 | J18: =Tracking!Q39 -> 6.91964221 | M18: 18.40727087 | N18: 6.40727087 | O18: 2.659278696 | P18: 0.5997586957 | Q18: 1.461252174 | R18: 0.2484 | S18: 0.03312695652 | T18: 0.80132 | U18: 0.6041334783 | V18: 12 | W18: =Tracking!B39 -> 16.0725775 | X18: =Tracking!P39 -> 15.98940286 | AA18: 51.64824792 | AB18: 39.64824792 | AC18: 21.4853 | AD18: 5.271068333 | AE18: 7.6988025 | AF18: 2.034295833 | AG18: 0.2075804167 | AH18: 1.726335833 | AI18: 1.224865417 | AJ18: 12 | AK18: 6.049556522 | AL18: 1 | AM18: 0.1444689283 | AN18: 0.03258270604 | AO18: 0.07938450976 | AP18: 0.0134946675 | AQ18: 0.001799666923 | AR18: 0.04353279776 | AS18: 0.03282037204 | AT18: 0.6519163044 | AU18: 16.0725775 | AV18: 1 | AW18: 0.4159928142 | AX18: 0.1020570599 | AY18: 0.1490622201 | AZ18: 0.03938750907 | BA18: 0.004019118267 | BB18: 0.03342486731 | BC18: 0.02371552697 | BD18: 0.2323408922 | BE18: 6.049556522 | BF18: 6.049556522 | BG18: 0.8739729475 | BH18: 0.1971109218 | BI18: 0.4802410787 | BJ18: 0.08163675379 | BK18: 0.01088718677 | BL18: 0.2633541206 | BM18: 0.1985486957 | BN18: 3.943804531 | BO18: 16.0725775 | BP18: 16.0725775 | BQ18: 6.686076746 | BR18: 1.640320005 | BS18: 2.395814085 | BT18: 0.6330587921 | BU18: 0.06459758983 | BV18: 0.5372237702 | BW18: 0.3811696453 | BX18: 3.734316996 | BY18: 2.367185652 | BZ18: 1.039716957 | CA18: 2.298034348 | CB18: 1.001132609 | CC18: 0.2930821739 | CD18: 0.0608526087 | CE18: 0.5040121739 | CF18: 0.02484 | CG18: 0.03312695652 | CH18: 1.335533913 | CI18: 0.08521826087 | CJ18: 0.003421304348 | CK18: 5.347826087e-05 | CL18: 0.0004552173913 | CM18: 0.002980434783 | CN18: 0.06198043478 | CO18: 0.01763086957 | CP18: 0 | CQ18: -0.005545217391 | CR18: 0.03987869565 | CS18: 0.1274347826 | CT18: 0.06346695652 | CU18: 0.05477130435 | CV18: 0.2800065217 | CW18: 0.04976130435 | CX18: 0.02647391304 | CY18: -7.826086957e-06 | CZ18: 0.0001404347826 | DA18: 0.002896956522 | DB18: 0.0002004347826 | DC18: 0.006646521739 | DD18: 6.52173913e-05 | DE18: 4.217391304e-05 | DF18: 0.0471726087 | DG18: 0.01563434783 | DH18: 0.00011 | DI18: 0.008084782609 | DJ18: 2.913043478e-05 | DK18: 2.946201556e-21 | DL18: 0.005290869565 | DM18: 0.03333826087 | DN18: 4.782608696e-05 | DO18: 0.1878552174 | DP18: 0.07105043478 | DQ18: 0.0002165217391 | DR18: 2.434782609e-05 | DS18: 0.00082 | DT18: 7.391304348e-05 | DU18: 241.5471026 | DV18: 9.05893875 | DW18: 6.1817125 | DX18: 8.399975417 | DY18: 5.797647917 | DZ18: 2.300417917 | EA18: 0.5735766667 | EB18: 2.325377917 | EC18: 0.2034295833 | ED18: 0.2075804167 | EE18: 2.87722625 | EF18: 0.1872645833 | EG18: 0.02115416667 | EH18: 0.0002120833333 | EI18: 0.00354125 | EJ18: 0.01760166667 | EK18: 0.4791754167 | EL18: 0.03418333333 | EM18: 3.333333333e-05 | EN18: 0.01117333333 | EO18: 0.2423695833 | EP18: 0.4549783333 | EQ18: 0.2733933333 | ER18: 0.3099625 | ES18: 1.291877083 | ET18: 0.1053175 | EU18: 0.007295 | EV18: 0.0001183333333 | EW18: 0.00069125 | EX18: 0.02082416667 | EY18: 0.001133333333 | EZ18: 0.02741916667 | FA18: 0.0007379166667 | FB18: 0.0001779166667 | FC18: 0.4446333333 | FD18: 0.0218325 | FE18: 0.0006291666667 | FF18: 0.03844333333 | FG18: 1.583333333e-05 | FH18: 0.00032625 | FI18: 0.03191625 | FJ18: 0.1276983333 | FK18: 0.0003491666667 | FL18: 1.471422083 | FM18: 0.5576770833 | FN18: 0.001280833333 | FO18: 0.0001545833333 | FP18: 0.00500625 | FQ18: 0.0003620833333 | FR18: 84.79177833
A19: ACAD1 | B19: 2016 | C19: =C7 -> 8.775566233 | D19: =Tracking!I40 -> 19.68885454 | E19: =Tracking!N40 -> 7.552783117 | F19: =Tracking!O40 -> 17.68211646 | G19: =G7 -> 4.660356803 | H19: =H7 -> 10.38734098 | I19: =Tracking!C40 -> 6.084567917 | J19: =Tracking!Q40 -> 6.634687543 | M19: 18.45820792 | N19: 6.458207917 | O19: 2.720775833 | P19: 0.50939875 | Q19: 1.591853333 | R19: 0.3522416667 | S19: 0.03905791667 | T19: 0.7841370833 | U19: 0.4607441667 | V19: 12 | W19: =Tracking!B40 -> 13.72397083 | X19: =Tracking!P40 -> 15.25666447 | AA19: 40.33807458 | AB19: 28.33807458 | AC19: 13.39553375 | AD19: 4.656313333 | AE19: 5.700505 | AF19: 1.55475 | AG19: 0.14369625 | AH19: 1.7319675 | AI19: 1.155304583 | AJ19: 12 | AK19: 6.084567917 | AL19: 1 | AM19: 0.1474019496 | AN19: 0.02759741099 | AO19: 0.08624094715 | AP19: 0.01908319964 | AQ19: 0.002116018892 | AR19: 0.04248175591 | AS19: 0.02496147886 | AT19: 0.6501172841 | AU19: 13.72397083 | AV19: 1 | AW19: 0.3320816347 | AX19: 0.1154322159 | AY19: 0.1413182225 | AZ19: 0.03854298987 | BA19: 0.003562298188 | BB19: 0.04293629574 | BC19: 0.02864054855 | BD19: 0.2974856912 | BE19: 6.084567917 | BF19: 6.084567917 | BG19: 0.8968771735 | BH19: 0.1679183215 | BI19: 0.5247389001 | BJ19: 0.1161130243 | BK19: 0.01287506066 | BL19: 0.2584831291 | BM19: 0.1518798134 | BN19: 3.955682769 | BO19: 13.72397083 | BP19: 13.72397083 | BQ19: 4.557478669 | BR19: 1.584188364 | BS19: 1.939447164 | BT19: 0.5289628688 | BU19: 0.04888887643 | BV19: 0.5892564705 | BW19: 0.3930620529 | BX19: 4.08268495 | BY19: 2.404224583 | BZ19: 1.09732875 | CA19: 2.333196667 | CB19: 1.060840417 | CC19: 0.3154379167 | CD19: 0.05514833333 | CE19: 0.5465508333 | CF19: 0.03522416667 | CG19: 0.03905791667 | CH19: 1.306895833 | CI19: 0.06942166667 | CJ19: 0.004384583333 | CK19: 3.916666667e-05 | CL19: 0.0005320833333 | CM19: 0.00281 | CN19: 0.06730083333 | CO19: 0.0236875 | CP19: 0 | CQ19: -0.00546625 | CR19: 0.05355416667 | CS19: 0.13716125 | CT19: 0.06262583333 | CU19: 0.05576416667 | CV19: 0.3036391667 | CW19: 0.0398125 | CX19: 0.018295 | CY19: -4.583333333e-06 | CZ19: 0.00013125 | DA19: 0.00326875 | DB19: 0.00031625 | DC19: 0.005050416667 | DD19: 0.0001133333333 | DE19: 4.958333333e-05 | DF19: 0.04275 | DG19: 0.004106666667 | DH19: 0.0001791666667 | DI19: 0.008155416667 | DJ19: 3.666666667e-05 | DK19: 3.083333333e-05 | DL19: 0.00655125 | DM19: 0.02885416667 | DN19: 5.041666667e-05 | DO19: 0.202685 | DP19: 0.07647 | DQ19: 0.0002966666667 | DR19: 3.583333333e-05 | DS19: 0.0008391666667 | DT19: -5.833333333e-06 | DU19: 240.4307458 | DV19: 7.38071625 | DW19: 4.4941025 | DX19: 6.971849167 | DY19: 4.219733333 | DZ19: 1.461411667 | EA19: 0.484225 | EB19: 1.803335 | EC19: 0.155475 | ED19: 0.14369625 | EE19: 2.88661375 | EF19: 0.17159 | EG19: 0.01499958333 | EH19: 6.375e-05 | EI19: 0.002119166667 | EJ19: 0.01247833333 | EK19: 0.3055433333 | EL19: 0.04010875 | EM19: 0 | EN19: 0.02966166667 | EO19: 0.2121941667 | EP19: 0.3563575 | EQ19: 0.2134620833 | ER19: 0.1901770833 | ES19: 1.0018525 | ET19: 0.0953275 | EU19: 0.005718333333 | EV19: 0.0001079166667 | EW19: 0.0008216666667 | EX19: 0.01367 | EY19: 0.001304583333 | EZ19: 0.02226875 | FA19: 0.0004716666667 | FB19: 6.75e-05 | FC19: 0.3753679167 | FD19: 0.01036708333 | FE19: 0.0007333333333 | FF19: 0.0333725 | FG19: -6.791666667e-05 | FH19: 0.0001841666667 | FI19: 0.02218458333 | FJ19: 0.1025833333 | FK19: 0.0003820833333 | FL19: 0.9650279167 | FM19: 0.3542816667 | FN19: 0.001050416667 | FO19: 9.541666667e-05 | FP19: 0.003997083333 | FQ19: 0.000265 | FR19: 107.1855546
A20: ACAD1 | B20: 2017 | C20: =C7 -> 8.775566233 | D20: =Tracking!I41 -> 19.49507301 | E20: =Tracking!N41 -> 7.450884524 | F20: =Tracking!O41 -> 17.32110676 | G20: =G7 -> 4.660356803 | H20: =H7 -> 10.38734098 | I20: =Tracking!C41 -> 7.182486957 | J20: =Tracking!Q41 -> 6.520676018 | M20: 20.61692609 | N20: 8.616926087 | O20: 3.501567391 | P20: 0.7208126087 | Q20: 2.346863043 | R20: 0.6753217391 | S20: 0.05806782609 | T20: 0.977596087 | U20: 0.3366969565 | V20: 12 | W20: =Tracking!B41 -> 13.96605292 | X20: =Tracking!P41 -> 14.88789225 | AA20: 42.77798792 | AB20: 30.77798792 | AC20: 12.61495125 | AD20: 5.18852875 | AE20: 7.020982917 | AF20: 1.749420833 | AG20: 0.1777241667 | AH20: 2.311514583 | AI20: 1.714864167 | AJ20: 12 | AK20: =I20 -> 7.182486957 | AL20: =M20/M20 -> 1 | AM20: =O20/M20 -> 0.1698394502 | AN20: =P20/M20 -> 0.0349621765 | AO20: =Q20/M20 -> 0.11383186 | AP20: =R20/M20 -> 0.03275569482 | AQ20: =S20/M20 -> 0.002816512308 | AR20: =T20/M20 -> 0.04741716019 | AS20: =U20/M20 -> 0.01633109393 | AT20: =V20/M20 -> 0.582046031 | AU20: =W20 -> 13.96605292 | AV20: =AA20/AA20 -> 1 | AW20: =AC20/AA20 -> 0.2948935157 | AX20: =AD20/AA20 -> 0.1212896867 | AY20: =AE20/AA20 -> 0.1641260671 | AZ20: =AF20/AA20 -> 0.04089535106 | BA20: =AG20/AA20 -> 0.0041545705 | BB20: =AH20/AA20 -> 0.05403514041 | BC20: =AI20/AA20 -> 0.04008753684 | BD20: =AJ20/AA20 -> 0.2805181025 | BE20: =I20 -> 7.182486957 | BF20: =BE20 -> 7.182486957 | BG20: =BE20*AM20 -> 1.219869636 | BH20: =BE20*AN20 -> 0.2511153767 | BI20: =BE20*AO20 -> 0.8175958495 | BJ20: =BE20*AP20 -> 0.2352673508 | BK20: =BE20*AQ20 -> 0.02022956292 | BL20: =BE20*AR20 -> 0.3405731346 | BM20: =BE20*AS20 -> 0.1172978692 | BN20: =BE20*AT20 -> 4.180538026 | BO20: =W20 -> 13.96605292 | BP20: =BO20 -> 13.96605292 | BQ20: =BO20*AW20 -> 4.118498445 | BR20: =BO20*AX20 -> 1.693938182 | BS20: =BO20*AY20 -> 2.292193339 | BT20: =BO20*AZ20 -> 0.5711466369 | BU20: =BO20*BA20 -> 0.05802295146 | BV20: =BO20*BB20 -> 0.7546576303 | BW20: =BO20*BC20 -> 0.5598646608 | BX20: =BO20*BD20 -> 3.917730664 | BY20: 3.058562174 | BZ20: 1.429234783 | CA20: 3.069706957 | CB20: 1.46507913 | CC20: 0.4129265217 | CD20: 0.07905347826 | CE20: 0.7954056522 | CF20: 0.06753217391 | CG20: 0.05806782609 | CH20: 1.629327391 | CI20: 0.05209304348 | CJ20: 0.00591 | CK20: 6.217391304e-05 | CL20: 0.0006526086957 | CM20: 0.003394782609 | CN20: 0.1173356522 | CO20: 0.03114956522 | CP20: 0 | CQ20: -0.006500434783 | CR20: 0.07249 | CS20: 0.1967152174 | CT20: 0.09823391304 | CU20: 0.08095304348 | CV20: 0.4418917391 | CW20: 0.03238130435 | CX20: 0.006517826087 | CY20: 3.47826087e-05 | CZ20: 0.0001013043478 | DA20: 0.005350434783 | DB20: 0.0003995652174 | DC20: 0.004247826087 | DD20: 0.0001956521739 | DE20: 1.739130435e-05 | DF20: 0.06128217391 | DG20: 0.002961304348 | DH20: 8e-05 | DI20: 0.01255043478 | DJ20: 3.652173913e-05 | DK20: 3.347826087e-05 | DL20: 0.01025652174 | DM20: 0.02797913043 | DN20: 2.695652174e-05 | DO20: 0.2778421739 | DP20: 0.1001034783 | DQ20: 0.0005391304348 | DR20: 8.217391304e-05 | DS20: 0.001375652174 | DT20: 0.0002452173913 | DU20: 212.8856709 | DV20: 8.684821667 | DW20: 4.832296667 | DX20: 8.460079583 | DY20: 4.701531667 | DZ20: 1.403322917 | EA20: 0.5630995833 | EB20: 2.113557083 | EC20: 0.1749420833 | ED20: 0.1777241667 | EE20: 3.852525 | EF20: 0.2688866667 | EG20: 0.01534666667 | EH20: 0.0001870833333 | EI20: 0.002321666667 | EJ20: 0.01769333333 | EK20: 0.31573375 | EL20: 0.03719 | EM20: 0 | EN20: 0.02457 | EO20: 0.2655375 | EP20: 0.4417275 | EQ20: 0.2643816667 | ER20: 0.1779816667 | ES20: 1.174198333 | ET20: 0.1501666667 | EU20: 0.02282541667 | EV20: 8.208333333e-05 | EW20: 0.0006375 | EX20: 0.01716458333 | EY20: 0.001184166667 | EZ20: 0.02776333333 | FA20: 0.0004845833333 | FB20: 0.0001479166667 | FC20: 0.4365104167 | FD20: 0.007815833333 | FE20: 0.0003345833333 | FF20: 0.03289875 | FG20: 1e-05 | FH20: 0.0002195833333 | FI20: 0.028455 | FJ20: 0.15565 | FK20: 0.0002041666667 | FL20: 0.95122125 | FM20: 0.3401995833 | FN20: 0.001407083333 | FO20: 0.0004416666667 | FP20: 0.003798333333 | FQ20: 7.666666667e-05 | FR20: 107.8316596
A21: =A20 -> ACAD1 | B21: =B20+1 -> 2018 | C21: =C7 -> 8.775566233 | D21: =Tracking!I42 -> 19.30129147 | E21: =Tracking!N42 -> 7.348985931 | F21: =Tracking!O42 -> 16.96009705 | G21: =G7 -> 4.660356803 | H21: =H7 -> 10.38734098 | I21: =Tracking!C42 -> 6.526589091 | J21: =Tracking!Q42 -> 6.575220445 | M21: 19.29249273 | N21: 7.292492727 | O21: 2.772270455 | P21: 0.6756981818 | Q21: 1.421530455 | R21: 0.5064363636 | S21: 0.04911818182 | T21: 0.7852568182 | U21: 1.082183182 | V21: 12 | W21: =Tracking!B42 -> 13.57671696 | X21: =Tracking!P42 -> 14.54079922 | AA21: 39.88497261 | AB21: 27.88497261 | AC21: 12.27021739 | AD21: 5.442533478 | AE21: 5.000409565 | AF21: 1.940286957 | AG21: 0.1571647826 | AH21: 1.4664 | AI21: 1.607958696 | AJ21: 12 | AK21: =I21 -> 6.526589091 | AL21: =M21/M21 -> 1 | AM21: =O21/M21 -> 0.1436968511 | AN21: =P21/M21 -> 0.03502389201 | AO21: =Q21/M21 -> 0.07368308879 | AP21: =R21/M21 -> 0.02625043693 | AQ21: =S21/M21 -> 0.002545973841 | AR21: =T21/M21 -> 0.04070271423 | AS21: =U21/M21 -> 0.05609348658 | AT21: =V21/M21 -> 0.6220036037 | AU21: =W21 -> 13.57671696 | AV21: =AA21/AA21 -> 1 | AW21: =AC21/AA21 -> 0.3076401108 | AX21: =AD21/AA21 -> 0.1364557407 | AY21: =AE21/AA21 -> 0.1253707659 | AZ21: =AF21/AA21 -> 0.04864706754 | BA21: =AG21/AA21 -> 0.00394045106 | BB21: =AH21/AA21 -> 0.03676572664 | BC21: =AI21/AA21 -> 0.04031490034 | BD21: =AJ21/AA21 -> 0.3008651935 | BE21: =I21 -> 6.526589091 | BF21: =BE21 -> 6.526589091 | BG21: =BE21*AM21 -> 0.9378503007 | BH21: =BE21*AN21 -> 0.2285865515 | BI21: =BE21*AO21 -> 0.4808992435 | BJ21: =BE21*AP21 -> 0.1713258153 | BK21: =BE21*AQ21 -> 0.0166165251 | BL21: =BE21*AR21 -> 0.2656498906 | BM21: =BE21*AS21 -> 0.3660991376 | BN21: =BE21*AT21 -> 4.059561934 | BO21: =W21 -> 13.57671696 | BP21: =BO21 -> 13.57671696 | BQ21: =BO21*AW21 -> 4.176742708 | BR21: =BO21*AX21 -> 1.852620968 | BS21: =BO21*AY21 -> 1.702123404 | BT21: =BO21*AZ21 -> 0.6604674668 | BU21: =BO21*BA21 -> 0.05349838873 | BV21: =BO21*BB21 -> 0.4991578643 | BW21: =BO21*BC21 -> 0.547343991 | BX21: =BO21*BD21 -> 4.084761574 | BY21: 2.377329545 | BZ21: 1.108891905 | CA21: 2.377447143 | CB21: 1.167210909 | CC21: 0.3284513636 | CD21: 0.07537772727 | CE21: 0.4910027273 | CF21: 0.05064363636 | CG21: 0.04911818182 | CH21: 1.308761364 | CI21: 0.1726145455 | CJ21: 0.004393181818 | CK21: 4.090909091e-06 | CL21: 0.0006945454545 | CM21: 0.004384090909 | CN21: 0.08824227273 | CO21: 0.02313318182 | CP21: 0 | CQ21: 0.002561363636 | CR21: 0.05125227273 | CS21: 0.096945 | CT21: 0.06062318182 | CU21: 0.06139727273 | CV21: 0.2727790909 | CW21: 0.09589727273 | CX21: 0.05301590909 | CY21: 4.636363636e-05 | CZ21: 0.0001077272727 | DA21: 0.004124545455 | DB21: 0.0003190909091 | DC21: 0.01057090909 | DD21: 0.0001481818182 | DE21: 6.272727273e-05 | DF21: 0.05841090909 | DG21: 0.004703181818 | DH21: 8e-05 | DI21: 0.01206636364 | DJ21: 3.181818182e-05 | DK21: 3.545454545e-05 | DL21: 0.007617272727 | DM21: 0.06340545455 | DN21: 5.227272727e-05 | DO21: 0.2261763636 | DP21: 0.08007454545 | DQ21: 0.000505 | DR21: 0.0001795454545 | DS21: 0.001082727273 | DT21: 0.0001636363636 | DU21: 228.8468168 | DV21: 6.732149565 | DW21: 4.288149565 | DX21: 6.486180435 | DY21: 4.147119565 | DZ21: 1.358542174 | EA21: 0.5785373913 | EB21: 1.615423478 | EC21: 0.1940286957 | ED21: 0.1571647826 | EE21: 2.444 | EF21: 0.24342 | EG21: 0.01538565217 | EH21: 0.0001056521739 | EI21: 0.002160869565 | EJ21: 0.01347521739 | EK21: 0.3416334783 | EL21: 0.03648 | EM21: 0 | EN21: 0.03484478261 | EO21: 0.1835108696 | EP21: 0.2910543478 | EQ21: 0.2039626087 | ER21: 0.1840847826 | ES21: 0.8974573913 | ET21: 0.1352334783 | EU21: 0.02871086957 | EV21: 0.000107826087 | EW21: 0.0005356521739 | EX21: 0.01486913043 | EY21: 0.0008447826087 | EZ21: 0.01892173913 | FA21: 0.0004413043478 | FB21: 9.869565217e-05 | FC21: 0.4484786957 | FD21: 0.01062826087 | FE21: 0.0006665217391 | FF21: 0.03039652174 | FG21: 2.391304348e-05 | FH21: 0.0001813043478 | FI21: 0.02523130435 | FJ21: 0.119753913 | FK21: 0.0002652173913 | FL21: 0.9117104348 | FM21: 0.329343913 | FN21: 0.001310869565 | FO21: 9.782608696e-05 | FP21: 0.003897826087 | FQ21: -5e-05 | FR21: 108.9435257
A22: =A21 -> ACAD1 | B22: =B21+1 -> 2019 | C22: =C7 -> 8.775566233 | D22: =Tracking!I43 -> 19.10750994 | E22: =Tracking!N43 -> 7.247087338 | F22: =Tracking!O43 -> 16.59908735 | G22: =G7 -> 4.660356803 | H22: =H7 -> 10.38734098 | I22: =Tracking!C43 -> 5.94664 | J22: =Tracking!Q43 -> 6.357968097 | M22: 18.1845619 | N22: 6.184561905 | O22: 2.631783333 | P22: 0.5760385714 | Q22: 1.575834286 | R22: 0.4332761905 | S22: 0.03119142857 | T22: 0.6014847619 | U22: 0.3349547619 | V22: 12 | W22: =Tracking!B43 -> 13.85028818 | X22: =Tracking!P43 -> 14.23792128 | AA22: 42.37487636 | AB22: 30.37487636 | AC22: 12.36356909 | AD22: 5.913931818 | AE22: 6.541975455 | AF22: 2.229377273 | AG22: 0.1817359091 | AH22: 1.948365909 | AI22: 1.195917727 | AJ22: 12 | AK22: =I22 -> 5.94664 | AL22: =M22/M22 -> 1 | AM22: =O22/M22 -> 0.1447262435 | AN22: =P22/M22 -> 0.03167734117 | AO22: =Q22/M22 -> 0.08665780864 | AP22: =R22/M22 -> 0.02382659493 | AQ22: =S22/M22 -> 0.001715269729 | AR22: =T22/M22 -> 0.03307667048 | AS22: =U22/M22 -> 0.01841973228 | AT22: =V22/M22 -> 0.6599004179 | AU22: =W22 -> 13.85028818 | AV22: =AA22/AA22 -> 1 | AW22: =AC22/AA22 -> 0.2917664935 | AX22: =AD22/AA22 -> 0.13956222 | AY22: =AE22/AA22 -> 0.154383352 | AZ22: =AF22/AA22 -> 0.0526108266 | BA22: =AG22/AA22 -> 0.00428876553 | BB22: =AH22/AA22 -> 0.04597927065 | BC22: =AI22/AA22 -> 0.02822232959 | BD22: =AJ22/AA22 -> 0.283186667 | BE22: =I22 -> 5.94664 | BF22: =BE22 -> 5.94664 | BG22: =BE22*AM22 -> 0.8606348684 | BH22: =BE22*AN22 -> 0.1883737441 | BI22: =BE22*AO22 -> 0.5153227912 | BJ22: =BE22*AP22 -> 0.1416881825 | BK22: =BE22*AQ22 -> 0.01020009158 | BL22: =BE22*AR22 -> 0.1966950517 | BM22: =BE22*AS22 -> 0.1095355168 | BN22: =BE22*AT22 -> 3.924190221 | BO22: =W22 -> 13.85028818 | BP22: =BO22 -> 13.85028818 | BQ22: =BO22*AW22 -> 4.041050017 | BR22: =BO22*AX22 -> 1.932976967 | BS22: =BO22*AY22 -> 2.138253916 | BT22: =BO22*AZ22 -> 0.7286751099 | BU22: =BO22*BA22 -> 0.05940063854 | BV22: =BO22*BB22 -> 0.6368261489 | BW22: =BO22*BC22 -> 0.3908873981 | BX22: =BO22*BD22 -> 3.922216947 | BY22: 1.961078571 | BZ22: 0.9586057143 | CA22: 2.012574762 | CB22: 1.039303333 | CC22: 0.3074342857 | CD22: 0.06245190476 | CE22: 0.5437004762 | CF22: 0.04332761905 | CG22: 0.03119142857 | CH22: 1.002472857 | CI22: 0.05119714286 | CJ22: 0.002769047619 | CK22: 0 | CL22: 0.0003004761905 | CM22: 0.002437142857 | CN22: 0.07796666667 | CO22: 0.02925809524 | CP22: 0 | CQ22: 0.01947952381 | CR22: 0.0600647619 | CS22: 0.09906285714 | CT22: 0.05955142857 | CU22: 0.06389714286 | CV22: 0.3020557143 | CW22: 0.02878285714 | CX22: 0.001247619048 | CY22: 2.571428571e-05 | CZ22: 0.000120952381 | DA22: 0.002892380952 | DB22: 5.333333333e-05 | DC22: 0.002508095238 | DD22: 9.476190476e-05 | DE22: 1.619047619e-05 | DF22: 0.04841190476 | DG22: 0.002601428571 | DH22: 0.0001628571429 | DI22: 0.00677047619 | DJ22: -1.428571429e-06 | DK22: -1.428571429e-05 | DL22: 0.005423333333 | DM22: 0.02061095238 | DN22: 3.19047619e-05 | DO22: 0.2019066667 | DP22: 0.07452952381 | DQ22: 0.0003214285714 | DR22: 2.571428571e-05 | DS22: 0.0006823809524 | DT22: 7.19047619e-05 | DU22: 243.7299105 | DV22: 7.871267727 | DW22: 4.623991364 | DX22: 7.662255455 | DY22: 4.535442273 | DZ22: 1.345168636 | EA22: 0.5981759091 | EB22: 2.013455 | EC22: 0.2229377273 | ED22: 0.1817359091 | EE22: 3.247276364 | EF22: 0.1739668182 | EG22: 0.01415272727 | EH22: 7.090909091e-05 | EI22: 0.002036363636 | EJ22: 0.01473 | EK22: 0.4078190909 | EL22: 0.04873136364 | EM22: 0 | EN22: 0.08292363636 | EO22: 0.2462809091 | EP22: 0.3340363636 | EQ22: 0.2217322727 | ER22: 0.2336127273 | ES22: 1.118585909 | ET22: 0.09664863636 | EU22: 0.004085 | EV22: 0.000165 | EW22: 0.0007640909091 | EX22: 0.01840909091 | EY22: 0.001064090909 | EZ22: 0.01396772727 | FA22: 0.0006468181818 | FB22: 0.0001204545455 | FC22: 0.4637022727 | FD22: 0.005221818182 | FE22: 0.0007390909091 | FF22: 0.02879590909 | FG22: 7.909090909e-05 | FH22: 0.0002345454545 | FI22: 0.031745 | FJ22: 0.1018186364 | FK22: 0.0002204545455 | FL22: 0.8906940909 | FM22: 0.3261018182 | FN22: 0.001544090909 | FO22: 9.227272727e-05 | FP22: 0.004156363636 | FQ22: 0.0004309090909 | FR22: 108.9973159
A23: ACAD1 | B23: 2020 | C23: =C7 -> 8.775566233 | D23: =Tracking!I44 -> 18.91372841 | E23: =Tracking!N44 -> 7.145188744 | F23: =Tracking!O44 -> 16.23807764 | G23: =G7 -> 4.660356803 | H23: =H7 -> 10.38734098 | I23: =Tracking!C44 -> 6.797044583 | J23: =Tracking!Q44 -> 6.507465709 | M23: 19.79491708 | N23: 7.794917083 | O23: 3.158885833 | P23: 0.9173016667 | Q23: 1.728959583 | R23: 0.5784958333 | S23: 0.05592833333 | T23: 0.6378766667 | U23: 0.71746875 | V23: 12 | W23: =Tracking!B44 -> 13.5195912 | X23: =Tracking!P44 -> 13.72732402 | AA23: 40.0799792 | AB23: 28.0799792 | AC23: 11.0589836 | AD23: 6.3215036 | AE23: 5.1134656 | AF23: 1.640176 | AG23: 0.1910668 | AH23: 1.692434 | AI23: 2.062348 | AJ23: 12 | AK23: =I23 -> 6.797044583 | AL23: =M23/M23 -> 1 | AM23: =O23/M23 -> 0.159580655 | AN23: =P23/M23 -> 0.04634026315 | AO23: =Q23/M23 -> 0.08734361332 | AP23: =R23/M23 -> 0.02922446358 | AQ23: =S23/M23 -> 0.002825388614 | AR23: =T23/M23 -> 0.03222426565 | AS23: =U23/M23 -> 0.03624510004 | AT23: =V23/M23 -> 0.6062162296 | AU23: =W23 -> 13.5195912 | AV23: =AA23/AA23 -> 1 | AW23: =AC23/AA23 -> 0.2759228877 | AX23: =AD23/AA23 -> 0.1577222276 | AY23: =AE23/AA23 -> 0.1275815433 | AZ23: =AF23/AA23 -> 0.04092257613 | BA23: =AG23/AA23 -> 0.004767138203 | BB23: =AH23/AA23 -> 0.04222641912 | BC23: =AI23/AA23 -> 0.05145581513 | BD23: =AJ23/AA23 -> 0.299401353 | BE23: =I23 -> 6.797044583 | BF23: =BE23 -> 6.797044583 | BG23: =BE23*AM23 -> 1.084676827 | BH23: =BE23*AN23 -> 0.3149768346 | BI23: =BE23*AO23 -> 0.5936784338 | BJ23: =BE23*AP23 -> 0.1986399819 | BK23: =BE23*AQ23 -> 0.01920429237 | BL23: =BE23*AR23 -> 0.2190297703 | BM23: =BE23*AS23 -> 0.2463595609 | BN23: =BE23*AT23 -> 4.12047874 | BO23: =W23 -> 13.5195912 | BP23: =BO23 -> 13.5195912 | BQ23: =BO23*AW23 -> 3.730364644 | BR23: =BO23*AX23 -> 2.13234004 | BS23: =BO23*AY23 -> 1.724850309 | BT23: =BO23*AZ23 -> 0.5532565001 | BU23: =BO23*BA23 -> 0.06444975969 | BV23: =BO23*BB23 -> 0.5708839243 | BW23: =BO23*BC23 -> 0.6956615854 | BX23: =BO23*BD23 -> 4.047783897 | BY23: 2.073683333 | BZ23: 1.010554167 | CA23: 2.2833375 | CB23: 1.257528333 | CC23: 0.3510079167 | CD23: 0.09422625 | CE23: 0.59439625 | CF23: 0.05784958333 | CG23: 0.05592833333 | CH23: 1.063129167 | CI23: 0.1041220833 | CJ23: 0.005085 | CK23: 1.25e-06 | CL23: 0.0004216666667 | CM23: 0.00392625 | CN23: 0.0878825 | CO23: 0.02931 | CP23: 0 | CQ23: 0.01188958333 | CR23: 0.06781416667 | CS23: 0.123245 | CT23: 0.06792875 | CU23: 0.05934291667 | CV23: 0.3302204167 | CW23: 0.05861875 | CX23: 0.008116666667 | CY23: 3.333333333e-05 | CZ23: 0.0001479166667 | DA23: 0.004544583333 | DB23: 0.000225 | DC23: 0.004228333333 | DD23: 0.00017625 | DE23: 9.166666667e-06 | DF23: 0.07304291667 | DG23: -8.958333333e-05 | DH23: 0.00032875 | DI23: 0.01015708333 | DJ23: 2.791666667e-05 | DK23: 4.541666667e-05 | DL23: 0.01048916667 | DM23: 0.04217291667 | DN23: 6.833333333e-05 | DO23: 0.22713875 | DP23: 0.08509291667 | DQ23: 0.0006204166667 | DR23: 2.375e-05 | DS23: 0.001230833333 | DT23: -4.666666667e-05 | DU23: 221.4301525 | DV23: 6.593908 | DW23: 3.7731832 | DX23: 6.9931916 | DY23: 4.255318 | DZ23: 1.271716 | EA23: 0.6939568 | EB23: 1.6128156 | EC23: 0.1640176 | ED23: 0.1910668 | EE23: 2.8207248 | EF23: 0.3217448 | EG23: 0.0157856 | EH23: 3.8e-05 | EI23: 0.0019632 | EJ23: 0.017396 | EK23: 0.2995608 | EL23: 0.0368948 | EM23: 0 | EN23: 0.0370376 | EO23: 0.1918548 | EP23: 0.2903628 | EQ23: 0.2043156 | ER23: 0.172438 | ES23: 0.8960088 | ET23: 0.1796568 | EU23: 0.02359 | EV23: 0.000122 | EW23: 0.0005308 | EX23: 0.017216 | EY23: 0.0009576 | EZ23: 0.0229852 | FA23: 0.0005464 | FB23: 8.68e-05 | FC23: 0.5379504 | FD23: 0.0025072 | FE23: 0.0003516 | FF23: 0.0291524 | FG23: 2.76e-05 | FH23: 0.0002424 | FI23: 0.033352 | FJ23: 0.1671724 | FK23: 0.00024 | FL23: 0.863442 | FM23: 0.3082948 | FN23: 0.0016876 | FO23: 0.0001172 | FP23: 0.0036916 | FQ23: 0.0001352 | FR23: 110.9126768
A24: ACAD1 | B24: 2021 | C24: =C7 -> 8.775566233 | D24: =Tracking!I45 -> 18.71994688 | E24: =Tracking!N45 -> 7.043290151 | F24: =Tracking!O45 -> 15.87706794 | G24: =G7 -> 4.660356803 | H24: =H7 -> 10.38734098 | I24: =Tracking!C45 -> 6.261728261 | J24: =Tracking!Q45 -> 6.542897778 | M24: 18.79987261 | N24: 6.799872609 | O24: 2.999149565 | P24: 0.6298134783 | Q24: 1.70283 | R24: 0.5405521739 | S24: 0.06774130435 | T24: 0.5142843478 | U24: 0.3455013043 | V24: 12 | W24: =Tracking!B45 -> 14.00644458 | X24: =Tracking!P45 -> 13.78381877 | AA24: 42.34429583 | AB24: 30.34429583 | AC24: 13.19901875 | AD24: 4.5877475 | AE24: 6.501785417 | AF24: 2.051270833 | AG24: 0.3582108333 | AH24: 1.73746375 | AI24: 1.908799583 | AJ24: 12 | AK24: =I24 -> 6.261728261 | AL24: =M24/M24 -> 1 | AM24: =O24/M24 -> 0.1595303132 | AN24: =P24/M24 -> 0.03350094394 | AO24: =Q24/M24 -> 0.09057667759 | AP24: =R24/M24 -> 0.02875297004 | AQ24: =S24/M24 -> 0.003603285286 | AR24: =T24/M24 -> 0.02735573578 | AS24: =U24/M24 -> 0.01837785349 | AT24: =V24/M24 -> 0.6383021976 | AU24: =W24 -> 14.00644458 | AV24: =AA24/AA24 -> 1 | AW24: =AC24/AA24 -> 0.3117071258 | AX24: =AD24/AA24 -> 0.1083439318 | AY24: =AE24/AA24 -> 0.1535457206 | AZ24: =AF24/AA24 -> 0.04844267198 | BA24: =AG24/AA24 -> 0.008459482589 | BB24: =AH24/AA24 -> 0.04103182532 | BC24: =AI24/AA24 -> 0.04507808067 | BD24: =AJ24/AA24 -> 0.2833911809 | BE24: =I24 -> 6.261728261 | BF24: =BE24 -> 6.261728261 | BG24: =BE24*AM24 -> 0.9989354706 | BH24: =BE24*AN24 -> 0.2097738074 | BI24: =BE24*AO24 -> 0.5671665418 | BJ24: =BE24*AP24 -> 0.1800432851 | BK24: =BE24*AQ24 -> 0.02256279331 | BL24: =BE24*AR24 -> 0.1712941838 | BM24: =BE24*AS24 -> 0.1150771245 | BN24: =BE24*AT24 -> 3.996874909 | BO24: =W24 -> 14.00644458 | BP24: =BO24 -> 14.00644458 | BQ24: =BO24*AW24 -> 4.365908584 | BR24: =BO24*AX24 -> 1.517513277 | BS24: =BO24*AY24 -> 2.150629626 | BT24: =BO24*AZ24 -> 0.6785096006 | BU24: =BO24*BA24 -> 0.1184872741 | BV24: =BO24*BB24 -> 0.5747099875 | BW24: =BO24*BC24 -> 0.6313836388 | BX24: =BO24*BD24 -> 3.96930287 | BY24: 1.871263913 | BZ24: 1.123307273 | CA24: 1.876475 | CB24: 1.17435087 | CC24: 0.3480373913 | CD24: 0.06807304348 | CE24: 0.5848878261 | CF24: 0.05405521739 | CG24: 0.06774130435 | CH24: 0.8571404348 | CI24: 0.05155565217 | CJ24: 0.006192727273 | CK24: 0 | CL24: 0.0004759090909 | CM24: 0.0057 | CN24: 0.1013286957 | CO24: 0.03095521739 | CP24: 0 | CQ24: 0.007696086957 | CR24: 0.0611373913 | CS24: 0.110646087 | CT24: 0.06674913043 | CU24: 0.07870913043 | CV24: 0.3249378261 | CW24: 0.02864217391 | CX24: 0.001564545455 | CY24: 1.954545455e-05 | CZ24: 0.0001527272727 | DA24: 0.00506 | DB24: 0.0001490909091 | DC24: 0.002727727273 | DD24: 0.0003436363636 | DE24: 3.136363636e-05 | DF24: 0.05277043478 | DG24: 0.003320869565 | DH24: 0.0002177272727 | DI24: 0.01194727273 | DJ24: 2.5e-05 | DK24: 3.772727273e-05 | DL24: 0.01224363636 | DM24: 0.01784181818 | DN24: 4.454545455e-05 | DO24: 0.2127408696 | DP24: 0.08582045455 | DQ24: 0.0006354545455 | DR24: 4.045454545e-05 | DS24: 0.001074545455 | DT24: 0.0002536363636 | DU24: 235.8101365 | DV24: 7.940995833 | DW24: 5.045222917 | DX24: 7.588650833 | DY24: 4.850831667 | DZ24: 1.48054125 | EA24: 0.50295875 | EB24: 2.002294167 | EC24: 0.2051270833 | ED24: 0.3582108333 | EE24: 2.895772917 | EF24: 0.3017 | EG24: 0.0322275 | EH24: 2.333333333e-05 | EI24: 0.00199 | EJ24: 0.022595 | EK24: 0.37913625 | EL24: 0.04817083333 | EM24: 0 | EN24: 0.04357583333 | EO24: 0.2239645833 | EP24: 0.3770091667 | EQ24: 0.2456554167 | ER24: 0.22218 | ES24: 1.112385 | ET24: 0.1676108333 | EU24: 0.02646541667 | EV24: 0.0001129166667 | EW24: 0.00073 | EX24: 0.02722 | EY24: 0.00091375 | EZ24: 0.02729333333 | FA24: 0.0007725 | FB24: 9.708333333e-05 | FC24: 0.3898908333 | FD24: 0.004336666667 | FE24: 0.0004025 | FF24: 0.04242125 | FG24: 2.75e-05 | FH24: 0.0002891666667 | FI24: 0.07202041667 | FJ24: 0.16417875 | FK24: 0.00048375 | FL24: 0.9618858333 | FM24: 0.3589191667 | FN24: 0.002720416667 | FO24: 0.0001916666667 | FP24: 0.0040475 | FQ24: 0.0003495833333 | FR24: 106.3541329
A25: ACAD1 | B25: 2022 | C25: =C7 -> 8.775566233 | D25: =Tracking!I46 -> 18.52616534 | E25: =Tracking!N46 -> 6.941391558 | F25: =Tracking!O46 -> 15.51605823 | G25: =G7 -> 4.660356803 | H25: =H7 -> 10.38734098
A26: ACAD1 | B26: 2023 | C26: =C7 -> 8.775566233 | D26: =Tracking!I47 -> 18.33238381 | E26: =Tracking!N47 -> 6.839492965 | F26: =Tracking!O47 -> 15.15504853 | G26: =G7 -> 4.660356803 | H26: =H7 -> 10.38734098
A27: ACAD1 | B27: 2024 | C27: =C7 -> 8.775566233 | D27: =Tracking!I48 -> 18.13860228 | E27: =Tracking!N48 -> 6.737594372 | F27: =Tracking!O48 -> 14.79403882 | G27: =G7 -> 4.660356803 | H27: =H7 -> 10.38734098
A28: ACAD1 | B28: 2025 | C28: =C7 -> 8.775566233 | D28: =Tracking!I49 -> 17.94482075 | E28: =Tracking!N49 -> 6.635695779 | F28: =Tracking!O49 -> 14.43302912 | G28: =G7 -> 4.660356803 | H28: =H7 -> 10.38734098
A29: ACAD1 | B29: 2026 | C29: =C7 -> 8.775566233 | D29: =Tracking!I50 -> 17.75103921 | E29: =Tracking!N50 -> 6.533797186 | F29: =Tracking!O50 -> 14.07201941 | G29: =G7 -> 4.660356803 | H29: =H7 -> 10.38734098
A30: ACAD1 | B30: 2027 | C30: =C7 -> 8.775566233 | D30: =Tracking!I51 -> 17.55725768 | E30: =Tracking!N51 -> 6.431898593 | F30: =Tracking!O51 -> 13.71100971 | G30: =G7 -> 4.660356803 | H30: =H7 -> 10.38734098
A31: =A30 -> ACAD1 | B31: 2028 | C31: =C7 -> 8.775566233 | D31: =Tracking!I52 -> 17.36347615 | E31: =Tracking!N52 -> 6.33 | F31: =Tracking!O52 -> 13.35 | G31: =G7 -> 4.660356803 | H31: =H7 -> 10.38734098 | K31: 6.33 | L31: =E31 -> 6.33 | Y31: 13.44 | Z31: =F31 -> 13.35 | AB31: =IF(AA31="","",AA31-AJ31) -> 
B32: 5-yr period
A33: =A7 -> ACAD1 | B33: 2000-04 | J33: =IF(J7="","",J7) -> 8.775566233 | M33: =IF(COUNT(M3:M7)<3,"",AVERAGE(M3:M7)) -> 24.20896413 | N33: =IF(COUNT(N3:N7)<3,"",AVERAGE(N3:N7)) -> 12.20896413 | O33: 6.760245833 | P33: 1.077225767 | Q33: 2.236274117 | R33: 0.8695233333 | S33: 0.1107183 | T33: 0.7156084667 | U33: 0.4393695 | V33: 12 | X33: =IF(X7="","",X7) -> 22.01423293 | AA33: =IF(COUNT(AA3:AA7)<3,"",AVERAGE(AA3:AA7)) -> 102.4256853 | AB33: =IF(COUNT(AB3:AB7)<3,"",AVERAGE(AB3:AB7)) -> 90.42568526 | AC33: 68.41710294 | AD33: 6.803944297 | AE33: 8.817742427 | AF33: 3.89641419 | AG33: 0.4844856167 | AH33: 1.474789803 | AI33: 0.5312058076 | AJ33: 12 | AK33: =J33 -> 8.775566233 | AL33: =M33/M33 -> 1 | AM33: =O33/M33 -> 0.2792455636 | AN33: =P33/M33 -> 0.04449697892 | AO33: =Q33/M33 -> 0.09237380436 | AP33: =R33/M33 -> 0.03591741177 | AQ33: =S33/M33 -> 0.004573442275 | AR33: =T33/M33 -> 0.02955964835 | AS33: =U33/M33 -> 0.01814904172 | AT33: =V33/M33 -> 0.4956841579 | AU33: =X33 -> 22.01423293 | AV33: =AA33/AA33 -> 1 | AW33: =AC33/AA33 -> 0.6679682227 | AX33: =AD33/AA33 -> 0.06642810618 | AY33: =AE33/AA33 -> 0.08608917191 | AZ33: =AF33/AA33 -> 0.03804137781 | BA33: =AG33/AA33 -> 0.004730118382 | BB33: =AH33/AA33 -> 0.01439863252 | BC33: =AI33/AA33 -> 0.005186255833 | BD33: =AJ33/AA33 -> 0.1171581129 | BE33: =J33 -> 8.775566233 | BF33: =BE33 -> 8.775566233 | BG33: =BE33*AM33 -> 2.450537939 | BH33: =BE33*AN33 -> 0.3904861857 | BI33: =BE33*AO33 -> 0.8106324384 | BJ33: =BE33*AP33 -> 0.3151956259 | BK33: =BE33*AQ33 -> 0.0401345456 | BL33: =BE33*AR33 -> 0.2594026519 | BM33: =BE33*AS33 -> 0.1592681177 | BN33: =BE33*AT33 -> 4.349909158 | BO33: =X33 -> 22.01423293 | BP33: =BO33 -> 22.01423293 | BQ33: =BO33*AW33 -> 14.70480804 | BR33: =BO33*AX33 -> 1.462363803 | BS33: =BO33*AY33 -> 1.895187083 | BT33: =BO33*AZ33 -> 0.837451752 | BU33: =BO33*BA33 -> 0.1041299278 | BV33: =BO33*BB33 -> 0.3169748502 | BW33: =BO33*BC33 -> 0.1141714439 | BX33: =BO33*BD33 -> 2.579145987 | BY33: =IF(COUNT(BY3:BY7)<3,"",AVERAGE(BY3:BY7)) -> 2.911417338 | BZ33: =IF(COUNT(BZ3:BZ7)<3,"",AVERAGE(BZ3:BZ7)) -> 1.754249 | CA33: 2.999712702 | CB33: 1.904578433 | CC33: 0.7694930333 | CD33: 0.11469265 | CE33: 0.7570122 | CF33: 0.08695233333 | CG33: 0.1107183 | CH33: 1.19268075 | CI33: 0.06570955 | CJ33: 0.006639966667 | CK33: 7.726666667e-05 | CL33: 0.0008766166667 | CM33: 0.0060719 | CN33: 0.1196236667 | CO33: 0.04679166667 | CP33: 0.002860166667 | CQ33: 0.02209316667 | CR33: 0.06400433333 | CS33: 0.1498593333 | CT33: 0.1020223333 | CU33: 0.082379 | CV33: 0.4203581667 | CW33: 0.0365655 | CX33: 0.0131812 | CY33: 0.0003258 | CZ33: 0.00013965 | DA33: 0.0061844 | DB33: 0.00065465 | DC33: 0.01185543333 | DD33: 0.0003524333333 | DE33: 0.0002279333333 | DF33: 0.08890916667 | DG33: 0.0126475 | DH33: 0.0002741666667 | DI33: 0.01495571667 | DJ33: 8.396666667e-05 | DK33: 7.19e-05 | DL33: 0.0257014 | DM33: 0.0537045 | DN33: 8.256666667e-05 | DO33: 0.5091061667 | DP33: 0.1865436667 | DQ33: 0.001222133333 | DR33: 0.001193816667 | DS33: 0.0018244 | DT33: 1.975e-05 | DU33: 178.9345855 | DV33: 13.37754797 | DW33: 10.8622348 | DX33: 12.81419713 | DY33: 10.50985879 | DZ33: 6.238977459 | EA33: 0.704243441 | EB33: 2.609899689 | EC33: 0.389641419 | ED33: 0.4844856167 | EE33: 2.457982951 | EF33: 0.08261038048 | EG33: 0.02368971143 | EH33: 0.0003423580952 | EI33: 0.00275812381 | EJ33: 0.02599399905 | EK33: 0.4396009095 | EL33: =IF(COUNT(EL3:EL7)<3,"",AVERAGE(EL3:EL7)) -> 0.06784306667 | EM33: 0.004572385714 | EN33: 0.09192955714 | EO33: 0.3098202333 | EP33: 0.4569930048 | EQ33: 0.4688265333 | ER33: 0.1223749429 | ES33: 1.449944271 | ET33: -0.1234754381 | EU33: 0.01119886952 | EV33: 0.00035762 | EW33: 0.0007674471429 | EX33: 0.03041698095 | EY33: 0.002057804762 | EZ33: 0.01146373333 | FA33: 0.000997857619 | FB33: 0.0009377028571 | FC33: 0.547415319 | FD33: 0.02015558571 | FE33: 0 | FF33: 0.04163624619 | FG33: 0.0001303395238 | FH33: 0.0008779652381 | FI33: 0.119850039 | FJ33: 0.2060932033 | FK33: 0.0003584628571 | FL33: 4.623527848 | FM33: 1.512479405 | FN33: 0.005083467143 | FO33: 0.002643082381 | FP33: 0.005729122381 | FQ33: 2.950809524e-05 | FR33: 48.9323006
A34: ACAD1 | B34: 2001-05 | J34: 8.526598 | M34: 23.6735745 | N34: =IF(COUNT(N4:N8)<3,"",AVERAGE(N4:N8)) -> 11.6735745 | O34: 6.260402167 | P34: 1.07350975 | Q34: 2.1555775 | R34: 0.8049916667 | S34: 0.1057198333 | T34: 0.7242030833 | U34: 0.54917175 | V34: 12 | X34: 22.23375379 | AA34: =IF(COUNT(AA4:AA8)<3,"",AVERAGE(AA4:AA8)) -> 105.5737551 | AB34: 93.57375505 | AC34: 72.82948619 | AD34: 5.986569657 | AE34: 8.763126133 | AF34: 3.810996667 | AG34: 0.4701807367 | AH34: 1.33833178 | AI34: 0.37506364 | AJ34: 12 | AK34: =J34 -> 8.526598 | AL34: =M34/M34 -> 1 | AM34: =O34/M34 -> 0.2644468484 | AN34: =P34/M34 -> 0.0453463312 | AO34: =Q34/M34 -> 0.09105416252 | AP34: =R34/M34 -> 0.03400380735 | AQ34: =S34/M34 -> 0.004465731752 | AR34: =T34/M34 -> 0.03059120131 | AS34: =U34/M34 -> 0.0231976692 | AT34: =V34/M34 -> 0.5068943011 | AU34: =X34 -> 22.23375379 | AV34: =AA34/AA34 -> 1 | AW34: =AC34/AA34 -> 0.689844613 | AX34: =AD34/AA34 -> 0.05670509355 | AY34: =AE34/AA34 -> 0.08300477831 | AZ34: =AF34/AA34 -> 0.03609795507 | BA34: =AG34/AA34 -> 0.004453575952 | BB34: =AH34/AA34 -> 0.01267674697 | BC34: =AI34/AA34 -> 0.003552621954 | BD34: =AJ34/AA34 -> 0.1136646129 | BE34: =J34 -> 8.526598 | BF34: =BE34 -> 8.526598 | BG34: =BE34*AM34 -> 2.254831969 | BH34: =BE34*AN34 -> 0.3866499369 | BI34: =BE34*AO34 -> 0.7763822401 | BJ34: =BE34*AP34 -> 0.2899367958 | BK34: =BE34*AQ34 -> 0.03807749943 | BL34: =BE34*AR34 -> 0.2608388759 | BM34: =BE34*AS34 -> 0.1977971998 | BN34: =BE34*AT34 -> 4.322083934 | BO34: =X34 -> 22.23375379 | BP34: =BO34 -> 22.23375379 | BQ34: =BO34*AW34 -> 15.33783528 | BR34: =BO34*AX34 -> 1.260767089 | BS34: =BO34*AY34 -> 1.845507804 | BT34: =BO34*AZ34 -> 0.8025930454 | BU34: =BO34*BA34 -> 0.0990197112 | BV34: =BO34*BB34 -> 0.2818516711 | BW34: =BO34*BC34 -> 0.07898812184 | BX34: =BO34*BD34 -> 2.527191018 | BY34: 2.858454338 | BZ34: =IF(COUNT(BZ4:BZ8)<3,"",AVERAGE(BZ4:BZ8)) -> 1.664788478 | CA34: 2.934466075 | CB34: 1.825634667 | CC34: 0.71311975 | CD34: 0.11398425 | CE34: 0.730359 | CF34: 0.08049916667 | CG34: 0.1057198333 | CH34: 1.207005167 | CI34: 0.08195208333 | CJ34: 0.007171601449 | CK34: 6.275362319e-05 | CL34: 0.0008970036232 | CM34: 0.00595923913 | CN34: 0.1226958333 | CO34: 0.04328333333 | CP34: 0.0022925 | CQ34: 0.01363 | CR34: 0.06647166667 | CS34: 0.1483925 | CT34: 0.0999925 | CU34: 0.08600416667 | CV34: 0.4144908333 | CW34: 0.04621833333 | CX34: 0.01418184783 | CY34: 0.0002161521739 | CZ34: 0.0001636413043 | DA34: 0.00603226087 | DB34: 0.0006660326087 | DC34: 0.01192963768 | DD34: 0.0003439202899 | DE34: 0.0002574637681 | DF34: 0.08836 | DG34: 0.01037 | DH34: 0.0001001666667 | DI34: 0.01354039493 | DJ34: 8.129710145e-05 | DK34: 7.702173913e-05 | DL34: 0.02366786957 | DM34: 0.05403267391 | DN34: 0.0001107753623 | DO34: 0.4665783333 | DP34: 0.1728406014 | DQ34: 0.0009398985507 | DR34: 0.0007694166667 | DS34: 0.00246476087 | DT34: 1.759782609e-05 | DU34: 184.7102975 | DV34: 13.21955597 | DW34: 10.9222842 | DX34: 12.54727483 | DY34: 10.68726185 | DZ34: 6.572103123 | EA34: 0.61842842 | EB34: 2.5899537 | EC34: 0.3810996667 | ED34: 0.4701807367 | EE34: 2.230552887 | EF34: 0.05549515 | EG34: 0.02417422333 | EH34: 0.00029012 | EI34: 0.00261635 | EJ34: 0.02330663 | EK34: 0.4871069667 | EL34: =IF(COUNT(EL4:EL8)<3,"",AVERAGE(EL4:EL8)) -> 0.07505346667 | EM34: 0.003608766667 | EN34: 0.08230163333 | EO34: 0.3231722333 | EP34: 0.4308145667 | EQ34: 0.4322572 | ER34: 0.1820535333 | ES34: 1.450599167 | ET34: -0.1008202 | EU34: 7.372666667e-05 | EV34: 0.0001872866667 | EW34: 0.0007397566667 | EX34: 0.02834476667 | EY34: 0.0021239 | EZ34: 0.0125449 | FA34: 0.0008018933333 | FB34: 0.0009842266667 | FC34: 0.4824977 | FD34: 0.01785046667 | FE34: 0 | FF34: 0.04045993667 | FG34: 0.0001533633333 | FH34: 0.0009050366667 | FI34: 0.1186657533 | FJ34: 0.1627260367 | FK34: 0.0003512366667 | FL34: 4.784877133 | FM34: 1.589082333 | FN34: 0.004361776667 | FO34: 0.002424463333 | FP34: 0.005642086667 | FQ34: 3.752e-05 | FR34: 48.1454278
A35: ACAD1 | B35: 2002-06 | J35: 8.402524333 | M35: 23.40481592 | N35: =IF(COUNT(N5:N9)<3,"",AVERAGE(N5:N9)) -> 11.40481592 | O35: 5.905503167 | P35: 0.9829229167 | Q35: 2.193782833 | R35: 0.8144916667 | S35: 0.0939635 | T35: 0.7657780833 | U35: 0.6483751667 | V35: 12 | X35: 22.29643644 | AA35: =IF(COUNT(AA5:AA9)<3,"",AVERAGE(AA5:AA9)) -> 104.9007053 | AB35: 92.90070526 | AC35: 72.23478237 | AD35: 6.2391578 | AE35: 8.212761773 | AF35: 3.709492667 | AG35: 0.4176309367 | AH35: 1.51413988 | AI35: 0.57273968 | AJ35: 12 | AK35: 8.402524333 | AL35: 1 | AM35: 0.2523200006 | AN35: 0.04199660959 | AO35: 0.09373211228 | AP35: 0.03480017401 | AQ35: 0.004014707927 | AR35: 0.03271882531 | AS35: 0.02770263902 | AT35: 0.5127149918 | AU35: 22.29643644 | AV35: 1 | AW35: 0.688601494 | AX35: 0.05947679555 | AY35: 0.07829081561 | AZ35: 0.03536194211 | BA35: 0.003981202372 | BB35: 0.01443402955 | BC35: 0.005459826782 | BD35: 0.1143938925 | BE35: 8.402524333 | BF35: 8.402524333 | BG35: 2.120124945 | BH35: 0.352877534 | BI35: 0.7875863542 | BJ35: 0.292409309 | BK35: 0.03373368105 | BL35: 0.2749207258 | BM35: 0.2327720985 | BN35: 4.308100194 | BO35: 22.29643644 | BP35: 22.29643644 | BQ35: 15.35335945 | BR35: 1.326120592 | BS35: 1.745606194 | BT35: 0.7884452947 | BU35: 0.08876662567 | BV35: 0.3218274226 | BW35: 0.1217346808 | BX35: 2.550576153 | BY35: 2.899094338 | BZ35: =IF(COUNT(BZ5:BZ9)<3,"",AVERAGE(BZ5:BZ9)) -> 1.634245978 | CA35: 2.982905991 | CB35: 1.79548725 | CC35: 0.6760165833 | CD35: 0.1054424167 | CE35: 0.7421355 | CF35: 0.08144916667 | CG35: 0.0939635 | CH35: 1.276296833 | CI35: 0.0964795 | CJ35: 0.006022101449 | CK35: 6.100362319e-05 | CL35: 0.0009051702899 | CM35: 0.00577598913 | CN35: 0.1311641667 | CO35: 0.0430575 | CP35: 0.00211 | CQ35: 0.003725833333 | CR35: 0.07260333333 | CS35: 0.1571266667 | CT35: 0.09995416667 | CU35: 0.09223916667 | CV35: 0.4256491667 | CW35: 0.05670083333 | CX35: 0.01512268116 | CY35: 2.848550725e-05 | CZ35: 0.0001836413043 | DA35: 0.00575351087 | DB35: 0.000638115942 | DC35: 0.01137272101 | DD35: 0.0002360869565 | DE35: 0.0002317137681 | DF35: 0.08173833333 | DG35: 0.006755 | DH35: 0.00021375 | DI35: 0.01293747826 | DJ35: 6.404710145e-05 | DK35: 6.86884058e-05 | DL35: 0.02087436957 | DM35: 0.05147375725 | DN35: 0.000119442029 | DO35: 0.4351433333 | DP35: 0.1638458514 | DQ35: 0.0006019818841 | DR35: 0.000483 | DS35: 0.002477677536 | DT35: 1.318115942e-05 | DU35: 187.5768479 | DV35: 13.08896847 | DW35: 10.50933217 | DX35: 12.80683501 | DY35: 10.53362084 | DZ35: 6.557283553 | EA35: 0.6476687167 | EB35: 2.4546051 | EC35: 0.3709492667 | ED35: 0.4176309367 | EE35: 2.523566413 | EF35: 0.08548221 | EG35: 0.02402742667 | EH35: 0.0002784333333 | EI35: 0.002591683333 | EJ35: 0.02212314 | EK35: 0.5277486 | EL35: =IF(COUNT(EL5:EL9)<3,"",AVERAGE(EL5:EL9)) -> 0.07299373333 | EM35: 0.003602166667 | EN35: 0.0777167 | EO35: 0.3193293 | EP35: 0.3735213 | EQ35: 0.3814573 | ER35: 0.2294117333 | ES35: 1.381436333 | ET35: -0.02664703333 | EU35: 7.372666667e-05 | EV35: 7.299666667e-05 | EW35: 0.0007508033333 | EX35: 0.02592264 | EY35: 0.002034693333 | EZ35: 0.01537525333 | FA35: 0.0007224266667 | FB35: 0.00093546 | FC35: 0.5051644333 | FD35: 0.01521443333 | FE35: 0 | FF35: 0.03943578667 | FG35: 0.0001358466667 | FH35: 0.0008559433333 | FI35: 0.10266078 | FJ35: 0.17054498 | FK35: 0.0003700833333 | FL35: 4.593794067 | FM35: 1.58548971 | FN35: 0.00238523 | FO35: 0.002093526667 | FP35: 0.00560424 | FQ35: 3.866e-05 | FR35: 47.49584107
A36: ACAD1 | B36: 2003-07 | J36: 8.303681917 | M36: 23.171403 | N36: =IF(COUNT(N6:N10)<3,"",AVERAGE(N6:N10)) -> 11.171403 | O36: 5.828951917 | P36: 0.9227261667 | Q36: 2.169521333 | R36: 0.7959 | S36: 0.09514566667 | T36: 0.7618091667 | U36: 0.5973501667 | V36: 12 | X36: 21.88164008 | AA36: =IF(COUNT(AA6:AA10)<3,"",AVERAGE(AA6:AA10)) -> 100.8800939 | AB36: 88.88009392 | AC36: 68.92957826 | AD36: 5.74992905 | AE36: 7.932264607 | AF36: 3.617260333 | AG36: 0.3311705333 | AH36: 1.58685858 | AI36: 0.7330321633 | AJ36: 12 | AK36: 8.303681917 | AL36: 1 | AM36: 0.2515580052 | AN36: 0.03982176507 | AO36: 0.09362926075 | AP36: 0.03434837329 | AQ36: 0.004106167705 | AR36: 0.03287712732 | AS36: 0.02577962874 | AT36: 0.517879733 | AU36: 21.88164008 | AV36: 1 | AW36: 0.683282257 | AX36: 0.05699765758 | AY36: 0.07863062273 | AZ36: 0.03585702781 | BA36: 0.003282813491 | BB36: 0.01573014574 | BC36: 0.007266370746 | BD36: 0.118953101 | BE36: 8.303681917 | BF36: 8.303681917 | BG36: 2.088857659 | BH36: 0.3306672705 | BI36: 0.7774675993 | BJ36: 0.2852179662 | BK36: 0.03409631051 | BL36: 0.2730012076 | BM36: 0.214065837 | BN36: 4.300308574 | BO36: 21.88164008 | BP36: 21.88164008 | BQ36: 14.95133642 | BR36: 1.247202229 | BS36: 1.720566986 | BT36: 0.784610577 | BU36: 0.07183334328 | BV36: 0.3442013876 | BW36: 0.1590001094 | BX36: 2.602888943 | BY36: 2.930448732 | BZ36: =IF(COUNT(BZ6:BZ10)<3,"",AVERAGE(BZ6:BZ10)) -> 1.651979312 | CA36: 2.983556938 | CB36: 1.760748833 | CC36: 0.6642258333 | CD36: 0.09866125 | CE36: 0.7345155 | CF36: 0.07959 | CG36: 0.09514566667 | CH36: 1.269682 | CI36: 0.08861025 | CJ36: 0.006367101449 | CK36: 5.675362319e-05 | CL36: 0.0008815036232 | CM36: 0.005772822464 | CN36: 0.1390458333 | CO36: 0.04225333333 | CP36: 0.00183 | CQ36: 0.0043775 | CR36: 0.07921583333 | CS36: 0.1542625 | CT36: 0.09662 | CU36: 0.0993875 | CV36: 0.4338633333 | CW36: 0.05228916667 | CX36: 0.01168376449 | CY36: 3.356884058e-05 | CZ36: 0.0002034746377 | DA36: 0.006261677536 | DB36: 0.0006572826087 | DC36: 0.01047072101 | DD36: 0.0002497536232 | DE36: 0.0002095471014 | DF36: 0.07650166667 | DG36: 0.005799166667 | DH36: 0.0001361666667 | DI36: 0.01279447826 | DJ36: 5.688043478e-05 | DK36: 6.677173913e-05 | DL36: 0.0208789529 | DM36: 0.04435817391 | DN36: 0.0001168586957 | DO36: 0.427175 | DP36: 0.1610546848 | DQ36: 0.0006270652174 | DR36: 0.0004419166667 | DS36: 0.002500094203 | DT36: 1.618115942e-05 | DU36: 189.5518985 | DV36: 12.72222883 | DW36: 10.04241923 | DX36: 12.48719536 | DY36: 10.06203873 | DZ36: 6.271859663 | EA36: 0.6008287967 | EB36: 2.38507362 | EC36: 0.3617260333 | ED36: 0.3311705333 | EE36: 2.644764273 | EF36: 0.1113794333 | EG36: 0.01605429667 | EH36: 0.00026323 | EI36: 0.002544176667 | EJ36: 0.0196165 | EK36: 0.5839919667 | EL36: =IF(COUNT(EL6:EL10)<3,"",AVERAGE(EL6:EL10)) -> 0.07466433333 | EM36: 0.003530933333 | EN36: 0.07430203333 | EO36: 0.3279754 | EP36: 0.3307547 | EQ36: 0.3313995667 | ER36: 0.2941868667 | ES36: 1.358618567 | ET36: 0.03097460145 | EU36: 7.372666667e-05 | EV36: 6.643e-05 | EW36: 0.0007371166667 | EX36: 0.02190371667 | EY36: 0.001934443333 | EZ36: 0.01606501 | FA36: 0.00064432 | FB36: 0.00087971 | FC36: 0.4698525725 | FD36: 0.01378257246 | FE36: 0 | FF36: 0.03552167 | FG36: 0.0001169666667 | FH36: 0.0008061633333 | FI36: 0.08167435667 | FJ36: 0.1605748767 | FK36: 0.0003082766667 | FL36: 4.339675145 | FM36: 1.516610013 | FN36: 0.001841443333 | FO36: 0.001886533333 | FP36: 0.005394903333 | FQ36: 3.696666667e-05 | FR36: 49.43546087
A37: ACAD1 | B37: 2004-08 | J37: 8.102436917 | M37: 22.72532767 | N37: =IF(COUNT(N7:N11)<3,"",AVERAGE(N7:N11)) -> 10.72532767 | O37: 5.442499583 | P37: 0.8407831667 | Q37: 2.146067083 | R37: 0.753725 | S37: 0.0930175 | T37: 0.821089 | U37: 0.6281471667 | V37: 12 | X37: 21.21217813 | AA37: =IF(COUNT(AA7:AA11)<3,"",AVERAGE(AA7:AA11)) -> 92.15606975 | AB37: 80.15606975 | AC37: 61.46550207 | AD37: 5.430050833 | AE37: 7.215026233 | AF37: 3.213719667 | AG37: 0.3063241167 | AH37: 1.69878224 | AI37: 0.8266646033 | AJ37: 12 | AK37: 8.102436917 | AL37: 1 | AM37: 0.2394904779 | AN37: 0.03699762569 | AO37: 0.09443503367 | AP37: 0.0331667385 | AQ37: 0.0040931203 | AR37: 0.03613100819 | AS37: 0.02764084091 | AT37: 0.5280451915 | AU37: 21.21217813 | AV37: 1 | AW37: 0.6669718255 | AX37: 0.05892233521 | AY37: 0.07829138388 | AZ37: 0.03487257731 | BA37: 0.003323971145 | BB37: 0.01843375314 | BC37: 0.008970267564 | BD37: 0.1302138864 | BE37: 8.102436917 | BF37: 8.102436917 | BG37: 1.940456489 | BH37: 0.2997709282 | BI37: 0.765153903 | BJ37: 0.2687314064 | BK37: 0.03316424902 | BL37: 0.2927492146 | BM37: 0.2239581698 | BN37: 4.278452853 | BO37: 21.21217813 | BP37: 21.21217813 | BQ37: 14.14792517 | BR37: 1.24987107 | BS37: 1.660730781 | BT37: 0.7397233218 | BU37: 0.07050866803 | BV37: 0.3910200552 | BW37: 0.1902789135 | BX37: 2.762120154 | BY37: 2.983173659 | BZ37: =IF(COUNT(BZ7:BZ11)<3,"",AVERAGE(BZ7:BZ11)) -> 1.613627645 | CA37: 3.021609366 | CB37: 1.697525667 | CC37: 0.61850475 | CD37: 0.08969583333 | CE37: 0.7260795 | CF37: 0.0753725 | CG37: 0.0930175 | CH37: 1.36848175 | CI37: 0.09485483333 | CJ37: 0.006843351449 | CK37: 5.942028986e-05 | CL37: 0.0008939202899 | CM37: 0.005806905797 | CN37: 0.1462233333 | CO37: 0.03896 | CP37: 0.001039166667 | CQ37: -0.0007875 | CR37: 0.08404583333 | CS37: 0.1510108333 | CT37: 0.09349 | CU37: 0.1063158333 | CV37: 0.434075 | CW37: 0.05434666667 | CX37: 0.01051551449 | CY37: 3.240217391e-05 | CZ37: 0.0002072246377 | DA37: 0.006211094203 | DB37: 0.000659865942 | DC37: 0.009221721014 | DD37: 0.0002531702899 | DE37: 0.0001931304348 | DF37: 0.06959666667 | DG37: 0.003269166667 | DH37: 0.0002358333333 | DI37: 0.01279764493 | DJ37: 6.213043478e-05 | DK37: 6.610507246e-05 | DL37: 0.0199552029 | DM37: 0.03964550725 | DN37: 0.000123692029 | DO37: 0.3977008333 | DP37: 0.1500801014 | DQ37: 0.0005841485507 | DR37: 0.0003671666667 | DS37: 0.002465594203 | DT37: 2.151449275e-05 | DU37: 193.9660023 | DV37: 12.10901477 | DW37: 9.240559333 | DX37: 11.92816193 | DY37: 9.2314016 | DZ37: 5.70103534 | EA37: 0.5617624567 | EB37: 2.21577144 | EC37: 0.3213719667 | ED37: 0.3063241167 | EE37: 2.831303707 | EF37: 0.1251360433 | EG37: 0.01259057 | EH37: 0.0002507766667 | EI37: 0.00240963 | EJ37: 0.01860913333 | EK37: 0.619973 | EL37: =IF(COUNT(EL7:EL11)<3,"",AVERAGE(EL7:EL11)) -> 0.06441246667 | EM37: 0.001409366667 | EN37: 0.0604836 | EO37: 0.3224343667 | EP37: 0.2672785333 | EQ37: 0.2659687667 | ER37: 0.3570157333 | ES37: 1.273181 | ET37: 0.07280380145 | EU37: 7.056e-05 | EV37: 7.806333333e-05 | EW37: 0.00072418 | EX37: 0.02034445 | EY37: 0.00177881 | EZ37: 0.01621167667 | FA37: 0.00058087 | FB37: 0.00082683 | FC37: 0.4397477391 | FD37: 0.008884605797 | FE37: 0 | FF37: 0.03277459333 | FG37: 0.00011665 | FH37: 0.0007331466667 | FI37: 0.07754380333 | FJ37: 0.1242780467 | FK37: 0.0003118633333 | FL37: 3.927710878 | FM37: 1.378857153 | FN37: 0.001672593333 | FO37: 0.001747923333 | FP37: 0.00496516 | FQ37: 4.331e-05 | FR37: 52.16171355
A38: ACAD1 | B38: 2005-09 | J38: 7.774073333 | M38: 22.01752633 | N38: =IF(COUNT(N8:N12)<3,"",AVERAGE(N8:N12)) -> 10.01752633 | O38: 5.05614625 | P38: 0.75506125 | Q38: 1.9328825 | R38: 0.6955916667 | S38: 0.08640016667 | T38: 0.84530725 | U38: 0.6461380833 | V38: 12 | X38: 20.57835917 | AA38: =IF(COUNT(AA8:AA12)<3,"",AVERAGE(AA8:AA12)) -> 87.05283551 | AB38: 75.05283551 | AC38: 57.64804823 | AD38: 4.787988433 | AE38: 6.871768233 | AF38: 3.005839667 | AG38: 0.2973296367 | AH38: 1.72464568 | AI38: 0.7172161233 | AJ38: 12 | AK38: 7.774073333 | AL38: 1 | AM38: 0.229641885 | AN38: 0.03429364582 | AO38: 0.08778835873 | AP38: 0.03159263471 | AQ38: 0.00392415412 | AR38: 0.0383924714 | AS38: 0.02934653392 | AT38: 0.5450203542 | AU38: 20.57835917 | AV38: 1 | AW38: 0.6622190753 | AX38: 0.05500094747 | AY38: 0.0789379024 | AZ38: 0.03452891166 | BA38: 0.003415507777 | BB38: 0.01981148196 | BC38: 0.008238859988 | BD38: 0.1378473192 | BE38: 7.774073333 | BF38: 7.774073333 | BG38: 1.785252854 | BH38: 0.2666013175 | BI38: 0.6824731385 | BJ38: 0.245603459 | BK38: 0.0305066619 | BL38: 0.2984658881 | BM38: 0.2281421068 | BN38: 4.237028201 | BO38: 20.57835917 | BP38: 20.57835917 | BQ38: 13.62738198 | BR38: 1.131829252 | BS38: 1.624412508 | BT38: 0.7105483459 | BU38: 0.07028554579 | BV38: 0.4076877915 | BW38: 0.16954222 | BX38: 2.836671645 | BY38: 2.968924928 | BZ38: =IF(COUNT(BZ8:BZ12)<3,"",AVERAGE(BZ8:BZ12)) -> 1.548566812 | CA38: 2.954023091 | CB38: 1.562344583 | CC38: 0.5728195833 | CD38: 0.08018533333 | CE38: 0.6564675 | CF38: 0.06955916667 | CG38: 0.08640016667 | CH38: 1.4088455 | CI38: 0.0969125 | CJ38: 0.005630184783 | CK38: 4.900362319e-05 | CL38: 0.0008197536232 | CM38: 0.00569848913 | CN38: 0.1441958333 | CO38: 0.03385583333 | CP38: 0.0006908333333 | CQ38: -0.008184166667 | CR38: 0.08469166667 | CS38: 0.1395125 | CT38: 0.08626666667 | CU38: 0.1041483333 | CV38: 0.406435 | CW38: 0.05528833333 | CX38: 0.01110951449 | CY38: 3.681884058e-05 | CZ38: 0.000198557971 | DA38: 0.005718344203 | DB38: 0.0006757826087 | DC38: 0.002482804348 | DD38: 0.0002333369565 | DE38: 0.0001676304348 | DF38: 0.06225666667 | DG38: 0.002404166667 | DH38: 0.0002908333333 | DI38: 0.01216039493 | DJ38: 6.029710145e-05 | DK38: 5.84384058e-05 | DL38: 0.0192709529 | DM38: 0.04037017391 | DN38: 0.000122942029 | DO38: 0.360775 | DP38: 0.1390894348 | DQ38: 0.0005389818841 | DR38: 0.0003294166667 | DS38: 0.002649177536 | DT38: 3.768115942e-05 | DU38: 201.4100904 | DV38: 11.67909643 | DW38: 8.764791333 | DX38: 11.34993773 | DY38: 8.70439752 | DZ38: 5.38718574 | EA38: 0.4969555767 | EB38: 2.11339032 | EC38: 0.3005839667 | ED38: 0.2973296367 | EE38: 2.874409467 | EF38: 0.1089523633 | EG38: 0.01255161 | EH38: 0.0002581366667 | EI38: 0.00229555 | EJ38: 0.01751009333 | EK38: 0.6431122 | EL38: =IF(COUNT(EL8:EL12)<3,"",AVERAGE(EL8:EL12)) -> 0.06072846667 | EM38: 0.001022966667 | EN38: 0.056282 | EO38: 0.3309455667 | EP38: 0.2247193333 | EQ38: 0.2180991667 | ER38: 0.3958813333 | ES38: 1.2259274 | ET38: 0.06372120145 | EU38: 0 | EV38: 8.214333333e-05 | EW38: 0.00069402 | EX38: 0.01907653 | EY38: 0.00160377 | EZ38: 0.01092231667 | FA38: 0.00052839 | FB38: 0.00071731 | FC38: 0.3882222058 | FD38: 0.008191405797 | FE38: 0 | FF38: 0.03112979333 | FG38: 0.00011065 | FH38: 0.0006461066667 | FI38: 0.07686156333 | FJ38: 0.1377025267 | FK38: 0.0003065033333 | FL38: 3.626402878 | FM38: 1.303436273 | FN38: 0.001517713333 | FO38: 0.001569923333 | FP38: 0.00456796 | FQ38: 7.787e-05 | FR38: 55.92021459
A39: ACAD1 | B39: 2006-10 | J39: 7.584181 | M39: 21.58353833 | N39: =IF(COUNT(N9:N13)<3,"",AVERAGE(N9:N13)) -> 9.583538333 | O39: 4.876651917 | P39: 0.6902863333 | Q39: 1.910576667 | R39: 0.6406583333 | S39: 0.08668166667 | T39: 0.8095173333 | U39: 0.5691669167 | V39: 12 | X39: 19.71213503 | AA39: =IF(COUNT(AA9:AA13)<3,"",AVERAGE(AA9:AA13)) -> 80.27343349 | AB39: 68.27343349 | AC39: 50.95117206 | AD39: 4.625037823 | AE39: 7.046641277 | AF39: 2.757889333 | AG39: 0.3338114333 | AH39: 1.837587143 | AI39: 0.7212953267 | AJ39: 12 | AK39: 7.584181 | AL39: 1 | AM39: 0.2259431165 | AN39: 0.03198207461 | AO39: 0.08852008587 | AP39: 0.02968272965 | AQ39: 0.004016100851 | AR39: 0.03750623836 | AS39: 0.02637041749 | AT39: 0.5559792753 | AU39: 19.71213503 | AV39: 1 | AW39: 0.6347202286 | AX39: 0.05761604583 | AY39: 0.08778298087 | AZ39: 0.03435619 | BA39: 0.004158429742 | BB39: 0.02289159767 | BC39: 0.008985479944 | BD39: 0.1494890586 | BE39: 7.584181 | BF39: 7.584181 | BG39: 1.713593491 | BH39: 0.2425578426 | BI39: 0.6713523534 | BJ39: 0.2251191943 | BK39: 0.03045883577 | BL39: 0.2844541003 | BM39: 0.1999980193 | BN39: 4.216647456 | BO39: 19.71213503 | BP39: 19.71213503 | BQ39: 12.51169085 | BR39: 1.135735275 | BS39: 1.730389972 | BT39: 0.6772338564 | BU39: 0.08197152857 | BV39: 0.4512422643 | BW39: 0.1771229939 | BX39: 2.946748507 | BY39: 2.879596594 | BZ39: =IF(COUNT(BZ9:BZ13)<3,"",AVERAGE(BZ9:BZ13)) -> 1.5400475 | CA39: 2.846419511 | CB39: 1.517083667 | CC39: 0.55575375 | CD39: 0.07430941667 | CE39: 0.649809 | CF39: 0.06406583333 | CG39: 0.08668166667 | CH39: 1.349195583 | CI39: 0.08646366667 | CJ39: 0.005668916667 | CK39: 4.291666667e-05 | CL39: 0.0008059166667 | CM39: 0.0056685 | CN39: 0.1366241667 | CO39: 0.030065 | CP39: 0.0002675 | CQ39: -0.005555833333 | CR39: 0.08125833333 | CS39: 0.1340041667 | CT39: 0.08443916667 | CU39: 0.09965 | CV39: 0.3937958333 | CW39: 0.05034333333 | CX39: 0.01017 | CY39: 4.075e-05 | CZ39: 0.0001991666667 | DA39: 0.0056645 | DB39: 0.0006349166667 | DC39: 0.002217083333 | DD39: 0.0002314166667 | DE39: 0.00013575 | DF39: 0.05770166667 | DG39: 0.0040325 | DH39: 0.0002908333333 | DI39: 0.01231375 | DJ39: 6.55e-05 | DK39: 5.25e-05 | DL39: 0.01985041667 | DM39: 0.04241441667 | DN39: 0.0001019166667 | DO39: 0.3495241667 | DP39: 0.1349891667 | DQ39: 0.0005428333333 | DR39: 0.0002759166667 | DS39: 0.001880333333 | DT39: 4.7e-05 | DU39: 205.3529428 | DV39: 11.34898748 | DW39: 8.334577167 | DX39: 10.9060768 | DY39: 8.160860953 | DZ39: 4.80906473 | EA39: 0.4799166333 | EB39: 2.15328738 | EC39: 0.2757889333 | ED39: 0.3338114333 | EE39: 3.062645293 | EF39: 0.1089924033 | EG39: 0.01677036 | EH39: 0.0002463033333 | EI39: 0.002266216667 | EJ39: 0.01877326 | EK39: 0.610389 | EL39: =IF(COUNT(EL9:EL13)<3,"",AVERAGE(EL9:EL13)) -> 0.0503364 | EM39: 0.0005956333333 | EN39: 0.05284456667 | EO39: 0.3351277333 | EP39: 0.2421692 | EQ39: 0.2264651667 | ER39: 0.3797497667 | ES39: 1.236356433 | ET39: 0.06290554928 | EU39: 0 | EV39: 9.064333333e-05 | EW39: 0.0007461033333 | EX39: 0.02004628 | EY39: 0.00148177 | EZ39: 0.0123009 | FA39: 0.0005438066667 | FB39: 0.0006132266667 | FC39: 0.3745884377 | FD39: 0.007671514493 | FE39: 0 | FF39: 0.03244987667 | FG39: 0.0001049833333 | FH39: 0.0005767733333 | FI39: 0.08573164667 | FJ39: 0.1590857767 | FK39: 0.0003510033333 | FL39: 3.218316864 | FM39: 1.167440523 | FN39: 0.001609963333 | FO39: 0.00137459 | FP39: 0.004248126667 | FQ39: 8.695333333e-05 | FR39: 61.82821437
A40: ACAD1 | B40: 2007-11 | J40: 7.43526875 | M40: 21.22248292 | N40: =IF(COUNT(N10:N14)<3,"",AVERAGE(N10:N14)) -> 9.222482917 | O40: 4.647168 | P40: 0.6262270833 | Q40: 1.882168833 | R40: 0.5677916667 | S40: 0.08142525 | T40: 0.8219468333 | U40: 0.59575575 | V40: 12 | X40: 18.65212525 | AA40: =IF(COUNT(AA10:AA14)<3,"",AVERAGE(AA10:AA14)) -> 71.22871392 | AB40: 59.22871392 | AC40: 43.12531797 | AD40: 3.74209648 | AE40: 7.034848837 | AF40: 2.543559733 | AG40: 0.3031173133 | AH40: 1.798139763 | AI40: 0.6816350467 | AJ40: 12 | AK40: 7.43526875 | AL40: 1 | AM40: 0.2189738127 | AN40: 0.02950771999 | AO40: 0.08868749433 | AP40: 0.0267542525 | AQ40: 0.003836744754 | AR40: 0.0387300033 | AS40: 0.02807191563 | AT40: 0.5654380803 | AU40: 18.65212525 | AV40: 1 | AW40: 0.6054484995 | AX40: 0.05253634769 | AY40: 0.09876422652 | AZ40: 0.03570975233 | BA40: 0.004255549436 | BB40: 0.02524459118 | BC40: 0.009569666629 | BD40: 0.1684713838 | BE40: 7.43526875 | BF40: 7.43526875 | BG40: 1.628129147 | BH40: 0.2193978283 | BI40: 0.6594153551 | BJ40: 0.1989250576 | BK40: 0.02852722837 | BL40: 0.2879679832 | BM40: 0.2087222371 | BN40: 4.204184089 | BO40: 18.65212525 | BP40: 18.65212525 | BQ40: 11.29290125 | BR40: 0.9799145374 | BS40: 1.842162724 | BT40: 0.6660627733 | BU40: 0.07937504109 | BV40: 0.4708652767 | BW40: 0.1784946206 | BX40: 3.142349352 | BY40: 2.869987428 | BZ40: =IF(COUNT(BZ10:BZ14)<3,"",AVERAGE(BZ10:BZ14)) -> 1.518235 | CA40: 2.836499685 | CB40: 1.46928775 | CC40: 0.5322103333 | CD40: 0.0676025 | CE40: 0.6409995 | CF40: 0.05677916667 | CG40: 0.08142525 | CH40: 1.369911417 | CI40: 0.09027091667 | CJ40: 0.005693083333 | CK40: 5.166666667e-05 | CL40: 0.00074425 | CM40: 0.005369333333 | CN40: 0.1263666667 | CO40: 0.0267675 | CP40: 8.333333333e-05 | CQ40: -0.002703333333 | CR40: 0.07748583333 | CS40: 0.130705 | CT40: 0.08472583333 | CU40: 0.0940725 | CV40: 0.3842858333 | CW40: 0.05311833333 | CX40: 0.01148708333 | CY40: 4.133333333e-05 | CZ40: 0.00019175 | DA40: 0.00561475 | DB40: 0.0006006666667 | DC40: 0.003355416667 | DD40: 0.0002323333333 | DE40: 0.0001159166667 | DF40: 0.0525025 | DG40: 0.005485 | DH40: 0.0002074166667 | DI40: 0.01220866667 | DJ40: 6.975e-05 | DK40: 3.983333333e-05 | DL40: 0.01807816667 | DM40: 0.04344558333 | DN40: 9.966666667e-05 | DO40: 0.34372 | DP40: 0.1292816667 | DQ40: 0.00053125 | DR40: 0.000277 | DS40: 0.00183275 | DT40: 7.316666667e-05 | DU40: 208.173639 | DV40: 10.67406735 | DW40: 7.692384667 | DX40: 10.14224536 | DY40: 7.320603967 | DZ40: 4.12682406 | EA40: 0.3827037767 | EB40: 2.15185182 | EC40: 0.2543559733 | ED40: 0.3031173133 | EE40: 2.996899607 | EF40: 0.1017514233 | EG40: 0.01678536 | EH40: 0.0002315533333 | EI40: 0.002187716667 | EJ40: 0.01686251 | EK40: 0.5874203406 | EL40: =IF(COUNT(EL10:EL14)<3,"",AVERAGE(EL10:EL14)) -> 0.0497079942 | EM40: 0.0003615028986 | EN40: 0.04705137826 | EO40: 0.3281819362 | EP40: 0.2573747797 | EQ40: 0.2268391884 | ER40: 0.3768817232 | ES40: 1.236329006 | ET40: 0.05916038261 | EU40: 0.00026675 | EV40: 9.772666667e-05 | EW40: 0.0006789366667 | EX40: 0.01894011333 | EY40: 0.001353936667 | EZ40: 0.01155206667 | FA40: 0.0005267233333 | FB40: 0.0005234766667 | FC40: 0.2992297043 | FD40: 0.007524347826 | FE40: 0.0004875833333 | FF40: 0.03099971 | FG40: 8.965e-05 | FH40: 0.0004801066667 | FI40: 0.07620689667 | FJ40: 0.13061311 | FK40: 0.00031167 | FL40: 2.79915273 | FM40: 1.002304523 | FN40: 0.00148988 | FO40: 0.001343423333 | FP40: 0.003962376667 | FQ40: 0.00011512 | FR40: 67.72378326
A41: ACAD1 | B41: 2008-12 | J41: 7.3306055 | M41: 21.00187783 | N41: =IF(COUNT(N11:N15)<3,"",AVERAGE(N11:N15)) -> 9.001877833 | O41: 4.448049167 | P41: 0.6189395833 | Q41: 1.82107375 | R41: 0.537475 | S41: 0.07987433333 | T41: 0.8668541667 | U41: 0.6296123333 | V41: 12 | X41: 17.64695305 | AA41: =IF(COUNT(AA11:AA15)<3,"",AVERAGE(AA11:AA15)) -> 63.30671534 | AB41: 51.30671534 | AC41: 36.01825719 | AD41: 3.60095147 | AE41: 6.608531443 | AF41: 2.293032067 | AG41: 0.2838823567 | AH41: 1.779740423 | AI41: 0.7223216833 | AJ41: 12 | AK41: 7.3306055 | AL41: 1 | AM41: 0.2117929264 | AN41: 0.02947067821 | AO41: 0.08671004395 | AP41: 0.02559175919 | AQ41: 0.003803199598 | AR41: 0.041275079 | AS41: 0.02997885895 | AT41: 0.5713774785 | AU41: 17.64695305 | AV41: 1 | AW41: 0.568948444 | AX41: 0.05688103467 | AY41: 0.1043891064 | AZ41: 0.03622099258 | BA41: 0.004484237654 | BB41: 0.02811298002 | BC41: 0.0114098746 | BD41: 0.1895533505 | BE41: 7.3306055 | BF41: 7.3306055 | BG41: 1.552570391 | BH41: 0.2160379157 | BI41: 0.6356371251 | BJ41: 0.1876030907 | BK41: 0.02787975589 | BL41: 0.3025713211 | BM41: 0.2197631883 | BN41: 4.188542886 | BO41: 17.64695305 | BP41: 17.64695305 | BQ41: 10.04020648 | BR41: 1.003776948 | BS41: 1.84214966 | BT41: 0.6391901556 | BU41: 0.07913313135 | BV41: 0.4961084385 | BW41: 0.2013495214 | BX41: 3.345039077 | BY41: 2.887954928 | BZ41: =IF(COUNT(BZ11:BZ15)<3,"",AVERAGE(BZ11:BZ15)) -> 1.484994565 | CA41: 2.84372371 | CB41: 1.429107833 | CC41: 0.5124055 | CD41: 0.06683391667 | CE41: 0.621456 | CF41: 0.0537475 | CG41: 0.07987433333 | CH41: 1.444756917 | CI41: 0.09479058333 | CJ41: 0.006423601449 | CK41: 5.525e-05 | CL41: 0.0007214021739 | CM41: 0.005379608696 | CN41: 0.1164233333 | CO41: 0.02481166667 | CP41: 5.916666667e-05 | CQ41: -0.006535833333 | CR41: 0.0715425 | CS41: 0.1259508333 | CT41: 0.08333416667 | CU41: 0.08668916667 | CV41: 0.3609808333 | CW41: 0.055495 | CX41: 0.01336604348 | CY41: 4.574275362e-05 | CZ41: 0.0001692572464 | DA41: 0.005503619565 | DB41: 0.0005778913043 | DC41: 0.004463938406 | DD41: 0.000213576087 | DE41: 0.0001232065217 | DF41: 0.05188666667 | DG41: 0.005658333333 | DH41: 0.0002811557971 | DI41: 0.01226323188 | DJ41: 5.53115942e-05 | DK41: 3.554347826e-05 | DL41: 0.01662653623 | DM41: 0.04424501812 | DN41: 0.0001107065217 | DO41: 0.3324475 | DP41: 0.1244716667 | DQ41: 0.0005029384058 | DR41: 0.0002933695652 | DS41: 0.001722782609 | DT41: 0.0001444094203 | DU41: 210.6908952 | DV41: 9.947101514 | DW41: 6.9815368 | DX41: 9.31254374 | DY41: 6.563216873 | DZ41: 3.53355379 | EA41: 0.3681645767 | EB41: 2.04175482 | EC41: 0.2293032067 | ED41: 0.2838823567 | EE41: 2.966234067 | EF41: 0.1065586 | EG41: 0.01873305 | EH41: 0.0002200366667 | EI41: 0.002039303333 | EJ41: 0.01625219 | EK41: 0.5258345739 | EL41: =IF(COUNT(EL11:EL15)<3,"",AVERAGE(EL11:EL15)) -> 0.0473277942 | EM41: 0.0001087362319 | EN41: 0.03213644493 | EO41: 0.3023158362 | EP41: 0.2627997797 | EQ41: 0.2220945217 | ER41: 0.3400065899 | ES41: 1.159353172 | ET41: 0.06077314783 | EU41: 0.00142067 | EV41: 0.0001078933333 | EW41: 0.0006679833333 | EX41: 0.01831351667 | EY41: 0.001245706667 | EZ41: 0.01228983 | FA41: 0.00052947 | FB41: 0.0004591466667 | FC41: 0.2869607652 | FD41: 0.006765008696 | FE41: 0.0009490233333 | FF41: 0.03065246667 | FG41: 5.949e-05 | FH41: 0.0004075666667 | FI41: 0.0679018 | FJ41: 0.1254661733 | FK41: 0.0002897966667 | FL41: 2.366120452 | FM41: 0.85816742 | FN41: 0.001499106667 | FO41: 0.001215376667 | FP41: 0.003864913333 | FQ41: 0.0001425733333 | FR41: 74.1176781
A42: ACAD1 | B42: 2009-13 | J42: 7.028679725 | M42: 20.38185486 | N42: =IF(COUNT(N12:N16)<3,"",AVERAGE(N12:N16)) -> 8.381854855 | O42: 4.185659464 | P42: 0.5936492029 | Q42: 1.672411645 | R42: 0.4846195652 | S42: 0.07033851087 | T42: 0.8038468986 | U42: 0.5713298986 | V42: 12 | X42: 16.83951267 | AA42: =IF(COUNT(AA12:AA16)<3,"",AVERAGE(AA12:AA16)) -> 58.21668293 | AB42: 46.21668293 | AC42: 31.26607147 | AD42: 3.642758853 | AE42: 6.210044733 | AF42: 2.2192644 | AG42: 0.2589180233 | AH42: 1.774476763 | AI42: 0.8451498267 | AJ42: 12 | AK42: 7.028679725 | AL42: 1 | AM42: 0.2053620484 | AN42: 0.02912635808 | AO42: 0.08205394734 | AP42: 0.02377700993 | AQ42: 0.003451035805 | AR42: 0.03943933976 | AS42: 0.02803130052 | AT42: 0.5887589763 | AU42: 16.83951267 | AV42: 1 | AW42: 0.5370637744 | AX42: 0.06257242202 | AY42: 0.1066712224 | AZ42: 0.03812076347 | BA42: 0.004447488422 | BB42: 0.03048055427 | BC42: 0.01451731332 | BD42: 0.2061264812 | BE42: 7.028679725 | BF42: 7.028679725 | BG42: 1.443424066 | BH42: 0.2047198425 | BI42: 0.576730916 | BJ42: 0.1671209876 | BK42: 0.02425622539 | BL42: 0.2772064877 | BM42: 0.1970230336 | BN42: 4.13819828 | BO42: 16.83951267 | BP42: 16.83951267 | BQ42: 9.043892233 | BR42: 1.053689093 | BS42: 1.796291401 | BT42: 0.6419350794 | BU42: 0.07489353764 | BV42: 0.5132776798 | BW42: 0.2444644816 | BX42: 3.471069492 | BY42: 2.71115058 | BZ42: =IF(COUNT(BZ12:BZ16)<3,"",AVERAGE(BZ12:BZ16)) -> 1.408205942 | CA42: 2.640453884 | CB42: 1.324495801 | CC42: 0.4836223261 | CD42: 0.0639932971 | CE42: 0.5726674565 | CF42: 0.04846195652 | CG42: 0.07033851087 | CH42: 1.339744775 | CI42: 0.08541198188 | CJ42: 0.006260481884 | CK42: 5.755434783e-05 | CL42: 0.0006255797101 | CM42: 0.004749626812 | CN42: 0.1020931884 | CO42: 0.02270778986 | CP42: 5.083333333e-05 | CQ42: -0.006964601449 | CR42: 0.06274108696 | CS42: 0.1190911957 | CT42: 0.07842521739 | CU42: 0.07588902174 | CV42: 0.3291819203 | CW42: 0.04964550725 | CX42: 0.01169336232 | CY42: 5.026449275e-05 | CZ42: 0.0001513731884 | DA42: 0.004995315217 | DB42: 0.0005459673913 | DC42: 0.004956481884 | DD42: 0.0002061123188 | DE42: 0.0001094855072 | DF42: =IF(COUNT(DF12:DF16)<3,"",AVERAGE(DF12:DF16)) -> 0.04963960145 | DG42: 0.006358442029 | DH42: 0.0002291666667 | DI42: 0.0115456413 | DJ42: 4.984057971e-05 | DK42: 2.962318841e-05 | DL42: 0.01391925 | DM42: 0.0400190471 | DN42: 9.057246377e-05 | DO42: 0.3185562681 | DP42: 0.1173846667 | DQ42: 0.0004687282609 | DR42: 0.00025775 | DS42: 0.001664054348 | DT42: 0.0001601014493 | DU42: 217.9251877 | DV42: 9.494855581 | DW42: 6.548950033 | DX42: 8.779196336 | DY42: 6.021400007 | DZ42: 3.110699447 | EA42: 0.3752743333 | EB42: 1.928892 | EC42: 0.22192644 | ED42: 0.2589180233 | EE42: 2.9574613 | EF42: 0.12569024 | EG42: 0.01962936 | EH42: 0.00020449 | EI42: 0.0020371 | EJ42: 0.01595014 | EK42: 0.4863218739 | EL42: =IF(COUNT(EL12:EL16)<3,"",AVERAGE(EL12:EL16)) -> 0.04781132754 | EM42: 0.0001028028986 | EN42: 0.02868154493 | EO42: 0.2770043696 | EP42: 0.2580092797 | EQ42: 0.2148561551 | ER42: 0.3094810565 | ES42: 1.088032406 | ET42: 0.07050728116 | EU42: 0.002783336667 | EV42: 0.0001073433333 | EW42: 0.0006533366667 | EX42: 0.01813595 | EY42: 0.001243173333 | EZ42: 0.01245116333 | FA42: 0.0005575866667 | FB42: 0.0003991933333 | FC42: 0.2922930986 | FD42: 0.009167975362 | FE42: 0.001172856667 | FF42: 0.03124862667 | FG42: 3.572333333e-05 | FH42: 0.0003686666667 | FI42: 0.05759877 | FJ42: 0.1181530867 | FK42: 0.00030021 | FL42: 2.092618052 | FM42: 0.7550284467 | FN42: 0.001450706667 | FO42: 0.00099682 | FP42: 0.00405674 | FQ42: 0.0001963133333 | FR42: 80.10699892
A43: ACAD1 | B43: 2010-14 | J43: 7.051064239 | M43: =IF(COUNT(M13:M17)<3,"",AVERAGE(M13:M17)) -> 20.45185366 | N43: 8.451853656 | O43: 4.262803409 | P43: 0.6256062065 | Q43: 1.678963891 | R43: 0.4656945652 | S43: 0.0615865 | T43: 0.7852170072 | U43: 0.5719823261 | V43: 12 | X43: 16.27873769 | AA43: =IF(COUNT(AA13:AA17)<3,"",AVERAGE(AA13:AA17)) -> 53.94483618 | AB43: 41.94483618 | AC43: 26.3634263 | AD43: 4.034602313 | AE43: 6.179754917 | AF43: 2.148251067 | AG43: 0.2265097567 | AH43: 1.926237363 | AI43: 1.06605569 | AJ43: 12 | AK43: =J43 -> 7.051064239 | AL43: =M43/M43 -> 1 | AM43: =O43/M43 -> 0.2084311516 | AN43: =P43/M43 -> 0.03058921783 | AO43: =Q43/M43 -> 0.08209348255 | AP43: =R43/M43 -> 0.0227702864 | AQ43: =S43/M43 -> 0.003011291839 | AR43: =T43/M43 -> 0.03839343956 | AS43: =U43/M43 -> 0.02796726085 | AT43: =V43/M43 -> 0.5867438816 | AU43: =X43 -> 16.27873769 | AV43: =AA43/AA43 -> 1 | AW43: =AC43/AA43 -> 0.4887108417 | AX43: =AD43/AA43 -> 0.07479126083 | AY43: =AE43/AA43 -> 0.1145569317 | AZ43: =AF43/AA43 -> 0.03982310854 | BA43: =AG43/AA43 -> 0.004198914534 | BB43: =AH43/AA43 -> 0.0357075394 | BC43: =AI43/AA43 -> 0.01976195991 | BD43: =AJ43/AA43 -> 0.222449466 | BE43: =J43 -> 7.051064239 | BF43: =BE43 -> 7.051064239 | BG43: =BE43*AM43 -> 1.469661439 | BH43: =BE43*AN43 -> 0.21568654 | BI43: =BE43*AO43 -> 0.5788464191 | BJ43: =BE43*AP43 -> 0.1605547522 | BK43: =BE43*AQ43 -> 0.0212328122 | BL43: =BE43*AR43 -> 0.2707146087 | BM43: =BE43*AS43 -> 0.1971989529 | BN43: =BE43*AT43 -> 4.137168801 | BO43: =X43 -> 16.27873769 | BP43: =BO43 -> 16.27873769 | BQ43: =BO43*AW43 -> 7.9555956 | BR43: =BO43*AX43 -> 1.217507317 | BS43: =BO43*AY43 -> 1.864842243 | BT43: =BO43*AZ43 -> 0.6482699381 | BU43: =BO43*BA43 -> 0.06835302829 | BV43: =BO43*BB43 -> 0.5812736675 | BW43: =BO43*BC43 -> 0.3216997617 | BX43: =BO43*BD43 -> 3.621196506 | BY43: =IF(COUNT(BY13:BY17)<3,"",AVERAGE(BY13:BY17)) -> 2.675320181 | BZ43: 1.404666196 | CA43: 2.599840768 | CB43: 1.330680058 | CC43: 0.4935039275 | CD43: 0.06781480072 | CE43: 0.5747258478 | CF43: 0.04656945652 | CG43: 0.0615865 | CH43: 1.308694957 | CI43: 0.08647857246 | CJ43: 0.006254268116 | CK43: 6.592391304e-05 | CL43: 0.0006554746377 | CM43: 0.004463108696 | CN43: 0.09882507246 | CO43: 0.02207130435 | CP43: 0.0001007608696 | CQ43: -0.005240652174 | CR43: 0.05790952899 | CS43: 0.1161533333 | CT43: 0.07597442029 | CU43: 0.07442768116 | CV43: 0.3192243116 | CW43: 0.05017630435 | CX43: 0.01173440942 | CY43: 4.238768116e-05 | CZ43: 0.0001489528986 | DA43: 0.00482748913 | DB43: 0.0005056268116 | DC43: 0.005448278986 | DD43: 0.0001928333333 | DE43: 0.0001010543478 | DF43: 0.05246271739 | DG43: 0.008764021739 | DH43: 0.0001957318841 | DI43: 0.01162091667 | DJ43: 3.444927536e-05 | DK43: 2.889130435e-05 | DL43: 0.0108109058 | DM43: 0.03725511232 | DN43: 8.432971014e-05 | DO43: 0.3303596377 | DP43: 0.1196957645 | DQ43: 0.0004321557971 | DR43: 0.0002117282609 | DS43: 0.001420605072 | DT43: 0.0001852101449 | DU43: 217.8174418 | DV43: 9.467053081 | DW43: 6.2962413 | DX43: 8.622685253 | DY43: 5.63182442 | DZ43: 2.68997906 | EA43: 0.4191089433 | EB43: 1.92391194 | EC43: 0.2148251067 | ED43: 0.2265097567 | EE43: 3.210395607 | EF43: 0.1574893633 | EG43: 0.01948985667 | EH43: 0.0001930666667 | EI43: 0.00215442 | EJ43: 0.01605926333 | EK43: =IF(COUNT(EK13:EK17)<3,"",AVERAGE(EK13:EK17)) -> 0.4607030739 | EL43: 0.0470013942 | EM43: 0.0001581028986 | EN43: 0.02998771159 | EO43: 0.2632114362 | EP43: 0.2743305797 | EQ43: 0.2169110217 | ER43: 0.2912001565 | ES43: 1.075640906 | ET43: 0.08752154783 | EU43: 0.004219836667 | EV43: 0.0001138333333 | EW43: 0.0006744633333 | EX43: 0.01840582 | EY43: 0.00122152 | EZ43: 0.01595318 | FA43: 0.0006111633333 | FB43: 0.0003597533333 | FC43: 0.3260711319 | FD43: 0.009873675362 | FE43: 0.001262023333 | FF43: 0.03374017333 | FG43: 1.184e-05 | FH43: 0.00033721 | FI43: 0.04440232 | FJ43: 0.11496248 | FK43: 0.00032571 | FL43: 1.807786052 | FM43: 0.6523718133 | FN43: 0.001434476667 | FO43: 0.00085187 | FP43: 0.004200286667 | FQ43: 0.00020262 | FR43: 84.10257048
A44: ACAD1 | B44: 2011-15 | J44: 6.91964221 | M44: =IF(COUNT(M14:M18)<3,"",AVERAGE(M14:M18)) -> 20.18775566 | N44: 8.187755663 | O44: 4.025216149 | P44: 0.616244279 | Q44: 1.632765576 | R44: 0.4152995652 | S44: 0.05329705797 | T44: 0.8384755072 | U44: 0.6064574384 | V44: 12 | X44: 15.98940286 | AA44: =IF(COUNT(AA14:AA18)<3,"",AVERAGE(AA14:AA18)) -> 51.14230018 | AB44: 39.14230018 | AC44: 23.24539855 | AD44: 4.38242923 | AE44: 6.139909333 | AF44: 2.058068567 | AG44: 0.1881109233 | AH44: 1.914463947 | AI44: 1.21392069 | AJ44: 12 | AK44: 6.91964221 | AL44: 1 | AM44: 0.1993889869 | AN44: 0.03052564581 | AO44: 0.08087900425 | AP44: 0.02057185416 | AQ44: 0.002640068508 | AR44: 0.04153386445 | AS44: 0.03004085489 | AT44: 0.5944197166 | AU44: 15.98940286 | AV44: 1 | AW44: 0.4545239159 | AX44: 0.08569089021 | AY44: 0.1200554005 | AZ44: 0.0402420024 | BA44: 0.003678186602 | BB44: 0.03743406026 | BC44: 0.02373613791 | BD44: 0.2346394268 | BE44: 6.91964221 | BF44: 6.91964221 | BG44: 1.37970045 | BH44: 0.2112265472 | BI44: 0.5596537717 | BJ44: 0.1423498704 | BK44: 0.01826832948 | BL44: 0.2873994816 | BM44: 0.2078719675 | BN44: 4.113171762 | BO44: 15.98940286 | BP44: 15.98940286 | BQ44: 7.267566001 | BR44: 1.370146165 | BS44: 1.919614165 | BT44: 0.6434455883 | BU44: 0.05881200737 | BV44: 0.5985482701 | BW44: 0.3795266713 | BX44: 3.751744322 | BY44: =IF(COUNT(BY14:BY18)<3,"",AVERAGE(BY14:BY18)) -> 2.705950645 | BZ44: 1.34814542 | CA44: 2.632355304 | CB44: 1.273323663 | CC44: 0.462574279 | CD44: 0.06596823913 | CE44: 0.5597477826 | CF44: 0.04152995652 | CG44: 0.05329705797 | CH44: 1.397459239 | CI44: 0.09020522464 | CJ44: 0.005705362319 | CK44: 6.861956522e-05 | CL44: 0.0006082681159 | CM44: 0.004029445652 | CN44: 0.08989865942 | CO44: 0.02136164493 | CP44: 0.0001007608696 | CQ44: -0.005308862319 | CR44: 0.05375026812 | CS44: 0.1192444565 | CT44: 0.07338614493 | CU44: 0.0698311087 | CV44: 0.3109031159 | CW44: 0.05164773188 | CX44: 0.0151083587 | CY44: 3.123913043e-05 | CZ44: 0.0001410398551 | DA44: 0.004518463768 | DB44: 0.0004417971014 | DC44: 0.006374 | DD44: 0.0001657101449 | DE44: 9.223913043e-05 | DF44: 0.0510314058 | DG44: 0.009170057971 | DH44: 0.0002177318841 | DI44: 0.01082303986 | DJ44: 2.794202899e-05 | DK44: 2.030797101e-05 | DL44: 0.008630746377 | DM44: 0.03412034783 | DN44: 7.83115942e-05 | DO44: 0.3106473478 | DP44: 0.1121976848 | DQ44: 0.0003760434783 | DR44: 0.0001860978261 | DS44: 0.001297188406 | DT44: 0.000190326087 | DU44: 220.9850739 | DV44: 9.310021783 | DW44: 6.080090467 | DX44: 8.450624136 | DY44: 5.40905417 | DZ44: 2.453815893 | EA44: 0.46371386 | EB44: 1.916261023 | EC44: 0.2058068567 | ED44: 0.1881109233 | EE44: 3.19077319 | EF44: 0.18134528 | EG44: 0.01768552333 | EH44: 0.00019365 | EI44: 0.00246692 | EJ44: 0.01538084667 | EK44: =IF(COUNT(EK14:EK18)<3,"",AVERAGE(EK14:EK18)) -> 0.4484781572 | EL44: 0.04349972754 | EM44: 0.0001281028986 | EN44: 0.02497821159 | EO44: 0.2397511862 | EP44: 0.3033195797 | EQ44: 0.2188796884 | ER44: 0.2844618232 | ES44: 1.071390489 | ET44: 0.1014207 | EU44: 0.005678836667 | EV44: 0.000118 | EW44: 0.00064013 | EX44: 0.01825140333 | EY44: 0.00118952 | EZ44: 0.01897726333 | FA44: 0.0006342466667 | FB44: 0.0003117533333 | FC44: 0.3594682333 | FD44: 0.01153756667 | FE44: 0.001387856667 | FF44: 0.03399325667 | FG44: -7.493333333e-06 | FH44: 0.0003112933333 | FI44: 0.03132748667 | FJ44: 0.10545273 | FK44: 0.00030446 | FL44: 1.636074817 | FM44: 0.5951201467 | FN44: 0.001311226667 | FO44: 0.0006657866667 | FP44: 0.004418786667 | FQ44: 0.00025337 | FR44: 85.33830765
A45: ACAD1 | B45: 2012-16 | J45: 6.634687543 | M45: =IF(COUNT(M15:M19)<3,"",AVERAGE(M15:M19)) -> 19.61424516 | N45: 7.614245163 | O45: 3.640631482 | P45: 0.5995021957 | Q45: 1.577975743 | R45: 0.3773478986 | S45: 0.05120855797 | T45: 0.8191314239 | U45: 0.5484481884 | V45: 12 | X45: 15.25666447 | AA45: =IF(COUNT(AA15:AA19)<3,"",AVERAGE(AA15:AA19)) -> 47.44461942 | AB45: 35.44461942 | AC45: 19.69078106 | AD45: 4.681749657 | AE45: 5.875017773 | AF45: 1.876748167 | AG45: 0.1857072933 | AH45: 1.852378327 | AI45: 1.282236887 | AJ45: 12 | AK45: 6.634687543 | AL45: 1 | AM45: 0.1856116028 | AN45: 0.03056463252 | AO45: 0.08045049553 | AP45: 0.0192384614 | AQ45: 0.002610784027 | AR45: 0.04176206717 | AS45: 0.02796172801 | AT45: 0.6118002452 | AU45: 15.25666447 | AV45: 1 | AW45: 0.4150266415 | AX45: 0.09867820027 | AY45: 0.1238289577 | AZ45: 0.03955660704 | BA45: 0.00391419081 | BB45: 0.03904295891 | BC45: 0.02702597054 | BD45: 0.2529264677 | BE45: 6.634687543 | BF45: 6.634687543 | BG45: 1.231474989 | BH45: 0.2027867867 | BI45: 0.5337639005 | BJ45: 0.1276411802 | BK45: 0.01732173626 | BL45: 0.2770782668 | BM45: 0.1855173285 | BN45: 4.059103466 | BO45: 15.25666447 | BP45: 15.25666447 | BQ45: 6.331922215 | BR45: 1.505500192 | BS45: 1.88921686 | BT45: 0.6035018811 | BU45: 0.05971749585 | BV45: 0.5956653239 | BW45: 0.4123261644 | BX45: 3.858814252 | BY45: =IF(COUNT(BY15:BY19)<3,"",AVERAGE(BY15:BY19)) -> 2.601575562 | BZ45: 1.267497837 | CA45: 2.514484464 | CB45: 1.19425558 | CC45: 0.4181343623 | CD45: 0.06395173913 | CE45: 0.5415909493 | CF45: 0.03773478986 | CG45: 0.05120855797 | CH45: 1.365219239 | CI45: 0.08163422464 | CJ45: 0.005601612319 | CK45: 6.270289855e-05 | CL45: 0.0006008514493 | CM45: 0.003774695652 | CN45: 0.08175965942 | CO45: 0.02087247826 | CP45: 7.492753623e-05 | CQ45: -0.004881278986 | CR45: 0.05179526812 | CS45: 0.1208875399 | CT45: 0.06804214493 | CU45: 0.06497227536 | CV45: 0.3008159493 | CW45: 0.04640523188 | CX45: 0.0152516087 | CY45: 2.282246377e-05 | CZ45: 0.0001292065217 | DA45: 0.004142880435 | DB45: 0.0004283804348 | DC45: 0.005882083333 | DD45: 0.0001417101449 | DE45: 8.16557971e-05 | DF45: 0.04946807246 | DG45: 0.008977224638 | DH45: 0.0002233985507 | DI45: 0.01011803986 | DJ45: 1.994202899e-05 | DK45: 2.755797101e-05 | DL45: 0.008440163043 | DM45: 0.03206718116 | DN45: 6.75615942e-05 | DO45: 0.2811660145 | DP45: 0.1014244348 | DQ45: 0.0003463768116 | DR45: 0.0001135144928 | DS45: 0.001212355072 | DT45: 0.0001606594203 | DU45: 227.9299579 | DV45: 8.674501833 | DW45: 5.5810643 | DX45: 7.924660333 | DY45: 5.010947157 | DZ45: 2.105202147 | EA45: 0.4965883 | EB45: 1.843558583 | EC45: 0.1876748167 | ED45: 0.1857072933 | EE45: 3.08729746 | EF45: 0.19221576 | EG45: 0.01788035667 | EH45: 0.0001713166667 | EI45: 0.00245592 | EJ45: 0.01521651333 | EK45: =IF(COUNT(EK15:EK19)<3,"",AVERAGE(EK15:EK19)) -> 0.39753465 | EL45: 0.04202321667 | EM45: 0.0001072333333 | EN45: 0.02356706667 | EO45: 0.22458915 | EP45: 0.3125371667 | EQ45: 0.2115155833 | ER45: 0.2519902833 | ES45: 1.02419925 | ET45: 0.1071822 | EU45: 0.006555753333 | EV45: 0.00011375 | EW45: 0.0007054633333 | EX45: 0.01763073667 | EY45: 0.001160436667 | EZ45: 0.02080701333 | FA45: 0.00061233 | FB45: 0.00021817 | FC45: 0.3849522167 | FD45: 0.01225898333 | FE45: 0.00104694 | FF45: 0.03457367333 | FG45: -2.182666667e-05 | FH45: 0.0002801266667 | FI45: 0.03068148667 | FJ45: 0.11099448 | FK45: 0.0003390433333 | FL45: 1.4000812 | FM45: 0.5103520633 | FN45: 0.00129106 | FO45: 0.0003694533333 | FP45: 0.00435012 | FQ45: 0.0002757033333 | FR45: 92.00392384
A46: ACAD1 | B46: 2013-17 | J46: 6.520676018 | M46: 19.35873671 | N46: 7.358736714 | O46: 3.35819221 | P46: 0.6083569674 | Q46: 1.640905101 | R46: 0.3900622464 | S46: 0.04380453986 | T46: 0.810562808 | U46: 0.5068527464 | V46: 12 | X46: 14.88789225 | AA46: 46.03889708 | AB46: 34.03889708 | AC46: 17.73337067 | AD46: 4.854681167 | AE46: 6.120102917 | AF46: 1.824768333 | AG46: 0.1771711667 | AH46: 1.966743083 | AI46: 1.362059 | AJ46: 12 | AK46: =J46 -> 6.520676018 | AL46: =M46/M46 -> 1 | AM46: =O46/M46 -> 0.1734716609 | AN46: =P46/M46 -> 0.03142544766 | AO46: =Q46/M46 -> 0.0847630259 | AP46: =R46/M46 -> 0.02014915809 | AQ46: =S46/M46 -> 0.002262778843 | AR46: =T46/M46 -> 0.04187064579 | AS46: =U46/M46 -> 0.0261821189 | AT46: =V46/M46 -> 0.6198751591 | AU46: =X46 -> 14.88789225 | AV46: =AA46/AA46 -> 1 | AW46: =AC46/AA46 -> 0.3851823521 | AX46: =AD46/AA46 -> 0.105447382 | AY46: =AE46/AA46 -> 0.1329333087 | AZ46: =AF46/AA46 -> 0.0396353616 | BA46: =AG46/AA46 -> 0.003848293028 | BB46: =AH46/AA46 -> 0.04271916158 | BC46: =AI46/AA46 -> 0.02958496155 | BD46: =AJ46/AA46 -> 0.2606491632 | BE46: =J46 -> 6.520676018 | BF46: =BE46 -> 6.520676018 | BG46: =BE46*AM46 -> 1.131152499 | BH46: =BE46*AN46 -> 0.2049151629 | BI46: =BE46*AO46 -> 0.5527122302 | BJ46: =BE46*AP46 -> 0.1313861319 | BK46: =BE46*AQ46 -> 0.01475484773 | BL46: =BE46*AR46 -> 0.2730249159 | BM46: =BE46*AS46 -> 0.1707251148 | BN46: =BE46*AT46 -> 4.042005084 | BO46: =X46 -> 14.88789225 | BP46: =BO46 -> 14.88789225 | BQ46: =BO46*AW46 -> 5.734553355 | BR46: =BO46*AX46 -> 1.569889261 | BS46: =BO46*AY46 -> 1.979096776 | BT46: =BO46*AZ46 -> 0.5900869927 | BU46: =BO46*BA46 -> 0.05729297195 | BV46: =BO46*BB46 -> 0.6359982746 | BW46: =BO46*BC46 -> 0.4404577198 | BX46: =BO46*BD46 -> 3.880516657 | BY46: 2.55311883 | BZ46: 1.210255228 | CA46: 2.491037246 | CB46: 1.174579822 | CC46: 0.3878775833 | CD46: 0.06539410145 | CE46: 0.5624980797 | CF46: 0.03900622464 | CG46: 0.04380453986 | CH46: 1.350938384 | CI46: 0.07599833333 | CJ46: 0.004835177536 | CK46: 6.513768116e-05 | CL46: 0.0005837210145 | CM46: 0.003287043478 | CN46: 0.08136512319 | CO46: 0.0213648913 | CP46: 5.826086957e-05 | CQ46: -0.003798032609 | CR46: 0.05253326812 | CS46: 0.13066225 | CT46: 0.06925142754 | CU46: 0.06378205072 | CV46: 0.3124309638 | CW46: 0.04396232609 | CX46: 0.01466613043 | CY46: 1.795289855e-05 | CZ46: 0.0001212934783 | DA46: 0.003748097826 | DB46: 0.0003909021739 | DC46: 0.005265126812 | DD46: 0.0001350144928 | DE46: 5.017753623e-05 | DF46: 0.05058617391 | DG46: 0.009156985507 | DH46: 0.0001656594203 | DI46: 0.009952561594 | DJ46: 2.776811594e-05 | DK46: 2.921014493e-05 | DL46: 0.007232597826 | DM46: 0.03005257246 | DN46: 3.999637681e-05 | DO46: 0.2608477826 | DP46: 0.09403113043 | DQ46: 0.0003416811594 | DR46: 5.907971014e-05 | DS46: 0.001180702899 | DT46: 0.0001338768116 | DU46: 230.2675799 | DV46: 8.639740333 | DW46: 5.370874833 | DX46: 8.001969083 | DY46: 4.89584725 | DZ46: 1.91309025 | EA46: 0.5186594167 | EB46: 1.898026 | EC46: 0.1824768333 | ED46: 0.1771711667 | EE46: 3.2779055 | EF46: 0.2064233333 | EG46: 0.01732625 | EH46: 0.0001683333333 | EI46: 0.002520333333 | EJ46: 0.0154655 | EK46: 0.377963 | EL46: 0.04007641667 | EM46: 0.0001008333333 | EN46: 0.02582266667 | EO46: 0.22805025 | EP46: 0.3424026667 | EQ46: 0.2225199167 | ER46: 0.2356634167 | ES46: 1.054458917 | ET46: 0.1152323333 | EU46: 0.009966916667 | EV46: 0.0001061666667 | EW46: 0.0006840833333 | EX46: 0.01724133333 | EY46: 0.00118775 | EZ46: 0.023228 | FA46: 0.0005851666667 | FB46: 0.0001798333333 | FC46: 0.4020615 | FD46: 0.01255975 | FE46: 0.0006524166667 | FF46: 0.03486158333 | FG46: -1.366666667e-05 | FH46: 0.0002610833333 | FI46: 0.02799816667 | FJ46: 0.120814 | FK46: 0.0003309166667 | FL46: 1.27225425 | FM46: 0.4637795 | FN46: 0.001239916667 | FO46: 0.0002926666667 | FP46: 0.004244666667 | FQ46: 0.0002479166667 | FR46: 96.324448
A47: =A31 -> ACAD1 | B47: 2014-18 | J47: 6.575220445 | M47: 19.44878874 | N47: 7.448788737 | O47: 3.193161171 | P47: 0.6367157342 | Q47: 1.678591714 | R47: 0.4298799539 | S47: 0.04519991535 | T47: 0.8485126064 | U47: 0.6167278175 | V47: 12 | X47: 14.54079922 | AA47: 44.52614586 | AB47: 32.52614586 | AC47: 15.82704323 | AD47: 5.193615279 | AE47: 6.16169658 | AF47: 1.832817391 | AG47: 0.1727804565 | AH47: 1.883930583 | AI47: 1.454261156 | AJ47: 12 | AK47: 6.575220445 | AL47: 1 | AM47: 0.1641830354 | AN47: 0.03273806625 | AO47: 0.0863082908 | AP47: 0.02210317361 | AQ47: 0.002324047835 | AR47: 0.04362804377 | AS47: 0.03171034587 | AT47: 0.6170050054 | AU47: 14.54079922 | AV47: 1 | AW47: 0.3554550461 | AX47: 0.1166419231 | AY47: 0.1383837847 | AZ47: 0.04116272262 | BA47: 0.003880426954 | BB47: 0.04231065921 | BC47: 0.03266083619 | BD47: 0.2695045747 | BE47: 6.575220445 | BF47: 6.575220445 | BG47: 1.079539651 | BH47: 0.2152600025 | BI47: 0.5674960383 | BJ47: 0.145333239 | BK47: 0.01528112684 | BL47: 0.2868640054 | BM47: 0.2085025145 | BN47: 4.056943926 | BO47: 14.54079922 | BP47: 14.54079922 | BQ47: 5.168600459 | BR47: 1.696066784 | BS47: 2.012210829 | BT47: 0.5985388852 | BU47: 0.05642450924 | BV47: 0.6152308007 | BW47: 0.4749146615 | BX47: 3.91881191 | BY47: 2.604550826 | BZ47: 1.200040566 | CA47: 2.56187224 | CB47: 1.194386787 | CC47: 0.36803203 | CD47: 0.06879451647 | CE47: 0.5752596686 | CF47: 0.04298799539 | CG47: 0.04519991535 | CH47: 1.414188048 | CI47: 0.09411167721 | CJ47: 0.004764683465 | CK47: 5.065151515e-05 | CL47: 0.0006223692358 | CM47: 0.003445426877 | CN47: 0.08499705599 | CO47: 0.02290457115 | CP47: 5.826086957e-05 | CQ47: -0.003635325099 | CR47: 0.0548776357 | CS47: 0.1328425543 | CT47: 0.07033084651 | CU47: 0.06510498353 | CV47: 0.319520695 | CW47: 0.05384960672 | CX47: 0.02216166008 | CY47: 1.870388669e-05 | CZ47: 0.0001240563241 | DA47: 0.003878311265 | DB47: 0.0003828942688 | DC47: 0.006336265152 | DD47: 0.0001297812912 | DE47: 4.80273386e-05 | DF47: 0.05321792095 | DG47: 0.008735013175 | DH47: 0.0001113985507 | DI47: 0.01043400823 | DJ47: 2.343610013e-05 | DK47: 3.038801054e-05 | DL47: 0.007418921937 | DM47: 0.03635496772 | DN47: 4.766831357e-05 | DO47: 0.2448326206 | DP47: 0.08931003953 | DQ47: 0.0003717246377 | DR47: 8.385836627e-05 | DS47: 0.001138726614 | DT47: 0.0001419953887 | DU47: 228.6221776 | DV47: 8.27265858 | DW47: 5.132773913 | DX47: 7.741920254 | DY47: 4.76161883 | DZ47: 1.718089268 | EA47: 0.5547889783 | EB47: 1.912517196 | EC47: 0.1832817391 | ED47: 0.1727804565 | EE47: 3.139884667 | EF47: 0.2201603333 | EG47: 0.01703763043 | EH47: 0.0001581304348 | EI47: 0.00254959058 | EJ47: 0.01523579348 | EK47: 0.3670071957 | EL47: 0.03818408333 | EM47: 6.916666667e-05 | EN47: 0.02834412319 | EO47: 0.2240190906 | EP47: 0.3592160362 | EQ47: 0.2289516051 | ER47: 0.2219787065 | ES47: 1.062509562 | ET47: 0.1227856957 | EU47: 0.01434642391 | EV47: 0.0001054818841 | EW47: 0.0006773804348 | EX47: 0.01678232609 | EY47: 0.001114039855 | EZ47: 0.02420901449 | FA47: 0.0005565108696 | FB47: 0.0001544057971 | FC47: 0.4300689058 | FD47: 0.01343123551 | FE47: 0.0005618876812 | FF47: 0.03456488768 | FG47: -6.717391304e-06 | FH47: 0.0002338442029 | FI47: 0.02707217754 | FJ47: 0.1254759493 | FK47: 0.0003156268116 | FL47: 1.132836337 | FM47: 0.4165066159 | FN47: 0.00125809058 | FO47: 0.0002461485507 | FP47: 0.004192565217 | FQ47: 0.0001764166667 | FR47: 99.93412671
A48: =A47 -> ACAD1 | B48: 2015-19 | J48: =IF(J22="","",J22) -> 6.357968097 | M48: 18.9918919 | N48: 6.991891901 | O48: 2.857135142 | P48: 0.6163413615 | Q48: 1.679466658 | R48: 0.443135192 | S48: 0.04211246193 | T48: 0.7899589501 | U48: 0.563742509 | V48: 12 | X48: 14.23792128 | AA48: 43.40483188 | AB48: 31.40483188 | AC48: 14.4259143 | AD48: 5.294475143 | AE48: 6.392535087 | AF48: 1.901626179 | AG48: 0.173580305 | AH48: 1.836916765 | AI48: 1.379782118 | AJ48: 12 | AK48: =J48 -> 6.357968097 | AL48: =M48/M48 -> 1 | AM48: =O48/M48 -> 0.1504397327 | AN48: =P48/M48 -> 0.03245286803 | AO48: =Q48/M48 -> 0.08843071912 | AP48: =R48/M48 -> 0.02333286195 | AQ48: =S48/M48 -> 0.002217391619 | AR48: =T48/M48 -> 0.04159453698 | AS48: =U48/M48 -> 0.02968332549 | AT48: =V48/M48 -> 0.6318485837 | AU48: =X48 -> 14.23792128 | AV48: =AA48/AA48 -> 1 | AW48: =AC48/AA48 -> 0.3323573361 | AX48: =AD48/AA48 -> 0.1219789345 | AY48: =AE48/AA48 -> 0.1472770383 | AZ48: =AF48/AA48 -> 0.04381139373 | BA48: =AG48/AA48 -> 0.003999100964 | BB48: =AH48/AA48 -> 0.04232055939 | BC48: =AI48/AA48 -> 0.03178867555 | BD48: =AJ48/AA48 -> 0.2764669158 | BE48: =J48 -> 6.357968097 | BF48: =BE48 -> 6.357968097 | BG48: =BE48*AM48 -> 0.9564910212 | BH48: =BE48*AN48 -> 0.2063342996 | BI48: =BE48*AO48 -> 0.562239691 | BJ48: =BE48*AP48 -> 0.1483495919 | BK48: =BE48*AQ48 -> 0.01409810517 | BL48: =BE48*AR48 -> 0.2644567392 | BM48: =BE48*AS48 -> 0.1887256365 | BN48: =BE48*AT48 -> 4.017273138 | BO48: =X48 -> 14.23792128 | BP48: =BO48 -> 14.23792128 | BQ48: =BO48*AW48 -> 4.732077587 | BR48: =BO48*AX48 -> 1.736726466 | BS48: =BO48*AY48 -> 2.096918877 | BT48: =BO48*AZ48 -> 0.623783175 | BU48: =BO48*BA48 -> 0.05693888471 | BV48: =BO48*BB48 -> 0.602556793 | BW48: =BO48*BC48 -> 0.45260466 | BX48: =BO48*BD48 -> 3.936314183 | BY48: 2.433676105 | BZ48: 1.126755622 | CA48: 2.418191975 | CB48: 1.14671328 | CC48: 0.3314664523 | CD48: 0.06657681046 | CE48: 0.5761343726 | CF48: 0.0443135192 | CG48: 0.04211246193 | CH48: 1.316598272 | CI48: 0.08610893187 | CJ48: 0.004175623424 | CK48: 3.178194993e-05 | CL48: 0.0005269862131 | CM48: 0.003201290232 | CN48: 0.08256517194 | CO48: 0.02497184237 | CP48: 0 | CQ48: 0.0009057970544 | CR48: 0.05544797939 | CS48: 0.1314638214 | CT48: 0.06890026266 | CU48: 0.06335658602 | CV48: 0.3200744465 | CW48: 0.04932704771 | CX48: 0.02111005345 | CY48: 1.88902221e-05 | CZ48: 0.0001203337568 | DA48: 0.003706613542 | DB48: 0.0002577348485 | DC48: 0.005804753764 | DD48: 0.0001234293243 | DE48: 3.761325993e-05 | DF48: 0.05160551929 | DG48: 0.006001385846 | DH48: 0.0001224047619 | DI48: 0.009525494777 | DJ48: 2.654169019e-05 | DK48: 1.709608507e-05 | DL48: 0.007027849473 | DM48: 0.03483759298 | DN48: 4.187535291e-05 | DO48: 0.2192930843 | DP48: 0.08044559646 | DQ48: 0.0003757494824 | DR48: 6.952296254e-05 | DS48: 0.0009599854131 | DT48: 0.0001097676454 | DU48: 233.4880493 | DV48: 7.945578792 | DW48: 4.884050519 | DX48: 7.596068011 | DY48: 4.680294951 | DZ48: 1.573772662 | EA48: 0.5595229101 | EB48: 1.974229696 | EC48: 0.1901626179 | ED48: 0.173580305 | EE48: 3.061528273 | EF48: 0.2090256136 | EG48: 0.01620775922 | EH48: 0.0001278955863 | EI48: 0.002435863307 | EJ48: =IF(COUNT(EJ18:EJ22)<3,"",AVERAGE(EJ18:EJ22)) -> 0.01519571014 | EK48: 0.3699810138 | EL48: 0.03933868939 | EM48: 6.666666667e-06 | EN48: 0.03663468379 | EO48: 0.2299786057 | EP48: 0.375630809 | EQ48: 0.235386393 | ER48: 0.219163752 | ES48: 1.096794243 | ET48: 0.1165387563 | EU48: 0.01372692391 | EV48: 0.0001162318841 | EW48: 0.0006900319499 | EX48: 0.01698739427 | EY48: 0.00110619137 | EZ48: 0.02206814328 | FA48: 0.0005564578393 | FB48: 0.0001224967062 | FC48: 0.433738527 | FD48: 0.01117309914 | FE48: 0.0006205391963 | FF48: 0.03278140283 | FG48: 1.218412385e-05 | FH48: 0.0002291699605 | FI48: 0.02790642754 | FJ48: 0.1215008432 | FK48: 0.0002842177207 | FL48: 1.038015155 | FM48: 0.3815208129 | FN48: 0.001318658762 | FO48: 0.0001763530962 | FP48: 0.004171171278 | FQ48: 0.0002169318182 | FR48: 103.5499668
A49: =A48 -> ACAD1 | B49: 2016-20 | J49: 6.507465709 | M49: 19.26942114 | N49: 7.269421144 | O49: 2.957056569 | P49: 0.6798499557 | Q49: 1.73300814 | R49: 0.5091543586 | S49: 0.0466727373 | T49: 0.7572702834 | U49: 0.5864095634 | V49: 12 | X49: 13.72732402 | AA49: 41.09117813 | AB49: 29.09117813 | AC49: 12.34065102 | AD49: 5.504562196 | AE49: 5.875467707 | AF49: 1.822802213 | AG49: 0.1702775817 | AH49: 1.830136398 | AI49: 1.547278635 | AJ49: 12 | AK49: =J49 -> 6.507465709 | AL49: =M49/M49 -> 1 | AM49: =O49/M49 -> 0.1534585054 | AN49: =P49/M49 -> 0.03528128586 | AO49: =Q49/M49 -> 0.08993566164 | AP49: =R49/M49 -> 0.02642291924 | AQ49: =S49/M49 -> 0.002422114133 | AR49: =T49/M49 -> 0.03929906756 | AS49: =U49/M49 -> 0.03043213177 | AT49: =V49/M49 -> 0.6227483384 | AU49: =X49 -> 13.72732402 | AV49: =AA49/AA49 -> 1 | AW49: =AC49/AA49 -> 0.3003236115 | AX49: =AD49/AA49 -> 0.1339597073 | AY49: =AE49/AA49 -> 0.1429861098 | AZ49: =AF49/AA49 -> 0.04435994039 | BA49: =AG49/AA49 -> 0.004143896316 | BB49: =AH49/AA49 -> 0.04453842605 | BC49: =AI49/AA49 -> 0.03765476447 | BD49: =AJ49/AA49 -> 0.2920334861 | BE49: =J49 -> 6.507465709 | BF49: =BE49 -> 6.507465709 | BG49: =BE49*AM49 -> 0.9986259619 | BH49: =BE49*AN49 -> 0.2295917579 | BI49: =BE49*AO49 -> 0.5852532342 | BJ49: =BE49*AP49 -> 0.1719462409 | BK49: =BE49*AQ49 -> 0.01576182467 | BL49: =BE49*AR49 -> 0.2557373346 | BM49: =BE49*AS49 -> 0.198036054 | BN49: =BE49*AT49 -> 4.052513458 | BO49: =X49 -> 13.72732402 | BP49: =BO49 -> 13.72732402 | BQ49: =BO49*AW49 -> 4.122639525 | BR49: =BO49*AX49 -> 1.838908308 | BS49: =BO49*AY49 -> 1.962816659 | BT49: =BO49*AZ49 -> 0.6089432751 | BU49: =BO49*BA49 -> 0.05688460742 | BV49: =BO49*BB49 -> 0.6113934056 | BW49: =BO49*BC49 -> 0.5168991527 | BX49: =BO49*BD49 -> 4.008838288 | BY49: =IF(COUNT(BY19:BY23)<3,"",AVERAGE(BY19:BY23)) -> 2.374975641 | BZ49: 1.120923064 | CA49: 2.415252606 | CB49: 1.197992425 | CC49: 0.3430516009 | CD49: 0.07325153873 | CE49: 0.5942111878 | CF49: 0.05091543586 | CG49: 0.0466727373 | CH49: 1.262117322 | CI49: 0.08988969636 | CJ49: 0.004508362554 | CK49: 2.133629776e-05 | CL49: 0.0005202760681 | CM49: 0.003390453275 | CN49: 0.08774558498 | CO49: 0.02730766845 | CP49: 0 | CQ49: 0.004392757199 | CR49: 0.06103507359 | CS49: 0.1306258649 | CT49: 0.06979262135 | CU49: 0.06427090848 | CV49: 0.3301172255 | CW49: 0.05109853684 | CX49: 0.01743860418 | CY49: 2.712210615e-05 | CZ49: 0.0001218301336 | DA49: 0.004036138905 | DB49: 0.000262647892 | DC49: 0.005321116083 | DD49: 0.000145635846 | DE49: 3.101181065e-05 | DF49: 0.05677958089 | DG49: 0.002856599614 | DH49: 0.0001661547619 | DI49: 0.009939954922 | DJ49: 2.629893657e-05 | DK49: 2.617941841e-05 | DL49: 0.008067508893 | DM49: 0.03660452414 | DN49: 4.597680218e-05 | DO49: 0.2271497908 | DP49: 0.08325409284 | DQ49: 0.0004565284679 | DR49: 6.940339733e-05 | DS49: 0.00104215208 | DT49: 8.565170337e-05 | DU49: 229.4646593 | DV49: 7.452572642 | DW49: 4.402344659 | DX49: 7.314711248 | DY49: 4.371828968 | DZ49: 1.368032279 | EA49: 0.5835989367 | EB49: 1.831717232 | EC49: 0.1822802213 | ED49: 0.1702775817 | EE49: 3.050227983 | EF49: 0.235921657 | EG49: 0.01513404589 | EH49: 9.307891963e-05 | EI49: 0.002120253307 | EJ49: 0.01515457681 | EK49: 0.3340580905 | EL49: 0.03988098273 | EM49: 0 | EN49: 0.04180753713 | EO49: 0.2198756491 | EP49: 0.3427077023 | EQ49: 0.2215708463 | ER49: 0.191658852 | ES49: 1.017620587 | ET49: 0.1314066163 | EU49: 0.01698592391 | EV49: 0.0001169652174 | EW49: 0.0006579419499 | EX49: 0.01626576094 | EY49: 0.001071044704 | EZ49: 0.02118134995 | FA49: 0.0005181545059 | FB49: 0.0001042733729 | FC49: 0.4524019403 | FD49: 0.007308039144 | FE49: 0.000565025863 | FF49: 0.03092321617 | FG49: 1.453745718e-05 | FH49: 0.0002123999605 | FI49: 0.02819357754 | FJ49: 0.1293956565 | FK49: 0.0002623843874 | FL49: 0.9164191385 | FM49: 0.3316443562 | FN49: 0.001400012095 | FO49: 0.0001688764295 | FP49: 0.003908241278 | FQ49: 0.0001715551515 | FR49: 108.7741465
A50: ACAD1 | B50: 2017-21 | J50: 6.542897778 | M50: 19.33775408 | N50: 7.337754082 | O50: 3.012731316 | P50: 0.7039329014 | Q50: 1.755203473 | R50: 0.5468164601 | S50: 0.05240941483 | T50: 0.7032997363 | U50: 0.5633609909 | V50: 12 | X50: 13.78381877 | AA50: 41.49242238 | AB50: 29.49242238 | AC50: 12.30134802 | AD50: 5.490849029 | AE50: 6.035723791 | AF50: 1.922106379 | AG50: 0.2131804983 | AH50: 1.831235648 | AI50: 1.697977635 | AJ50: 12 | AK50: =J50 -> 6.542897778 | AL50: =M50/M50 -> 1 | AM50: =O50/M50 -> 0.155795306 | AN50: =P50/M50 -> 0.03640199882 | AO50: =Q50/M50 -> 0.09076563214 | AP50: =R50/M50 -> 0.02827714417 | AQ50: =S50/M50 -> 0.002710212086 | AR50: =T50/M50 -> 0.03636925639 | AS50: =U50/M50 -> 0.02913270013 | AT50: =V50/M50 -> 0.6205477611 | AU50: =X50 -> 13.78381877 | AV50: =AA50/AA50 -> 1 | AW50: =AC50/AA50 -> 0.2964721583 | AX50: =AD50/AA50 -> 0.1323337784 | AY50: =AE50/AA50 -> 0.1454656885 | AZ50: =AF50/AA50 -> 0.04632427486 | BA50: =AG50/AA50 -> 0.005137817608 | BB50: =AH50/AA50 -> 0.04413421881 | BC50: =AI50/AA50 -> 0.04092259591 | BD50: =AJ50/AA50 -> 0.2892094342 | BE50: =J50 -> 6.542897778 | BF50: =BE50 -> 6.542897778 | BG50: =BE50*AM50 -> 1.019352762 | BH50: =BE50*AN50 -> 0.2381745572 | BI50: =BE50*AO50 -> 0.5938702529 | BJ50: =BE50*AP50 -> 0.1850144638 | BK50: =BE50*AQ50 -> 0.01773264064 | BL50: =BE50*AR50 -> 0.2379603269 | BM50: =BE50*AS50 -> 0.190612279 | BN50: =BE50*AT50 -> 4.060180567 | BO50: =X50 -> 13.78381877 | BP50: =BO50 -> 13.78381877 | BQ50: =BO50*AW50 -> 4.086518499 | BR50: =BO50*AX50 -> 1.824064818 | BS50: =BO50*AY50 -> 2.005072688 | BT50: =BO50*AZ50 -> 0.6385254092 | BU50: =BO50*BA50 -> 0.07081874677 | BV50: =BO50*BB50 -> 0.6083380735 | BW50: =BO50*BC50 -> 0.5640696455 | BX50: =BO50*BD50 -> 3.986410426 | BY50: 2.268383507 | BZ50: 1.126118768 | CA50: 2.323908272 | CB50: 1.220694515 | CC50: 0.3495714958 | CD50: 0.07583648075 | CE50: 0.6018785863 | CF50: 0.05468164601 | CG50: 0.05240941483 | CH50: 1.172166243 | CI50: 0.08631649346 | CJ50: 0.004869991342 | CK50: 1.350296443e-05 | CL50: 0.0005090412196 | CM50: 0.003968453275 | CN50: 0.09455115744 | CO50: 0.02876121193 | CP50: 0 | CQ50: 0.007025224591 | CR50: 0.06255171852 | CS50: 0.1253228323 | CT50: 0.07061728077 | CU50: 0.06885990123 | CV50: 0.3343769574 | CW50: 0.04886447163 | CX50: 0.01409251327 | CY50: 3.194786373e-05 | CZ50: 0.0001261255882 | DA50: 0.004394388905 | DB50: 0.0002292160738 | DC50: 0.004856578204 | DD50: 0.0001916964521 | DE50: 2.736787126e-05 | DF50: 0.05878366784 | DG50: 0.002699440194 | DH50: 0.0001738668831 | DI50: 0.01069832613 | DJ50: 2.396560324e-05 | DK50: 2.755820629e-05 | DL50: 0.009205986166 | DM50: 0.03440205444 | DN50: 4.480255976e-05 | DO50: 0.2291609648 | DP50: 0.08512418375 | DQ50: 0.0005242860437 | DR50: 7.032763975e-05 | DS50: 0.001089227837 | DT50: 0.0001375456428 | DU50: 228.5405374 | DV50: 7.564628558 | DW50: 4.512568742 | DX50: 7.438071581 | DY50: 4.498048634 | DZ50: 1.371858195 | EA50: 0.5873456867 | EB50: 1.871509066 | EC50: 0.1922106379 | ED50: 0.2131804983 | EE50: 3.052059816 | EF50: 0.261943657 | EG50: 0.01857962922 | EH50: 8.49955863e-05 | EI50: 0.002094419974 | EJ50: 0.01717791014 | EK50: 0.3487766738 | EL50: 0.04149339939 | EM50: 0 | EN50: 0.04459037046 | EO50: 0.2222297324 | EP50: 0.3468380356 | EQ50: 0.228009513 | ER50: 0.1980594353 | ES50: 1.039727087 | ET50: 0.1458632829 | EU50: 0.02113534058 | EV50: 0.0001179652174 | EW50: 0.0006396086166 | EX50: 0.01897576094 | EY50: 0.0009928780369 | EZ50: 0.02218626661 | FA50: 0.0005783211726 | FB50: 0.0001101900395 | FC50: 0.4553065237 | FD50: 0.00610195581 | FE50: 0.0004988591963 | FF50: 0.03273296617 | FG50: 3.362079051e-05 | FH50: 0.0002333999605 | FI50: 0.0381607442 | FJ50: 0.1417147399 | FK50: 0.0002827177207 | FL50: 0.9157907218 | FM50: 0.3325718562 | FN50: 0.001734012095 | FO50: 0.0001881264295 | FP50: 0.003918324611 | FQ50: 0.0001884718182 | FR50: 108.6078622
A51: ACAD1 | B51: 2018-22
A52: ACAD1 | B52: 2019-23
A53: ACAD1 | B53: 2020-24
A54: ACAD1 | B54: 2021-25
A55: ACAD1 | B55: 2022-26
A56: ACAD1 | B56: 2023-27
A57: ACAD1 | B57: 2024-28
J58: =IF(J32="","",J32) -> 
A59: BRIG1 | B59: 2000 | G59: =Tracking!W24 -> 5.517226693 | H59: =Tracking!X21 -> 10.68198747 | I59: =Tracking!S24 -> 14.2636855 | M59: 42.5225645 | N59: 30.5225645 | O59: 14.8238265 | P59: 3.6542025 | Q59: 4.695077 | R59: 2.96555 | S59: 0.2251685 | T59: 3.448398 | U59: 0.7103415 | V59: 12 | W59: =Tracking!R24 -> 27.36636333 | AA59: 161.9532138 | AB59: 149.9532138 | AC59: 111.708581 | AD59: 13.28273762 | AE59: 13.5226381 | AF59: 6.732619048 | AG59: 0.5193109524 | AH59: 3.841174286 | AI59: 0.3461514286 | AJ59: 12 | AK59: =I59 -> 14.2636855 | AL59: =M59/M59 -> 1 | AM59: =O59/M59 -> 0.3486108299 | AN59: =P59/M59 -> 0.08593560955 | AO59: =Q59/M59 -> 0.1104137781 | AP59: =R59/M59 -> 0.06974061971 | AQ59: =S59/M59 -> 0.005295270938 | AR59: =T59/M59 -> 0.08109572037 | AS59: =U59/M59 -> 0.01670504845 | AT59: =V59/M59 -> 0.2822031112 | AU59: =W59 -> 27.36636333 | AV59: =AA59/AA59 -> 1 | AW59: =AC59/AA59 -> 0.6897583464 | AX59: =AD59/AA59 -> 0.08201589401 | AY59: =AE59/AA59 -> 0.08349718895 | AZ59: =AF59/AA59 -> 0.0415713828 | BA59: =AG59/AA59 -> 0.003206549226 | BB59: =AH59/AA59 -> 0.02371780217 | BC59: =AI59/AA59 -> 0.002137354489 | BD59: =AJ59/AA59 -> 0.07409547312 | BE59: =I59 -> 14.2636855 | BF59: =BE59 -> 14.2636855 | BG59: =BE59*AM59 -> 4.97247524 | BH59: =BE59*AN59 -> 1.225758508 | BI59: =BE59*AO59 -> 1.574907405 | BJ59: =BE59*AP59 -> 0.9947582662 | BK59: =BE59*AQ59 -> 0.07553007929 | BL59: =BE59*AR59 -> 1.156723851 | BM59: =BE59*AS59 -> 0.2382755573 | BN59: =BE59*AT59 -> 4.025256426 | BO59: =W59 -> 27.36636333 | BP59: =BO59 -> 27.36636333 | BQ59: =BO59*AW59 -> 18.87617752 | BR59: =BO59*AX59 -> 2.244476755 | BS59: =BO59*AY59 -> 2.28501441 | BT59: =BO59*AZ59 -> 1.137657566 | BU59: =BO59*BA59 -> 0.08775159116 | BV59: =BO59*BB59 -> 0.6490699916 | BW59: =BO59*BC59 -> 0.05849161952 | BX59: =BO59*BD59 -> 2.027723639 | BY59: 9.898355 | BZ59: 4.151025 | CB59: 4.4802245 | CC59: 1.8863315 | CD59: 0.4480555 | CE59: 1.513395 | CF59: 0.296555 | CG59: 0.2251685 | CH59: 5.74733 | CI59: 0.110719 | CJ59: 0.007028 | CK59: 0.000337 | CL59: 0.00163 | CM59: 0.020028 | CN59: 0.361 | CO59: 0.087915 | CP59: 0.012095 | CQ59: 0.07921 | CR59: 0.163965 | CS59: 0.22951 | CT59: 0.203635 | CU59: 0.164455 | CV59: 0.840775 | CW59: 0.07985 | CX59: 0.028601 | CY59: 0.0009345 | CZ59: 0.0008705 | DA59: 0.0196615 | DB59: 0.0014915 | DC59: 0.0060065 | DD59: 0.000541 | DE59: 0.0004225 | DF59: 0.34733 | DG59: 0.022395 | DH59: 0 | DI59: 0.024719 | DJ59: 3.45e-05 | DK59: 0.000229 | DL59: 0.047488 | DM59: 0.134213 | DN59: 0.000119 | DO59: 1.222415 | DP59: 0.4572925 | DQ59: 0.00379 | DR59: 0.0015775 | DS59: 0.0048455 | DT59: 4.75e-05 | DU59: 101.8269025 | DV59: 22.89362857 | DW59: 16.49167143 | DY59: 16.79135048 | DZ59: 10.27105476 | EA59: 1.446195238 | EB59: 3.827425714 | EC59: 0.6732619048 | ED59: 0.5193109524 | EE59: 6.401957143 | EF59: 0.05410238095 | EG59: 0.02688809524 | EH59: 0.0008552380952 | EI59: 0.003522857143 | EJ59: 0.03360238095 | EK59: 0.7468857143 | EL59: 0.08488095238 | EM59: 0.008176190476 | EN59: 0.2066047619 | EO59: 0.5085761905 | EP59: 0.5495333333 | EQ59: 0.694952381 | ER59: 0.1666809524 | ES59: 2.126347619 | ET59: -0.2813095238 | EU59: 0 | EV59: 0.0004285714286 | EW59: 0.001220952381 | EX59: 0.04337809524 | EY59: 0.00248 | EZ59: 0 | FA59: 0.001624761905 | FB59: 0.001282380952 | FC59: 1.121080952 | FD59: 0.0298952381 | FE59: 0 | FF59: 0.05397952381 | FG59: 5.666666667e-05 | FH59: 0.001676666667 | FI59: 0.1100442857 | FJ59: 0.277012381 | FK59: 0.0003761904762 | FL59: 7.698852381 | FM59: 2.489952381 | FN59: 0.01078619048 | FO59: 0.002749047619 | FP59: 0.009988095238 | FQ59: 3.285714286e-05 | FR59: 26.85699905
A60: BRIG1 | B60: 2001 | G60: =G59 -> 5.517226693 | H60: =H59 -> 10.68198747 | I60: =Tracking!S25 -> 13.80449667 | M60: 40.27212429 | N60: 28.27212429 | O60: 13.75101333 | P60: 3.435397619 | Q60: 4.31731381 | R60: 2.396047619 | S60: 0.2474038095 | T60: 3.718066667 | U60: 0.4068804762 | V60: 12 | W60: =Tracking!R25 -> 27.07211773 | AA60: 161.9354868 | AB60: 149.9354868 | AC60: 109.3283641 | AD60: 16.217855 | AE60: 11.69085045 | AF60: 5.847136364 | AG60: 0.6750054545 | AH60: 6.149056364 | AI60: 0.02722 | AJ60: 12 | AK60: =I60 -> 13.80449667 | AL60: 1 | AM60: 0.3414523961 | AN60: 0.08530460411 | AO60: 0.1072035281 | AP60: 0.05949642989 | AQ60: 0.006143301698 | AR60: 0.09232357946 | AS60: 0.01010327822 | AT60: 0.2979728587 | AU60: =W60 -> 27.07211773 | AV60: =AA60/AA60 -> 1 | AW60: =AC60/AA60 -> 0.6751353038 | AX60: =AD60/AA60 -> 0.1001500988 | AY60: =AE60/AA60 -> 0.07219449352 | AZ60: =AF60/AA60 -> 0.03610781354 | BA60: =AG60/AA60 -> 0.004168360301 | BB60: =AH60/AA60 -> 0.03797225972 | BC60: =AI60/AA60 -> 0.0001680916304 | BD60: =AJ60/AA60 -> 0.07410358431 | BE60: =I60 -> 13.80449667 | BF60: =BE60 -> 13.80449667 | BG60: =BE60*AM60 -> 4.713578464 | BH60: =BE60*AN60 -> 1.177587123 | BI60: =BE60*AO60 -> 1.479890747 | BJ60: =BE60*AP60 -> 0.8213182681 | BK60: =BE60*AQ60 -> 0.08480518782 | BL60: =BE60*AR60 -> 1.274480545 | BM60: =BE60*AS60 -> 0.1394706705 | BN60: =BE60*AT60 -> 4.113365335 | BO60: =W60 -> 27.07211773 | BP60: =BO60 -> 27.07211773 | BQ60: =BO60*AW60 -> 18.27734243 | BR60: =BO60*AX60 -> 2.711275264 | BS60: =BO60*AY60 -> 1.954457828 | BT60: =BO60*AZ60 -> 0.977514979 | BU60: =BO60*BA60 -> 0.1128463408 | BV60: =BO60*BB60 -> 1.027989486 | BW60: =BO60*BC60 -> 0.004550596407 | BX60: =BO60*BD60 -> 2.006140958 | BY60: 9.859680952 | BZ60: 3.874865 | CA60: 9.989022 | CB60: 4.07527381 | CC60: 1.699327619 | CD60: 0.4073942857 | CE60: 1.414731429 | CF60: 0.2396047619 | CG60: 0.2474038095 | CH60: 6.196778095 | CI60: 0.06681142857 | CJ60: 0.0012455 | CK60: 0.000245 | CL60: 0.001746 | CM60: 0.019211 | CN60: 0.2767142857 | CO60: 0.06118095238 | CP60: 0.003271428571 | CQ60: 0.03115238095 | CR60: 0.1319571429 | CS60: 0.2813619048 | CT60: 0.2399285714 | CU60: 0.1015619048 | CV60: 0.7859619048 | CW60: 0.02495714286 | CX60: 0.0122995 | CY60: 0.000486 | CZ60: 0.0006745 | DA60: 0.0193015 | DB60: 0.001521 | DC60: 0 | DD60: 0.0008795 | DE60: 0.0007985 | DF60: 0.3158095238 | DG60: 0.009880952381 | DH60: 0 | DI60: 0.0237845 | DJ60: 0.000151 | DK60: 0.000418 | DL60: 0.060895 | DM60: 0.135779 | DN60: 0.0002185 | DO60: 1.164719048 | DP60: 0.4025295 | DQ60: 0.003836 | DR60: 0.002811 | DS60: 0.003831 | DT60: 5.05e-05 | DU60: 105.1775195 | DV60: 27.65814091 | DW60: 17.40971364 | DX60: 23.07366471 | DY60: 16.59921636 | DZ60: 10.17036091 | EA60: 1.799238636 | EB60: 3.365558182 | EC60: 0.5847136364 | ED60: 0.6750054545 | EE60: 10.24842727 | EF60: 0.004337272727 | EG60: 0.02189636364 | EH60: 0.0005113636364 | EI60: 0.003054090909 | EJ60: 0.03542727273 | EK60: 0.7123227273 | EL60: 0.05057727273 | EM60: 0.002977272727 | EN60: 0.2013772727 | EO60: 0.4495 | EP60: 0.4280318182 | EQ60: 0.6096818182 | ER60: 0.1811636364 | ES60: 1.869754545 | ET60: -0.3817 | EU60: 0 | EV60: 0.0006 | EW60: 0.00109 | EX60: 0.04366181818 | EY60: 0.002743181818 | EZ60: 0 | FA60: 0.0008227272727 | FB60: 0.001888181818 | FC60: 1.394759091 | FD60: 0.02018636364 | FE60: 0 | FF60: 0.04599681818 | FG60: 0.0001509090909 | FH60: 0.001912727273 | FI60: 0.1702372727 | FJ60: 0.3063859091 | FK60: 0.0003740909091 | FL60: 7.920704545 | FM60: 2.465542273 | FN60: 0.01691772727 | FO60: 0.004256818182 | FP60: 0.008731363636 | FQ60: 3.863636364e-05 | FR60: 28.40694773
A61: BRIG1 | B61: 2002 | G61: =G59 -> 5.517226693 | H61: =H59 -> 10.68198747 | I61: =Tracking!S26 -> 14.83233 | M61: 44.47860364 | N61: 32.47860364 | O61: 16.34510955 | P61: 3.626695909 | Q61: 4.311327727 | R61: 2.050636364 | S61: 0.2334272727 | T61: 3.904870909 | U61: 2.006533182 | V61: 12 | W61: =Tracking!R26 -> 26.53276864 | AA61: 155.8127245 | AB61: 143.8127245 | AC61: 111.5146077 | AD61: 9.971791818 | AE61: 13.10741545 | AF61: 4.781727273 | AG61: 0.9796354545 | AH61: 3.452623636 | AI61: 0.004921818182 | AJ61: 12 | AK61: 14.83233 | AL61: 1 | AM61: 0.3674825244 | AN61: 0.08153798934 | AO61: 0.09693037494 | AP61: 0.04610388358 | AQ61: 0.005248080057 | AR61: 0.08779212003 | AS61: 0.04511232408 | AT61: 0.2697926423 | AU61: 26.53276864 | AV61: =AA61/AA61 -> 1 | AW61: =AC61/AA61 -> 0.7156964109 | AX61: =AD61/AA61 -> 0.06399857167 | AY61: =AE61/AA61 -> 0.08412288209 | AZ61: =AF61/AA61 -> 0.03068893947 | BA61: =AG61/AA61 -> 0.006287262208 | BB61: =AH61/AA61 -> 0.02215880408 | BC61: =AI61/AA61 -> 3.158803747e-05 | BD61: =AJ61/AA61 -> 0.07701553281 | BE61: 14.83233 | BF61: =BE61 -> 14.83233 | BG61: 5.450622071 | BH61: 1.209398365 | BI61: 1.437703308 | BJ61: 0.6838280155 | BK61: 0.07784125528 | BL61: 1.302161696 | BM61: 0.6691208778 | BN61: 4.001653502 | BO61: 26.53276864 | BP61: =BO61 -> 26.53276864 | BQ61: 18.98940728 | BR61: 1.698059295 | BS61: 2.232012967 | BT61: 0.8142625307 | BU61: 0.1668184735 | BV61: 0.5879344219 | BW61: 0.00083811809 | BX61: 2.043435314 | BY61: 10.84795909 | BZ61: 4.339840909 | CA61: 10.83905818 | CB61: 4.588159545 | CC61: 1.987488636 | CD61: 0.4264263636 | CE61: 1.405112727 | CF61: 0.2050636364 | CG61: 0.2334272727 | CH61: 6.508118182 | CI61: 0.3306386364 | CJ61: 0.007341363636 | CK61: 0.0002177272727 | CL61: 0.002009090909 | CM61: 0.01684363636 | CN61: 0.2603136364 | CO61: 0.05267727273 | CP61: 0.002340909091 | CQ61: 0.03423181818 | CR61: 0.1199409091 | CS61: 0.2839590909 | CT61: 0.2317954545 | CU61: 0.1106909091 | CV61: 0.7806181818 | CW61: 0.1335954545 | CX61: 0.07401227273 | CY61: 7.909090909e-05 | CZ61: 0.00051 | DA61: 0.01603227273 | DB61: 0.001137272727 | DC61: 0.009479545455 | DD61: 0.0005086363636 | DE61: 0.0005477272727 | DF61: 0.3305636364 | DG61: 0.01099090909 | DH61: 0 | DI61: 0.023265 | DJ61: 6.818181818e-05 | DK61: 0.0004622727273 | DL61: 0.057105 | DM61: 0.07351045455 | DN61: 0.0003040909091 | DO61: 1.324259091 | DP61: 0.4818154545 | DQ61: 0.001317272727 | DR61: 0.001527727273 | DS61: 0.002965454545 | DT61: 4.454545455e-05 | DU61: 93.98394273 | DV61: 22.5174 | DW61: 16.76302727 | DX61: 20.68520476 | DY61: 16.42273591 | DZ61: 10.255185 | EA61: 1.084075 | EB61: 3.624897273 | EC61: 0.4781727273 | ED61: 0.9796354545 | EE61: 5.754372727 | EF61: 0.0007704545455 | EG61: 0.07353227273 | EH61: 0.00047 | EI61: 0.003543181818 | EJ61: 0.03587090909 | EK61: 0.5791409091 | EL61: 0.06035454545 | EM61: 0.002422727273 | EN61: 0.1481863636 | EO61: 0.4312090909 | EP61: 0.5927136364 | EQ61: 0.6779772727 | ER61: 0.1637454545 | ES61: 2.013831818 | ET61: -0.3424727273 | EU61: 0 | EV61: 0.0001663636364 | EW61: 0.00113 | EX61: 0.05171636364 | EY61: 0.002257272727 | EZ61: 0.02488272727 | FA61: 0.001301818182 | FB61: 0.001344090909 | FC61: 0.8403681818 | FD61: 0.02276363636 | FE61: 0 | FF61: 0.05412863636 | FG61: 0.00018 | FH61: 0.001827727273 | FI61: 0.2473568182 | FJ61: 0.08936636364 | FK61: 0.0007563636364 | FL61: 7.630840909 | FM61: 2.486105455 | FN61: 0.004839090909 | FO61: 0.004007727273 | FP61: 0.006769545455 | FQ61: 6.727272727e-05 | FR61: 30.50208364
A62: BRIG1 | B62: 2003 | G62: =G59 -> 5.517226693 | H62: =H59 -> 10.68198747 | I62: =Tracking!S27 -> 14.38665304 | M62: 42.62602174 | N62: 30.62602174 | O62: 15.10575565 | P62: 3.926823478 | Q62: 4.041801304 | R62: 1.902217391 | S62: 0.1905686957 | T62: 2.831066087 | U62: 2.627787391 | V62: 12 | W62: =Tracking!R27 -> 28.49253917 | AA62: 186.7173025 | AB62: 174.7173025 | AC62: 138.1685542 | AD62: 14.105485 | AE62: 12.72525583 | AF62: 5.817 | AG62: 0.6977370833 | AH62: 3.02975875 | AI62: 0.1735120833 | AJ62: 12 | AK62: 14.38665304 | AL62: 1 | AM62: 0.3543787348 | AN62: 0.09212268277 | AO62: 0.09482004511 | AP62: 0.04462573127 | AQ62: 0.004470712674 | AR62: 0.06641638069 | AS62: 0.06164749334 | AT62: 0.2815181786 | AU62: 28.49253917 | AV62: 1 | AW62: 0.7399879514 | AX62: 0.07554460573 | AY62: 0.06815252611 | AZ62: 0.03115404905 | BA62: 0.003736863558 | BB62: 0.0162264488 | BC62: 0.000929276939 | BD62: 0.06426828065 | BE62: 14.38665304 | BF62: 14.38665304 | BG62: 5.098323903 | BH62: 1.325337074 | BI62: 1.364143091 | BJ62: 0.6420149126 | BK62: 0.0643185921 | BL62: 0.9555094253 | BM62: 0.8869010977 | BN62: 4.050104361 | BO62: 28.49253917 | BP62: 28.49253917 | BQ62: 21.08413569 | BR62: 2.152457638 | BS62: 1.941838519 | BT62: 0.8876579627 | BU62: 0.1064727313 | BV62: 0.4623327281 | BW62: 0.02647745958 | BX62: 1.831166504 | BY62: 8.896382609 | BZ62: 4.17793913 | CA62: 9.128338696 | CB62: 4.486661739 | CC62: 1.90496 | CD62: 0.4694695652 | CE62: 1.313452174 | CF62: 0.1902217391 | CG62: 0.1905686957 | CH62: 4.718443478 | CI62: 0.4179856522 | CJ62: 0.006373478261 | CK62: 0.0002182608696 | CL62: 0.00175 | CM62: 0.01720869565 | CN62: 0.2185347826 | CO62: 0.05172173913 | CP62: 0.003891304348 | CQ62: 0.02363043478 | CR62: 0.1099956522 | CS62: 0.2806826087 | CT62: 0.2314608696 | CU62: 0.08392608696 | CV62: 0.7296956522 | CW62: 0.2213086957 | CX62: 0.08263913043 | CY62: 0.0001352173913 | CZ62: 0.000612173913 | DA62: 0.01589130435 | DB62: 0.001132173913 | DC62: 0.01151391304 | DD62: 0.0004660869565 | DE62: 0.0006913043478 | DF62: 0.3639304348 | DG62: 0.01460434783 | DH62: 0.0006230434783 | DI62: 0.02459434783 | DJ62: 4.217391304e-05 | DK62: 0.0004569565217 | DL62: 0.04174652174 | DM62: 0.08591130435 | DN62: 0.0002213043478 | DO62: 1.343873913 | DP62: 0.4618086957 | DQ62: 0.0009673913043 | DR62: 0.001527391304 | DS62: 0.003837391304 | DT62: 4.782608696e-06 | DU62: 98.71369652 | DV62: 23.62179048 | DW62: 18.9209375 | DX62: 21.11306667 | DY62: 18.79667458 | DZ62: 12.37195625 | EA62: 1.530063333 | EB62: 3.58701 | EC62: 0.5817 | ED62: 0.6977370833 | EE62: 5.049597917 | EF62: 0.02820833333 | EG62: 0.02371541667 | EH62: 0.00053625 | EI62: 0.00320875 | EJ62: 0.03106375 | EK62: 0.5235708333 | EL62: 0.07524583333 | EM62: 0.003108333333 | EN62: 0.1688416667 | EO62: 0.4727791667 | EP62: 0.5821041667 | EQ62: 0.7488333333 | ER62: 0.020225 | ES62: 1.992783333 | ET62: -0.2656041667 | EU62: 0 | EV62: 8.166666667e-05 | EW62: 0.001597916667 | EX62: 0.04548625 | EY62: 0.002489166667 | EZ62: 0.03851166667 | FA62: 0.0008470833333 | FB62: 0.001743333333 | FC62: 1.186095833 | FD62: 0.02458333333 | FE62: 0 | FF62: 0.06127208333 | FG62: 0.000125 | FH62: 0.00195875 | FI62: 0.1861208333 | FJ62: 0.4316179167 | FK62: 0.0007541666667 | FL62: 9.151066667 | FM62: 2.999262083 | FN62: 0.004288333333 | FO62: 0.00505375 | FP62: 0.00672875 | FQ62: 1.25e-05 | FR62: 24.58517833
A63: BRIG1 | B63: 2004 | C63: =J63 -> 14.32975021 | D63: =Tracking!Y28 -> 27.43023193 | E63: =Tracking!AD28 -> 14.32975021 | F63: =Tracking!AE28 -> 27.43023193 | G63: =G59 -> 5.517226693 | H63: =H59 -> 10.68198747 | I63: =Tracking!S28 -> 14.36158583 | J63: =Tracking!AG28 -> 14.32975021 | M63: 42.18954375 | N63: 30.18954375 | O63: 13.86955583 | P63: 4.411200833 | Q63: 5.365759583 | R63: 2.765833333 | S63: 0.2807066667 | T63: 2.237020833 | U63: 1.25946625 | V63: 12 | W63: =Tracking!R28 -> 27.6873708 | X63: =Tracking!AF28 -> 27.43023193 | AA63: 170.0588736 | AB63: 158.0588736 | AC63: 124.434272 | AD63: 10.083792 | AE63: 13.96393 | AF63: 4.65052 | AG63: 1.0301332 | AH63: 3.19542 | AI63: 0.7008072 | AJ63: 12 | AK63: 14.36158583 | AL63: 1 | AM63: 0.3287439162 | AN63: 0.1045567323 | AO63: 0.127182214 | AP63: 0.06555731794 | AQ63: 0.006653465331 | AR63: 0.05302311034 | AS63: 0.02985256862 | AT63: 0.2844306654 | AU63: 27.6873708 | AV63: 1 | AW63: 0.7317129025 | AX63: 0.05929588846 | AY63: 0.08211232795 | AZ63: 0.02734652948 | BA63: 0.006057509251 | BB63: 0.01879008094 | BC63: 0.00412096814 | BD63: 0.07056379797 | BE63: 14.36158583 | BF63: 14.36158583 | BG63: 4.721283969 | BH63: 1.501600486 | BI63: 1.826538283 | BJ63: 0.9415070486 | BK63: 0.09555431344 | BL63: 0.7614959503 | BM63: 0.4287302266 | BN63: 4.084875414 | BO63: 27.6873708 | BP63: 27.6873708 | BQ63: 20.25920645 | BR63: 1.641747251 | BS63: 2.273474471 | BT63: 0.7571535018 | BU63: 0.1677165047 | BV63: 0.5202479384 | BW63: 0.1140987729 | BX63: 1.953726039 | BY63: 7.6572 | BZ63: 4.164366667 | CA63: 8.162123043 | CB63: 4.75781 | CC63: 1.738780833 | CD63: 0.5358283333 | CE63: 1.725195 | CF63: 0.2765833333 | CG63: 0.2807066667 | CH63: 3.728368333 | CI63: 0.2007166667 | CJ63: 0.01519375 | CK63: 0.00030625 | CL63: 0.001921666667 | CM63: 0.01835666667 | CN63: 0.3257666667 | CO63: 0.0627625 | CP63: 0.0024125 | CQ63: 0.05731666667 | CR63: 0.1621708333 | CS63: 0.3163208333 | CT63: 0.308275 | CU63: 0.1143583333 | CV63: 0.9584416667 | CW63: 0.1126166667 | CX63: 0.02165166667 | CY63: 0.0001191666667 | CZ63: 0.001044166667 | DA63: 0.02562625 | DB63: 0.002 | DC63: 0.02275291667 | DD63: 0.0006766666667 | DE63: 0.0008145833333 | DF63: 0.4153708333 | DG63: 0.01372916667 | DH63: 0 | DI63: 0.02739625 | DJ63: 5.833333333e-05 | DK63: 0.0004641666667 | DL63: 0.0590825 | DM63: 0.1487916667 | DN63: 0.00024875 | DO63: 1.203154167 | DP63: 0.4215225 | DQ63: 0.001922083333 | DR63: 0.001260416667 | DS63: 0.005418333333 | DT63: 7e-05 | DU63: 98.02345125 | DV63: 22.452612 | DW63: 17.126912 | DX63: 23.294716 | DY63: 17.911928 | DZ63: 11.2596856 | EA63: 1.1327384 | EB63: 3.9114504 | EC63: 0.465052 | ED63: 1.0301332 | EE63: 5.3257 | EF63: 0.1128692 | EG63: 0.0582192 | EH63: 0.0007128 | EI63: 0.003584 | EJ63: 0.0345824 | EK63: 0.525424 | EL63: 0.05374 | EM63: 0.004912 | EN63: 0.196768 | EO63: 0.555268 | EP63: 0.586416 | EQ63: 0.715552 | ER63: 0.119024 | ES63: 2.173028 | ET63: 0.063896 | EU63: 0 | EV63: 7.04e-05 | EW63: 0.0012252 | EX63: 0.0433336 | EY63: 0.00238 | EZ63: 0.0358372 | FA63: 0.000936 | FB63: 0.0012744 | FC63: 0.878092 | FD63: 0.017788 | FE63: 0 | FF63: 0.051006 | FG63: 0.0001064 | FH63: 0.0016004 | FI63: 0.2909836 | FJ63: 0.2060916 | FK63: 0.0004772 | FL63: 8.22882 | FM63: 2.7296208 | FN63: 0.0037628 | FO63: 0.0035052 | FP63: 0.007286 | FQ63: 2.4e-06 | FR63: 26.5588268
A64: BRIG1 | B64: 2005 | C64: =C63 -> 14.32975021 | D64: =Tracking!Y29 -> 27.15109453 | E64: =Tracking!AD29 -> 14.16892728 | F64: =Tracking!AE29 -> 27.0360556 | G64: =G63 -> 5.517226693 | H64: =H63 -> 10.68198747 | I64: =Tracking!S29 -> 14.60920292 | J64: =Tracking!AG29 -> 14.39885369 | M64: 43.72147083 | N64: 31.72147083 | O64: 15.75426458 | P64: 3.935204167 | Q64: 3.338684583 | R64: 2.187208333 | S64: 0.16781 | T64: 2.851249167 | U64: 3.487049167 | V64: 12 | W64: =Tracking!R29 -> 28.80912333 | X64: =Tracking!AF29 -> 27.71878393 | AA64: 191.4087592 | AB64: 179.4087592 | AC64: 148.1647258 | AD64: 8.820657917 | AE64: 12.3467875 | AF64: 5.759166667 | AG64: 0.6080783333 | AH64: 3.258740417 | AI64: 0.45060125 | AJ64: 12 | AK64: 14.60920292 | AL64: 1 | AM64: 0.3603324473 | AN64: 0.09000621643 | AO64: 0.07636258615 | AP64: 0.05002595502 | AQ64: 0.003838159989 | AR64: 0.06521393522 | AS64: 0.07975598945 | AT64: 0.2744646914 | AU64: 28.80912333 | AV64: 1 | AW64: 0.7740749508 | AX64: 0.04608283317 | AY64: 0.0645048197 | AZ64: 0.03008831305 | BA64: 0.003176857402 | BB64: 0.01702503287 | BC64: 0.002354130772 | BD64: 0.0626930557 | BE64: 14.60920292 | BF64: 14.60920292 | BG64: 5.26416984 | BH64: 1.31491908 | BI64: 1.115596516 | BJ64: 0.730839328 | BK64: 0.0560724581 | BL64: 0.9527236126 | BM64: 1.165171434 | BN64: 4.00971037 | BO64: 28.80912333 | BP64: 28.80912333 | BQ64: 22.30042073 | BR64: 1.327606024 | BS64: 1.858327306 | BT64: 0.8668179216 | BU64: 0.0915224767 | BV64: 0.4904762717 | BW64: 0.06782044376 | BX64: 1.806131974 | BY64: 8.695478261 | BZ64: 4.007325 | CA64: 8.943649565 | CB64: 4.470216667 | CC64: 1.948548333 | CD64: 0.4719525 | CE64: 1.1000175 | CF64: 0.2187208333 | CG64: 0.16781 | CH64: 4.752082083 | CI64: 0.5631675 | CJ64: 0.005904583333 | CK64: 0.00017 | CL64: 0.00194375 | CM64: 0.01893083333 | CN64: 0.3480125 | CO64: 0.0601125 | CP64: 0.0006541666667 | CQ64: -0.0025875 | CR64: 0.1528083333 | CS64: 0.171875 | CT64: 0.1428125 | CU64: 0.1820583333 | CV64: 0.6469666667 | CW64: 0.3128708333 | CX64: 0.1351641667 | CY64: 8.083333333e-05 | CZ64: 0.0006775 | DA64: 0.01641791667 | DB64: 0.001081666667 | DC64: 0.02065 | DD64: 0.00051125 | DE64: 0.00080125 | DF64: 0.3658541667 | DG64: 0.01315833333 | DH64: 0 | DI64: 0.02316083333 | DJ64: 6.791666667e-05 | DK64: 0.0004041666667 | DL64: 0.03228458333 | DM64: 0.1857183333 | DN64: 0.0002870833333 | DO64: 1.215445833 | DP64: 0.4723754167 | DQ64: 0.001184583333 | DR64: 0.001425416667 | DS64: 0.003484583333 | DT64: 9.166666667e-06 | DU64: 96.88150792 | DV64: 23.34795217 | DW64: 17.94025 | DX64: 23.34943043 | DY64: 18.60854708 | DZ64: 12.81394125 | EA64: 1.003781667 | EB64: 3.532665 | EC64: 0.5759166667 | ED64: 0.6080783333 | EE64: 5.431234167 | EF64: 0.07416375 | EG64: 0.03276583333 | EH64: 0.000575 | EI64: 0.00348125 | EJ64: 0.03411416667 | EK64: 1.0763375 | EL64: 0.06735 | EM64: 0.001408333333 | EN64: 0.1416333333 | EO64: 0.6176666667 | EP64: 0.3121958333 | EQ64: 0.4106833333 | ER64: 0.5522458333 | ES64: 2.034425 | ET64: 0.04204166667 | EU64: 0 | EV64: 0.0001633333333 | EW64: 0.001129583333 | EX64: 0.049 | EY64: 0.002284166667 | EZ64: 0.008470416667 | FA64: 0.001219166667 | FB64: 0.0015175 | FC64: 0.778125 | FD64: 0.01691666667 | FE64: 0 | FF64: 0.04285333333 | FG64: 0.00012 | FH64: 0.001872083333 | FI64: 0.1418333333 | FJ64: 0.1720833333 | FK64: 0.0004058333333 | FL64: 8.742029167 | FM64: 3.10641 | FN64: 0.004373333333 | FO64: 0.00392125 | FP64: 0.00730125 | FQ64: 2.125e-05 | FR64: 23.59610083
A65: BRIG1 | B65: 2006 | C65: =C63 -> 14.32975021 | D65: =Tracking!Y30 -> 26.87195712 | E65: =Tracking!AD30 -> 14.00810436 | F65: =Tracking!AE30 -> 26.64187927 | G65: =G63 -> 5.517226693 | H65: =H63 -> 10.68198747 | I65: =Tracking!S30 -> 15.3497845 | J65: =Tracking!AG30 -> 14.70791126 | M65: 46.5551905 | N65: 34.5551905 | O65: 16.1509785 | P65: 4.179437 | Q65: 3.9552795 | R65: 2.0306 | S65: 0.2518605 | T65: 5.347365 | U65: 2.639669 | V65: 12 | W65: =Tracking!R30 -> 26.88325952 | X65: =Tracking!AF30 -> 27.68101229 | AA65: 155.2798548 | AB65: 143.2798548 | AC65: 106.330221 | AD65: 9.483382381 | AE65: 11.30697381 | AF65: 5.718714286 | AG65: 0.62767 | AH65: 8.909125714 | AI65: 0.9037695238 | AJ65: 12 | AK65: 15.3497845 | AL65: 1 | AM65: 0.3469211129 | AN65: 0.08977381373 | AO65: 0.08495893707 | AP65: 0.04361704846 | AQ65: 0.005409933829 | AR65: 0.1148607694 | AS65: 0.05669977873 | AT65: 0.2577585844 | AU65: 26.88325952 | AV65: 1 | AW65: 0.6847650722 | AX65: 0.06107284422 | AY65: 0.07281674643 | AZ65: 0.0368284366 | BA65: 0.004042185646 | BB65: 0.05737463967 | BC65: 0.005820262552 | BD65: 0.07727982499 | BE65: 15.3497845 | BF65: 15.3497845 | BG65: 5.325164322 | BH65: 1.378008694 | BI65: 1.304101375 | BJ65: 0.6695122944 | BK65: 0.08304131843 | BL65: 1.763088058 | BM65: 0.8703293847 | BN65: 3.956538724 | BO65: 26.88325952 | BP65: 26.88325952 | BQ65: 18.40871715 | BR65: 1.641837121 | BS65: 1.957551492 | BT65: 0.9900684189 | BU65: 0.1086671258 | BV65: 1.542417328 | BW65: 0.1564676287 | BX65: 2.077533591 | BY65: 13.190035 | BZ65: 4.27776 | CA65: 13.2788065 | CB65: 4.6436975 | CC65: 1.973751 | CD65: 0.5052855 | CE65: 1.287702 | CF65: 0.20306 | CG65: 0.2518605 | CH65: 8.912275 | CI65: 0.422037 | CJ65: 0.0143565 | CK65: 0.000149 | CL65: 0.0017625 | CM65: 0.0202305 | CN65: 0.3672 | CO65: 0.05239 | CP65: 0.001415 | CQ65: -0.00985 | CR65: 0.17964 | CS65: 0.217705 | CT65: 0.14993 | CU65: 0.212565 | CV65: 0.74999 | CW65: 0.234465 | CX65: 0.1133555 | CY65: 9.4e-05 | CZ65: 0.0006605 | DA65: 0.019946 | DB65: 0.0011755 | DC65: 0.0178175 | DD65: 0.000568 | DE65: 0.000681 | DF65: 0.391695 | DG65: 0.00151 | DH65: 0 | DI65: 0.0252945 | DJ65: 6.25e-05 | DK65: 0.000328 | DL65: 0.05399 | DM65: 0.187523 | DN65: 0.0003275 | DO65: 1.18468 | DP65: 0.478485 | DQ65: 0.001788 | DR65: 0.001051 | DS65: 0.002882 | DT65: 3.5e-05 | DU65: 88.3529845 | DV65: 29.67155238 | DW65: 14.82300952 | DX65: 29.39802381 | DY65: 15.85609667 | DZ65: 10.10544762 | EA65: 1.097784762 | EB65: 3.307851429 | EC65: 0.5718714286 | ED65: 0.62767 | EE65: 14.84854286 | EF65: 0.1454742857 | EG65: 0.03341857143 | EH65: 0.0004295238095 | EI65: 0.003405238095 | EJ65: 0.03587095238 | EK65: 1.013914286 | EL65: 0.08624761905 | EM65: 0.003947619048 | EN65: 0.1202857143 | EO65: 0.5386904762 | EP65: 0.2857238095 | EQ65: 0.3935857143 | ER65: 0.5261666667 | ES65: 1.864452381 | ET65: 0.08081904762 | EU65: 0 | EV65: 0.0001514285714 | EW65: 0.001528095238 | EX65: 0.04622666667 | EY65: 0.002532857143 | EZ65: 0.01632952381 | FA65: 0.00112952381 | FB65: 0.001477619048 | FC65: 0.8509952381 | FD65: 0.006919047619 | FE65: 0 | FF65: 0.05023619048 | FG65: 9e-05 | FH65: 0.001392380952 | FI65: 0.150747619 | FJ65: 0.2624366667 | FK65: 0.0005561904762 | FL65: 6.3597 | FM65: 2.449805238 | FN65: 0.003724285714 | FO65: 0.003023333333 | FP65: 0.008514285714 | FQ65: 4.476190476e-05 | FR65: 28.50120524
A66: BRIG1 | B66: 2007 | C66: =C63 -> 14.32975021 | D66: =Tracking!Y31 -> 26.59281971 | E66: =Tracking!AD31 -> 13.84728143 | F66: =Tracking!AE31 -> 26.24770294 | G66: =G63 -> 5.517226693 | H66: =H63 -> 10.68198747 | I66: =Tracking!S31 -> 12.73726955 | J66: =Tracking!AG31 -> 14.28889917 | M66: 36.03189955 | N66: 24.03189955 | O66: 11.28229227 | P66: 3.261405909 | Q66: 3.274273182 | R66: 1.6435 | S66: 0.2112190909 | T66: 2.38597 | U66: 1.973235909 | V66: 12 | W66: =Tracking!R31 -> 26.10378348 | X66: =Tracking!AF31 -> 27.59521526 | AA66: 142.5139396 | AB66: 130.5139396 | AC66: 102.9291013 | AD66: 7.61538087 | AE66: 10.08804391 | AF66: 4.865913043 | AG66: 0.6211017391 | AH66: 3.411406522 | AI66: 0.9829952174 | AJ66: 12 | AK66: 12.73726955 | AL66: 1 | AM66: 0.3131195528 | AN66: 0.09051440391 | AO66: 0.09087151172 | AP66: 0.04561236073 | AQ66: 0.005862002658 | AR66: 0.06621826854 | AS66: 0.05476358266 | AT66: 0.3330382287 | AU66: 26.10378348 | AV66: 1 | AW66: 0.7222388323 | AX66: 0.05343604207 | AY66: 0.07078636619 | AZ66: 0.03414341824 | BA66: 0.004358182372 | BB66: 0.0239373533 | BC66: 0.006897537324 | BD66: 0.08420228952 | BE66: 12.73726955 | BF66: 12.73726955 | BG66: 3.988288144 | BH66: 1.15290636 | BI66: 1.157454939 | BJ66: 0.5809769333 | BK66: 0.07466590793 | BL66: 0.8434399352 | BM66: 0.6975385136 | BN66: 4.241997687 | BO66: 26.10378348 | BP66: 26.10378348 | BQ66: 18.8531661 | BR66: 1.394882872 | BS66: 1.847791976 | BT66: 0.8912723969 | BU66: 0.113765049 | BV66: 0.6248554876 | BW66: 0.1800518208 | BX66: 2.197998334 | BY66: 7.047094737 | BZ66: 3.223213636 | CA66: 7.359906842 | CB66: 3.576544091 | CC66: 1.403467273 | CD66: 0.3866590909 | CE66: 1.087641818 | CF66: 0.16435 | CG66: 0.2112190909 | CH66: 3.976617273 | CI66: 0.3232063636 | CJ66: 0.007606363636 | CK66: 0.0001363636364 | CL66: 0.001656818182 | CM66: 0.01551272727 | CN66: 0.3112363636 | CO66: 0.04484545455 | CP66: 0.0008818181818 | CQ66: 0.008863636364 | CR66: 0.1434954545 | CS66: 0.1918363636 | CT66: 0.1272363636 | CU66: 0.1867 | CV66: 0.6581318182 | CW66: 0.1798409091 | CX66: 0.05316818182 | CY66: 7.090909091e-05 | CZ66: 0.00069 | DA66: 0.01612136364 | DB66: 0.001275454545 | DC66: 0.009405454545 | DD66: 0.0004554545455 | DE66: 0.0005445454545 | DF66: 0.3002545455 | DG66: -0.00025 | DH66: 0 | DI66: 0.02111318182 | DJ66: 8.318181818e-05 | DK66: 0.0003354545455 | DL66: 0.05078863636 | DM66: 0.1241045455 | DN66: 0.000265 | DO66: 0.9234045455 | DP66: 0.3408595455 | DQ66: 0.001381818182 | DR66: 0.001220454545 | DS66: 0.003607272727 | DT66: 0.0001309090909 | DU66: 117.1889214 | DV66: 21.72085909 | DW66: 15.88983636 | DX66: 21.39327143 | DY66: 14.78616391 | DZ66: 9.688134348 | EA66: 0.86074 | EB66: 2.977849565 | EC66: 0.4865913043 | ED66: 0.6211017391 | EE66: 5.685677391 | EF66: 0.1517478261 | EG66: 0.01297227273 | EH66: 0.0004854545455 | EI66: 0.003584090909 | EJ66: 0.02955727273 | EK66: 0.9530565217 | EL66: 0.05920869565 | EM66: 0.001352173913 | EN66: 0.1094565217 | EO66: 0.5215782609 | EP66: 0.2564652174 | EQ66: 0.3289217391 | ER66: 0.5149130435 | ES66: 1.731334783 | ET66: 0.08447826087 | EU66: 0 | EV66: 0.0002068181818 | EW66: 0.001420909091 | EX66: 0.04161181818 | EY66: 0.002191818182 | EZ66: 0.009765454545 | FA66: 0.0008668181818 | FB66: 0.001273181818 | FC66: 0.6681521739 | FD66: 0.009386956522 | FE66: 0 | FF66: 0.04351818182 | FG66: 0.0001322727273 | FH66: 0.001469545455 | FI66: 0.1785459091 | FJ66: 0.1811818182 | FK66: 0.0004863636364 | FL66: 7.465221739 | FM66: 2.337593636 | FN66: 0.003397272727 | FO66: 0.003068636364 | FP66: 0.007324545455 | FQ66: 9.181818182e-05 | FR66: 30.61646348
A67: BRIG1 | B67: 2008 | C67: =C63 -> 14.32975021 | D67: =Tracking!Y32 -> 26.3136823 | E67: =Tracking!AD32 -> 13.68645851 | F67: =Tracking!AE32 -> 25.85352661 | G67: =G63 -> 5.517226693 | H67: =H63 -> 10.68198747 | J67: =Tracking!AG32 -> 14.2644607 | X67: =Tracking!AF32 -> 27.37088428
A68: BRIG1 | B68: 2009 | C68: =C63 -> 14.32975021 | D68: =Tracking!Y33 -> 26.03454489 | E68: =Tracking!AD33 -> 13.52563558 | F68: =Tracking!AE33 -> 25.45935028 | G68: =G63 -> 5.517226693 | H68: =H63 -> 10.68198747 | I68: =Tracking!S33 -> 12.78062583 | J68: =Tracking!AG33 -> 13.8692207 | M68: 36.15732667 | N68: 24.15732667 | O68: 10.93212542 | P68: 2.834932083 | Q68: 3.826203333 | R68: 1.676458333 | S68: 0.25741375 | T68: 2.5361525 | U68: 2.094040833 | V68: 12 | W68: =Tracking!R33 -> 23.029386 | X68: =Tracking!AF33 -> 26.20638808 | AA68: 102.7822012 | AB68: 90.7822012 | AC68: 58.3007504 | AD68: 14.0115216 | AE68: 8.8714216 | AF68: 4.28788 | AG68: 0.6764376 | AH68: 4.095828 | AI68: 0.5383648 | AJ68: 12 | AK68: 12.78062583 | AL68: 1 | AM68: 0.3023488301 | AN68: 0.07840546702 | AO68: 0.1058209687 | AP68: 0.04636566051 | AQ68: 0.007119269419 | AR68: 0.07014214639 | AS68: 0.05791470295 | AT68: 0.3318829434 | AU68: 23.029386 | AV68: 1 | AW68: 0.5672261318 | AX68: 0.1363224511 | AY68: 0.08631281969 | AZ68: 0.04171811802 | BA68: 0.006581271778 | BB68: 0.03984958439 | BC68: 0.005237918567 | BD68: 0.1167517319 | BE68: 12.78062583 | BF68: 12.78062583 | BG68: 3.864207268 | BH68: 1.002070937 | BI68: 1.352458206 | BJ68: 0.5925821585 | BK68: 0.09098871865 | BL68: 0.8964605281 | BM68: 0.7401861486 | BN68: 4.24167172 | BO68: 23.029386 | BP68: 23.029386 | BQ68: 13.06286954 | BR68: 3.139422348 | BS68: 1.987731241 | BT68: 0.9607426431 | BU68: 0.1515626481 | BV68: 0.9177114607 | BW68: 0.1206260485 | BX68: 2.6887207 | BY68: 7.712029167 | BZ68: 3.4718625 | CA68: 7.931990833 | CB68: 3.71053625 | CC68: 1.371514583 | CD68: 0.3388558333 | CE68: 1.2432 | CF68: 0.1676458333 | CG68: 0.25741375 | CH68: 4.226920833 | CI68: 0.331905 | CJ68: 0.0159975 | CK68: 0.0002345833333 | CL68: 0.001380833333 | CM68: 0.01819875 | CN68: 0.3279166667 | CO68: 0.0371875 | CP68: 0.0001666666667 | CQ68: 0.005879166667 | CR68: 0.1675083333 | CS68: 0.2023083333 | CT68: 0.1566083333 | CU68: 0.1962791667 | CV68: 0.7285833333 | CW68: 0.185 | CX68: 0.04833583333 | CY68: 8.333333333e-05 | CZ68: 0.0006329166667 | DA68: 0.01817625 | DB68: 0.001014166667 | DC68: 0.006497916667 | DD68: 0.0003779166667 | DE68: 0.00043375 | DF68: 0.2635166667 | DG68: 0.01320833333 | DH68: 0.002437916667 | DI68: 0.02401708333 | DJ68: 8.166666667e-05 | DK68: 0.0002170833333 | DL68: 0.05865208333 | DM68: 0.1714141667 | DN68: 0.0002783333333 | DO68: 0.9310458333 | DP68: 0.3336166667 | DQ68: 0.001503333333 | DR68: 0.001024166667 | DS68: 0.002666666667 | DT68: 5.75e-05 | DU68: 116.3878033 | DV68: 18.20838 | DW68: 11.361804 | DX68: 17.999908 | DY68: 11.5087268 | DZ68: 6.0088928 | EA68: 1.5995496 | EB68: 2.7045936 | EC68: 0.428788 | ED68: 0.6764376 | EE68: 6.82638 | EF68: 0.0904668 | EG68: 0.0511808 | EH68: 0.0005628 | EI68: 0.0030536 | EJ68: 0.0297976 | EK68: 0.832896 | EL68: 0.046996 | EM68: 5.2e-05 | EN68: 0.0824 | EO68: 0.443392 | EP68: 0.250296 | EQ68: 0.328744 | ER68: 0.446588 | ES68: 1.55142 | ET68: 0.050856 | EU68: 0 | EV68: 0.0001856 | EW68: 0.001506 | EX68: 0.0398496 | EY68: 0.0021512 | EZ68: 0.0111488 | FA68: 0.0010216 | FB68: 0.0007588 | FC68: 1.244128 | FD68: 0.015776 | FE68: 0 | FF68: 0.052434 | FG68: 0.000132 | FH68: 0.0012204 | FI68: 0.1661328 | FJ68: 0.1935316 | FK68: 0.0005912 | FL68: 4.038276 | FM68: 1.4607348 | FN68: 0.0034104 | FO68: 0.0020876 | FP68: 0.0074064 | FQ68: 0.0001124 | FR68: 40.8934316
A69: BRIG1 | B69: 2010 | C69: =C63 -> 14.32975021 | D69: =Tracking!Y34 -> 25.75540749 | E69: =Tracking!AD34 -> 13.36481266 | F69: =Tracking!AE34 -> 25.06517395 | G69: =G63 -> 5.517226693 | H69: =H63 -> 10.68198747 | I69: =Tracking!S34 -> 11.81662208 | J69: =Tracking!AG34 -> 13.17107549 | M69: 33.09229 | N69: 21.09229 | O69: 8.83917 | P69: 2.603804583 | Q69: 3.88289625 | R69: 1.874666667 | S69: 0.2385629167 | T69: 2.744995 | U69: 0.908195 | V69: 12 | W69: =Tracking!R34 -> 24.5091392 | X69: =Tracking!AF34 -> 25.13139205 | AA69: 120.1690068 | AB69: 108.1690068 | AC69: 64.1134596 | AD69: 19.8792568 | AE69: 10.9749416 | AF69: 4.8308 | AG69: 0.7222132 | AH69: 7.020036 | AI69: 0.6282996 | AJ69: 12 | AK69: 11.81662208 | AL69: 1 | AM69: 0.2671066282 | AN69: 0.07868311874 | AO69: 0.1173353748 | AP69: 0.05664965062 | AQ69: 0.007209018072 | AR69: 0.08294968405 | AS69: 0.02744430802 | AT69: 0.3626222301 | AU69: 24.5091392 | AV69: 1 | AW69: 0.5335274153 | AX69: 0.1654274869 | AY69: 0.09132921951 | AZ69: 0.04020004932 | BA69: 0.006009978939 | BB69: 0.05841802464 | BC69: 0.00522846628 | BD69: 0.09985935908 | BE69: 11.81662208 | BF69: 11.81662208 | BG69: 3.156298081 | BH69: 0.9297686784 | BI69: 1.386507781 | BJ69: 0.6694075125 | BK69: 0.08518624215 | BL69: 0.9801850684 | BM69: 0.3242990163 | BN69: 4.284969852 | BO69: 24.5091392 | BP69: 24.5091392 | BQ69: 13.07629769 | BR69: 4.054485304 | BS69: 2.238400554 | BT69: 0.9852686046 | BU69: 0.1472994104 | BV69: 1.431775498 | BW69: 0.1281452079 | BX69: 2.447466932 | BY69: 7.558908333 | BZ69: 2.987458333 | CA69: 7.75672875 | CB69: 3.301241667 | CC69: 1.13509875 | CD69: 0.31571125 | CE69: 1.277985 | CF69: 0.1874666667 | CG69: 0.2385629167 | CH69: 4.574991667 | CI69: 0.1464166667 | CJ69: 0.01521458333 | CK69: 9.25e-05 | CL69: 0.001467916667 | CM69: 0.0158275 | CN69: 0.3157583333 | CO69: 0.0571125 | CP69: 0.0002791666667 | CQ69: 0.0037 | CR69: 0.1607125 | CS69: 0.2133583333 | CT69: 0.1465375 | CU69: 0.1856833333 | CV69: 0.7099916667 | CW69: 0.0845375 | CX69: 0.008519166667 | CY69: 0.0001325 | CZ69: 0.00069 | DA69: 0.01905541667 | DB69: 0.001160833333 | DC69: 0.00586 | DD69: 0.0004883333333 | DE69: 0.0003283333333 | DF69: 0.2447375 | DG69: 0.01264166667 | DH69: 0.001052916667 | DI69: 0.01994458333 | DJ69: 9.166666667e-05 | DK69: 0.0002245833333 | DL69: 0.05202083333 | DM69: 0.09852916667 | DN69: 0.00022375 | DO69: 0.7370083333 | DP69: 0.2751754167 | DQ69: 0.001499166667 | DR69: 0.0006733333333 | DS69: 0.002925 | DT69: 8.166666667e-05 | DU69: 130.5620283 | DV69: 25.343084 | DW69: 13.643024 | DX69: 24.727048 | DY69: 13.2831056 | DZ69: 6.5739552 | EA69: 2.1664316 | EB69: 3.2363928 | EC69: 0.48308 | ED69: 0.7222132 | EE69: 11.70006 | EF69: 0.1010324 | EG69: 0.0491184 | EH69: 0.0005672 | EI69: 0.003674 | EJ69: 0.0317604 | EK69: 0.915256 | EL69: 0.046912 | EM69: 0.00098 | EN69: 0.07294 | EO69: 0.490212 | EP69: 0.349176 | EQ69: 0.4056 | ER69: 0.480068 | ES69: 1.797996 | ET69: 0.048576 | EU69: 0 | EV69: 0.000264 | EW69: 0.0016916 | EX69: 0.045102 | EY69: 0.0025188 | EZ69: 0.0147016 | FA69: 0.0013928 | FB69: 0.000918 | FC69: 1.679404 | FD69: 0.019852 | FE69: 0 | FF69: 0.0523944 | FG69: 0.0001444 | FH69: 0.00143 | FI69: 0.1789776 | FJ69: 0.2952072 | FK69: 0.0005284 | FL69: 4.604672 | FM69: 1.593686 | FN69: 0.0034536 | FO69: 0.0022088 | FP69: 0.0086856 | FQ69: 0.0001712 | FR69: 35.6070868
A70: BRIG1 | B70: 2011 | C70: =C63 -> 14.32975021 | D70: =Tracking!Y35 -> 25.47627008 | E70: =Tracking!AD35 -> 13.20398973 | F70: =Tracking!AE35 -> 24.67099762 | G70: =G63 -> 5.517226693 | H70: =H63 -> 10.68198747 | I70: =Tracking!S35 -> 12.91688304 | J70: =Tracking!AG35 -> 12.56285013 | M70: 36.71261913 | N70: 24.71261913 | O70: 9.908175217 | P70: 3.68086087 | Q70: 3.313503913 | R70: 1.627304348 | S70: 0.1506052174 | T70: 4.039145217 | U70: 1.993025217 | V70: 12 | W70: =Tracking!R35 -> 22.66475217 | X70: =Tracking!AF35 -> 24.07676521 | AA70: 100.2532761 | AB70: 88.25327609 | AC70: 53.12989565 | AD70: 13.2063613 | AE70: 9.622872174 | AF70: 3.94173913 | AG70: 0.2801317391 | AH70: 6.954725217 | AI70: 1.117548696 | AJ70: 12 | AK70: 12.91688304 | AL70: 1 | AM70: 0.2698847277 | AN70: 0.100261462 | AO70: 0.09025517633 | AP70: 0.04432547681 | AQ70: 0.004102273849 | AR70: 0.1100206227 | AS70: 0.05428719782 | AT70: 0.3268630864 | AU70: 22.66475217 | AV70: 1 | AW70: 0.5299567029 | AX70: 0.1317299725 | AY70: 0.09598561313 | AZ70: 0.0393178087 | BA70: 0.002794240249 | BB70: 0.06937155063 | BC70: 0.01114725363 | BD70: 0.1196968365 | BE70: 12.91688304 | BF70: 12.91688304 | BG70: 3.486069463 | BH70: 1.295065579 | BI70: 1.165815557 | BJ70: 0.5725469998 | BK70: 0.05298859152 | BL70: 1.421123516 | BM70: 0.7012213851 | BN70: 4.222052259 | BO70: 22.66475217 | BP70: 22.66475217 | BQ70: 12.01133733 | BR70: 2.985627181 | BS70: 2.175490134 | BT70: 0.8911283901 | BU70: 0.06333076276 | BV70: 1.572289003 | BW70: 0.2526497409 | BX70: 2.712899136 | BY70: 10.08204783 | BZ70: 3.35013913 | CA70: 10.12597522 | CB70: 3.447545652 | CC70: 1.263626087 | CD70: 0.4469395652 | CE70: 1.095566087 | CF70: 0.1627304348 | CG70: 0.1506052174 | CH70: 6.731908696 | CI70: 0.3280782609 | CJ70: 0.01130304348 | CK70: 0.0001547826087 | CL70: 0.001184347826 | CM70: 0.01422217391 | CN70: 0.2775304348 | CO70: 0.04343043478 | CP70: 6.086956522e-05 | CQ70: -0.009265217391 | CR70: 0.1260565217 | CS70: 0.182826087 | CT70: 0.1507391304 | CU70: 0.1582913043 | CV70: 0.6086478261 | CW70: 0.1851869565 | CX70: 0.05839478261 | CY70: 0.0001143478261 | CZ70: 0.0007943478261 | DA70: 0.01718391304 | DB70: 0.0007634782609 | DC70: 0.01811217391 | DD70: 0.0005217391304 | DE70: 0.0003482608696 | DF70: 0.3464652174 | DG70: 0.004834782609 | DH70: 0.000912173913 | DI70: 0.02024565217 | DJ70: -2.608695652e-06 | DK70: 0.0001643478261 | DL70: 0.02357826087 | DM70: 0.106443913 | DN70: 0.0002365217391 | DO70: 0.8762782609 | DP70: 0.3063334783 | DQ70: 0.001165652174 | DR70: 0.0009639130435 | DS70: 0.003025652174 | DT70: 0.0002352173913 | DU70: 115.0034817 | DV70: 23.03124783 | DW70: 11.44003913 | DX70: 22.34304391 | DY70: 10.74316043 | DZ70: 5.521004348 | EA70: 1.496310435 | EB70: 2.872995652 | EC70: 0.394173913 | ED70: 0.2801317391 | EE70: 11.5912087 | EF70: 0.1785443478 | EG70: 0.02491347826 | EH70: 0.0003747826087 | EI70: 0.003214347826 | EJ70: 0.02286434783 | EK70: 0.7827695652 | EL70: 0.05100869565 | EM70: 0.0001869565217 | EN70: 0.01093913043 | EO70: 0.4011695652 | EP70: 0.3623695652 | EQ70: 0.3818391304 | ER70: 0.4397913043 | ES70: 1.596108696 | ET70: 0.09919130435 | EU70: 0.004819565217 | EV70: 0.0002660869565 | EW70: 0.001404782609 | EX70: 0.03235869565 | EY70: 0.002471304348 | EZ70: 0.0194673913 | FA70: 0.001222173913 | FB70: 0.0008447826087 | FC70: 1.159930435 | FD70: 0.01006956522 | FE70: 0.002686086957 | FF70: 0.0386926087 | FG70: 9.043478261e-05 | FH70: 0.0009847826087 | FI70: 0.04253391304 | FJ70: 0.09716391304 | FK70: 0.0004404347826 | FL70: 4.021582609 | FM70: 1.338425217 | FN70: 0.001977391304 | FO70: 0.002325217391 | FP70: 0.007711304348 | FQ70: 0.0004917391304 | FR70: 42.93107
A71: BRIG1 | B71: 2012 | C71: =C63 -> 14.32975021 | D71: =Tracking!Y36 -> 25.19713267 | E71: =Tracking!AD36 -> 13.04316681 | F71: =Tracking!AE36 -> 24.27682129 | G71: =G63 -> 5.517226693 | H71: =H63 -> 10.68198747 | I71: =Tracking!S36 -> 11.92667609 | J71: =Tracking!AG36 -> 12.36020176 | M71: 33.14128043 | N71: 21.14128043 | O71: 8.452426957 | P71: 2.97573 | Q71: 3.333133913 | R71: 1.394173913 | S71: 0.1470217391 | T71: 3.317637391 | U71: 1.52115913 | V71: 12 | W71: =Tracking!R36 -> 20.95191583 | X71: =Tracking!AF36 -> 22.7887983 | AA71: 83.55943125 | AB71: 71.55943125 | AC71: 38.00200792 | AD71: 14.73691125 | AE71: 9.202181667 | AF71: 4.050125 | AG71: 0.3397133333 | AH71: 4.4206125 | AI71: 0.8078804167 | AJ71: 12 | AK71: 11.92667609 | AL71: 1 | AM71: 0.2550422568 | AN71: 0.08978922845 | AO71: 0.1005734802 | AP71: 0.04206759349 | AQ71: 0.004436211794 | AR71: 0.1001058905 | AS71: 0.0458992263 | AT71: 0.3620861911 | AU71: 20.95191583 | AV71: 1 | AW71: 0.4547901697 | AX71: 0.1763644274 | AY71: 0.1101273851 | AZ71: 0.04846999243 | BA71: 0.004065529507 | BB71: 0.0529038127 | BC71: 0.00966833312 | BD71: 0.14361036 | BE71: 11.92667609 | BF71: 11.92667609 | BG71: 3.041806386 | BH71: 1.070887044 | BI71: 1.199507322 | BJ71: 0.5017265613 | BK71: 0.05290926112 | BL71: 1.193930531 | BM71: 0.5474252047 | BN71: 4.318484717 | BO71: 20.95191583 | BP71: 20.95191583 | BQ71: 9.528725357 | BR71: 3.69517264 | BS71: 2.307379704 | BT71: 1.015539202 | BU71: 0.08518063205 | BV71: 1.108436231 | BW71: 0.2025701018 | BX71: 3.008912175 | BY71: 8.481913043 | BZ71: 2.952517391 | CA71: 8.567724783 | CB71: 3.074673913 | CC71: 1.082953478 | CD71: 0.3565230435 | CE71: 1.104182609 | CF71: 0.1394173913 | CG71: 0.1470217391 | CH71: 5.529395652 | CI71: 0.2445769565 | CJ71: 0.01255913043 | CK71: 0.000132173913 | CL71: 0.001215217391 | CM71: 0.01286217391 | CN71: 0.2533826087 | CO71: 0.03739565217 | CP71: 2.608695652e-05 | CQ71: -0.003908695652 | CR71: 0.1165 | CS71: 0.2068347826 | CT71: 0.1426217391 | CU71: 0.1513869565 | CV71: 0.6134347826 | CW71: 0.1361652174 | CX71: 0.02998913043 | CY71: 0.0001239130435 | CZ71: 0.0006186956522 | DA71: 0.0157973913 | DB71: 0.0007052173913 | DC71: 0.0167826087 | DD71: 0.000462173913 | DE71: 0.0002886956522 | DF71: 0.276373913 | DG71: 0.005713043478 | DH71: 0.0005239130435 | DI71: 0.01995391304 | DJ71: -1.043478261e-05 | DK71: 0.0001826086957 | DL71: 0.02332913043 | DM71: 0.09846173913 | DN71: 0.0001330434783 | DO71: 0.7607913043 | DP71: 0.262533913 | DQ71: 0.001086086957 | DR71: 0.0007486956522 | DS71: 0.002646521739 | DT71: -2.869565217e-05 | DU71: 127.1939965 | DV71: 17.12382083 | DW71: 9.756133333 | DX71: 16.82529708 | DY71: 9.469658333 | DZ71: 4.1534675 | EA71: 1.667690833 | EB71: 2.7753225 | EC71: 0.4050125 | ED71: 0.3397133333 | EE71: 7.3676875 | EF71: 0.1284525 | EG71: 0.02666041667 | EH71: 0.00067625 | EI71: 0.0030875 | EJ71: 0.02202125 | EK71: 0.754925 | EL71: 0.04164583333 | EM71: 0 | EN71: 0.04525 | EO71: 0.3757791667 | EP71: 0.3877791667 | EQ71: 0.3414791667 | ER71: 0.3915583333 | ES71: 1.541845833 | ET71: 0.0713625 | EU71: 0.001637916667 | EV71: 0.0002404166667 | EW71: 0.001887916667 | EX71: 0.03540083333 | EY71: 0.0024925 | EZ71: 0.009234166667 | FA71: 0.001291666667 | FB71: 0.0006075 | FC71: 1.292783333 | FD71: 0.01544166667 | FE71: 0.003557916667 | FF71: 0.05446708333 | FG71: -2.875e-05 | FH71: 0.00095 | FI71: 0.062115 | FJ71: 0.06644416667 | FK71: 0.0007504166667 | FL71: 3.011941667 | FM71: 1.00690125 | FN71: 0.002489166667 | FO71: 0.001324166667 | FP71: 0.007122083333 | FQ71: 7.5e-05 | FR71: 50.77002042
A72: BRIG1 | B72: 2013 | C72: =C63 -> 14.32975021 | D72: =Tracking!Y37 -> 24.91799526 | E72: =Tracking!AD37 -> 12.88234388 | F72: =Tracking!AE37 -> 23.88264496 | G72: =G63 -> 5.517226693 | H72: =H63 -> 10.68198747 | I72: =Tracking!S37 -> 11.80141864 | J72: =Tracking!AG37 -> 12.24844514 | M72: 32.82344227 | N72: 20.82344227 | O72: 8.597225455 | P72: 2.827625455 | Q72: 3.673033636 | R72: 1.570045455 | S72: 0.1324563636 | T72: 2.5344 | U72: 1.488659091 | V72: 12 | W72: =Tracking!R37 -> 20.11802565 | X72: =Tracking!AF37 -> 22.25464377 | AA72: 76.79524696 | AB72: 64.79524696 | AC72: 33.80862696 | AD72: 16.03394391 | AE72: 7.051465652 | AF72: 3.541565217 | AG72: 0.2368943478 | AH72: 3.087685652 | AI72: 1.035065217 | AJ72: 12 | AK72: 11.80141864 | AL72: 1 | AM72: 0.2619233346 | AN72: 0.08614652391 | AO72: 0.1119027555 | AP72: 0.04783305302 | AQ72: 0.004035419641 | AR72: 0.07721310821 | AS72: 0.04535353357 | AT72: 0.3655923684 | AU72: 20.11802565 | AV72: 1 | AW72: 0.4402437429 | AX72: 0.208788233 | AY72: 0.09182164172 | AZ72: 0.04611698455 | BA72: 0.003084752732 | BB72: 0.0402067286 | BC72: 0.01347824583 | BD72: 0.1562596707 | BE72: 11.80141864 | BF72: 11.80141864 | BG72: 3.091066923 | BH72: 1.016651193 | BI72: 1.320611265 | BJ72: 0.5644978833 | BK72: 0.04762367656 | BL72: 0.9112242142 | BM72: 0.5352360363 | BN72: 4.31450859 | BO72: 20.11802565 | BP72: 20.11802565 | BQ72: 8.856834913 | BR72: 4.200407027 | BS72: 1.847270144 | BT72: 0.9277826782 | BU72: 0.06205913459 | BV72: 0.8088799974 | BW72: 0.2711556954 | BX72: 3.143636063 | BY72: 7.193081818 | BZ72: 2.969081818 | CA72: 7.361361364 | CB72: 3.178157273 | CC72: 1.09153 | CD72: 0.3438559091 | CE72: 1.20816 | CF72: 0.1570045455 | CG72: 0.1324563636 | CH72: 4.224 | CI72: 0.2451518182 | CJ72: 0.01150136364 | CK72: 0.0001013636364 | CL72: 0.001141818182 | CM72: 0.01126727273 | CN72: 0.2662409091 | CO72: 0.04947272727 | CP72: 0.0004090909091 | CQ72: 0.0129 | CR72: 0.1404909091 | CS72: 0.2131409091 | CT72: 0.14555 | CU72: 0.1591181818 | CV72: 0.6712 | CW72: 0.1361954545 | CX72: 0.04270409091 | CY72: 0.0001145454545 | CZ72: 0.0006554545455 | DA72: 0.01401136364 | DB72: 0.0008522727273 | DC72: 0.01229409091 | DD72: 0.0003631818182 | DE72: 0.0002 | DF72: 0.2665545455 | DG72: 0.004731818182 | DH72: 0.0009090909091 | DI72: 0.02005863636 | DJ72: 5.181818182e-05 | DK72: 0.0002027272727 | DL72: 0.02118454545 | DM72: 0.07981363636 | DN72: 0.0002309090909 | DO72: 0.7641681818 | DP72: 0.2646136364 | DQ72: 0.001097727273 | DR72: 0.0002531818182 | DS72: 0.002684090909 | DT72: 5.454545455e-05 | DU72: 129.4000055 | DV72: 13.91879091 | DW72: 9.016704348 | DX72: 13.59752273 | DY72: 8.710342174 | DZ72: 3.899453913 | EA72: 1.860432174 | EB72: 2.193793043 | EC72: 0.3541565217 | ED72: 0.2368943478 | EE72: 5.146143043 | EF72: 0.1656108696 | EG72: 0.01963782609 | EH72: 0.000377826087 | EI72: 0.002987391304 | EJ72: 0.0175973913 | EK72: 0.6539130435 | EL72: 0.05109130435 | EM72: 0 | EN72: 0.03642173913 | EO72: 0.3086826087 | EP72: 0.2632130435 | EQ72: 0.2596086957 | ER72: 0.3508478261 | ES72: 1.218773913 | ET72: 0.09319130435 | EU72: 0.002293913043 | EV72: 0.0002595652174 | EW72: 0.001182608696 | EX72: 0.02780130435 | EY72: 0.001762608696 | EZ72: 0.01087434783 | FA72: 0.000942173913 | FB72: 0.0006039130435 | FC72: 1.442195652 | FD72: 0.008113043478 | FE72: 0.003345652174 | FF72: 0.03575217391 | FG72: -4.347826087e-07 | FH72: 0.0007556521739 | FI72: 0.0379126087 | FJ72: 0.06844608696 | FK72: 0.000252173913 | FL72: 2.85446087 | FM72: 0.9453221739 | FN72: 0.001714347826 | FO72: 0.0007252173913 | FP72: 0.00669 | FQ72: 0.00013 | FR72: 55.18388478
A73: BRIG1 | B73: 2014 | C73: =C63 -> 14.32975021 | D73: =Tracking!Y38 -> 24.63885786 | E73: =Tracking!AD38 -> 12.72152096 | F73: =Tracking!AE38 -> 23.48846863 | G73: =G63 -> 5.517226693 | H73: =H63 -> 10.68198747 | I73: =Tracking!S38 -> 11.663865 | J73: =Tracking!AG38 -> 12.02509297 | M73: 32.66946227 | N73: 20.66946227 | O73: 8.083260909 | P73: 2.56141 | Q73: 4.524393182 | R73: 1.238090909 | S73: 0.1385068182 | T73: 2.749129091 | U73: 1.374671364 | V73: 12 | W73: =Tracking!R38 -> 21.08857652 | X73: =Tracking!AF38 -> 21.86648188 | AA73: 100.4403096 | AB73: 88.44030957 | AC73: 37.56574478 | AD73: 29.05150261 | AE73: 10.8042313 | AF73: 4.472304348 | AG73: 0.2800621739 | AH73: 4.848618261 | AI73: 1.417847391 | AJ73: 12 | AK73: 11.663865 | AL73: 1 | AM73: 0.2474255879 | AN73: 0.07840380042 | AO73: 0.1384899802 | AP73: 0.03789749886 | AQ73: 0.004239641811 | AR73: 0.08414981146 | AS73: 0.0420781754 | AT73: 0.367315504 | AU73: 21.08857652 | AV73: 1 | AW73: 0.3740106432 | AX73: 0.2892414682 | AY73: 0.1075686779 | AZ73: 0.0445269869 | BA73: 0.002788344392 | BB73: 0.0482736292 | BC73: 0.01411631841 | BD73: 0.1194739448 | BE73: 11.663865 | BF73: 11.663865 | BG73: 2.885938655 | BH73: 0.9144913436 | BI73: 1.615328432 | BJ73: 0.4420313105 | BK73: 0.04945060973 | BL73: 0.9815120407 | BM73: 0.4907941573 | BN73: 4.284318451 | BO73: 21.08857652 | BP73: 21.08857652 | BQ73: 7.887352069 | BR73: 6.099690836 | BS73: 2.268470295 | BT73: 0.9390107704 | BU73: 0.05880221408 | BV73: 1.018022123 | BW73: 0.2976930611 | BX73: 2.519535427 | BY73: 7.5898 | BZ73: 3.007918182 | CA73: 7.780612727 | CB73: 3.293208182 | CC73: 1.023384545 | CD73: 0.3121618182 | CE73: 1.465780909 | CF73: 0.1238090909 | CG73: 0.1385068182 | CH73: 4.581881818 | CI73: 0.2295654545 | CJ73: 0.01217772727 | CK73: 0.0002172727273 | CL73: 0.001483181818 | CM73: 0.01208363636 | CN73: 0.2448045455 | CO73: 0.03822727273 | CP73: 6.818181818e-05 | CQ73: 0.04109545455 | CR73: 0.2274636364 | CS73: 0.2408454545 | CT73: 0.1456272727 | CU73: 0.1592909091 | CV73: 0.8143227273 | CW73: 0.1275363636 | CX73: 0.03116090909 | CY73: 0.0001331818182 | CZ73: 0.0006272727273 | DA73: 0.01406772727 | DB73: 0.0009290909091 | DC73: 0.01635727273 | DD73: 0.0004809090909 | DE73: 0.0002486363636 | DF73: 0.2419863636 | DG73: 0.01268636364 | DH73: 0.0003127272727 | DI73: 0.01948409091 | DJ73: 1.863636364e-05 | DK73: 0.0001868181818 | DL73: 0.02236636364 | DM73: 0.08272045455 | DN73: 0.0001813636364 | DO73: 0.6755681818 | DP73: 0.2480931818 | DQ73: 0.001176363636 | DR73: 0.0003345454545 | DS73: 0.002849545455 | DT73: 0.0003159090909 | DU73: 133.217775 | DV73: 20.17895217 | DW73: 12.09791304 | DX73: 19.1511313 | DY73: 11.08023174 | DZ73: 4.216406957 | EA73: 2.998452174 | EB73: 2.906225217 | EC73: 0.4472304348 | ED73: 0.2800621739 | EE73: 8.081030435 | EF73: 0.2318556522 | EG73: 0.02563434783 | EH73: 0.0007373913043 | EI73: 0.004835652174 | EJ73: 0.02515913043 | EK73: 0.8092043478 | EL73: 0.05423478261 | EM73: 0.0002260869565 | EN73: 0.1369826087 | EO73: 0.4205 | EP73: 0.3245478261 | EQ73: 0.3161043478 | ER73: 0.4164347826 | ES73: 1.614569565 | ET73: 0.1288086957 | EU73: 0.009813043478 | EV73: 0.0003473913043 | EW73: 0.001706521739 | EX73: 0.03654652174 | EY73: 0.002465217391 | EZ73: 0.01985913043 | FA73: 0.001354782609 | FB73: 0.0005334782609 | FC73: 2.324382609 | FD73: 0.01596956522 | FE73: 0.0008234782609 | FF73: 0.04955956522 | FG73: 1.695652174e-05 | FH73: 0.001023043478 | FI73: 0.03620913043 | FJ73: 0.09901956522 | FK73: 0.0003991304348 | FL73: 3.059108696 | FM73: 1.02215913 | FN73: 0.002089130435 | FO73: 0.0007195652174 | FP73: 0.009365217391 | FQ73: 0.0004373913043 | FR73: 52.51002957
A74: BRIG1 | B74: 2015 | C74: =C63 -> 14.32975021 | D74: =Tracking!Y39 -> 24.35972045 | E74: =Tracking!AD39 -> 12.56069803 | F74: =Tracking!AE39 -> 23.0942923 | G74: =G63 -> 5.517226693 | H74: =H63 -> 10.68198747 | I74: =Tracking!S39 -> 11.4413487 | J74: =Tracking!AG39 -> 11.95003829 | M74: 31.56170652 | N74: 19.56170652 | O74: 6.245348261 | P74: 2.637229565 | Q74: 3.675780435 | R74: 1.152726087 | S74: 0.1647613043 | T74: 3.51527087 | U74: 2.170588261 | V74: 12 | W74: =Tracking!R39 -> 20.8380025 | X74: =Tracking!AF39 -> 21.13225454 | AA74: 82.53488833 | AB74: 70.53488833 | AC74: 29.78932958 | AD74: 18.72414 | AE74: 11.3916675 | AF74: 4.041404167 | AG74: 0.3801220833 | AH74: 4.759229167 | AI74: 1.448995833 | AJ74: 12 | AK74: 11.4413487 | AL74: 1 | AM74: 0.1978773948 | AN74: 0.08355788884 | AO74: 0.1164632981 | AP74: 0.03652293282 | AQ74: 0.005220291375 | AR74: 0.1113777187 | AS74: 0.06877284216 | AT74: 0.3802075782 | AU74: 20.8380025 | AV74: 1 | AW74: 0.3609301495 | AX74: 0.2268633347 | AY74: 0.13802245 | AZ74: 0.04896600999 | BA74: 0.00460559275 | BB74: 0.05766324112 | BC74: 0.01755616155 | BD74: 0.1453930603 | BE74: 11.4413487 | BF74: 11.4413487 | BG74: 2.263984272 | BH74: 0.9560149425 | BI74: 1.332497204 | BJ74: 0.4178716098 | BK74: 0.05972717392 | BL74: 1.274311316 | BM74: 0.7868540679 | BN74: 4.350087479 | BO74: 20.8380025 | BP74: 20.8380025 | BQ74: 7.521063357 | BR74: 4.727378737 | BS74: 2.876112159 | BT74: 1.020353839 | BU74: 0.09597135324 | BV74: 1.201586763 | BW74: 0.3658353383 | BX74: 3.029700955 | BY74: 8.674137391 | BZ74: 2.815352609 | CA74: 8.757298696 | CB74: 2.96123087 | CC74: 0.8048126087 | CD74: 0.3182543478 | CE74: 1.20969 | CF74: 0.1152726087 | CG74: 0.1647613043 | CH74: 5.858784783 | CI74: 0.3484386957 | CJ74: 0.01398521739 | CK74: 8.347826087e-05 | CL74: 0.001477826087 | CM74: 0.01513217391 | CN74: 0.2274017391 | CO74: 0.03108652174 | CP74: 4.47826087e-05 | CQ74: -0.008837826087 | CR74: 0.1213669565 | CS74: 0.2703469565 | CT74: 0.1459134783 | CU74: 0.1432604348 | CV74: 0.67205 | CW74: 0.1949978261 | CX74: 0.1053621739 | CY74: 0.0001043478261 | CZ74: 0.0005834782609 | DA74: 0.01536695652 | DB74: 0.000727826087 | DC74: 0.02354304348 | DD74: 0.0003734782609 | DE74: 9.391304348e-05 | DF74: 0.2467095652 | DG74: 0.02301565217 | DH74: 0.0003239130435 | DI74: 0.02038217391 | DJ74: 3.260869565e-05 | DK74: 0.0001443478261 | DL74: 0.02799608696 | DM74: 0.1238613043 | DN74: 0.0002056521739 | DO74: 0.5378478261 | DP74: 0.195106087 | DQ74: 0.001253043478 | DR74: 8.043478261e-05 | DS74: 0.002362608696 | DT74: 0.0004808695652 | DU74: 133.9694157 | DV74: 18.58009292 | DW74: 10.64804417 | DX74: 17.61737208 | DY74: 9.910481667 | DZ74: 3.426324167 | EA74: 2.14743125 | EB74: 3.308032917 | EC74: 0.4041404167 | ED74: 0.3801220833 | EE74: 7.93204875 | EF74: 0.24442875 | EG74: 0.03566708333 | EH74: 0.0004091666667 | EI74: 0.003863333333 | EJ74: 0.02482375 | EK74: 0.7746620833 | EL74: 0.03512166667 | EM74: 0.0001208333333 | EN74: 0.08408833333 | EO74: 0.4698783333 | EP74: 0.4930866667 | EQ74: 0.38497875 | ER74: 0.4057641667 | ES74: 1.83779625 | ET74: 0.1408358333 | EU74: 0.007124166667 | EV74: 0.00024375 | EW74: 0.001383333333 | EX74: 0.03959708333 | EY74: 0.00187875 | EZ74: 0.01762958333 | FA74: 0.00110375 | FB74: 0.0003154166667 | FC74: 1.664675833 | FD74: 0.03340958333 | FE74: 0.0007483333333 | FF74: 0.04732458333 | FG74: 1.875e-05 | FH74: 0.0007270833333 | FI74: 0.06401041667 | FJ74: 0.09252 | FK74: 0.0003495833333 | FL74: 2.32152125 | FM74: 0.8306241667 | FN74: 0.003082916667 | FO74: 0.00034 | FP74: 0.00781625 | FQ74: 0.0004 | FR74: 51.22939167
A75: BRIG1 | B75: 2016 | C75: =C63 -> 14.32975021 | D75: =Tracking!Y40 -> 24.08058304 | E75: =Tracking!AD40 -> 12.3998751 | F75: =Tracking!AE40 -> 22.70011597 | G75: =G63 -> 5.517226693 | H75: =H63 -> 10.68198747 | I75: =Tracking!S40 -> 11.11993304 | J75: =Tracking!AG40 -> 11.59064829 | M75: 30.55517217 | N75: 18.55517217 | O75: 6.309436087 | P75: 2.246575217 | Q75: 2.92772913 | R75: 0.8904869565 | S75: 0.1264843478 | T75: 4.652051739 | U75: 1.402411304 | V75: 12 | W75: =Tracking!R40 -> 19.18383875 | X75: =Tracking!AF40 -> 20.43607185 | AA75: 70.393395 | AB75: 58.393395 | AC75: 19.90510917 | AD75: 19.71347917 | AE75: 7.993712083 | AF75: 3.723008333 | AG75: 0.3207833333 | AH75: 5.8627475 | AI75: 0.8745554167 | AJ75: 12 | AK75: 11.11993304 | AL75: 1 | AM75: 0.2064932265 | AN75: 0.07352520237 | AO75: 0.09581779195 | AP75: 0.02914357515 | AQ75: 0.004139539686 | AR75: 0.1522508763 | AS75: 0.04589767311 | AT75: 0.3927322004 | AU75: 19.18383875 | AV75: 1 | AW75: 0.2827695577 | AX75: 0.2800472852 | AY75: 0.1135577007 | AZ75: 0.05288860316 | BA75: 0.004557008983 | BB75: 0.08328547728 | BC75: 0.01242382778 | BD75: 0.1704705392 | BE75: 11.11993304 | BF75: 11.11993304 | BG75: 2.296190852 | BH75: 0.8175953273 | BI75: 1.065487431 | BJ75: 0.3240746043 | BK75: 0.04603140414 | BL75: 1.69301955 | BM75: 0.5103790519 | BN75: 4.367155772 | BO75: 19.18383875 | BP75: 19.18383875 | BQ75: 5.424605598 | BR75: 5.372381962 | BS75: 2.17847262 | BT75: 1.014606435 | BU75: 0.08742092551 | BV75: 1.597735166 | BW75: 0.2383367089 | BX75: 3.270279335 | BY75: 10.5543213 | BZ75: 2.804696522 | CA75: 10.14729522 | CB75: 2.48683087 | CC75: 0.799863913 | CD75: 0.2694813043 | CE75: 0.9754243478 | CF75: 0.08904869565 | CG75: 0.1264843478 | CH75: 7.75341913 | CI75: 0.2265278261 | CJ75: 0.01135434783 | CK75: 5.52173913e-05 | CL75: 0.00111826087 | CM75: 0.01133086957 | CN75: 0.1709408696 | CO75: 0.0355373913 | CP75: 0 | CQ75: -0.006314782609 | CR75: 0.09713130435 | CS75: 0.2212147826 | CT75: 0.1124413043 | CU75: 0.1174295652 | CV75: 0.5419021739 | CW75: 0.1258486957 | CX75: 0.04707869565 | CY75: 7.347826087e-05 | CZ75: 0.000422173913 | DA75: 0.01104608696 | DB75: 0.0004669565217 | DC75: 0.01735695652 | DD75: 0.0002952173913 | DE75: 5.391304348e-05 | DF75: 0.2089004348 | DG75: 0.005227826087 | DH75: 0.0005991304348 | DI75: 0.01608826087 | DJ75: 4.608695652e-05 | DK75: 9.043478261e-05 | DL75: 0.02181956522 | DM75: 0.09736347826 | DN75: 0.0001856521739 | DO75: 0.5168765217 | DP75: 0.1939065217 | DQ75: 0.001016956522 | DR75: 0.0001 | DS75: 0.001824782609 | DT75: 7.52173913e-05 | DU75: 138.505843 | DV75: 17.88182708 | DW75: 8.110580833 | DX75: 17.45532333 | DY75: 7.843824583 | DZ75: 2.35476375 | EA75: 2.1932125 | EB75: 2.462696667 | EC75: 0.3723008333 | ED75: 0.3207833333 | EE75: 9.77124625 | EF75: 0.14006875 | EG75: 0.03135708333 | EH75: 0.0004958333333 | EI75: 0.002414583333 | EJ75: 0.01870583333 | EK75: 0.5240958333 | EL75: 0.05088125 | EM75: 0 | EN75: 0.03963375 | EO75: 0.3182029167 | EP75: 0.4491391667 | EQ75: 0.3585125 | ER75: 0.20267625 | ES75: 1.368164583 | ET75: 0.07781583333 | EU75: 0.003715416667 | EV75: 0.0002279166667 | EW75: 0.001404583333 | EX75: 0.034925 | EY75: 0.00201125 | EZ75: 0.01469625 | FA75: 0.0009841666667 | FB75: 0.0001416666667 | FC75: 1.700164167 | FD75: 0.01447166667 | FE75: 0.001465416667 | FF75: 0.03909416667 | FG75: 3.166666667e-05 | FH75: 0.00061 | FI75: 0.0529375 | FJ75: 0.05872875 | FK75: 0.00037125 | FL75: 1.596382083 | FM75: 0.5708516667 | FN75: 0.002564166667 | FO75: 0.0001520833333 | FP75: 0.007437916667 | FQ75: 0.0005995833333 | FR75: 61.22067208
A76: BRIG1 | B76: 2017 | C76: =C63 -> 14.32975021 | D76: =Tracking!Y41 -> 23.80144563 | E76: =Tracking!AD41 -> 12.23905218 | F76: =Tracking!AE41 -> 22.30593964 | G76: =G63 -> 5.517226693 | H76: =H63 -> 10.68198747 | I76: =Tracking!S41 -> 11.35985455 | J76: =Tracking!AG41 -> 11.47728398 | M76: 31.39280273 | N76: 19.39280273 | O76: 6.347632727 | P76: 2.501870909 | Q76: 4.112764091 | R76: 1.347163636 | S76: 0.1424854545 | T76: 3.218133636 | U76: 1.722751364 | V76: 12 | W76: =Tracking!R41 -> 18.08728522 | X76: =Tracking!AF41 -> 19.86314573 | AA76: 62.95823913 | AB76: 50.95823913 | AC76: 16.73798043 | AD76: 15.43058174 | AE76: 8.865923913 | AF76: 3.555517391 | AG76: 0.1910521739 | AH76: 5.250533043 | AI76: 0.9266526087 | AJ76: 12 | AK76: =I76 -> 11.35985455 | AL76: =M76/M76 -> 1 | AM76: =O76/M76 -> 0.2022002553 | AN76: =P76/M76 -> 0.07969568473 | AO76: =Q76/M76 -> 0.1310097772 | AP76: =R76/M76 -> 0.04291313675 | AQ76: =S76/M76 -> 0.004538793678 | AR76: =T76/M76 -> 0.1025118294 | AS76: =U76/M76 -> 0.05487727167 | AT76: =V76/M76 -> 0.3822532223 | AU76: =W76 -> 18.08728522 | AV76: =AA76/AA76 -> 1 | AW76: =AC76/AA76 -> 0.265858459 | AX76: =AD76/AA76 -> 0.2450923335 | AY76: =AE76/AA76 -> 0.140822298 | AZ76: =AF76/AA76 -> 0.05647421911 | BA76: =AG76/AA76 -> 0.003034585728 | BB76: =AH76/AA76 -> 0.08339707584 | BC76: =AI76/AA76 -> 0.01471852805 | BD76: =AJ76/AA76 -> 0.1906025354 | BE76: =I76 -> 11.35985455 | BF76: =BE76 -> 11.35985455 | BG76: =BE76*AM76 -> 2.29696549 | BH76: =BE76*AN76 -> 0.9053313865 | BI76: =BE76*AO76 -> 1.488252013 | BJ76: =BE76*AP76 -> 0.4874869916 | BK76: =BE76*AQ76 -> 0.05156003599 | BL76: =BE76*AR76 -> 1.164519471 | BM76: =BE76*AS76 -> 0.623397824 | BN76: =BE76*AT76 -> 4.342341005 | BO76: =W76 -> 18.08728522 | BP76: =BO76 -> 18.08728522 | BQ76: =BO76*AW76 -> 4.808657775 | BR76: =BO76*AX76 -> 4.43305494 | BS76: =BO76*AY76 -> 2.547093069 | BT76: =BO76*AZ76 -> 1.021465308 | BU76: =BO76*BA76 -> 0.05488741758 | BV76: =BO76*BB76 -> 1.508426697 | BW76: =BO76*BC76 -> 0.2662182148 | BX76: =BO76*BD76 -> 3.44748242 | BY76: 8.210242727 | BZ76: 2.846686364 | CA76: 8.335240455 | CB76: 3.018126818 | CC76: 0.8120677273 | CD76: 0.3026586364 | CE76: 1.334436818 | CF76: 0.1347163636 | CG76: 0.1424854545 | CH76: 5.363556364 | CI76: 0.2917663636 | CJ76: 0.01150181818 | CK76: 0.0001145454545 | CL76: 0.001374090909 | CM76: 0.01726772727 | CN76: 0.2153368182 | CO76: 0.03686227273 | CP76: 0 | CQ76: 0.009832727273 | CR76: 0.13968 | CS76: 0.3004309091 | CT76: 0.1739272727 | CU76: 0.1174827273 | CV76: 0.7413536364 | CW76: 0.1625436364 | CX76: 0.06195454545 | CY76: 8.5e-05 | CZ76: 0.0005836363636 | DA76: 0.01255681818 | DB76: 0.0006618181818 | DC76: 0.01687636364 | DD76: 0.0003836363636 | DE76: 6.227272727e-05 | DF76: 0.2346181818 | DG76: 0.009054090909 | DH76: 0.0006595454545 | DI76: 0.02122136364 | DJ76: 8.272727273e-05 | DK76: 0.0001772727273 | DL76: 0.02268318182 | DM76: 0.1019863636 | DN76: 0.0002363636364 | DO76: 0.5562263636 | DP76: 0.1968645455 | DQ76: 0.001116818182 | DR76: 0.0001086363636 | DS76: 0.002065909091 | DT76: 0.0001881818182 | DU76: 135.9021436 | DV76: 15.73602217 | DW76: 6.985134783 | DX76: 15.8882213 | DY76: 7.211518261 | DZ76: 2.03431913 | EA76: 1.818872174 | EB76: 2.655205652 | EC76: 0.3555517391 | ED76: 0.1910521739 | EE76: 8.750887391 | EF76: 0.156516087 | EG76: 0.01638782609 | EH76: 0.000302173913 | EI76: 0.002516521739 | EJ76: 0.01965652174 | EK76: 0.5663634783 | EL76: 0.04548043478 | EM76: 0 | EN76: 0.06659956522 | EO76: 0.3212734783 | EP76: 0.4578252174 | EQ76: 0.3731230435 | ER76: 0.2562921739 | ES76: 1.475113478 | ET76: 0.08695391304 | EU76: 0.0111373913 | EV76: 0.000147826087 | EW76: 0.00115173913 | EX76: 0.02219521739 | EY76: 0.001300434783 | EZ76: 0.0150626087 | FA76: 0.0006939130435 | FB76: 0.0001117391304 | FC76: 1.409978261 | FD76: 0.01566043478 | FE76: 0.001100434783 | FF76: 0.04190695652 | FG76: 5.217391304e-06 | FH76: 0.0004739130435 | FI76: 0.02668826087 | FJ76: 0.07007608696 | FK76: 0.0003456521739 | FL76: 1.425553478 | FM76: 0.4931682609 | FN76: 0.001439565217 | FO76: 9.956521739e-05 | FP76: 0.005866521739 | FQ76: 0.0003065217391 | FR76: 68.57169652
A77: =A76 -> BRIG1 | B77: =B76+1 -> 2018 | C77: =C63 -> 14.32975021 | D77: =Tracking!Y42 -> 23.52230822 | E77: =Tracking!AD42 -> 12.07822925 | F77: =Tracking!AE42 -> 21.91176331 | G77: =G63 -> 5.517226693 | H77: =H63 -> 10.68198747 | I77: =Tracking!S42 -> 10.69702263 | J77: =Tracking!AG42 -> 11.25640478 | M77: 29.26210421 | N77: 17.26210421 | O77: 5.905463684 | P77: 2.556129474 | Q77: 2.782289474 | R77: 1.253373684 | S77: 0.1199563158 | T77: 3.026579474 | U77: 1.618311579 | V77: 12 | W77: =Tracking!R42 -> 17.36729 | X77: =Tracking!AF42 -> 19.3129986 | AA77: 58.28626 | AB77: 46.28626 | AC77: 15.7845975 | AD77: 15.954439 | AE77: 6.1790905 | AF77: 3.04162 | AG77: 0.2357605 | AH77: 3.768014 | AI77: 1.322736 | AJ77: 12 | AK77: 10.69702263 | AL77: 1 | AM77: 0.2018126804 | AN77: 0.08735289353 | AO77: 0.09508166103 | AP77: 0.04283265739 | AQ77: 0.004099374226 | AR77: 0.1034300012 | AS77: 0.05530400573 | AT77: 0.4100867085 | AU77: 17.36729 | AV77: 1 | AW77: 0.2708116373 | AX77: 0.2737255573 | AY77: 0.106012815 | AZ77: 0.05218416828 | BA77: 0.004044872668 | BB77: 0.06464669375 | BC77: 0.02269378752 | BD77: 0.2058804253 | BE77: 10.69702263 | BF77: 10.69702263 | BG77: 2.158794809 | BH77: 0.9344158791 | BI77: 1.01709068 | BJ77: 0.4581819055 | BK77: 0.04385109887 | BL77: 1.106393064 | BM77: 0.5915882009 | BN77: 4.386706802 | BO77: 17.36729 | BP77: 17.36729 | BQ77: 4.70326424 | BR77: 4.753871134 | BS77: 1.841155302 | BT77: 0.9062975839 | BU77: 0.07024847664 | BV77: 1.122737878 | BW77: 0.3941295891 | BX77: 3.575585052 | BY77: 7.320151111 | BZ77: 2.41336 | CA77: 7.380038333 | CB77: 2.53458 | CC77: 0.7721263158 | CD77: 0.3140173684 | CE77: 0.9371589474 | CF77: 0.1253373684 | CG77: 0.1199563158 | CH77: 5.044301053 | CI77: 0.2659847368 | CJ77: 0.01012578947 | CK77: 7.947368421e-05 | CL77: 0.001176315789 | CM77: 0.01319526316 | CN77: 0.19643 | CO77: 0.03513789474 | CP77: 0 | CQ77: 0.005487894737 | CR77: 0.09886421053 | CS77: 0.1832473684 | CT77: 0.1268136842 | CU77: 0.1062305263 | CV77: 0.5206436842 | CW77: 0.1480357895 | CX77: 0.05526736842 | CY77: 7.842105263e-05 | CZ77: 0.0004478947368 | DA77: 0.01083 | DB77: 0.0005168421053 | DC77: 0.01620894737 | DD77: 0.0003094736842 | DE77: 8.736842105e-05 | DF77: 0.2434242105 | DG77: 0.01290368421 | DH77: 0.0003410526316 | DI77: 0.01800368421 | DJ77: 1.052631579e-05 | DK77: 0.0001142105263 | DL77: 0.01942684211 | DM77: 0.1034921053 | DN77: 0.0001831578947 | DO77: 0.5322721053 | DP77: 0.1871821053 | DQ77: 0.0008194736842 | DR77: 0.0001052631579 | DS77: 0.002141052632 | DT77: 9.578947368e-05 | DU77: 144.8103584 | DV77: 12.6459985 | DW77: 6.3659745 | DX77: 12.712738 | DY77: 6.495728 | DZ77: 1.948798 | EA77: 1.8440815 | EB77: 1.948447 | EC77: 0.304162 | ED77: 0.2357605 | EE77: 6.280024 | EF77: 0.2144775 | EG77: 0.020717 | EH77: 0.000168 | EI77: 0.002293 | EJ77: 0.019589 | EK77: 0.4724225 | EL77: 0.038635 | EM77: 0 | EN77: 0.0494925 | EO77: 0.24707 | EP77: 0.330464 | EQ77: 0.2485485 | ER77: 0.2068955 | ES77: 1.0824705 | ET77: 0.119154 | EU77: 0.012309 | EV77: 0.000163 | EW77: 0.0011795 | EX77: 0.025243 | EY77: 0.001052 | EZ77: 0.013748 | FA77: 0.0007905 | FB77: 0.000233 | FC77: 1.429521 | FD77: 0.0117255 | FE77: 0.0010155 | FF77: 0.032831 | FG77: 5.15e-05 | FH77: 0.000374 | FI77: 0.0375765 | FJ77: 0.083007 | FK77: 0.000292 | FL77: 1.3714805 | FM77: 0.472436 | FN77: 0.0018555 | FO77: 0.000231 | FP77: 0.0055405 | FQ77: 0.000302 | FR77: 73.6458705
A78: =A77 -> BRIG1 | B78: =B77+1 -> 2019 | C78: =C63 -> 14.32975021 | D78: =Tracking!Y43 -> 23.24317082 | E78: =Tracking!AD43 -> 11.91740633 | F78: =Tracking!AE43 -> 21.51758697 | G78: =G63 -> 5.517226693 | H78: =H63 -> 10.68198747 | I78: =Tracking!S43 -> 9.444072632 | J78: =Tracking!AG43 -> 10.81244631 | M78: 25.93563842 | N78: 13.93563842 | O78: 4.424415263 | P78: 2.46993 | Q78: 2.80842 | R78: 1.379521053 | S78: 0.09365157895 | T78: 1.405794211 | U78: 1.353904737 | V78: 12 | W78: =Tracking!R43 -> 17.1862755 | X78: =Tracking!AF43 -> 18.53253839 | AA78: 59.6144675 | AB78: 47.6144675 | AC78: 14.592082 | AD78: 19.6938995 | AE78: 6.7020295 | AF78: 3.4653 | AG78: 0.252766 | AH78: 2.0892925 | AI78: 0.819097 | AJ78: 12 | AK78: =I78 -> 9.444072632 | AL78: =M78/M78 -> 1 | AM78: =O78/M78 -> 0.1705921093 | AN78: =P78/M78 -> 0.09523305191 | AO78: =Q78/M78 -> 0.1082842055 | AP78: =R78/M78 -> 0.05319017139 | AQ78: =S78/M78 -> 0.003610922447 | AR78: =T78/M78 -> 0.05420318512 | AS78: =U78/M78 -> 0.0522024835 | AT78: =V78/M78 -> 0.46268381 | AU78: =W78 -> 17.1862755 | AV78: =AA78/AA78 -> 1 | AW78: =AC78/AA78 -> 0.2447741733 | AX78: =AD78/AA78 -> 0.3303543641 | AY78: =AE78/AA78 -> 0.1124228695 | AZ78: =AF78/AA78 -> 0.05812850714 | BA78: =AG78/AA78 -> 0.004240011034 | BB78: =AH78/AA78 -> 0.03504673593 | BC78: =AI78/AA78 -> 0.01373990299 | BD78: =AJ78/AA78 -> 0.2012934193 | BE78: =I78 -> 9.444072632 | BF78: =BE78 -> 9.444072632 | BG78: =BE78*AM78 -> 1.61108427 | BH78: =BE78*AN78 -> 0.8993878591 | BI78: =BE78*AO78 -> 1.022643901 | BJ78: =BE78*AP78 -> 0.5023318419 | BK78: =BE78*AQ78 -> 0.03410181385 | BL78: =BE78*AR78 -> 0.5118988171 | BM78: =BE78*AS78 -> 0.4930040458 | BN78: =BE78*AT78 -> 4.369619507 | BO78: =W78 -> 17.1862755 | BP78: =BO78 -> 17.1862755 | BQ78: =BO78*AW78 -> 4.206756378 | BR78: =BO78*AX78 -> 5.677561113 | BS78: =BO78*AY78 -> 1.932130408 | BT78: =BO78*AZ78 -> 0.9990125382 | BU78: =BO78*BA78 -> 0.07286999776 | BV78: =BO78*BB78 -> 0.602322859 | BW78: =BO78*BC78 -> 0.2361377581 | BX78: =BO78*BD78 -> 3.45948416 | BY78: 4.304125789 | BZ78: 1.961134737 | CA78: 4.565833684 | CB78: 2.276298947 | CC78: 0.5835152632 | CD78: 0.3013473684 | CE78: 0.9388642105 | CF78: 0.1379521053 | CG78: 0.09365157895 | CH78: 2.342991053 | CI78: 0.2209673684 | CJ78: 0.007078421053 | CK78: 3.157894737e-05 | CL78: 0.0007805263158 | CM78: 0.009593157895 | CN78: 0.2144394737 | CO78: 0.03757263158 | CP78: 0 | CQ78: 0.002827894737 | CR78: 0.1044257895 | CS78: 0.1870815789 | CT78: 0.1131957895 | CU78: 0.11406 | CV78: 0.5215910526 | CW78: 0.1227594737 | CX78: 0.02513052632 | CY78: 0.0001115789474 | CZ78: 0.0005847368421 | DA78: 0.009907368421 | DB78: 0.0005889473684 | DC78: 0.009162105263 | DD78: 0.0003526315789 | DE78: 7.368421053e-05 | DF78: 0.2336021053 | DG78: 0.008001052632 | DH78: 0.0005752631579 | DI78: 0.01732052632 | DJ78: 2.789473684e-05 | DK78: 0.0001621052632 | DL78: 0.01488526316 | DM78: 0.08634210526 | DN78: 0.00018 | DO78: 0.3854978947 | DP78: 0.1414584211 | DQ78: 0.0007231578947 | DR78: 9.631578947e-05 | DS78: 0.002162631579 | DT78: 0.0002252631579 | DU78: 166.9386395 | DV78: 9.803736 | DW78: 6.321582 | DX78: 10.442343 | DY78: 6.875075 | DZ78: 1.8382995 | EA78: 2.249999 | EB78: 2.0464005 | EC78: 0.34653 | ED78: 0.252766 | EE78: 3.482154 | EF78: 0.141079 | EG78: 0.0190985 | EH78: 7.45e-05 | EI78: 0.00217 | EJ78: 0.0245425 | EK78: 0.5331785 | EL78: 0.0513815 | EM78: 0 | EN78: 0.056069 | EO78: 0.250899 | EP78: 0.308011 | EQ78: 0.28388 | ER78: 0.23803 | ES78: 1.136889 | ET78: 0.0783775 | EU78: 0.0028895 | EV78: 0.000457 | EW78: 0.002346 | EX78: 0.028701 | EY78: 0.001368 | EZ78: 0.009979 | FA78: 0.001039 | FB78: 0.0004865 | FC78: 1.7441855 | FD78: 0.008382 | FE78: 0.000691 | FF78: 0.0349925 | FG78: 9.3e-05 | FH78: 0.0005345 | FI78: 0.039171 | FJ78: 0.0772065 | FK78: 0.0002565 | FL78: 1.398844 | FM78: 0.4456485 | FN78: 0.0019345 | FO78: 0.000175 | FP78: 0.008674 | FQ78: 0.0002105 | FR78: 76.6586385
A79: BRIG1 | B79: 2020 | C79: =C63 -> 14.32975021 | D79: =Tracking!Y44 -> 22.96403341 | E79: =Tracking!AD44 -> 11.7565834 | F79: =Tracking!AE44 -> 21.12341064 | G79: =G63 -> 5.517226693 | H79: =H63 -> 10.68198747 | J79: =Tracking!AG44 -> 10.65522071 | X79: =Tracking!AF44 -> 17.95617237
A80: BRIG1 | B80: 2021 | C80: =C63 -> 14.32975021 | D80: =Tracking!Y45 -> 22.684896 | E80: =Tracking!AD45 -> 11.59576048 | F80: =Tracking!AE45 -> 20.72923431 | G80: =G63 -> 5.517226693 | H80: =H63 -> 10.68198747 | I80: =Tracking!S45 -> 10.1058 | J80: =Tracking!AG45 -> 10.40168745 | M80: 27.52128 | N80: 15.52128 | O80: 5.351335217 | P80: 2.499736087 | Q80: 3.265082174 | R80: 1.625343478 | S80: 0.2077508696 | T80: 2.024471739 | U80: 0.5475586957 | V80: 12 | W80: =Tracking!R45 -> 16.96767522 | X80: =Tracking!AF45 -> 17.40213148 | AA80: 57.4116887 | AB80: 45.4116887 | AC80: 15.12632304 | AD80: 15.21802739 | AE80: 7.768084783 | AF80: 3.580365217 | AG80: 0.3546330435 | AH80: 2.443885217 | AI80: 0.9203682609 | AJ80: 12 | AK80: =I80 -> 10.1058 | AL80: =M80/M80 -> 1 | AM80: =O80/M80 -> 0.194443544 | AN80: =P80/M80 -> 0.09082920878 | AO80: =Q80/M80 -> 0.1186384563 | AP80: =R80/M80 -> 0.05905769929 | AQ80: =S80/M80 -> 0.007548735726 | AR80: =T80/M80 -> 0.07356023191 | AS80: =U80/M80 -> 0.01989582954 | AT80: =V80/M80 -> 0.4360262313 | AU80: =W80 -> 16.96767522 | AV80: =AA80/AA80 -> 1 | AW80: =AC80/AA80 -> 0.2634711395 | AX80: =AD80/AA80 -> 0.265068451 | AY80: =AE80/AA80 -> 0.1353049346 | AZ80: =AF80/AA80 -> 0.06236300131 | BA80: =AG80/AA80 -> 0.006177018157 | BB80: =AH80/AA80 -> 0.0425677292 | BC80: =AI80/AA80 -> 0.01603102577 | BD80: =AJ80/AA80 -> 0.2090166702 | BE80: =I80 -> 10.1058 | BF80: =BE80 -> 10.1058 | BG80: =BE80*AM80 -> 1.965007567 | BH80: =BE80*AN80 -> 0.9179018181 | BI80: =BE80*AO80 -> 1.198936511 | BJ80: =BE80*AP80 -> 0.5968252975 | BK80: =BE80*AQ80 -> 0.0762860135 | BL80: =BE80*AR80 -> 0.7433849916 | BM80: =BE80*AS80 -> 0.2010632742 | BN80: =BE80*AT80 -> 4.406393889 | BO80: =W80 -> 16.96767522 | BP80: =BO80 -> 16.96767522 | BQ80: =BO80*AW80 -> 4.470492725 | BR80: =BO80*AX80 -> 4.497595387 | BS80: =BO80*AY80 -> 2.295810185 | BT80: =BO80*AZ80 -> 1.058155152 | BU80: =BO80*BA80 -> 0.1048096379 | BV80: =BO80*BB80 -> 0.7222754038 | BW80: =BO80*BC80 -> 0.2720092386 | BX80: =BO80*BD80 -> 3.546526974 | BY80: 5.618814783 | BZ80: 2.244696087 | CA80: 5.84056087 | CB80: 2.55777913 | CC80: 0.7010365217 | CD80: 0.3059013043 | CE80: 1.091855217 | CF80: 0.1625343478 | CG80: 0.2077508696 | CH80: 3.374118696 | CI80: 0.08869956522 | CJ80: 0.01458869565 | CK80: 6.52173913e-06 | CL80: 0.0009013043478 | CM80: 0.02047391304 | CN80: 0.24836 | CO80: 0.0592573913 | CP80: 0 | CQ80: -0.003156956522 | CR80: 0.1045873913 | CS80: 0.221853913 | CT80: 0.1382191304 | CU80: 0.1450830435 | CV80: 0.6065865217 | CW80: 0.04927782609 | CX80: 0.003816521739 | CY80: 7.739130435e-05 | CZ80: 0.000677826087 | DA80: 0.01761304348 | DB80: 0.0007630434783 | DC80: 0.008328695652 | DD80: 0.00052 | DE80: 6e-05 | DF80: 0.2371330435 | DG80: 0.005431304348 | DH80: 0.0009243478261 | DI80: 0.01977956522 | DJ80: 6.260869565e-05 | DK80: 0.0001486956522 | DL80: 0.03890130435 | DM80: 0.04494478261 | DN80: 0.0001830434783 | DO80: 0.4434178261 | DP80: 0.1699482609 | DQ80: 0.001440869565 | DR80: 6.043478261e-05 | DS80: 0.002444347826 | DT80: 0.0005191304348 | DU80: 153.8489622 | DV80: 10.61957304 | DW80: 6.546430435 | DX80: 10.83443478 | DY80: 6.85290913 | DZ80: 1.870717391 | EA80: 1.724883043 | EB80: 2.393570435 | EC80: 0.3580365217 | ED80: 0.3546330435 | EE80: 4.073142609 | EF80: 0.1510686957 | EG80: 0.02694695652 | EH80: 0.00014 | EI80: 0.002209565217 | EJ80: 0.03049173913 | EK80: 0.5622491304 | EL80: 0.05386217391 | EM80: 0 | EN80: 0.03986913043 | EO80: 0.2846665217 | EP80: 0.4126508696 | EQ80: 0.3345 | ER80: 0.2580747826 | ES80: 1.329761304 | ET80: 0.08392652174 | EU80: 0.003045652174 | EV80: 0.0002934782609 | EW80: 0.001789565217 | EX80: 0.03303652174 | EY80: 0.001374347826 | EZ80: 0.01664086957 | FA80: 0.001057391304 | FB80: 0.0002765217391 | FC80: 1.337118696 | FD80: 0.008414347826 | FE80: 0.0006669565217 | FF80: 0.04208434783 | FG80: 3.869565217e-05 | FH80: 0.0005091304348 | FI80: 0.06462913043 | FJ80: 0.08804782609 | FK80: 0.0002873913043 | FL80: 1.293887826 | FM80: 0.4535073913 | FN80: 0.002460434783 | FO80: 0.000257826087 | FP80: 0.007676521739 | FQ80: 0.0002369565217 | FR80: 77.66318435
A81: BRIG1 | B81: 2022 | C81: =C63 -> 14.32975021 | D81: =Tracking!Y46 -> 22.40575859 | E81: =Tracking!AD46 -> 11.43493755 | F81: =Tracking!AE46 -> 20.33505798 | G81: =G63 -> 5.517226693 | H81: =H63 -> 10.68198747
A82: BRIG1 | B82: 2023 | C82: =C63 -> 14.32975021 | D82: =Tracking!Y47 -> 22.12662119 | E82: =Tracking!AD47 -> 11.27411463 | F82: =Tracking!AE47 -> 19.94088165 | G82: =G63 -> 5.517226693 | H82: =H63 -> 10.68198747
A83: BRIG1 | B83: 2024 | C83: =C63 -> 14.32975021 | D83: =Tracking!Y48 -> 21.84748378 | E83: =Tracking!AD48 -> 11.1132917 | F83: =Tracking!AE48 -> 19.54670532 | G83: =G63 -> 5.517226693 | H83: =H63 -> 10.68198747
A84: BRIG1 | B84: 2025 | C84: =C63 -> 14.32975021 | D84: =Tracking!Y49 -> 21.56834637 | E84: =Tracking!AD49 -> 10.95246878 | F84: =Tracking!AE49 -> 19.15252899 | G84: =G63 -> 5.517226693 | H84: =H63 -> 10.68198747
A85: BRIG1 | B85: 2026 | C85: =C63 -> 14.32975021 | D85: =Tracking!Y50 -> 21.28920896 | E85: =Tracking!AD50 -> 10.79164585 | F85: =Tracking!AE50 -> 18.75835266 | G85: =G63 -> 5.517226693 | H85: =H63 -> 10.68198747
A86: BRIG1 | B86: 2027 | C86: =C63 -> 14.32975021 | D86: =Tracking!Y51 -> 21.01007156 | E86: =Tracking!AD51 -> 10.63082293 | F86: =Tracking!AE51 -> 18.36417633 | G86: =G63 -> 5.517226693 | H86: =H63 -> 10.68198747
A87: =A86 -> BRIG1 | B87: 2028 | C87: =C63 -> 14.32975021 | D87: =Tracking!Y52 -> 20.73093415 | E87: =Tracking!AD52 -> 10.47 | F87: =Tracking!AE52 -> 17.97 | G87: =G63 -> 5.517226693 | H87: =H63 -> 10.68198747 | K87: 10.55 | L87: =E87 -> 10.47 | N87: =IF(M87="","",M87-V87) ->  | Y87: 18.16 | Z87: =F87 -> 17.97 | AB87: =IF(AA87="","",AA87-AJ87) -> 
B88: 5-yr period
A89: =A63 -> BRIG1 | B89: 2000-04 | J89: =IF(J63="","",J63) -> 14.32975021 | M89: =IF(COUNT(M59:M63)<3,"",AVERAGE(M59:M63)) -> 42.41777158 | N89: =IF(COUNT(N59:N63)<3,"",AVERAGE(N59:N63)) -> 30.41777158 | O89: 14.77905217 | P89: 3.810864068 | Q89: 4.546255885 | R89: 2.416056941 | S89: 0.2354549889 | T89: 3.227884499 | U89: 1.40220176 | V89: 12 | X89: =IF(X63="","",X63) -> 27.43023193 | AA89: =IF(COUNT(AA59:AA63)<3,"",AVERAGE(AA59:AA63)) -> 167.2955203 | AB89: =IF(COUNT(AB59:AB63)<3,"",AVERAGE(AB59:AB63)) -> 155.2955203 | AC89: 119.0308758 | AD89: 12.73233229 | AE89: 13.00201797 | AF89: 5.565800537 | AG89: 0.780364429 | AH89: 3.933606607 | AI89: 0.250522506 | AJ89: 12 | AK89: =J89 -> 14.32975021 | AL89: =M89/M89 -> 1 | AM89: =O89/M89 -> 0.3484165156 | AN89: =P89/M89 -> 0.08984121338 | AO89: =Q89/M89 -> 0.1071780934 | AP89: =R89/M89 -> 0.05695860134 | AQ89: =S89/M89 -> 0.005550857108 | AR89: =T89/M89 -> 0.07609745583 | AS89: =U89/M89 -> 0.0330569407 | AT89: =V89/M89 -> 0.2829002928 | AU89: =X89 -> 27.43023193 | AV89: =AA89/AA89 -> 1 | AW89: =AC89/AA89 -> 0.7115006762 | AX89: =AD89/AA89 -> 0.07610683339 | AY89: =AE89/AA89 -> 0.07771886508 | AZ89: =AF89/AA89 -> 0.03326927421 | BA89: =AG89/AA89 -> 0.004664586522 | BB89: =AH89/AA89 -> 0.02351292253 | BC89: =AI89/AA89 -> 0.001497484844 | BD89: =AJ89/AA89 -> 0.07172935642 | BE89: =J89 -> 14.32975021 | BF89: =BE89 -> 14.32975021 | BG89: =BE89*AM89 -> 4.992721637 | BH89: =BE89*AN89 -> 1.287402146 | BI89: =BE89*AO89 -> 1.535835306 | BJ89: =BE89*AP89 -> 0.8162025295 | BK89: =BE89*AQ89 -> 0.07954239581 | BL89: =BE89*AR89 -> 1.090457534 | BM89: =BE89*AS89 -> 0.4736977029 | BN89: =BE89*AT89 -> 4.05389053 | BO89: =X89 -> 27.43023193 | BP89: =BO89 -> 27.43023193 | BQ89: =BO89*AW89 -> 19.51662857 | BR89: =BO89*AX89 -> 2.087628092 | BS89: =BO89*AY89 -> 2.131846495 | BT89: =BO89*AZ89 -> 0.9125839077 | BU89: =BO89*BA89 -> 0.1279506902 | BV89: =BO89*BB89 -> 0.6449649184 | BW89: =BO89*BC89 -> 0.04107635658 | BX89: =BO89*BD89 -> 1.967552883 | BY89: =IF(COUNT(BY59:BY63)<3,"",AVERAGE(BY59:BY63)) -> 9.43191553 | BZ89: =IF(COUNT(BZ59:BZ63)<3,"",AVERAGE(BZ59:BZ63)) -> 4.141607341 | CA89: 9.52963548 | CB89: 4.477625919 | CC89: 1.843377718 | CD89: 0.4574348096 | CE89: 1.474377266 | CF89: 0.2416056941 | CG89: 0.2354549889 | CH89: 5.379807618 | CI89: 0.2253742768 | CJ89: 0.007436418379 | CK89: 0.0002648476285 | CL89: 0.001811351515 | CM89: 0.01832959974 | CN89: 0.2884658743 | CO89: 0.06325149285 | CP89: 0.004802228402 | CQ89: 0.04510826012 | CR89: 0.1376059075 | CS89: 0.2783668875 | CT89: 0.2430189791 | CU89: 0.1149984468 | CV89: 0.8190984811 | CW89: 0.1144655919 | CX89: 0.04384071397 | CY89: 0.0003507949934 | CZ89: 0.0007422681159 | DA89: 0.01930256542 | DB89: 0.001456389328 | DC89: 0.009950575033 | DD89: 0.0006143779974 | DE89: 0.0006549229908 | DF89: 0.3546008857 | DG89: 0.01432007519 | DH89: 0.0001246086957 | DI89: 0.02475181957 | DJ89: 7.083781291e-05 | DK89: 0.0004060791831 | DL89: 0.05326340435 | DM89: 0.1156410851 | DN89: 0.0002223290514 | DO89: 1.251684244 | DP89: 0.44499373 | DQ89: 0.002366549473 | DR89: 0.001740807049 | DS89: 0.004179535837 | DT89: 4.346561265e-05 | DU89: 99.5451025 | DV89: 23.82871439 | DW89: 17.34245237 | DX89: 22.04166303 | DY89: 17.30438107 | DZ89: 10.8656485 | EA89: 1.398462122 | EB89: 3.663268314 | EC89: 0.5565800537 | ED89: 0.780364429 | EE89: 6.556011012 | EF89: 0.04005752831 | EG89: 0.04085026965 | EH89: 0.0006171303463 | EI89: 0.003382575974 | EJ89: 0.03410934255 | EK89: 0.6174688368 | EL89: =IF(COUNT(EL59:EL63)<3,"",AVERAGE(EL59:EL63)) -> 0.06495972078 | EM89: 0.004319304762 | EN89: 0.184355613 | EO89: 0.4834664896 | EP89: 0.5477597909 | EQ89: 0.689399361 | ER89: 0.1301678087 | ES89: 2.035149063 | ET89: -0.2414380835 | EU89: 0 | EV89: 0.0002694003463 | EW89: 0.00125281381 | EX89: 0.04551522541 | EY89: 0.002469924242 | EZ89: 0.01984631879 | FA89: 0.001106478139 | FB89: 0.001506477403 | FC89: 1.084079212 | FD89: 0.02304331429 | FE89: 0 | FF89: 0.05327661234 | FG89: 0.0001237951515 | FH89: 0.001795254242 | FI89: 0.200948562 | FJ89: 0.2620948341 | FK89: 0.0005476023377 | FL89: 8.1260569 | FM89: 2.634096598 | FN89: 0.008118828398 | FO89: 0.003914508615 | FP89: 0.007900750866 | FQ89: 3.073324675e-05 | FR89: 27.38200711
A90: BRIG1 | B90: 2001-05 | J90: 14.39885369 | M90: =IF(COUNT(M60:M64)<3,"",AVERAGE(M60:M64)) -> 42.65755285 | N90: 30.65755285 | O90: 14.96513979 | P90: 3.867064401 | Q90: 4.274977402 | R90: 2.260388608 | S90: 0.2239832889 | T90: 3.108454733 | U90: 1.957543293 | V90: 12 | X90: 27.71878393 | AA90: =IF(COUNT(AA60:AA64)<3,"",AVERAGE(AA60:AA64)) -> 173.1866293 | AB90: 161.1866293 | AC90: 126.3221048 | AD90: 11.83991635 | AE90: 12.76684785 | AF90: 5.371110061 | AG90: 0.7981179052 | AH90: 3.817119833 | AI90: 0.2714124703 | AJ90: 12 | AK90: =J90 -> 14.39885369 | AL90: =M90/M90 -> 1 | AM90: =O90/M90 -> 0.3508204008 | AN90: =P90/M90 -> 0.09065368599 | AO90: =Q90/M90 -> 0.1002161895 | AP90: =R90/M90 -> 0.05298917676 | AQ90: =S90/M90 -> 0.005250729917 | AR90: =T90/M90 -> 0.07286997319 | AS90: =U90/M90 -> 0.04588972321 | AT90: =V90/M90 -> 0.2813100893 | AU90: =X90 -> 27.71878393 | AV90: =AA90/AA90 -> 1 | AW90: =AC90/AA90 -> 0.7293987143 | AX90: =AD90/AA90 -> 0.06836507179 | AY90: =AE90/AA90 -> 0.07371728348 | AZ90: =AF90/AA90 -> 0.03101342223 | BA90: =AG90/AA90 -> 0.004608426807 | BB90: =AH90/AA90 -> 0.02204049959 | BC90: =AI90/AA90 -> 0.001567167577 | BD90: =AJ90/AA90 -> 0.06928941366 | BE90: =J90 -> 14.39885369 | BF90: =BE90 -> 14.39885369 | BG90: =BE90*AM90 -> 5.051411624 | BH90: =BE90*AN90 -> 1.305309161 | BI90: =BE90*AO90 -> 1.442998251 | BJ90: =BE90*AP90 -> 0.7629834035 | BK90: =BE90*AQ90 -> 0.07560449185 | BL90: =BE90*AR90 -> 1.049244083 | BM90: =BE90*AS90 -> 0.6607594105 | BN90: =BE90*AT90 -> 4.050542818 | BO90: =X90 -> 27.71878393 | BP90: =BO90 -> 27.71878393 | BQ90: =BO90*AW90 -> 20.21804536 | BR90: =BO90*AX90 -> 1.894996653 | BS90: =BO90*AY90 -> 2.043353453 | BT90: =BO90*AZ90 -> 0.8596543499 | BU90: =BO90*BA90 -> 0.1277399869 | BV90: =BO90*BB90 -> 0.610935846 | BW90: =BO90*BC90 -> 0.04343997946 | BX90: =BO90*BD90 -> 1.920618286 | BY90: =IF(COUNT(BY60:BY64)<3,"",AVERAGE(BY60:BY64)) -> 9.191340183 | BZ90: 4.112867341 | CA90: 9.412438297 | CB90: 4.475624352 | CC90: 1.855821084 | CD90: 0.4622142096 | CE90: 1.391701766 | CF90: 0.2260388608 | CG90: 0.2239832889 | CH90: 5.180758034 | CI90: 0.3158639768 | CJ90: 0.007211735046 | CK90: 0.0002314476285 | CL90: 0.001874101515 | CM90: 0.0181101664 | CN90: 0.2858683743 | CO90: 0.05769099285 | CP90: 0.002514061735 | CQ90: 0.02874876012 | CR90: 0.1353745742 | CS90: 0.2668398875 | CT90: 0.2308544791 | CU90: 0.1185191135 | CV90: 0.7803368144 | CW90: 0.1610697586 | CX90: 0.0651533473 | CY90: 0.0001800616601 | CZ90: 0.0007036681159 | DA90: 0.01865384875 | DB90: 0.001374422661 | DC90: 0.01287927503 | DD90: 0.0006084279974 | DE90: 0.0007306729908 | DF90: 0.358305719 | DG90: 0.01247274186 | DH90: 0.0001246086957 | DI90: 0.02444018623 | DJ90: 7.752114625e-05 | DK90: 0.0004411125165 | DL90: 0.05022272101 | DM90: 0.1259421518 | DN90: 0.0002559457181 | DO90: 1.25029041 | DP90: 0.4480103134 | DQ90: 0.00184546614 | DR90: 0.001710390382 | DS90: 0.003907352503 | DT90: 3.579894598e-05 | DU90: 98.55602359 | DV90: 23.91957911 | DW90: 17.63216808 | DX90: 22.30321651 | DY90: 17.66782039 | DZ90: 11.3742258 | EA90: 1.309979407 | EB90: 3.604316171 | EC90: 0.5371110061 | ED90: 0.7981179052 | EE90: 6.361866417 | EF90: 0.04406980212 | EG90: 0.04202581727 | EH90: 0.0005610827273 | EI90: 0.003374254545 | EJ90: 0.0342116997 | EK90: =IF(COUNT(EK60:EK64)<3,"",AVERAGE(EK60:EK64)) -> 0.6833591939 | EL90: 0.0614535303 | EM90: 0.002965733333 | EN90: 0.1713613273 | EO90: 0.5052845848 | EP90: 0.5002922909 | EQ90: 0.6325455515 | ER90: 0.2072807848 | ES90: 2.016764539 | ET90: -0.1767678455 | EU90: 0 | EV90: 0.0002163527273 | EW90: 0.00123454 | EX90: 0.04663960636 | EY90: 0.002430757576 | EZ90: 0.02154040212 | FA90: 0.001025359091 | FB90: 0.001553501212 | FC90: 1.015488021 | FD90: 0.0204476 | FE90: 0 | FF90: 0.05105137424 | FG90: 0.0001364618182 | FH90: 0.001834337576 | FI90: 0.2073063715 | FJ90: 0.2411090245 | FK90: 0.0005535309091 | FL90: 8.334692258 | FM90: 2.757388122 | FN90: 0.00683625697 | FO90: 0.004148949091 | FP90: 0.007363381818 | FQ90: 2.841181818e-05 | FR90: 26.72982747
A91: BRIG1 | B91: 2002-06 | J91: 14.70791126 | M91: =IF(COUNT(M61:M65)<3,"",AVERAGE(M61:M65)) -> 43.91416609 | N91: 31.91416609 | O91: 15.44513282 | P91: 4.015872277 | Q91: 4.20257054 | R91: 2.187299084 | S91: 0.224874627 | T91: 3.434314399 | U91: 2.404100998 | V91: 12 | X91: 27.68101229 | AA91: =IF(COUNT(AA61:AA65)<3,"",AVERAGE(AA61:AA65)) -> 171.8555029 | AB91: 159.8555029 | AC91: 125.7224761 | AD91: 10.49302182 | AE91: 12.69007252 | AF91: 5.345425645 | AG91: 0.7886508142 | AH91: 4.369133703 | AI91: 0.4467223751 | AJ91: 12 | AK91: 14.70791126 | AL91: 1 | AM91: 0.3517118551 | AN91: 0.09144821899 | AO91: 0.09569965489 | AP91: 0.0498085078 | AQ91: 0.005120776438 | AR91: 0.07820516031 | AS91: 0.05474545487 | AT91: 0.273260341 | AU91: 27.68101229 | AV91: 1 | AW91: 0.7315592111 | AX91: 0.06105723497 | AY91: 0.07384152561 | AZ91: 0.03110418668 | BA91: 0.004589034397 | BB91: 0.02542329823 | BC91: 0.002599406871 | BD91: 0.06982610272 | BE91: 14.70791126 | BF91: 14.70791126 | BG91: 5.172946754 | BH91: 1.34501229 | BI91: 1.407542032 | BJ91: 0.7325791127 | BK91: 0.07531592542 | BL91: 1.150234558 | BM91: 0.8051912921 | BN91: 4.019088846 | BO91: 27.68101229 | BP91: 27.68101229 | BQ91: 20.25029951 | BR91: 1.690126072 | BS91: 2.044008178 | BT91: 0.8609953739 | BU91: 0.1270291176 | BV91: 0.7037426309 | BW91: 0.07195421354 | BX91: 1.932857208 | BY91: =IF(COUNT(BY61:BY65)<3,"",AVERAGE(BY61:BY65)) -> 9.857410992 | BZ91: 4.193446341 | CA91: 10.0703952 | CB91: 4.58930909 | CC91: 1.910705761 | CD91: 0.4817924524 | CE91: 1.36629588 | CF91: 0.2187299084 | CG91: 0.224874627 | CH91: 5.723857415 | CI91: 0.386909091 | CJ91: 0.009833935046 | CK91: 0.0002122476285 | CL91: 0.001877401515 | CM91: 0.0183140664 | CN91: 0.3039655171 | CO91: 0.05593280237 | CP91: 0.002142776021 | CQ91: 0.02054828393 | CR91: 0.1449111456 | CS91: 0.2541085066 | CT91: 0.2128547648 | CU91: 0.1407197325 | CV91: 0.7731424335 | CW91: 0.20297133 | CX91: 0.0853645473 | CY91: 0.0001016616601 | CZ91: 0.0007008681159 | DA91: 0.01878274875 | DB91: 0.001305322661 | DC91: 0.01644277503 | DD91: 0.0005461279974 | DE91: 0.0007071729908 | DF91: 0.3734828142 | DG91: 0.01079855138 | DH91: 0.0001246086957 | DI91: 0.02474218623 | DJ91: 5.982114625e-05 | DK91: 0.0004231125165 | DL91: 0.04884172101 | DM91: 0.1362909518 | DN91: 0.0002777457181 | DO91: 1.254282601 | DP91: 0.4632014134 | DQ91: 0.00143586614 | DR91: 0.001358390382 | DS91: 0.003717552503 | DT91: 3.269894598e-05 | DU91: 95.19111658 | DV91: 24.32226141 | DW91: 17.11482726 | DX91: 23.56808833 | DY91: 17.51919645 | DZ91: 11.36124314 | EA91: 1.169688632 | EB91: 3.59277482 | EC91: 0.5345425645 | ED91: 0.7886508142 | EE91: 7.281889534 | EF91: 0.07229720472 | EG91: 0.04433025883 | EH91: 0.0005447147619 | EI91: 0.003444483983 | EJ91: 0.03430043563 | EK91: =IF(COUNT(EK61:EK65)<3,"",AVERAGE(EK61:EK65)) -> 0.7436775056 | EL91: 0.06858759957 | EM91: 0.003159802597 | EN91: 0.1551430156 | EO91: 0.5231226801 | EP91: 0.4718306892 | EQ91: 0.5893263307 | ER91: 0.2762813909 | ES91: 2.015704106 | ET91: -0.08426403593 | EU91: 0 | EV91: 0.0001266384416 | EW91: 0.001322159048 | EX91: 0.04715257606 | EY91: 0.002388692641 | EZ91: 0.02480630688 | FA91: 0.001086718398 | FB91: 0.001471388658 | FC91: 0.9067352506 | FD91: 0.0177941368 | FE91: 0 | FF91: 0.0518992487 | FG91: 0.00012428 | FH91: 0.001730268312 | FI91: 0.2034084408 | FJ91: 0.2323191761 | FK91: 0.0005899508225 | FL91: 8.022491348 | FM91: 2.754240715 | FN91: 0.004197568658 | FO91: 0.003902252121 | FP91: 0.007319966234 | FQ91: 2.963692641e-05 | FR91: 26.74867897
